Workbook

Sheet Calculator
B1: Mnthly Int Rate
B2: =0.08/12 -> 0.006666666667
B3: Payments | CF3: IFERROR(XLOOKUP(YEAR(CC12)&MONTH(CC12),Penalties!$H$3:$H$122&Penalties!$I$3:$I$122,Penalties!$L$3:$L$122)*$W$10,"")
B4: Start Date | C4: Amount
A5: Initial | B5: 2024-02-27 | C5: 1250
A6: 1st Adj
A7: 2nd Adj | U7: 12 | V7: Year 1: | W7: =INDIRECT("B"&U7) -> 2013 | AE7: =U7+1 -> 13 | AF7: Year 2: | AG7: =INDIRECT("B"&AE7) -> 2014 | AO7: =AE7+1 -> 14 | AP7: Year 3: | AQ7: =INDIRECT("B"&AO7) -> 2015 | AY7: =AO7+1 -> 15 | AZ7: Year 4: | BA7: =INDIRECT("B"&AY7) -> 2016 | BI7: =AY7+1 -> 16 | BJ7: Year 5: | BK7: =INDIRECT("B"&BI7) -> 2017 | BS7: =BI7+1 -> 17 | BT7: Year 6: | BU7: =INDIRECT("B"&BS7) -> 2018 | CC7: =BS7+1 -> 18 | CD7: Year 7: | CE7: =INDIRECT("B"&CC7) -> 2019 | CM7: =CC7+1 -> 19 | CN7: Year 8: | CO7: =INDIRECT("B"&CM7) -> 2020 | CW7: =CM7+1 -> 20 | CX7: Year 9: | CY7: =INDIRECT("B"&CW7) -> 2021 | DG7: =CW7+1 -> 21 | DH7: Year 10: | DI7: =INDIRECT("B"&DG7) -> 2022
V8: CSED | W8: =IF(INDIRECT("D"&U7)="","",INDIRECT("D"&U7)) -> 2027-06-05 | AB8: Pays by CSED | AF8: CSED | AG8: =IF(INDIRECT("C"&AE7)="","",INDIRECT("C"&AE7)) -> 1941-01-24 | AL8: Pays by CSED | AP8: CSED | AQ8: =IF(INDIRECT("C"&AO7)="","",INDIRECT("C"&AO7)) -> 1919-03-01 | AV8: Pays by CSED | AZ8: CSED | BA8: =IF(INDIRECT("C"&AY7)="","",INDIRECT("C"&AY7)) -> 1906-11-04 | BF8: Pays by CSED | BJ8: CSED | BK8: =IF(INDIRECT("C"&BI7)="","",INDIRECT("C"&BI7)) -> 1913-09-08 | BP8: Pays by CSED | BT8: CSED | BU8: =IF(INDIRECT("C"&BS7)="","",INDIRECT("C"&BS7)) -> 1908-03-18 | BZ8: Pays by CSED | CD8: CSED | CE8: =IF(INDIRECT("C"&CC7)="","",INDIRECT("C"&CC7)) -> 1924-08-21 | CJ8: Pays by CSED | CN8: CSED | CO8: =IF(INDIRECT("C"&CM7)="","",INDIRECT("C"&CM7)) -> 1932-11-07 | CT8: Pays by CSED | CX8: CSED | CY8: =IF(INDIRECT("C"&CW7)="","",INDIRECT("C"&CW7)) -> 1902-04-29 | DD8: Pays by CSED | DH8: CSED | DI8: =IF(INDIRECT("C"&DG7)="","",INDIRECT("C"&DG7)) -> 1901-11-17 | DN8: Pays by CSED
V9: Pays off | W9: =IF(W10="","",MIN(AC12:AC191)) -> 2024-11-15 | AB9: =IF(W10="","",IF(W9<W8,"YES","NO")) -> YES | AF9: Pays off | AG9: =IF(OR(AG10="",AG10=0),"",MIN(AM12:AM79)) -> 00:00:00 | AL9: =IF(AG10="","",IF(AG9<AG8,"YES","NO")) -> YES | AP9: Pays off | AQ9: =IF(AQ10="","",MIN(AW12:AW79)) -> 00:00:00 | AV9: =IF(AQ10="","",IF(AQ9<AQ8,"YES","NO")) -> YES | AZ9: Pays off | BA9: =IF(BA10="","",MIN(BG12:BG79)) -> 00:00:00 | BF9: =IF(BA10="","",IF(BA9<BA8,"YES","NO")) -> YES | BJ9: Pays off | BK9: =IF(BK10="","",MIN(BQ12:BQ79)) -> 00:00:00 | BP9: =IF(BK10="","",IF(BK9<BK8,"YES","NO")) -> YES | BT9: Pays off | BU9: =IF(BU10="","",MIN(CA12:CA79)) -> 00:00:00 | BZ9: =IF(BU10="","",IF(BU9<BU8,"YES","NO")) -> YES | CD9: Pays off | CE9: =IF(CE10="","",MIN(CK12:CK79)) -> 00:00:00 | CJ9: =IF(CE10="","",IF(CE9<CE8,"YES","NO")) -> YES | CN9: Pays off | CO9: =IF(CO10="","",MIN(CU12:CU79)) -> 00:00:00 | CT9: =IF(CO10="","",IF(CO9<CO8,"YES","NO")) -> YES | CX9: Pays off | CY9: =IF(CY10="","",MIN(DE12:DE79)) -> 00:00:00 | DD9: =IF(CY10="","",IF(CY9<CY8,"YES","NO")) -> YES | DH9: Pays off | DI9: =IF(DI10="","",MIN(DO12:DO79)) -> 00:00:00 | DN9: =IF(DI10="","",IF(DI9<DI8,"YES","NO")) -> YES
B10: Enter each period in order from earliest to latest tax year | V10: Amount: | W10: =IF(INDIRECT("C"&U7)="","",INDIRECT("C"&U7)) -> 10928 | AF10: Amount: | AG10: =IF(INDIRECT("C"&AE7)="","",INDIRECT("C"&AE7)) -> 15000 | AP10: Amount: | AQ10: =IF(INDIRECT("C"&AO7)="","",INDIRECT("C"&AO7)) -> 7000 | AZ10: Amount: | BA10: =IF(INDIRECT("C"&AY7)="","",INDIRECT("C"&AY7)) -> 2500 | BJ10: Amount: | BK10: =IF(INDIRECT("C"&BI7)="","",INDIRECT("C"&BI7)) -> 5000 | BT10: Amount: | BU10: =IF(INDIRECT("C"&BS7)="","",INDIRECT("C"&BS7)) -> 3000 | CD10: Amount: | CE10: =IF(INDIRECT("C"&CC7)="","",INDIRECT("C"&CC7)) -> 9000 | CN10: Amount: | CO10: =IF(INDIRECT("C"&CM7)="","",INDIRECT("C"&CM7)) -> 12000 | CX10: Amount: | CY10: =IF(INDIRECT("C"&CW7)="","",INDIRECT("C"&CW7)) -> 850 | DH10: Amount: | DI10: =IF(INDIRECT("C"&DG7)="","",INDIRECT("C"&DG7)) -> 687
B11: Year | C11: Balance | D11: CSED | E11: Tax Assessed | F11: WH & Credits | G11: Return Due | H11: Return Filed | I11: Tax Due Dt | J11: Payoff date | K11: Paid by CSED | U11: Date | V11: Payment | W11: Beg Bal | X11: Interest | Y11: FTF | Z11: FTP | AA11: Other | AB11: End Bal | AC11: Stop Date | AE11: Date | AF11: Payment | AG11: Beg Bal | AH11: Interest | AI11: FTF | AJ11: FTP | AK11: Other | AL11: End Bal | AM11: Stop Date | AO11: Date | AP11: Payment | AQ11: Beg Bal | AR11: Interest | AS11: FTF | AT11: FTP | AU11: Other | AV11: End Bal | AW11: Stop Date | AY11: Date | AZ11: Payment | BA11: Beg Bal | BB11: Interest | BC11: FTF | BD11: FTP | BE11: Other | BF11: End Bal | BG11: Stop Date | BI11: Date | BJ11: Payment | BK11: Beg Bal | BL11: Interest | BM11: FTF | BN11: FTP | BO11: Other | BP11: End Bal | BQ11: Stop Date | BS11: Date | BT11: Payment | BU11: Beg Bal | BV11: Interest | BW11: FTF | BX11: FTP | BY11: Other | BZ11: End Bal | CA11: Stop Date | CC11: Date | CD11: Payment | CE11: Beg Bal | CF11: Interest | CG11: FTF | CH11: FTP | CI11: Other | CJ11: End Bal | CK11: Stop Date | CM11: Date | CN11: Payment | CO11: Beg Bal | CP11: Interest | CQ11: FTF | CR11: FTP | CS11: Other | CT11: End Bal | CU11: Stop Date | CW11: Date | CX11: Payment | CY11: Beg Bal | CZ11: Interest | DA11: FTF | DB11: FTP | DC11: Other | DD11: End Bal | DE11: Stop Date | DG11: Date | DH11: Payment | DI11: Beg Bal | DJ11: Interest | DK11: FTF | DL11: FTP | DM11: Other | DN11: End Bal | DO11: Stop Date
B12: 2013 | C12: =Table1[[#This Row],[Tax Assessed]]-Table1[[#This Row],[WH & Credits]] -> 10928 | D12: 2027-06-05 | E12: 14587 | F12: 3659 | G12: 2017-06-15 | H12: 2018-09-01 | I12: 2017-04-15 | J12: =IF(OR(B12="",C12="",D12=""),"",W9) -> 2024-11-15 | K12: =IF(J12="","",IF(J12<D12,"YES","NO")) -> YES | U12: =IFERROR(IF((ROW()-ROW(Year1Table[#Headers]))=1,IF(OR(Table1[[#This Row],[Tax Assessed]]="",Table1[[#This Row],[Tax Assessed]]=0),"",Table1[[#This Row],[Tax Due Dt]]),IF((ROW()-ROW(Year1Table[#Headers]))>1,IF(OFFSET(AB12,-1,)<1,"",EDATE(U11,1)))),"") -> 2017-04-15 | V12: =IF(OR(AB11<0,AB11=""),"",IF(AND($B$7<>"",U12>=$B$7),$C$7,IF(AND($B$6<>"",U12>=$B$6),$C$6,IF(U12>=$B$5,$C$5,IF(U12<$B$5,0))))) -> 0 | W12: =IF(W10="","",W10) -> 10928 | X12: =IFERROR(_xlfn.XLOOKUP(YEAR(Year1Table[[#This Row],[Date]])&MONTH(Year1Table[[#This Row],[Date]]),PenaltyTable[Year]&PenaltyTable[Month],PenaltyTable[Daily])*$W$10,"") -> 1.197589041 | AB12: =IF(W10="","",(W12+X12)-V12) -> 10929.19759 | AC12: =IF(AB12>0,"",IF(VALUE(U12)>=VALUE($W$8),"",U12)) ->  | AE12: =IF(OR(AG10="",AG10=0),"",MIN(AC12:AC191)) -> 2024-11-15 | AF12: =IF(ROW()-ROW(Year2Table[#Headers])=1,$AI$193,IF(AG10="","",IF(AND($B$7<>"",AE12>=$B$7),$C$7,IF(AND($B$6<>"",AE12>=$B$6),$C$6,IF(AE12>=$B$5,$C$5,IF(AE12<$B$5,0)))))) -> 1069.315507 | AG12: =IF(OR(AG10="",AG10=0),"",AG10) -> 15000 | AH12: =IFERROR(_xlfn.XLOOKUP(YEAR(Year2Table[[#This Row],[Date]])&MONTH(Year2Table[[#This Row],[Date]]),PenaltyTable[Year]&PenaltyTable[Month],PenaltyTable[Daily])*$AG$10,"") -> 3.287671233 | AL12: =IF(OR(AG10="",AG10=0),"",AG12-AF12+(AG12*$B$2)) -> 14030.68449 | AM12: =IF(AL12>0,"",IF(VALUE(AE12)<=VALUE($W$8),"",AE12)) ->  | AO12: =IF(OR(AQ10="",AQ10=0),"",MIN(AM12:AM191)) -> 00:00:00 | AP12: =IF(AQ10="","",IF(AND($B$7<>"",AO12>=$B$7),$C$7,IF(AND($B$6<>"",AO12>=$B$6),$C$6,IF(AO12>=$B$5,$C$5,IF(AO12<$B$5,0))))) -> 0 | AQ12: =IF(OR(AQ10="",AQ10=0),"",AQ10) -> 7000 | AR12: =IFERROR(_xlfn.XLOOKUP(YEAR(Year3Table[[#This Row],[Date]])&MONTH(Year3Table[[#This Row],[Date]]),PenaltyTable[Year]&PenaltyTable[Month],PenaltyTable[Daily])*$AQ$10,"") ->  | AV12: =IF(OR(AQ10="",AQ10=0),"",AQ12-AP12+(AQ12*$B$2)) -> 7046.666667 | AW12: =IF(AV12>0,"",AO12) ->  | AY12: =IF(OR(BA10="",BA10=0),"",MIN(AW12:AW191)) -> 00:00:00 | AZ12: =IF(BA10="","",IF(AND($B$7<>"",AY12>=$B$7),$C$7,IF(AND($B$6<>"",AY12>=$B$6),$C$6,IF(AY12>=$B$5,$C$5,IF(AY12<$B$5,0))))) -> 0 | BA12: =IF(OR(BA10="",BA10=0),"",BA10) -> 2500 | BB12: =IFERROR(_xlfn.XLOOKUP(YEAR(Year4Table[[#This Row],[Date]])&MONTH(Year4Table[[#This Row],[Date]]),PenaltyTable[Year]&PenaltyTable[Month],PenaltyTable[Daily])*$BA$10,"") ->  | BF12: =IF(OR(BA10="",BA10=0),"",BA12-AZ12+(BA12*$B$2)) -> 2516.666667 | BG12: =IF(BF12>0,"",AY12) ->  | BI12: =IF(OR(BK10="",BK10=0),"",MIN(BG12:BG191)) -> 00:00:00 | BJ12: =IF(BK10="","",IF(AND($B$7<>"",BI12>=$B$7),$C$7,IF(AND($B$6<>"",BI12>=$B$6),$C$6,IF(BI12>=$B$5,$C$5,IF(BI12<$B$5,0))))) -> 0 | BK12: =IF(OR(BK10="",BK10=0),"",BK10) -> 5000 | BL12: =IFERROR(_xlfn.XLOOKUP(YEAR(Year5Table[[#This Row],[Date]])&MONTH(Year5Table[[#This Row],[Date]]),PenaltyTable[Year]&PenaltyTable[Month],PenaltyTable[Daily])*$BK$10,"") ->  | BP12: =IF(OR(BK10="",BK10=0),"",BK12-BJ12+(BK12*$B$2)) -> 5033.333333 | BQ12: =IF(BP12>0,"",BI12) ->  | BS12: =IF(OR(BU10="",BU10=0),"",MIN(BQ12:BQ191)) -> 00:00:00 | BT12: =IF(BU10="","",IF(AND($B$7<>"",BS12>=$B$7),$C$7,IF(AND($B$6<>"",BS12>=$B$6),$C$6,IF(BS12>=$B$5,$C$5,IF(BS12<$B$5,0))))) -> 0 | BU12: =IF(OR(BU10="",BU10=0),"",BU10) -> 3000 | BV12: =IFERROR(_xlfn.XLOOKUP(YEAR(Year6Table[[#This Row],[Date]])&MONTH(Year6Table[[#This Row],[Date]]),PenaltyTable[Year]&PenaltyTable[Month],PenaltyTable[Daily])*$BU$10,"") ->  | BZ12: =IF(OR(BU10="",BU10=0),"",BU12-BT12+(BU12*$B$2)) -> 3020 | CA12: =IF(BZ12>0,"",BS12) ->  | CC12: =IF(OR(CE10="",CE10=0),"",MIN(CA12:CA191)) -> 00:00:00 | CD12: =IF(CE10="","",IF(AND($B$7<>"",CC12>=$B$7),$C$7,IF(AND($B$6<>"",CC12>=$B$6),$C$6,IF(CC12>=$B$5,$C$5,IF(CC12<$B$5,0))))) -> 0 | CE12: =IF(OR(CE10="",CE10=0),"",CE10) -> 9000 | CF12: =IFERROR(_xlfn.XLOOKUP(YEAR(Year7Table[[#This Row],[Date]])&MONTH(Year7Table[[#This Row],[Date]]),PenaltyTable[Year]&PenaltyTable[Month],PenaltyTable[Daily])*CE$10,"") ->  | CJ12: =IF(OR(CE10="",CE10=0),"",CE12-CD12+(CE12*$B$2)) -> 9060 | CK12: =IF(CJ12>0,"",CC12) ->  | CM12: =IF(OR(CO10="",CO10=0),"",MIN(CK12:CK191)) -> 00:00:00 | CN12: =IF(CO10="","",IF(AND($B$7<>"",CM12>=$B$7),$C$7,IF(AND($B$6<>"",CM12>=$B$6),$C$6,IF(CM12>=$B$5,$C$5,IF(CM12<$B$5,0))))) -> 0 | CO12: =IF(OR(CO10="",CO10=0),"",CO10) -> 12000 | CP12: =IFERROR(_xlfn.XLOOKUP(YEAR(Year8Table[[#This Row],[Date]])&MONTH(Year8Table[[#This Row],[Date]]),PenaltyTable[Year]&PenaltyTable[Month],PenaltyTable[Daily])*$CO$10,"") ->  | CT12: =IF(OR(CO10="",CO10=0),"",CO12-CN12+(CO12*$B$2)) -> 12080 | CU12: =IF(CT12>0,"",CM12) ->  | CW12: =IF(OR(CY10="",CY10=0),"",MIN(CU12:CU191)) -> 00:00:00 | CX12: =IF(CY10="","",IF(AND($B$7<>"",CW12>=$B$7),$C$7,IF(AND($B$6<>"",CW12>=$B$6),$C$6,IF(CW12>=$B$5,$C$5,IF(CW12<$B$5,0))))) -> 0 | CY12: =IF(OR(CY10="",CY10=0),"",CY10) -> 850 | CZ12: =IFERROR(_xlfn.XLOOKUP(YEAR(Year9Table[[#This Row],[Date]])&MONTH(Year9Table[[#This Row],[Date]]),PenaltyTable[Year]&PenaltyTable[Month],PenaltyTable[Daily])*$CY$10,"") ->  | DD12: =IF(OR(CY10="",CY10=0),"",CY12-CX12+(CY12*$B$2)) -> 855.6666667 | DE12: =IF(DD12>0,"",CW12) ->  | DG12: =IF(OR(DI10="",DI10=0),"",MIN(DE12:DE191)) -> 00:00:00 | DH12: =IF(DI10="","",IF(AND($B$7<>"",DG12>=$B$7),$C$7,IF(AND($B$6<>"",DG12>=$B$6),$C$6,IF(DG12>=$B$5,$C$5,IF(DG12<$B$5,0))))) -> 0 | DI12: =IF(OR(DI10="",DI10=0),"",DI10) -> 687 | DJ12: =IFERROR(_xlfn.XLOOKUP(YEAR(Year10Table[[#This Row],[Date]])&MONTH(Year10Table[[#This Row],[Date]]),PenaltyTable[Year]&PenaltyTable[Month],PenaltyTable[Daily])*$DI$10,"") ->  | DN12: =IF(OR(DI10="",DI10=0),"",DI12-DH12+(DI12*$B$2)) -> 691.58 | DO12: =IF(DN12>0,"",DG12) -> 
B13: 2014 | C13: =Table1[[#This Row],[Tax Assessed]]-Table1[[#This Row],[WH & Credits]] -> 15000 | D13: 2028-06-04 | E13: 15000 | J13: =IF(OR(B13="",C13="",D13=""),"",AG9) -> 00:00:00 | K13: YES | U13: =IFERROR(IF((ROW()-ROW(Year1Table[#Headers]))=1,IF(OR(Table1[[#This Row],[Tax Assessed]]="",Table1[[#This Row],[Tax Assessed]]=0),"",Table1[[#This Row],[Tax Due Dt]]),IF((ROW()-ROW(Year1Table[#Headers]))>1,IF(OFFSET(AB13,-1,)<1,"",EDATE(U12,1)))),"") -> 2017-05-15 | V13: 0 | W13: =IF(OR(AB12<0,AB12=""),"",AB12) -> 10929.19759 | X13: =IFERROR(_xlfn.XLOOKUP(YEAR(Year1Table[[#This Row],[Date]])&MONTH(Year1Table[[#This Row],[Date]]),PenaltyTable[Year]&PenaltyTable[Month],PenaltyTable[Daily])*$W$10,"") -> 1.197589041 | AB13: =IF(OR(AB12<0,AB12=""),"",(W13+X13)-V13) -> 10930.39518 | AC13: =IF(AB13>0,"",IF(VALUE(U13)>=VALUE($W$8),"",U13)) ->  | AE13: =IF(OR(AL12="",AL12<0),"",EDATE(AE12,1)) -> 2024-12-15 | AF13: =IF(ROW()-ROW(Year2Table[#Headers])=1,$AI$193,IF(AG11="","",IF(AND($B$7<>"",AE13>=$B$7),$C$7,IF(AND($B$6<>"",AE13>=$B$6),$C$6,IF(AE13>=$B$5,$C$5,IF(AE13<$B$5,0)))))) -> 1250 | AG13: =IF(OR(AL12<0,AL12=""),"",AL12) -> 14030.68449 | AH13: =IFERROR(_xlfn.XLOOKUP(YEAR(Year2Table[[#This Row],[Date]])&MONTH(Year2Table[[#This Row],[Date]]),PenaltyTable[Year]&PenaltyTable[Month],PenaltyTable[Daily])*$AG$10,"") -> 3.287671233 | AL13: =IF(OR(AL12<0,AL12=""),"",AG13-AF13+(AG13*$B$2)) -> 12874.22239 | AO13: =IF(OR(AV12="",AV12<0),"",EDATE(AO12,1)) -> 1900-01-31 | AP13: =IF(OR(AV12="",AV12<0),"",IF(AND($B$7<>"",AO13>=$B$7),$C$7,IF(AND($B$6<>"",AO13>=$B$6),$C$6,IF(AO13>=$B$5,$C$5,IF(AO13<$B$5,0))))) -> 0 | AQ13: =IF(OR(AV12<0,AV12=""),"",AV12) -> 7046.666667 | AR13: =IFERROR(_xlfn.XLOOKUP(YEAR(Year3Table[[#This Row],[Date]])&MONTH(Year3Table[[#This Row],[Date]]),PenaltyTable[Year]&PenaltyTable[Month],PenaltyTable[Daily])*$AQ$10,"") ->  | AV13: =IF(OR(AV12<0,AV12=""),"",AQ13-AP13+(AQ13*$B$2)) -> 7093.644444 | AW13: =IF(AV13>0,"",AO13) ->  | AY13: =IF(OR(BF12="",BF12<0),"",EDATE(AY12,1)) -> 1900-01-31 | AZ13: =IF(OR(BF12="",BF12<0),"",IF(AND($B$7<>"",AY13>=$B$7),$C$7,IF(AND($B$6<>"",AY13>=$B$6),$C$6,IF(AY13>=$B$5,$C$5,IF(AY13<$B$5,0))))) -> 0 | BA13: =IF(OR(BF12<0,BF12=""),"",BF12) -> 2516.666667 | BB13: =IFERROR(_xlfn.XLOOKUP(YEAR(Year4Table[[#This Row],[Date]])&MONTH(Year4Table[[#This Row],[Date]]),PenaltyTable[Year]&PenaltyTable[Month],PenaltyTable[Daily])*$BA$10,"") ->  | BF13: =IF(OR(BF12<0,BF12=""),"",BA13-AZ13+(BA13*$B$2)) -> 2533.444444 | BG13: =IF(BF13>0,"",AY13) ->  | BI13: =IF(OR(BP12="",BP12<0),"",EDATE(BI12,1)) -> 1900-01-31 | BJ13: =IF(OR(BP12="",BP12<0),"",IF(AND($B$7<>"",BI13>=$B$7),$C$7,IF(AND($B$6<>"",BI13>=$B$6),$C$6,IF(BI13>=$B$5,$C$5,IF(BI13<$B$5,0))))) -> 0 | BK13: =IF(OR(BP12<0,BP12=""),"",BP12) -> 5033.333333 | BL13: =IFERROR(_xlfn.XLOOKUP(YEAR(Year5Table[[#This Row],[Date]])&MONTH(Year5Table[[#This Row],[Date]]),PenaltyTable[Year]&PenaltyTable[Month],PenaltyTable[Daily])*$BK$10,"") ->  | BP13: =IF(OR(BP12<0,BP12=""),"",BK13-BJ13+(BK13*$B$2)) -> 5066.888889 | BQ13: =IF(BP13>0,"",BI13) ->  | BS13: =IF(OR(BZ12="",BZ12<0),"",EDATE(BS12,1)) -> 1900-01-31 | BT13: =IF(OR(BZ12="",BZ12<0),"",IF(AND($B$7<>"",BS13>=$B$7),$C$7,IF(AND($B$6<>"",BS13>=$B$6),$C$6,IF(BS13>=$B$5,$C$5,IF(BS13<$B$5,0))))) -> 0 | BU13: =IF(OR(BZ12<0,BZ12=""),"",BZ12) -> 3020 | BV13: =IFERROR(_xlfn.XLOOKUP(YEAR(Year6Table[[#This Row],[Date]])&MONTH(Year6Table[[#This Row],[Date]]),PenaltyTable[Year]&PenaltyTable[Month],PenaltyTable[Daily])*$BU$10,"") ->  | BZ13: =IF(OR(BZ12<0,BZ12=""),"",BU13-BT13+(BU13*$B$2)) -> 3040.133333 | CA13: =IF(BZ13>0,"",BS13) ->  | CC13: =IF(OR(CJ12="",CJ12<0),"",EDATE(CC12,1)) -> 1900-01-31 | CD13: =IF(OR(CJ12="",CJ12<0),"",IF(AND($B$7<>"",CC13>=$B$7),$C$7,IF(AND($B$6<>"",CC13>=$B$6),$C$6,IF(CC13>=$B$5,$C$5,IF(CC13<$B$5,0))))) -> 0 | CE13: =IF(OR(CJ12<0,CJ12=""),"",CJ12) -> 9060 | CF13: =IFERROR(_xlfn.XLOOKUP(YEAR(Year7Table[[#This Row],[Date]])&MONTH(Year7Table[[#This Row],[Date]]),PenaltyTable[Year]&PenaltyTable[Month],PenaltyTable[Daily])*CE$10,"") ->  | CJ13: =IF(OR(CJ12<0,CJ12=""),"",CE13-CD13+(CE13*$B$2)) -> 9120.4 | CK13: =IF(CJ13>0,"",CC13) ->  | CM13: =IF(OR(CT12="",CT12<0),"",EDATE(CM12,1)) -> 1900-01-31 | CN13: =IF(OR(CT12="",CT12<0),"",IF(AND($B$7<>"",CM13>=$B$7),$C$7,IF(AND($B$6<>"",CM13>=$B$6),$C$6,IF(CM13>=$B$5,$C$5,IF(CM13<$B$5,0))))) -> 0 | CO13: =IF(OR(CT12<0,CT12=""),"",CT12) -> 12080 | CP13: =IFERROR(_xlfn.XLOOKUP(YEAR(Year8Table[[#This Row],[Date]])&MONTH(Year8Table[[#This Row],[Date]]),PenaltyTable[Year]&PenaltyTable[Month],PenaltyTable[Daily])*$CO$10,"") ->  | CT13: =IF(OR(CT12<0,CT12=""),"",CO13-CN13+(CO13*$B$2)) -> 12160.53333 | CU13: =IF(CT13>0,"",CM13) ->  | CW13: =IF(OR(DD12="",DD12<0),"",EDATE(CW12,1)) -> 1900-01-31 | CX13: =IF(OR(DD12="",DD12<0),"",IF(AND($B$7<>"",CW13>=$B$7),$C$7,IF(AND($B$6<>"",CW13>=$B$6),$C$6,IF(CW13>=$B$5,$C$5,IF(CW13<$B$5,0))))) -> 0 | CY13: =IF(OR(DD12<0,DD12=""),"",DD12) -> 855.6666667 | CZ13: =IFERROR(_xlfn.XLOOKUP(YEAR(Year9Table[[#This Row],[Date]])&MONTH(Year9Table[[#This Row],[Date]]),PenaltyTable[Year]&PenaltyTable[Month],PenaltyTable[Daily])*$CY$10,"") ->  | DD13: =IF(OR(DD12<0,DD12=""),"",CY13-CX13+(CY13*$B$2)) -> 861.3711111 | DE13: =IF(DD13>0,"",CW13) ->  | DG13: =IF(OR(DN12="",DN12<0),"",EDATE(DG12,1)) -> 1900-01-31 | DH13: =IF(OR(DN12="",DN12<0),"",IF(AND($B$7<>"",DG13>=$B$7),$C$7,IF(AND($B$6<>"",DG13>=$B$6),$C$6,IF(DG13>=$B$5,$C$5,IF(DG13<$B$5,0))))) -> 0 | DI13: =IF(OR(DN12<0,DN12=""),"",DN12) -> 691.58 | DJ13: =IFERROR(_xlfn.XLOOKUP(YEAR(Year10Table[[#This Row],[Date]])&MONTH(Year10Table[[#This Row],[Date]]),PenaltyTable[Year]&PenaltyTable[Month],PenaltyTable[Daily])*$DI$10,"") ->  | DN13: =IF(OR(DN12<0,DN12=""),"",DI13-DH13+(DI13*$B$2)) -> 696.1905333 | DO13: =IF(DN13>0,"",DG13) -> 
B14: 2015 | C14: =Table1[[#This Row],[Tax Assessed]]-Table1[[#This Row],[WH & Credits]] -> 7000 | D14: 2029-06-03 | E14: 7000 | J14: =IF(OR(B14="",C14="",D14=""),"",AQ9) -> 00:00:00 | K14: YES | R14: =ROW(Year1Table[#Headers]) -> 11 | U14: =IFERROR(IF((ROW()-ROW(Year1Table[#Headers]))=1,IF(OR(Table1[[#This Row],[Tax Assessed]]="",Table1[[#This Row],[Tax Assessed]]=0),"",Table1[[#This Row],[Tax Due Dt]]),IF((ROW()-ROW(Year1Table[#Headers]))>1,IF(OFFSET(AB14,-1,)<1,"",EDATE(U13,1)))),"") -> 2017-06-15 | V14: 0 | W14: =IF(OR(AB13<0,AB13=""),"",AB13) -> 10930.39518 | X14: =IFERROR(_xlfn.XLOOKUP(YEAR(Year1Table[[#This Row],[Date]])&MONTH(Year1Table[[#This Row],[Date]]),PenaltyTable[Year]&PenaltyTable[Month],PenaltyTable[Daily])*$W$10,"") -> 1.197589041 | AB14: 10931.59277 | AE14: =IF(OR(AL13="",AL13<0),"",EDATE(AE13,1)) -> 2025-01-15 | AF14: =IF(ROW()-ROW(Year2Table[#Headers])=1,$AI$193,IF(AG12="","",IF(AND($B$7<>"",AE14>=$B$7),$C$7,IF(AND($B$6<>"",AE14>=$B$6),$C$6,IF(AE14>=$B$5,$C$5,IF(AE14<$B$5,0)))))) -> 1250 | AG14: =IF(OR(AL13<0,AL13=""),"",AL13) -> 12874.22239 | AH14: =IFERROR(_xlfn.XLOOKUP(YEAR(Year2Table[[#This Row],[Date]])&MONTH(Year2Table[[#This Row],[Date]]),PenaltyTable[Year]&PenaltyTable[Month],PenaltyTable[Daily])*$AG$10,"") -> 2.876712329 | AL14: =IF(OR(AL13<0,AL13=""),"",AG14-AF14+(AG14*$B$2)) -> 11710.05054 | AO14: =IF(OR(AV13="",AV13<0),"",EDATE(AO13,1)) -> 1900-02-28 | AP14: =IF(OR(AV13="",AV13<0),"",IF(AND($B$7<>"",AO14>=$B$7),$C$7,IF(AND($B$6<>"",AO14>=$B$6),$C$6,IF(AO14>=$B$5,$C$5,IF(AO14<$B$5,0))))) -> 0 | AQ14: =IF(OR(AV13<0,AV13=""),"",AV13) -> 7093.644444 | AR14: =IFERROR(_xlfn.XLOOKUP(YEAR(Year3Table[[#This Row],[Date]])&MONTH(Year3Table[[#This Row],[Date]]),PenaltyTable[Year]&PenaltyTable[Month],PenaltyTable[Daily])*$AQ$10,"") ->  | AV14: =IF(OR(AV13<0,AV13=""),"",AQ14-AP14+(AQ14*$B$2)) -> 7140.935407 | AW14: =IF(AV14>0,"",AO14) ->  | AY14: =IF(OR(BF13="",BF13<0),"",EDATE(AY13,1)) -> 1900-02-28 | AZ14: =IF(OR(BF13="",BF13<0),"",IF(AND($B$7<>"",AY14>=$B$7),$C$7,IF(AND($B$6<>"",AY14>=$B$6),$C$6,IF(AY14>=$B$5,$C$5,IF(AY14<$B$5,0))))) -> 0 | BA14: =IF(OR(BF13<0,BF13=""),"",BF13) -> 2533.444444 | BB14: =IFERROR(_xlfn.XLOOKUP(YEAR(Year4Table[[#This Row],[Date]])&MONTH(Year4Table[[#This Row],[Date]]),PenaltyTable[Year]&PenaltyTable[Month],PenaltyTable[Daily])*$BA$10,"") ->  | BF14: =IF(OR(BF13<0,BF13=""),"",BA14-AZ14+(BA14*$B$2)) -> 2550.334074 | BG14: =IF(BF14>0,"",AY14) ->  | BI14: =IF(OR(BP13="",BP13<0),"",EDATE(BI13,1)) -> 1900-02-28 | BJ14: =IF(OR(BP13="",BP13<0),"",IF(AND($B$7<>"",BI14>=$B$7),$C$7,IF(AND($B$6<>"",BI14>=$B$6),$C$6,IF(BI14>=$B$5,$C$5,IF(BI14<$B$5,0))))) -> 0 | BK14: =IF(OR(BP13<0,BP13=""),"",BP13) -> 5066.888889 | BL14: =IFERROR(_xlfn.XLOOKUP(YEAR(Year5Table[[#This Row],[Date]])&MONTH(Year5Table[[#This Row],[Date]]),PenaltyTable[Year]&PenaltyTable[Month],PenaltyTable[Daily])*$BK$10,"") ->  | BP14: =IF(OR(BP13<0,BP13=""),"",BK14-BJ14+(BK14*$B$2)) -> 5100.668148 | BQ14: =IF(BP14>0,"",BI14) ->  | BS14: =IF(OR(BZ13="",BZ13<0),"",EDATE(BS13,1)) -> 1900-02-28 | BT14: =IF(OR(BZ13="",BZ13<0),"",IF(AND($B$7<>"",BS14>=$B$7),$C$7,IF(AND($B$6<>"",BS14>=$B$6),$C$6,IF(BS14>=$B$5,$C$5,IF(BS14<$B$5,0))))) -> 0 | BU14: =IF(OR(BZ13<0,BZ13=""),"",BZ13) -> 3040.133333 | BV14: =IFERROR(_xlfn.XLOOKUP(YEAR(Year6Table[[#This Row],[Date]])&MONTH(Year6Table[[#This Row],[Date]]),PenaltyTable[Year]&PenaltyTable[Month],PenaltyTable[Daily])*$BU$10,"") ->  | BZ14: =IF(OR(BZ13<0,BZ13=""),"",BU14-BT14+(BU14*$B$2)) -> 3060.400889 | CA14: =IF(BZ14>0,"",BS14) ->  | CC14: =IF(OR(CJ13="",CJ13<0),"",EDATE(CC13,1)) -> 1900-02-28 | CD14: =IF(OR(CJ13="",CJ13<0),"",IF(AND($B$7<>"",CC14>=$B$7),$C$7,IF(AND($B$6<>"",CC14>=$B$6),$C$6,IF(CC14>=$B$5,$C$5,IF(CC14<$B$5,0))))) -> 0 | CE14: =IF(OR(CJ13<0,CJ13=""),"",CJ13) -> 9120.4 | CF14: =IFERROR(_xlfn.XLOOKUP(YEAR(Year7Table[[#This Row],[Date]])&MONTH(Year7Table[[#This Row],[Date]]),PenaltyTable[Year]&PenaltyTable[Month],PenaltyTable[Daily])*CE$10,"") ->  | CJ14: =IF(OR(CJ13<0,CJ13=""),"",CE14-CD14+(CE14*$B$2)) -> 9181.202667 | CK14: =IF(CJ14>0,"",CC14) ->  | CM14: =IF(OR(CT13="",CT13<0),"",EDATE(CM13,1)) -> 1900-02-28 | CN14: =IF(OR(CT13="",CT13<0),"",IF(AND($B$7<>"",CM14>=$B$7),$C$7,IF(AND($B$6<>"",CM14>=$B$6),$C$6,IF(CM14>=$B$5,$C$5,IF(CM14<$B$5,0))))) -> 0 | CO14: =IF(OR(CT13<0,CT13=""),"",CT13) -> 12160.53333 | CP14: =IFERROR(_xlfn.XLOOKUP(YEAR(Year8Table[[#This Row],[Date]])&MONTH(Year8Table[[#This Row],[Date]]),PenaltyTable[Year]&PenaltyTable[Month],PenaltyTable[Daily])*$CO$10,"") ->  | CT14: =IF(OR(CT13<0,CT13=""),"",CO14-CN14+(CO14*$B$2)) -> 12241.60356 | CU14: =IF(CT14>0,"",CM14) ->  | CW14: =IF(OR(DD13="",DD13<0),"",EDATE(CW13,1)) -> 1900-02-28 | CX14: =IF(OR(DD13="",DD13<0),"",IF(AND($B$7<>"",CW14>=$B$7),$C$7,IF(AND($B$6<>"",CW14>=$B$6),$C$6,IF(CW14>=$B$5,$C$5,IF(CW14<$B$5,0))))) -> 0 | CY14: =IF(OR(DD13<0,DD13=""),"",DD13) -> 861.3711111 | CZ14: =IFERROR(_xlfn.XLOOKUP(YEAR(Year9Table[[#This Row],[Date]])&MONTH(Year9Table[[#This Row],[Date]]),PenaltyTable[Year]&PenaltyTable[Month],PenaltyTable[Daily])*$CY$10,"") ->  | DD14: =IF(OR(DD13<0,DD13=""),"",CY14-CX14+(CY14*$B$2)) -> 867.1135852 | DE14: =IF(DD14>0,"",CW14) ->  | DG14: =IF(OR(DN13="",DN13<0),"",EDATE(DG13,1)) -> 1900-02-28 | DH14: =IF(OR(DN13="",DN13<0),"",IF(AND($B$7<>"",DG14>=$B$7),$C$7,IF(AND($B$6<>"",DG14>=$B$6),$C$6,IF(DG14>=$B$5,$C$5,IF(DG14<$B$5,0))))) -> 0 | DI14: =IF(OR(DN13<0,DN13=""),"",DN13) -> 696.1905333 | DJ14: =IFERROR(_xlfn.XLOOKUP(YEAR(Year10Table[[#This Row],[Date]])&MONTH(Year10Table[[#This Row],[Date]]),PenaltyTable[Year]&PenaltyTable[Month],PenaltyTable[Daily])*$DI$10,"") ->  | DN14: =IF(OR(DN13<0,DN13=""),"",DI14-DH14+(DI14*$B$2)) -> 700.8318036 | DO14: =IF(DN14>0,"",DG14) -> 
B15: 2016 | C15: =Table1[[#This Row],[Tax Assessed]]-Table1[[#This Row],[WH & Credits]] -> 2500 | D15: 2030-08-17 | E15: 2500 | J15: =IF(OR(B15="",C15="",D15=""),"",BA9) -> 00:00:00 | K15: YES | U15: =IFERROR(IF((ROW()-ROW(Year1Table[#Headers]))=1,IF(OR(Table1[[#This Row],[Tax Assessed]]="",Table1[[#This Row],[Tax Assessed]]=0),"",Table1[[#This Row],[Tax Due Dt]]),IF((ROW()-ROW(Year1Table[#Headers]))>1,IF(OFFSET(AB15,-1,)<1,"",EDATE(U14,1)))),"") -> 2017-07-15 | V15: 0 | W15: 10931.59277 | X15: =IFERROR(_xlfn.XLOOKUP(YEAR(Year1Table[[#This Row],[Date]])&MONTH(Year1Table[[#This Row],[Date]]),PenaltyTable[Year]&PenaltyTable[Month],PenaltyTable[Daily])*$W$10,"") -> 1.197589041 | AB15: 10932.79036 | AE15: 2025-02-15 | AF15: =IF(ROW()-ROW(Year2Table[#Headers])=1,$AI$193,IF(AG13="","",IF(AND($B$7<>"",AE15>=$B$7),$C$7,IF(AND($B$6<>"",AE15>=$B$6),$C$6,IF(AE15>=$B$5,$C$5,IF(AE15<$B$5,0)))))) -> 1250 | AG15: 11710.05054 | AH15: =IFERROR(_xlfn.XLOOKUP(YEAR(Year2Table[[#This Row],[Date]])&MONTH(Year2Table[[#This Row],[Date]]),PenaltyTable[Year]&PenaltyTable[Month],PenaltyTable[Daily])*$AG$10,"") -> 2.876712329 | AL15: 10538.11754 | AO15: 1900-03-28 | AP15: 0 | AQ15: 7140.935407 | AR15: =IFERROR(_xlfn.XLOOKUP(YEAR(Year3Table[[#This Row],[Date]])&MONTH(Year3Table[[#This Row],[Date]]),PenaltyTable[Year]&PenaltyTable[Month],PenaltyTable[Daily])*$AQ$10,"") ->  | AV15: 7188.541643 | AY15: 1900-03-28 | AZ15: 0 | BA15: 2550.334074 | BB15: =IFERROR(_xlfn.XLOOKUP(YEAR(Year4Table[[#This Row],[Date]])&MONTH(Year4Table[[#This Row],[Date]]),PenaltyTable[Year]&PenaltyTable[Month],PenaltyTable[Daily])*$BA$10,"") ->  | BF15: 2567.336301 | BI15: 1900-03-28 | BJ15: 0 | BK15: 5100.668148 | BL15: =IFERROR(_xlfn.XLOOKUP(YEAR(Year5Table[[#This Row],[Date]])&MONTH(Year5Table[[#This Row],[Date]]),PenaltyTable[Year]&PenaltyTable[Month],PenaltyTable[Daily])*$BK$10,"") ->  | BP15: 5134.672602 | BS15: 1900-03-28 | BT15: 0 | BU15: 3060.400889 | BV15: =IFERROR(_xlfn.XLOOKUP(YEAR(Year6Table[[#This Row],[Date]])&MONTH(Year6Table[[#This Row],[Date]]),PenaltyTable[Year]&PenaltyTable[Month],PenaltyTable[Daily])*$BU$10,"") ->  | BZ15: 3080.803561 | CC15: 1900-03-28 | CD15: 0 | CE15: 9181.202667 | CF15: =IFERROR(_xlfn.XLOOKUP(YEAR(Year7Table[[#This Row],[Date]])&MONTH(Year7Table[[#This Row],[Date]]),PenaltyTable[Year]&PenaltyTable[Month],PenaltyTable[Daily])*CE$10,"") ->  | CJ15: 9242.410684 | CM15: 1900-03-28 | CN15: 0 | CO15: 12241.60356 | CP15: =IFERROR(_xlfn.XLOOKUP(YEAR(Year8Table[[#This Row],[Date]])&MONTH(Year8Table[[#This Row],[Date]]),PenaltyTable[Year]&PenaltyTable[Month],PenaltyTable[Daily])*$CO$10,"") ->  | CT15: 12323.21425 | CW15: 1900-03-28 | CX15: 0 | CY15: 867.1135852 | CZ15: =IFERROR(_xlfn.XLOOKUP(YEAR(Year9Table[[#This Row],[Date]])&MONTH(Year9Table[[#This Row],[Date]]),PenaltyTable[Year]&PenaltyTable[Month],PenaltyTable[Daily])*$CY$10,"") ->  | DD15: 872.8943424 | DG15: 1900-03-28 | DH15: 0 | DI15: 700.8318036 | DJ15: =IFERROR(_xlfn.XLOOKUP(YEAR(Year10Table[[#This Row],[Date]])&MONTH(Year10Table[[#This Row],[Date]]),PenaltyTable[Year]&PenaltyTable[Month],PenaltyTable[Daily])*$DI$10,"") ->  | DN15: 705.5040156
B16: 2017 | C16: =Table1[[#This Row],[Tax Assessed]]-Table1[[#This Row],[WH & Credits]] -> 5000 | D16: 2034-04-29 | E16: 5000 | J16: =IF(OR(B16="",C16="",D16=""),"",BK9) -> 00:00:00 | K16: YES | U16: =IFERROR(IF((ROW()-ROW(Year1Table[#Headers]))=1,IF(OR(Table1[[#This Row],[Tax Assessed]]="",Table1[[#This Row],[Tax Assessed]]=0),"",Table1[[#This Row],[Tax Due Dt]]),IF((ROW()-ROW(Year1Table[#Headers]))>1,IF(OFFSET(AB16,-1,)<1,"",EDATE(U15,1)))),"") -> 2017-08-15 | V16: 0 | W16: 10932.79036 | X16: =IFERROR(_xlfn.XLOOKUP(YEAR(Year1Table[[#This Row],[Date]])&MONTH(Year1Table[[#This Row],[Date]]),PenaltyTable[Year]&PenaltyTable[Month],PenaltyTable[Daily])*$W$10,"") -> 1.197589041 | AB16: 10933.98795 | AE16: 2025-03-15 | AF16: =IF(ROW()-ROW(Year2Table[#Headers])=1,$AI$193,IF(AG14="","",IF(AND($B$7<>"",AE16>=$B$7),$C$7,IF(AND($B$6<>"",AE16>=$B$6),$C$6,IF(AE16>=$B$5,$C$5,IF(AE16<$B$5,0)))))) -> 1250 | AG16: 10538.11754 | AH16: =IFERROR(_xlfn.XLOOKUP(YEAR(Year2Table[[#This Row],[Date]])&MONTH(Year2Table[[#This Row],[Date]]),PenaltyTable[Year]&PenaltyTable[Month],PenaltyTable[Daily])*$AG$10,"") -> 2.876712329 | AL16: 9358.37166 | AO16: 1900-04-28 | AP16: 0 | AQ16: 7188.541643 | AR16: =IFERROR(_xlfn.XLOOKUP(YEAR(Year3Table[[#This Row],[Date]])&MONTH(Year3Table[[#This Row],[Date]]),PenaltyTable[Year]&PenaltyTable[Month],PenaltyTable[Daily])*$AQ$10,"") ->  | AV16: 7236.465254 | AY16: 1900-04-28 | AZ16: 0 | BA16: 2567.336301 | BB16: =IFERROR(_xlfn.XLOOKUP(YEAR(Year4Table[[#This Row],[Date]])&MONTH(Year4Table[[#This Row],[Date]]),PenaltyTable[Year]&PenaltyTable[Month],PenaltyTable[Daily])*$BA$10,"") ->  | BF16: 2584.451877 | BI16: 1900-04-28 | BJ16: 0 | BK16: 5134.672602 | BL16: =IFERROR(_xlfn.XLOOKUP(YEAR(Year5Table[[#This Row],[Date]])&MONTH(Year5Table[[#This Row],[Date]]),PenaltyTable[Year]&PenaltyTable[Month],PenaltyTable[Daily])*$BK$10,"") ->  | BP16: 5168.903753 | BS16: 1900-04-28 | BT16: 0 | BU16: 3080.803561 | BV16: =IFERROR(_xlfn.XLOOKUP(YEAR(Year6Table[[#This Row],[Date]])&MONTH(Year6Table[[#This Row],[Date]]),PenaltyTable[Year]&PenaltyTable[Month],PenaltyTable[Daily])*$BU$10,"") ->  | BZ16: 3101.342252 | CC16: 1900-04-28 | CD16: 0 | CE16: 9242.410684 | CF16: =IFERROR(_xlfn.XLOOKUP(YEAR(Year7Table[[#This Row],[Date]])&MONTH(Year7Table[[#This Row],[Date]]),PenaltyTable[Year]&PenaltyTable[Month],PenaltyTable[Daily])*CE$10,"") ->  | CJ16: 9304.026756 | CM16: 1900-04-28 | CN16: 0 | CO16: 12323.21425 | CP16: =IFERROR(_xlfn.XLOOKUP(YEAR(Year8Table[[#This Row],[Date]])&MONTH(Year8Table[[#This Row],[Date]]),PenaltyTable[Year]&PenaltyTable[Month],PenaltyTable[Daily])*$CO$10,"") ->  | CT16: 12405.36901 | CW16: 1900-04-28 | CX16: 0 | CY16: 872.8943424 | CZ16: =IFERROR(_xlfn.XLOOKUP(YEAR(Year9Table[[#This Row],[Date]])&MONTH(Year9Table[[#This Row],[Date]]),PenaltyTable[Year]&PenaltyTable[Month],PenaltyTable[Daily])*$CY$10,"") ->  | DD16: 878.713638 | DG16: 1900-04-28 | DH16: 0 | DI16: 705.5040156 | DJ16: =IFERROR(_xlfn.XLOOKUP(YEAR(Year10Table[[#This Row],[Date]])&MONTH(Year10Table[[#This Row],[Date]]),PenaltyTable[Year]&PenaltyTable[Month],PenaltyTable[Daily])*$DI$10,"") ->  | DN16: 710.2073757
B17: 2018 | C17: =Table1[[#This Row],[Tax Assessed]]-Table1[[#This Row],[WH & Credits]] -> 3000 | D17: 2034-06-03 | E17: 3000 | J17: =IF(OR(B17="",C17="",D17=""),"",BU9) -> 00:00:00 | K17: YES | U17: =IFERROR(IF((ROW()-ROW(Year1Table[#Headers]))=1,IF(OR(Table1[[#This Row],[Tax Assessed]]="",Table1[[#This Row],[Tax Assessed]]=0),"",Table1[[#This Row],[Tax Due Dt]]),IF((ROW()-ROW(Year1Table[#Headers]))>1,IF(OFFSET(AB17,-1,)<1,"",EDATE(U16,1)))),"") -> 2017-09-15 | V17: 0 | W17: 10933.98795 | X17: =IFERROR(_xlfn.XLOOKUP(YEAR(Year1Table[[#This Row],[Date]])&MONTH(Year1Table[[#This Row],[Date]]),PenaltyTable[Year]&PenaltyTable[Month],PenaltyTable[Daily])*$W$10,"") -> 1.197589041 | AB17: 10935.18553 | AE17: 2025-04-15 | AF17: =IF(ROW()-ROW(Year2Table[#Headers])=1,$AI$193,IF(AG15="","",IF(AND($B$7<>"",AE17>=$B$7),$C$7,IF(AND($B$6<>"",AE17>=$B$6),$C$6,IF(AE17>=$B$5,$C$5,IF(AE17<$B$5,0)))))) -> 1250 | AG17: 9358.37166 | AH17: =IFERROR(_xlfn.XLOOKUP(YEAR(Year2Table[[#This Row],[Date]])&MONTH(Year2Table[[#This Row],[Date]]),PenaltyTable[Year]&PenaltyTable[Month],PenaltyTable[Daily])*$AG$10,"") -> 2.876712329 | AL17: 8170.760804 | AO17: 1900-05-28 | AP17: 0 | AQ17: 7236.465254 | AR17: =IFERROR(_xlfn.XLOOKUP(YEAR(Year3Table[[#This Row],[Date]])&MONTH(Year3Table[[#This Row],[Date]]),PenaltyTable[Year]&PenaltyTable[Month],PenaltyTable[Daily])*$AQ$10,"") ->  | AV17: 7284.708356 | AY17: 1900-05-28 | AZ17: 0 | BA17: 2584.451877 | BB17: =IFERROR(_xlfn.XLOOKUP(YEAR(Year4Table[[#This Row],[Date]])&MONTH(Year4Table[[#This Row],[Date]]),PenaltyTable[Year]&PenaltyTable[Month],PenaltyTable[Daily])*$BA$10,"") ->  | BF17: 2601.681556 | BI17: 1900-05-28 | BJ17: 0 | BK17: 5168.903753 | BL17: =IFERROR(_xlfn.XLOOKUP(YEAR(Year5Table[[#This Row],[Date]])&MONTH(Year5Table[[#This Row],[Date]]),PenaltyTable[Year]&PenaltyTable[Month],PenaltyTable[Daily])*$BK$10,"") ->  | BP17: 5203.363112 | BS17: 1900-05-28 | BT17: 0 | BU17: 3101.342252 | BV17: =IFERROR(_xlfn.XLOOKUP(YEAR(Year6Table[[#This Row],[Date]])&MONTH(Year6Table[[#This Row],[Date]]),PenaltyTable[Year]&PenaltyTable[Month],PenaltyTable[Daily])*$BU$10,"") ->  | BZ17: 3122.017867 | CC17: 1900-05-28 | CD17: 0 | CE17: 9304.026756 | CF17: =IFERROR(_xlfn.XLOOKUP(YEAR(Year7Table[[#This Row],[Date]])&MONTH(Year7Table[[#This Row],[Date]]),PenaltyTable[Year]&PenaltyTable[Month],PenaltyTable[Daily])*CE$10,"") ->  | CJ17: 9366.053601 | CM17: 1900-05-28 | CN17: 0 | CO17: 12405.36901 | CP17: =IFERROR(_xlfn.XLOOKUP(YEAR(Year8Table[[#This Row],[Date]])&MONTH(Year8Table[[#This Row],[Date]]),PenaltyTable[Year]&PenaltyTable[Month],PenaltyTable[Daily])*$CO$10,"") ->  | CT17: 12488.07147 | CW17: 1900-05-28 | CX17: 0 | CY17: 878.713638 | CZ17: =IFERROR(_xlfn.XLOOKUP(YEAR(Year9Table[[#This Row],[Date]])&MONTH(Year9Table[[#This Row],[Date]]),PenaltyTable[Year]&PenaltyTable[Month],PenaltyTable[Daily])*$CY$10,"") ->  | DD17: 884.571729 | DG17: 1900-05-28 | DH17: 0 | DI17: 710.2073757 | DJ17: =IFERROR(_xlfn.XLOOKUP(YEAR(Year10Table[[#This Row],[Date]])&MONTH(Year10Table[[#This Row],[Date]]),PenaltyTable[Year]&PenaltyTable[Month],PenaltyTable[Daily])*$DI$10,"") ->  | DN17: 714.9420915
B18: 2019 | C18: =Table1[[#This Row],[Tax Assessed]]-Table1[[#This Row],[WH & Credits]] -> 9000 | D18: 2034-06-15 | E18: 9000 | J18: =IF(OR(B18="",C18="",D18=""),"",CE9) -> 00:00:00 | K18: YES | U18: =IFERROR(IF((ROW()-ROW(Year1Table[#Headers]))=1,IF(OR(Table1[[#This Row],[Tax Assessed]]="",Table1[[#This Row],[Tax Assessed]]=0),"",Table1[[#This Row],[Tax Due Dt]]),IF((ROW()-ROW(Year1Table[#Headers]))>1,IF(OFFSET(AB18,-1,)<1,"",EDATE(U17,1)))),"") -> 2017-10-15 | V18: 0 | W18: 10935.18553 | X18: =IFERROR(_xlfn.XLOOKUP(YEAR(Year1Table[[#This Row],[Date]])&MONTH(Year1Table[[#This Row],[Date]]),PenaltyTable[Year]&PenaltyTable[Month],PenaltyTable[Daily])*$W$10,"") -> 1.197589041 | AB18: 10936.38312 | AE18: 2025-05-15 | AF18: =IF(ROW()-ROW(Year2Table[#Headers])=1,$AI$193,IF(AG16="","",IF(AND($B$7<>"",AE18>=$B$7),$C$7,IF(AND($B$6<>"",AE18>=$B$6),$C$6,IF(AE18>=$B$5,$C$5,IF(AE18<$B$5,0)))))) -> 1250 | AG18: 8170.760804 | AH18: =IFERROR(_xlfn.XLOOKUP(YEAR(Year2Table[[#This Row],[Date]])&MONTH(Year2Table[[#This Row],[Date]]),PenaltyTable[Year]&PenaltyTable[Month],PenaltyTable[Daily])*$AG$10,"") -> 2.876712329 | AL18: 6975.232543 | AO18: 1900-06-28 | AP18: 0 | AQ18: 7284.708356 | AR18: =IFERROR(_xlfn.XLOOKUP(YEAR(Year3Table[[#This Row],[Date]])&MONTH(Year3Table[[#This Row],[Date]]),PenaltyTable[Year]&PenaltyTable[Month],PenaltyTable[Daily])*$AQ$10,"") ->  | AV18: 7333.273078 | AY18: 1900-06-28 | AZ18: 0 | BA18: 2601.681556 | BB18: =IFERROR(_xlfn.XLOOKUP(YEAR(Year4Table[[#This Row],[Date]])&MONTH(Year4Table[[#This Row],[Date]]),PenaltyTable[Year]&PenaltyTable[Month],PenaltyTable[Daily])*$BA$10,"") ->  | BF18: 2619.026099 | BI18: 1900-06-28 | BJ18: 0 | BK18: 5203.363112 | BL18: =IFERROR(_xlfn.XLOOKUP(YEAR(Year5Table[[#This Row],[Date]])&MONTH(Year5Table[[#This Row],[Date]]),PenaltyTable[Year]&PenaltyTable[Month],PenaltyTable[Daily])*$BK$10,"") ->  | BP18: 5238.052199 | BS18: 1900-06-28 | BT18: 0 | BU18: 3122.017867 | BV18: =IFERROR(_xlfn.XLOOKUP(YEAR(Year6Table[[#This Row],[Date]])&MONTH(Year6Table[[#This Row],[Date]]),PenaltyTable[Year]&PenaltyTable[Month],PenaltyTable[Daily])*$BU$10,"") ->  | BZ18: 3142.831319 | CC18: 1900-06-28 | CD18: 0 | CE18: 9366.053601 | CF18: =IFERROR(_xlfn.XLOOKUP(YEAR(Year7Table[[#This Row],[Date]])&MONTH(Year7Table[[#This Row],[Date]]),PenaltyTable[Year]&PenaltyTable[Month],PenaltyTable[Daily])*CE$10,"") ->  | CJ18: 9428.493958 | CM18: 1900-06-28 | CN18: 0 | CO18: 12488.07147 | CP18: =IFERROR(_xlfn.XLOOKUP(YEAR(Year8Table[[#This Row],[Date]])&MONTH(Year8Table[[#This Row],[Date]]),PenaltyTable[Year]&PenaltyTable[Month],PenaltyTable[Daily])*$CO$10,"") ->  | CT18: 12571.32528 | CW18: 1900-06-28 | CX18: 0 | CY18: 884.571729 | CZ18: =IFERROR(_xlfn.XLOOKUP(YEAR(Year9Table[[#This Row],[Date]])&MONTH(Year9Table[[#This Row],[Date]]),PenaltyTable[Year]&PenaltyTable[Month],PenaltyTable[Daily])*$CY$10,"") ->  | DD18: 890.4688738 | DG18: 1900-06-28 | DH18: 0 | DI18: 714.9420915 | DJ18: =IFERROR(_xlfn.XLOOKUP(YEAR(Year10Table[[#This Row],[Date]])&MONTH(Year10Table[[#This Row],[Date]]),PenaltyTable[Year]&PenaltyTable[Month],PenaltyTable[Daily])*$DI$10,"") ->  | DN18: 719.7083721
B19: 2020 | C19: =Table1[[#This Row],[Tax Assessed]]-Table1[[#This Row],[WH & Credits]] -> 12000 | D19: 2034-06-15 | E19: 12000 | J19: =IF(OR(B19="",C19="",D19=""),"",CO9) -> 00:00:00 | K19: YES | U19: =IFERROR(IF((ROW()-ROW(Year1Table[#Headers]))=1,IF(OR(Table1[[#This Row],[Tax Assessed]]="",Table1[[#This Row],[Tax Assessed]]=0),"",Table1[[#This Row],[Tax Due Dt]]),IF((ROW()-ROW(Year1Table[#Headers]))>1,IF(OFFSET(AB19,-1,)<1,"",EDATE(U18,1)))),"") -> 2017-11-15 | V19: 0 | W19: 10936.38312 | X19: =IFERROR(_xlfn.XLOOKUP(YEAR(Year1Table[[#This Row],[Date]])&MONTH(Year1Table[[#This Row],[Date]]),PenaltyTable[Year]&PenaltyTable[Month],PenaltyTable[Daily])*$W$10,"") -> 1.197589041 | AB19: 10937.58071 | AE19: 2025-06-15 | AF19: =IF(ROW()-ROW(Year2Table[#Headers])=1,$AI$193,IF(AG17="","",IF(AND($B$7<>"",AE19>=$B$7),$C$7,IF(AND($B$6<>"",AE19>=$B$6),$C$6,IF(AE19>=$B$5,$C$5,IF(AE19<$B$5,0)))))) -> 1250 | AG19: 6975.232543 | AH19: =IFERROR(_xlfn.XLOOKUP(YEAR(Year2Table[[#This Row],[Date]])&MONTH(Year2Table[[#This Row],[Date]]),PenaltyTable[Year]&PenaltyTable[Month],PenaltyTable[Daily])*$AG$10,"") -> 2.876712329 | AL19: 5771.734093 | AO19: 1900-07-28 | AP19: 0 | AQ19: 7333.273078 | AR19: =IFERROR(_xlfn.XLOOKUP(YEAR(Year3Table[[#This Row],[Date]])&MONTH(Year3Table[[#This Row],[Date]]),PenaltyTable[Year]&PenaltyTable[Month],PenaltyTable[Daily])*$AQ$10,"") ->  | AV19: 7382.161566 | AY19: 1900-07-28 | AZ19: 0 | BA19: 2619.026099 | BB19: =IFERROR(_xlfn.XLOOKUP(YEAR(Year4Table[[#This Row],[Date]])&MONTH(Year4Table[[#This Row],[Date]]),PenaltyTable[Year]&PenaltyTable[Month],PenaltyTable[Daily])*$BA$10,"") ->  | BF19: 2636.486273 | BI19: 1900-07-28 | BJ19: 0 | BK19: 5238.052199 | BL19: =IFERROR(_xlfn.XLOOKUP(YEAR(Year5Table[[#This Row],[Date]])&MONTH(Year5Table[[#This Row],[Date]]),PenaltyTable[Year]&PenaltyTable[Month],PenaltyTable[Daily])*$BK$10,"") ->  | BP19: 5272.972547 | BS19: 1900-07-28 | BT19: 0 | BU19: 3142.831319 | BV19: =IFERROR(_xlfn.XLOOKUP(YEAR(Year6Table[[#This Row],[Date]])&MONTH(Year6Table[[#This Row],[Date]]),PenaltyTable[Year]&PenaltyTable[Month],PenaltyTable[Daily])*$BU$10,"") ->  | BZ19: 3163.783528 | CC19: 1900-07-28 | CD19: 0 | CE19: 9428.493958 | CF19: =IFERROR(_xlfn.XLOOKUP(YEAR(Year7Table[[#This Row],[Date]])&MONTH(Year7Table[[#This Row],[Date]]),PenaltyTable[Year]&PenaltyTable[Month],PenaltyTable[Daily])*CE$10,"") ->  | CJ19: 9491.350584 | CM19: 1900-07-28 | CN19: 0 | CO19: 12571.32528 | CP19: =IFERROR(_xlfn.XLOOKUP(YEAR(Year8Table[[#This Row],[Date]])&MONTH(Year8Table[[#This Row],[Date]]),PenaltyTable[Year]&PenaltyTable[Month],PenaltyTable[Daily])*$CO$10,"") ->  | CT19: 12655.13411 | CW19: 1900-07-28 | CX19: 0 | CY19: 890.4688738 | CZ19: =IFERROR(_xlfn.XLOOKUP(YEAR(Year9Table[[#This Row],[Date]])&MONTH(Year9Table[[#This Row],[Date]]),PenaltyTable[Year]&PenaltyTable[Month],PenaltyTable[Daily])*$CY$10,"") ->  | DD19: 896.405333 | DG19: 1900-07-28 | DH19: 0 | DI19: 719.7083721 | DJ19: =IFERROR(_xlfn.XLOOKUP(YEAR(Year10Table[[#This Row],[Date]])&MONTH(Year10Table[[#This Row],[Date]]),PenaltyTable[Year]&PenaltyTable[Month],PenaltyTable[Daily])*$DI$10,"") ->  | DN19: 724.5064279
B20: 2021 | C20: =Table1[[#This Row],[Tax Assessed]]-Table1[[#This Row],[WH & Credits]] -> 850 | D20: 2034-06-15 | E20: 850 | J20: =IF(OR(B20="",C20="",D20=""),"",CY9) -> 00:00:00 | K20: YES | U20: =IFERROR(IF((ROW()-ROW(Year1Table[#Headers]))=1,IF(OR(Table1[[#This Row],[Tax Assessed]]="",Table1[[#This Row],[Tax Assessed]]=0),"",Table1[[#This Row],[Tax Due Dt]]),IF((ROW()-ROW(Year1Table[#Headers]))>1,IF(OFFSET(AB20,-1,)<1,"",EDATE(U19,1)))),"") -> 2017-12-15 | V20: 0 | W20: 10937.58071 | X20: =IFERROR(_xlfn.XLOOKUP(YEAR(Year1Table[[#This Row],[Date]])&MONTH(Year1Table[[#This Row],[Date]]),PenaltyTable[Year]&PenaltyTable[Month],PenaltyTable[Daily])*$W$10,"") -> 1.197589041 | AB20: 10938.7783 | AE20: 2025-07-15 | AF20: =IF(ROW()-ROW(Year2Table[#Headers])=1,$AI$193,IF(AG18="","",IF(AND($B$7<>"",AE20>=$B$7),$C$7,IF(AND($B$6<>"",AE20>=$B$6),$C$6,IF(AE20>=$B$5,$C$5,IF(AE20<$B$5,0)))))) -> 1250 | AG20: 5771.734093 | AH20: =IFERROR(_xlfn.XLOOKUP(YEAR(Year2Table[[#This Row],[Date]])&MONTH(Year2Table[[#This Row],[Date]]),PenaltyTable[Year]&PenaltyTable[Month],PenaltyTable[Daily])*$AG$10,"") -> 2.876712329 | AL20: 4560.21232 | AO20: 1900-08-28 | AP20: 0 | AQ20: 7382.161566 | AR20: =IFERROR(_xlfn.XLOOKUP(YEAR(Year3Table[[#This Row],[Date]])&MONTH(Year3Table[[#This Row],[Date]]),PenaltyTable[Year]&PenaltyTable[Month],PenaltyTable[Daily])*$AQ$10,"") ->  | AV20: 7431.375976 | AY20: 1900-08-28 | AZ20: 0 | BA20: 2636.486273 | BB20: =IFERROR(_xlfn.XLOOKUP(YEAR(Year4Table[[#This Row],[Date]])&MONTH(Year4Table[[#This Row],[Date]]),PenaltyTable[Year]&PenaltyTable[Month],PenaltyTable[Daily])*$BA$10,"") ->  | BF20: 2654.062849 | BI20: 1900-08-28 | BJ20: 0 | BK20: 5272.972547 | BL20: =IFERROR(_xlfn.XLOOKUP(YEAR(Year5Table[[#This Row],[Date]])&MONTH(Year5Table[[#This Row],[Date]]),PenaltyTable[Year]&PenaltyTable[Month],PenaltyTable[Daily])*$BK$10,"") ->  | BP20: 5308.125697 | BS20: 1900-08-28 | BT20: 0 | BU20: 3163.783528 | BV20: =IFERROR(_xlfn.XLOOKUP(YEAR(Year6Table[[#This Row],[Date]])&MONTH(Year6Table[[#This Row],[Date]]),PenaltyTable[Year]&PenaltyTable[Month],PenaltyTable[Daily])*$BU$10,"") ->  | BZ20: 3184.875418 | CC20: 1900-08-28 | CD20: 0 | CE20: 9491.350584 | CF20: =IFERROR(_xlfn.XLOOKUP(YEAR(Year7Table[[#This Row],[Date]])&MONTH(Year7Table[[#This Row],[Date]]),PenaltyTable[Year]&PenaltyTable[Month],PenaltyTable[Daily])*CE$10,"") ->  | CJ20: 9554.626255 | CM20: 1900-08-28 | CN20: 0 | CO20: 12655.13411 | CP20: =IFERROR(_xlfn.XLOOKUP(YEAR(Year8Table[[#This Row],[Date]])&MONTH(Year8Table[[#This Row],[Date]]),PenaltyTable[Year]&PenaltyTable[Month],PenaltyTable[Daily])*$CO$10,"") ->  | CT20: 12739.50167 | CW20: 1900-08-28 | CX20: 0 | CY20: 896.405333 | CZ20: =IFERROR(_xlfn.XLOOKUP(YEAR(Year9Table[[#This Row],[Date]])&MONTH(Year9Table[[#This Row],[Date]]),PenaltyTable[Year]&PenaltyTable[Month],PenaltyTable[Daily])*$CY$10,"") ->  | DD20: 902.3813685 | DG20: 1900-08-28 | DH20: 0 | DI20: 724.5064279 | DJ20: =IFERROR(_xlfn.XLOOKUP(YEAR(Year10Table[[#This Row],[Date]])&MONTH(Year10Table[[#This Row],[Date]]),PenaltyTable[Year]&PenaltyTable[Month],PenaltyTable[Daily])*$DI$10,"") ->  | DN20: 729.3364708
B21: 2022 | C21: =Table1[[#This Row],[Tax Assessed]]-Table1[[#This Row],[WH & Credits]] -> 687 | D21: 2034-06-15 | E21: 687 | J21: =IF(OR(B21="",C21="",D21=""),"",DI9) -> 00:00:00 | K21: YES | U21: =IFERROR(IF((ROW()-ROW(Year1Table[#Headers]))=1,IF(OR(Table1[[#This Row],[Tax Assessed]]="",Table1[[#This Row],[Tax Assessed]]=0),"",Table1[[#This Row],[Tax Due Dt]]),IF((ROW()-ROW(Year1Table[#Headers]))>1,IF(OFFSET(AB21,-1,)<1,"",EDATE(U20,1)))),"") -> 2018-01-15 | V21: 0 | W21: 10938.7783 | X21: =IFERROR(_xlfn.XLOOKUP(YEAR(Year1Table[[#This Row],[Date]])&MONTH(Year1Table[[#This Row],[Date]]),PenaltyTable[Year]&PenaltyTable[Month],PenaltyTable[Daily])*$W$10,"") -> 1.496986301 | AB21: 10940.27529 | AE21: 2025-08-15 | AF21: =IF(ROW()-ROW(Year2Table[#Headers])=1,$AI$193,IF(AG19="","",IF(AND($B$7<>"",AE21>=$B$7),$C$7,IF(AND($B$6<>"",AE21>=$B$6),$C$6,IF(AE21>=$B$5,$C$5,IF(AE21<$B$5,0)))))) -> 1250 | AG21: 4560.21232 | AH21: =IFERROR(_xlfn.XLOOKUP(YEAR(Year2Table[[#This Row],[Date]])&MONTH(Year2Table[[#This Row],[Date]]),PenaltyTable[Year]&PenaltyTable[Month],PenaltyTable[Daily])*$AG$10,"") -> 2.876712329 | AL21: 3340.613736 | AO21: 1900-09-28 | AP21: 0 | AQ21: 7431.375976 | AR21: =IFERROR(_xlfn.XLOOKUP(YEAR(Year3Table[[#This Row],[Date]])&MONTH(Year3Table[[#This Row],[Date]]),PenaltyTable[Year]&PenaltyTable[Month],PenaltyTable[Daily])*$AQ$10,"") ->  | AV21: 7480.918483 | AY21: 1900-09-28 | AZ21: 0 | BA21: 2654.062849 | BB21: =IFERROR(_xlfn.XLOOKUP(YEAR(Year4Table[[#This Row],[Date]])&MONTH(Year4Table[[#This Row],[Date]]),PenaltyTable[Year]&PenaltyTable[Month],PenaltyTable[Daily])*$BA$10,"") ->  | BF21: 2671.756601 | BI21: 1900-09-28 | BJ21: 0 | BK21: 5308.125697 | BL21: =IFERROR(_xlfn.XLOOKUP(YEAR(Year5Table[[#This Row],[Date]])&MONTH(Year5Table[[#This Row],[Date]]),PenaltyTable[Year]&PenaltyTable[Month],PenaltyTable[Daily])*$BK$10,"") ->  | BP21: 5343.513202 | BS21: 1900-09-28 | BT21: 0 | BU21: 3184.875418 | BV21: =IFERROR(_xlfn.XLOOKUP(YEAR(Year6Table[[#This Row],[Date]])&MONTH(Year6Table[[#This Row],[Date]]),PenaltyTable[Year]&PenaltyTable[Month],PenaltyTable[Daily])*$BU$10,"") ->  | BZ21: 3206.107921 | CC21: 1900-09-28 | CD21: 0 | CE21: 9554.626255 | CF21: =IFERROR(_xlfn.XLOOKUP(YEAR(Year7Table[[#This Row],[Date]])&MONTH(Year7Table[[#This Row],[Date]]),PenaltyTable[Year]&PenaltyTable[Month],PenaltyTable[Daily])*CE$10,"") ->  | CJ21: 9618.323763 | CM21: 1900-09-28 | CN21: 0 | CO21: 12739.50167 | CP21: =IFERROR(_xlfn.XLOOKUP(YEAR(Year8Table[[#This Row],[Date]])&MONTH(Year8Table[[#This Row],[Date]]),PenaltyTable[Year]&PenaltyTable[Month],PenaltyTable[Daily])*$CO$10,"") ->  | CT21: 12824.43168 | CW21: 1900-09-28 | CX21: 0 | CY21: 902.3813685 | CZ21: =IFERROR(_xlfn.XLOOKUP(YEAR(Year9Table[[#This Row],[Date]])&MONTH(Year9Table[[#This Row],[Date]]),PenaltyTable[Year]&PenaltyTable[Month],PenaltyTable[Daily])*$CY$10,"") ->  | DD21: 908.3972443 | DG21: 1900-09-28 | DH21: 0 | DI21: 729.3364708 | DJ21: =IFERROR(_xlfn.XLOOKUP(YEAR(Year10Table[[#This Row],[Date]])&MONTH(Year10Table[[#This Row],[Date]]),PenaltyTable[Year]&PenaltyTable[Month],PenaltyTable[Daily])*$DI$10,"") ->  | DN21: 734.1987139
B22: Total | C22: =SUBTOTAL(9,Table1[Tax Assessed]) -> 69624 | D22: ="Earliest: "&TEXT(MIN(Table1[CSED]),"mm/dd/yyyy") -> Earliest: 06/05/2027 | E22: =SUBTOTAL(9,Table1[Tax Assessed]) -> 69624 | F22: =SUBTOTAL(9,Table1[WH & Credits]) -> 3659 | K22: =IF(COUNTIF(Table1[Paid by CSED],"NO")=0,"All Paid by CSED","Unpaid "&COUNTIF(Table1[Paid by CSED],"NO")) -> All Paid by CSED | U22: =IFERROR(IF((ROW()-ROW(Year1Table[#Headers]))=1,IF(OR(Table1[[#This Row],[Tax Assessed]]="",Table1[[#This Row],[Tax Assessed]]=0),"",Table1[[#This Row],[Tax Due Dt]]),IF((ROW()-ROW(Year1Table[#Headers]))>1,IF(OFFSET(AB22,-1,)<1,"",EDATE(U21,1)))),"") -> 2018-02-15 | V22: 0 | W22: 10940.27529 | X22: =IFERROR(_xlfn.XLOOKUP(YEAR(Year1Table[[#This Row],[Date]])&MONTH(Year1Table[[#This Row],[Date]]),PenaltyTable[Year]&PenaltyTable[Month],PenaltyTable[Daily])*$W$10,"") -> 1.496986301 | AB22: 10941.77227 | AE22: 2025-09-15 | AF22: =IF(ROW()-ROW(Year2Table[#Headers])=1,$AI$193,IF(AG20="","",IF(AND($B$7<>"",AE22>=$B$7),$C$7,IF(AND($B$6<>"",AE22>=$B$6),$C$6,IF(AE22>=$B$5,$C$5,IF(AE22<$B$5,0)))))) -> 1250 | AG22: 3340.613736 | AH22: =IFERROR(_xlfn.XLOOKUP(YEAR(Year2Table[[#This Row],[Date]])&MONTH(Year2Table[[#This Row],[Date]]),PenaltyTable[Year]&PenaltyTable[Month],PenaltyTable[Daily])*$AG$10,"") -> 2.876712329 | AL22: 2112.884494 | AO22: 1900-10-28 | AP22: 0 | AQ22: 7480.918483 | AR22: =IFERROR(_xlfn.XLOOKUP(YEAR(Year3Table[[#This Row],[Date]])&MONTH(Year3Table[[#This Row],[Date]]),PenaltyTable[Year]&PenaltyTable[Month],PenaltyTable[Daily])*$AQ$10,"") ->  | AV22: 7530.791273 | AY22: 1900-10-28 | AZ22: 0 | BA22: 2671.756601 | BB22: =IFERROR(_xlfn.XLOOKUP(YEAR(Year4Table[[#This Row],[Date]])&MONTH(Year4Table[[#This Row],[Date]]),PenaltyTable[Year]&PenaltyTable[Month],PenaltyTable[Daily])*$BA$10,"") ->  | BF22: 2689.568312 | BI22: 1900-10-28 | BJ22: 0 | BK22: 5343.513202 | BL22: =IFERROR(_xlfn.XLOOKUP(YEAR(Year5Table[[#This Row],[Date]])&MONTH(Year5Table[[#This Row],[Date]]),PenaltyTable[Year]&PenaltyTable[Month],PenaltyTable[Daily])*$BK$10,"") ->  | BP22: 5379.136623 | BS22: 1900-10-28 | BT22: 0 | BU22: 3206.107921 | BV22: =IFERROR(_xlfn.XLOOKUP(YEAR(Year6Table[[#This Row],[Date]])&MONTH(Year6Table[[#This Row],[Date]]),PenaltyTable[Year]&PenaltyTable[Month],PenaltyTable[Daily])*$BU$10,"") ->  | BZ22: 3227.481974 | CC22: 1900-10-28 | CD22: 0 | CE22: 9618.323763 | CF22: =IFERROR(_xlfn.XLOOKUP(YEAR(Year7Table[[#This Row],[Date]])&MONTH(Year7Table[[#This Row],[Date]]),PenaltyTable[Year]&PenaltyTable[Month],PenaltyTable[Daily])*CE$10,"") ->  | CJ22: 9682.445922 | CM22: 1900-10-28 | CN22: 0 | CO22: 12824.43168 | CP22: =IFERROR(_xlfn.XLOOKUP(YEAR(Year8Table[[#This Row],[Date]])&MONTH(Year8Table[[#This Row],[Date]]),PenaltyTable[Year]&PenaltyTable[Month],PenaltyTable[Daily])*$CO$10,"") ->  | CT22: 12909.9279 | CW22: 1900-10-28 | CX22: 0 | CY22: 908.3972443 | CZ22: =IFERROR(_xlfn.XLOOKUP(YEAR(Year9Table[[#This Row],[Date]])&MONTH(Year9Table[[#This Row],[Date]]),PenaltyTable[Year]&PenaltyTable[Month],PenaltyTable[Daily])*$CY$10,"") ->  | DD22: 914.4532259 | DG22: 1900-10-28 | DH22: 0 | DI22: 734.1987139 | DJ22: =IFERROR(_xlfn.XLOOKUP(YEAR(Year10Table[[#This Row],[Date]])&MONTH(Year10Table[[#This Row],[Date]]),PenaltyTable[Year]&PenaltyTable[Month],PenaltyTable[Daily])*$DI$10,"") ->  | DN22: 739.093372
U23: =IFERROR(IF((ROW()-ROW(Year1Table[#Headers]))=1,IF(OR(Table1[[#This Row],[Tax Assessed]]="",Table1[[#This Row],[Tax Assessed]]=0),"",Table1[[#This Row],[Tax Due Dt]]),IF((ROW()-ROW(Year1Table[#Headers]))>1,IF(OFFSET(AB23,-1,)<1,"",EDATE(U22,1)))),"") -> 2018-03-15 | V23: 0 | W23: 10941.77227 | X23: =IFERROR(_xlfn.XLOOKUP(YEAR(Year1Table[[#This Row],[Date]])&MONTH(Year1Table[[#This Row],[Date]]),PenaltyTable[Year]&PenaltyTable[Month],PenaltyTable[Daily])*$W$10,"") -> 1.496986301 | AB23: 10943.26926 | AE23: 2025-10-15 | AF23: =IF(ROW()-ROW(Year2Table[#Headers])=1,$AI$193,IF(AG21="","",IF(AND($B$7<>"",AE23>=$B$7),$C$7,IF(AND($B$6<>"",AE23>=$B$6),$C$6,IF(AE23>=$B$5,$C$5,IF(AE23<$B$5,0)))))) -> 1250 | AG23: 2112.884494 | AH23: =IFERROR(_xlfn.XLOOKUP(YEAR(Year2Table[[#This Row],[Date]])&MONTH(Year2Table[[#This Row],[Date]]),PenaltyTable[Year]&PenaltyTable[Month],PenaltyTable[Daily])*$AG$10,"") -> 2.876712329 | AL23: 876.9703906 | AO23: 1900-11-28 | AP23: 0 | AQ23: 7530.791273 | AR23: =IFERROR(_xlfn.XLOOKUP(YEAR(Year3Table[[#This Row],[Date]])&MONTH(Year3Table[[#This Row],[Date]]),PenaltyTable[Year]&PenaltyTable[Month],PenaltyTable[Daily])*$AQ$10,"") ->  | AV23: 7580.996548 | AY23: 1900-11-28 | AZ23: 0 | BA23: 2689.568312 | BB23: =IFERROR(_xlfn.XLOOKUP(YEAR(Year4Table[[#This Row],[Date]])&MONTH(Year4Table[[#This Row],[Date]]),PenaltyTable[Year]&PenaltyTable[Month],PenaltyTable[Daily])*$BA$10,"") ->  | BF23: 2707.498767 | BI23: 1900-11-28 | BJ23: 0 | BK23: 5379.136623 | BL23: =IFERROR(_xlfn.XLOOKUP(YEAR(Year5Table[[#This Row],[Date]])&MONTH(Year5Table[[#This Row],[Date]]),PenaltyTable[Year]&PenaltyTable[Month],PenaltyTable[Daily])*$BK$10,"") ->  | BP23: 5414.997534 | BS23: 1900-11-28 | BT23: 0 | BU23: 3227.481974 | BV23: =IFERROR(_xlfn.XLOOKUP(YEAR(Year6Table[[#This Row],[Date]])&MONTH(Year6Table[[#This Row],[Date]]),PenaltyTable[Year]&PenaltyTable[Month],PenaltyTable[Daily])*$BU$10,"") ->  | BZ23: 3248.99852 | CC23: 1900-11-28 | CD23: 0 | CE23: 9682.445922 | CF23: =IFERROR(_xlfn.XLOOKUP(YEAR(Year7Table[[#This Row],[Date]])&MONTH(Year7Table[[#This Row],[Date]]),PenaltyTable[Year]&PenaltyTable[Month],PenaltyTable[Daily])*CE$10,"") ->  | CJ23: 9746.995561 | CM23: 1900-11-28 | CN23: 0 | CO23: 12909.9279 | CP23: =IFERROR(_xlfn.XLOOKUP(YEAR(Year8Table[[#This Row],[Date]])&MONTH(Year8Table[[#This Row],[Date]]),PenaltyTable[Year]&PenaltyTable[Month],PenaltyTable[Daily])*$CO$10,"") ->  | CT23: 12995.99408 | CW23: 1900-11-28 | CX23: 0 | CY23: 914.4532259 | CZ23: =IFERROR(_xlfn.XLOOKUP(YEAR(Year9Table[[#This Row],[Date]])&MONTH(Year9Table[[#This Row],[Date]]),PenaltyTable[Year]&PenaltyTable[Month],PenaltyTable[Daily])*$CY$10,"") ->  | DD23: 920.5495808 | DG23: 1900-11-28 | DH23: 0 | DI23: 739.093372 | DJ23: =IFERROR(_xlfn.XLOOKUP(YEAR(Year10Table[[#This Row],[Date]])&MONTH(Year10Table[[#This Row],[Date]]),PenaltyTable[Year]&PenaltyTable[Month],PenaltyTable[Daily])*$DI$10,"") ->  | DN23: 744.0206612
U24: =IFERROR(IF((ROW()-ROW(Year1Table[#Headers]))=1,IF(OR(Table1[[#This Row],[Tax Assessed]]="",Table1[[#This Row],[Tax Assessed]]=0),"",Table1[[#This Row],[Tax Due Dt]]),IF((ROW()-ROW(Year1Table[#Headers]))>1,IF(OFFSET(AB24,-1,)<1,"",EDATE(U23,1)))),"") -> 2018-04-15 | V24: 0 | W24: 10943.26926 | X24: =IFERROR(_xlfn.XLOOKUP(YEAR(Year1Table[[#This Row],[Date]])&MONTH(Year1Table[[#This Row],[Date]]),PenaltyTable[Year]&PenaltyTable[Month],PenaltyTable[Daily])*$W$10,"") -> 1.496986301 | AB24: 10944.76625 | AE24: 2025-11-15 | AF24: =IF(ROW()-ROW(Year2Table[#Headers])=1,$AI$193,IF(AG22="","",IF(AND($B$7<>"",AE24>=$B$7),$C$7,IF(AND($B$6<>"",AE24>=$B$6),$C$6,IF(AE24>=$B$5,$C$5,IF(AE24<$B$5,0)))))) -> 1250 | AG24: 876.9703906 | AH24: =IFERROR(_xlfn.XLOOKUP(YEAR(Year2Table[[#This Row],[Date]])&MONTH(Year2Table[[#This Row],[Date]]),PenaltyTable[Year]&PenaltyTable[Month],PenaltyTable[Daily])*$AG$10,"") -> 2.876712329 | AL24: -367.1831402 | AO24: 1900-12-28 | AP24: 0 | AQ24: 7580.996548 | AR24: =IFERROR(_xlfn.XLOOKUP(YEAR(Year3Table[[#This Row],[Date]])&MONTH(Year3Table[[#This Row],[Date]]),PenaltyTable[Year]&PenaltyTable[Month],PenaltyTable[Daily])*$AQ$10,"") ->  | AV24: 7631.536525 | AY24: 1900-12-28 | AZ24: 0 | BA24: 2707.498767 | BB24: =IFERROR(_xlfn.XLOOKUP(YEAR(Year4Table[[#This Row],[Date]])&MONTH(Year4Table[[#This Row],[Date]]),PenaltyTable[Year]&PenaltyTable[Month],PenaltyTable[Daily])*$BA$10,"") ->  | BF24: 2725.548759 | BI24: 1900-12-28 | BJ24: 0 | BK24: 5414.997534 | BL24: =IFERROR(_xlfn.XLOOKUP(YEAR(Year5Table[[#This Row],[Date]])&MONTH(Year5Table[[#This Row],[Date]]),PenaltyTable[Year]&PenaltyTable[Month],PenaltyTable[Daily])*$BK$10,"") ->  | BP24: 5451.097518 | BS24: 1900-12-28 | BT24: 0 | BU24: 3248.99852 | BV24: =IFERROR(_xlfn.XLOOKUP(YEAR(Year6Table[[#This Row],[Date]])&MONTH(Year6Table[[#This Row],[Date]]),PenaltyTable[Year]&PenaltyTable[Month],PenaltyTable[Daily])*$BU$10,"") ->  | BZ24: 3270.658511 | CC24: 1900-12-28 | CD24: 0 | CE24: 9746.995561 | CF24: =IFERROR(_xlfn.XLOOKUP(YEAR(Year7Table[[#This Row],[Date]])&MONTH(Year7Table[[#This Row],[Date]]),PenaltyTable[Year]&PenaltyTable[Month],PenaltyTable[Daily])*CE$10,"") ->  | CJ24: 9811.975532 | CM24: 1900-12-28 | CN24: 0 | CO24: 12995.99408 | CP24: =IFERROR(_xlfn.XLOOKUP(YEAR(Year8Table[[#This Row],[Date]])&MONTH(Year8Table[[#This Row],[Date]]),PenaltyTable[Year]&PenaltyTable[Month],PenaltyTable[Daily])*$CO$10,"") ->  | CT24: 13082.63404 | CW24: 1900-12-28 | CX24: 0 | CY24: 920.5495808 | CZ24: =IFERROR(_xlfn.XLOOKUP(YEAR(Year9Table[[#This Row],[Date]])&MONTH(Year9Table[[#This Row],[Date]]),PenaltyTable[Year]&PenaltyTable[Month],PenaltyTable[Daily])*$CY$10,"") ->  | DD24: 926.686578 | DG24: 1900-12-28 | DH24: 0 | DI24: 744.0206612 | DJ24: =IFERROR(_xlfn.XLOOKUP(YEAR(Year10Table[[#This Row],[Date]])&MONTH(Year10Table[[#This Row],[Date]]),PenaltyTable[Year]&PenaltyTable[Month],PenaltyTable[Daily])*$DI$10,"") ->  | DN24: 748.9807989
U25: =IFERROR(IF((ROW()-ROW(Year1Table[#Headers]))=1,IF(OR(Table1[[#This Row],[Tax Assessed]]="",Table1[[#This Row],[Tax Assessed]]=0),"",Table1[[#This Row],[Tax Due Dt]]),IF((ROW()-ROW(Year1Table[#Headers]))>1,IF(OFFSET(AB25,-1,)<1,"",EDATE(U24,1)))),"") -> 2018-05-15 | V25: 0 | W25: 10944.76625 | X25: =IFERROR(_xlfn.XLOOKUP(YEAR(Year1Table[[#This Row],[Date]])&MONTH(Year1Table[[#This Row],[Date]]),PenaltyTable[Year]&PenaltyTable[Month],PenaltyTable[Daily])*$W$10,"") -> 1.496986301 | AB25: 10946.26323 | AF25: =IF(ROW()-ROW(Year2Table[#Headers])=1,$AI$193,IF(AG23="","",IF(AND($B$7<>"",AE25>=$B$7),$C$7,IF(AND($B$6<>"",AE25>=$B$6),$C$6,IF(AE25>=$B$5,$C$5,IF(AE25<$B$5,0)))))) -> 1250 | AH25: =IFERROR(_xlfn.XLOOKUP(YEAR(Year2Table[[#This Row],[Date]])&MONTH(Year2Table[[#This Row],[Date]]),PenaltyTable[Year]&PenaltyTable[Month],PenaltyTable[Daily])*$AG$10,"") ->  | AO25: 1901-01-28 | AP25: 0 | AQ25: 7631.536525 | AR25: =IFERROR(_xlfn.XLOOKUP(YEAR(Year3Table[[#This Row],[Date]])&MONTH(Year3Table[[#This Row],[Date]]),PenaltyTable[Year]&PenaltyTable[Month],PenaltyTable[Daily])*$AQ$10,"") ->  | AV25: 7682.413435 | AY25: 1901-01-28 | AZ25: 0 | BA25: 2725.548759 | BB25: =IFERROR(_xlfn.XLOOKUP(YEAR(Year4Table[[#This Row],[Date]])&MONTH(Year4Table[[#This Row],[Date]]),PenaltyTable[Year]&PenaltyTable[Month],PenaltyTable[Daily])*$BA$10,"") ->  | BF25: 2743.719084 | BI25: 1901-01-28 | BJ25: 0 | BK25: 5451.097518 | BL25: =IFERROR(_xlfn.XLOOKUP(YEAR(Year5Table[[#This Row],[Date]])&MONTH(Year5Table[[#This Row],[Date]]),PenaltyTable[Year]&PenaltyTable[Month],PenaltyTable[Daily])*$BK$10,"") ->  | BP25: 5487.438168 | BS25: 1901-01-28 | BT25: 0 | BU25: 3270.658511 | BV25: =IFERROR(_xlfn.XLOOKUP(YEAR(Year6Table[[#This Row],[Date]])&MONTH(Year6Table[[#This Row],[Date]]),PenaltyTable[Year]&PenaltyTable[Month],PenaltyTable[Daily])*$BU$10,"") ->  | BZ25: 3292.462901 | CC25: 1901-01-28 | CD25: 0 | CE25: 9811.975532 | CF25: =IFERROR(_xlfn.XLOOKUP(YEAR(Year7Table[[#This Row],[Date]])&MONTH(Year7Table[[#This Row],[Date]]),PenaltyTable[Year]&PenaltyTable[Month],PenaltyTable[Daily])*CE$10,"") ->  | CJ25: 9877.388702 | CM25: 1901-01-28 | CN25: 0 | CO25: 13082.63404 | CP25: =IFERROR(_xlfn.XLOOKUP(YEAR(Year8Table[[#This Row],[Date]])&MONTH(Year8Table[[#This Row],[Date]]),PenaltyTable[Year]&PenaltyTable[Month],PenaltyTable[Daily])*$CO$10,"") ->  | CT25: 13169.8516 | CW25: 1901-01-28 | CX25: 0 | CY25: 926.686578 | CZ25: =IFERROR(_xlfn.XLOOKUP(YEAR(Year9Table[[#This Row],[Date]])&MONTH(Year9Table[[#This Row],[Date]]),PenaltyTable[Year]&PenaltyTable[Month],PenaltyTable[Daily])*$CY$10,"") ->  | DD25: 932.8644885 | DG25: 1901-01-28 | DH25: 0 | DI25: 748.9807989 | DJ25: =IFERROR(_xlfn.XLOOKUP(YEAR(Year10Table[[#This Row],[Date]])&MONTH(Year10Table[[#This Row],[Date]]),PenaltyTable[Year]&PenaltyTable[Month],PenaltyTable[Daily])*$DI$10,"") ->  | DN25: 753.9740042
U26: =IFERROR(IF((ROW()-ROW(Year1Table[#Headers]))=1,IF(OR(Table1[[#This Row],[Tax Assessed]]="",Table1[[#This Row],[Tax Assessed]]=0),"",Table1[[#This Row],[Tax Due Dt]]),IF((ROW()-ROW(Year1Table[#Headers]))>1,IF(OFFSET(AB26,-1,)<1,"",EDATE(U25,1)))),"") -> 2018-06-15 | V26: 0 | W26: 10946.26323 | X26: =IFERROR(_xlfn.XLOOKUP(YEAR(Year1Table[[#This Row],[Date]])&MONTH(Year1Table[[#This Row],[Date]]),PenaltyTable[Year]&PenaltyTable[Month],PenaltyTable[Daily])*$W$10,"") -> 1.496986301 | AB26: 10947.76022 | AF26: =IF(ROW()-ROW(Year2Table[#Headers])=1,$AI$193,IF(AG24="","",IF(AND($B$7<>"",AE26>=$B$7),$C$7,IF(AND($B$6<>"",AE26>=$B$6),$C$6,IF(AE26>=$B$5,$C$5,IF(AE26<$B$5,0)))))) -> 1250 | AH26: =IFERROR(_xlfn.XLOOKUP(YEAR(Year2Table[[#This Row],[Date]])&MONTH(Year2Table[[#This Row],[Date]]),PenaltyTable[Year]&PenaltyTable[Month],PenaltyTable[Daily])*$AG$10,"") ->  | AO26: 1901-02-28 | AP26: 0 | AQ26: 7682.413435 | AR26: =IFERROR(_xlfn.XLOOKUP(YEAR(Year3Table[[#This Row],[Date]])&MONTH(Year3Table[[#This Row],[Date]]),PenaltyTable[Year]&PenaltyTable[Month],PenaltyTable[Daily])*$AQ$10,"") ->  | AV26: 7733.629524 | AY26: 1901-02-28 | AZ26: 0 | BA26: 2743.719084 | BB26: =IFERROR(_xlfn.XLOOKUP(YEAR(Year4Table[[#This Row],[Date]])&MONTH(Year4Table[[#This Row],[Date]]),PenaltyTable[Year]&PenaltyTable[Month],PenaltyTable[Daily])*$BA$10,"") ->  | BF26: 2762.010544 | BI26: 1901-02-28 | BJ26: 0 | BK26: 5487.438168 | BL26: =IFERROR(_xlfn.XLOOKUP(YEAR(Year5Table[[#This Row],[Date]])&MONTH(Year5Table[[#This Row],[Date]]),PenaltyTable[Year]&PenaltyTable[Month],PenaltyTable[Daily])*$BK$10,"") ->  | BP26: 5524.021089 | BS26: 1901-02-28 | BT26: 0 | BU26: 3292.462901 | BV26: =IFERROR(_xlfn.XLOOKUP(YEAR(Year6Table[[#This Row],[Date]])&MONTH(Year6Table[[#This Row],[Date]]),PenaltyTable[Year]&PenaltyTable[Month],PenaltyTable[Daily])*$BU$10,"") ->  | BZ26: 3314.412653 | CC26: 1901-02-28 | CD26: 0 | CE26: 9877.388702 | CF26: =IFERROR(_xlfn.XLOOKUP(YEAR(Year7Table[[#This Row],[Date]])&MONTH(Year7Table[[#This Row],[Date]]),PenaltyTable[Year]&PenaltyTable[Month],PenaltyTable[Daily])*CE$10,"") ->  | CJ26: 9943.23796 | CM26: 1901-02-28 | CN26: 0 | CO26: 13169.8516 | CP26: =IFERROR(_xlfn.XLOOKUP(YEAR(Year8Table[[#This Row],[Date]])&MONTH(Year8Table[[#This Row],[Date]]),PenaltyTable[Year]&PenaltyTable[Month],PenaltyTable[Daily])*$CO$10,"") ->  | CT26: 13257.65061 | CW26: 1901-02-28 | CX26: 0 | CY26: 932.8644885 | CZ26: =IFERROR(_xlfn.XLOOKUP(YEAR(Year9Table[[#This Row],[Date]])&MONTH(Year9Table[[#This Row],[Date]]),PenaltyTable[Year]&PenaltyTable[Month],PenaltyTable[Daily])*$CY$10,"") ->  | DD26: 939.0835851 | DG26: 1901-02-28 | DH26: 0 | DI26: 753.9740042 | DJ26: =IFERROR(_xlfn.XLOOKUP(YEAR(Year10Table[[#This Row],[Date]])&MONTH(Year10Table[[#This Row],[Date]]),PenaltyTable[Year]&PenaltyTable[Month],PenaltyTable[Daily])*$DI$10,"") ->  | DN26: 759.0004976
U27: =IFERROR(IF((ROW()-ROW(Year1Table[#Headers]))=1,IF(OR(Table1[[#This Row],[Tax Assessed]]="",Table1[[#This Row],[Tax Assessed]]=0),"",Table1[[#This Row],[Tax Due Dt]]),IF((ROW()-ROW(Year1Table[#Headers]))>1,IF(OFFSET(AB27,-1,)<1,"",EDATE(U26,1)))),"") -> 2018-07-15 | V27: 0 | W27: 10947.76022 | X27: =IFERROR(_xlfn.XLOOKUP(YEAR(Year1Table[[#This Row],[Date]])&MONTH(Year1Table[[#This Row],[Date]]),PenaltyTable[Year]&PenaltyTable[Month],PenaltyTable[Daily])*$W$10,"") -> 1.496986301 | AB27: 10949.25721 | AF27: =IF(ROW()-ROW(Year2Table[#Headers])=1,$AI$193,IF(AG25="","",IF(AND($B$7<>"",AE27>=$B$7),$C$7,IF(AND($B$6<>"",AE27>=$B$6),$C$6,IF(AE27>=$B$5,$C$5,IF(AE27<$B$5,0)))))) ->  | AH27: =IFERROR(_xlfn.XLOOKUP(YEAR(Year2Table[[#This Row],[Date]])&MONTH(Year2Table[[#This Row],[Date]]),PenaltyTable[Year]&PenaltyTable[Month],PenaltyTable[Daily])*$AG$10,"") ->  | AO27: 1901-03-28 | AP27: 0 | AQ27: 7733.629524 | AR27: =IFERROR(_xlfn.XLOOKUP(YEAR(Year3Table[[#This Row],[Date]])&MONTH(Year3Table[[#This Row],[Date]]),PenaltyTable[Year]&PenaltyTable[Month],PenaltyTable[Daily])*$AQ$10,"") ->  | AV27: 7785.187055 | AY27: 1901-03-28 | AZ27: 0 | BA27: 2762.010544 | BB27: =IFERROR(_xlfn.XLOOKUP(YEAR(Year4Table[[#This Row],[Date]])&MONTH(Year4Table[[#This Row],[Date]]),PenaltyTable[Year]&PenaltyTable[Month],PenaltyTable[Daily])*$BA$10,"") ->  | BF27: 2780.423948 | BI27: 1901-03-28 | BJ27: 0 | BK27: 5524.021089 | BL27: =IFERROR(_xlfn.XLOOKUP(YEAR(Year5Table[[#This Row],[Date]])&MONTH(Year5Table[[#This Row],[Date]]),PenaltyTable[Year]&PenaltyTable[Month],PenaltyTable[Daily])*$BK$10,"") ->  | BP27: 5560.847896 | BS27: 1901-03-28 | BT27: 0 | BU27: 3314.412653 | BV27: =IFERROR(_xlfn.XLOOKUP(YEAR(Year6Table[[#This Row],[Date]])&MONTH(Year6Table[[#This Row],[Date]]),PenaltyTable[Year]&PenaltyTable[Month],PenaltyTable[Daily])*$BU$10,"") ->  | BZ27: 3336.508738 | CC27: 1901-03-28 | CD27: 0 | CE27: 9943.23796 | CF27: =IFERROR(_xlfn.XLOOKUP(YEAR(Year7Table[[#This Row],[Date]])&MONTH(Year7Table[[#This Row],[Date]]),PenaltyTable[Year]&PenaltyTable[Month],PenaltyTable[Daily])*CE$10,"") ->  | CJ27: 10009.52621 | CM27: 1901-03-28 | CN27: 0 | CO27: 13257.65061 | CP27: =IFERROR(_xlfn.XLOOKUP(YEAR(Year8Table[[#This Row],[Date]])&MONTH(Year8Table[[#This Row],[Date]]),PenaltyTable[Year]&PenaltyTable[Month],PenaltyTable[Daily])*$CO$10,"") ->  | CT27: 13346.03495 | CW27: 1901-03-28 | CX27: 0 | CY27: 939.0835851 | CZ27: =IFERROR(_xlfn.XLOOKUP(YEAR(Year9Table[[#This Row],[Date]])&MONTH(Year9Table[[#This Row],[Date]]),PenaltyTable[Year]&PenaltyTable[Month],PenaltyTable[Daily])*$CY$10,"") ->  | DD27: 945.3441423 | DG27: 1901-03-28 | DH27: 0 | DI27: 759.0004976 | DJ27: =IFERROR(_xlfn.XLOOKUP(YEAR(Year10Table[[#This Row],[Date]])&MONTH(Year10Table[[#This Row],[Date]]),PenaltyTable[Year]&PenaltyTable[Month],PenaltyTable[Daily])*$DI$10,"") ->  | DN27: 764.0605009
U28: =IFERROR(IF((ROW()-ROW(Year1Table[#Headers]))=1,IF(OR(Table1[[#This Row],[Tax Assessed]]="",Table1[[#This Row],[Tax Assessed]]=0),"",Table1[[#This Row],[Tax Due Dt]]),IF((ROW()-ROW(Year1Table[#Headers]))>1,IF(OFFSET(AB28,-1,)<1,"",EDATE(U27,1)))),"") -> 2018-08-15 | V28: 0 | W28: 10949.25721 | X28: =IFERROR(_xlfn.XLOOKUP(YEAR(Year1Table[[#This Row],[Date]])&MONTH(Year1Table[[#This Row],[Date]]),PenaltyTable[Year]&PenaltyTable[Month],PenaltyTable[Daily])*$W$10,"") -> 1.496986301 | AB28: 10950.75419 | AF28: =IF(ROW()-ROW(Year2Table[#Headers])=1,$AI$193,IF(AG26="","",IF(AND($B$7<>"",AE28>=$B$7),$C$7,IF(AND($B$6<>"",AE28>=$B$6),$C$6,IF(AE28>=$B$5,$C$5,IF(AE28<$B$5,0)))))) ->  | AH28: =IFERROR(_xlfn.XLOOKUP(YEAR(Year2Table[[#This Row],[Date]])&MONTH(Year2Table[[#This Row],[Date]]),PenaltyTable[Year]&PenaltyTable[Month],PenaltyTable[Daily])*$AG$10,"") ->  | AO28: 1901-04-28 | AP28: 0 | AQ28: 7785.187055 | AR28: =IFERROR(_xlfn.XLOOKUP(YEAR(Year3Table[[#This Row],[Date]])&MONTH(Year3Table[[#This Row],[Date]]),PenaltyTable[Year]&PenaltyTable[Month],PenaltyTable[Daily])*$AQ$10,"") ->  | AV28: 7837.088302 | AY28: 1901-04-28 | AZ28: 0 | BA28: 2780.423948 | BB28: =IFERROR(_xlfn.XLOOKUP(YEAR(Year4Table[[#This Row],[Date]])&MONTH(Year4Table[[#This Row],[Date]]),PenaltyTable[Year]&PenaltyTable[Month],PenaltyTable[Daily])*$BA$10,"") ->  | BF28: 2798.960108 | BI28: 1901-04-28 | BJ28: 0 | BK28: 5560.847896 | BL28: =IFERROR(_xlfn.XLOOKUP(YEAR(Year5Table[[#This Row],[Date]])&MONTH(Year5Table[[#This Row],[Date]]),PenaltyTable[Year]&PenaltyTable[Month],PenaltyTable[Daily])*$BK$10,"") ->  | BP28: 5597.920215 | BS28: 1901-04-28 | BT28: 0 | BU28: 3336.508738 | BV28: =IFERROR(_xlfn.XLOOKUP(YEAR(Year6Table[[#This Row],[Date]])&MONTH(Year6Table[[#This Row],[Date]]),PenaltyTable[Year]&PenaltyTable[Month],PenaltyTable[Daily])*$BU$10,"") ->  | BZ28: 3358.752129 | CC28: 1901-04-28 | CD28: 0 | CE28: 10009.52621 | CF28: =IFERROR(_xlfn.XLOOKUP(YEAR(Year7Table[[#This Row],[Date]])&MONTH(Year7Table[[#This Row],[Date]]),PenaltyTable[Year]&PenaltyTable[Month],PenaltyTable[Daily])*CE$10,"") ->  | CJ28: 10076.25639 | CM28: 1901-04-28 | CN28: 0 | CO28: 13346.03495 | CP28: =IFERROR(_xlfn.XLOOKUP(YEAR(Year8Table[[#This Row],[Date]])&MONTH(Year8Table[[#This Row],[Date]]),PenaltyTable[Year]&PenaltyTable[Month],PenaltyTable[Daily])*$CO$10,"") ->  | CT28: 13435.00852 | CW28: 1901-04-28 | CX28: 0 | CY28: 945.3441423 | CZ28: =IFERROR(_xlfn.XLOOKUP(YEAR(Year9Table[[#This Row],[Date]])&MONTH(Year9Table[[#This Row],[Date]]),PenaltyTable[Year]&PenaltyTable[Month],PenaltyTable[Daily])*$CY$10,"") ->  | DD28: 951.6464366 | DG28: 1901-04-28 | DH28: 0 | DI28: 764.0605009 | DJ28: =IFERROR(_xlfn.XLOOKUP(YEAR(Year10Table[[#This Row],[Date]])&MONTH(Year10Table[[#This Row],[Date]]),PenaltyTable[Year]&PenaltyTable[Month],PenaltyTable[Daily])*$DI$10,"") ->  | DN28: 769.1542376
U29: =IFERROR(IF((ROW()-ROW(Year1Table[#Headers]))=1,IF(OR(Table1[[#This Row],[Tax Assessed]]="",Table1[[#This Row],[Tax Assessed]]=0),"",Table1[[#This Row],[Tax Due Dt]]),IF((ROW()-ROW(Year1Table[#Headers]))>1,IF(OFFSET(AB29,-1,)<1,"",EDATE(U28,1)))),"") -> 2018-09-15 | V29: 0 | W29: 10950.75419 | X29: =IFERROR(_xlfn.XLOOKUP(YEAR(Year1Table[[#This Row],[Date]])&MONTH(Year1Table[[#This Row],[Date]]),PenaltyTable[Year]&PenaltyTable[Month],PenaltyTable[Daily])*$W$10,"") -> 1.496986301 | AB29: 10952.25118 | AF29: =IF(ROW()-ROW(Year2Table[#Headers])=1,$AI$193,IF(AG27="","",IF(AND($B$7<>"",AE29>=$B$7),$C$7,IF(AND($B$6<>"",AE29>=$B$6),$C$6,IF(AE29>=$B$5,$C$5,IF(AE29<$B$5,0)))))) ->  | AH29: =IFERROR(_xlfn.XLOOKUP(YEAR(Year2Table[[#This Row],[Date]])&MONTH(Year2Table[[#This Row],[Date]]),PenaltyTable[Year]&PenaltyTable[Month],PenaltyTable[Daily])*$AG$10,"") ->  | AO29: 1901-05-28 | AP29: 0 | AQ29: 7837.088302 | AR29: =IFERROR(_xlfn.XLOOKUP(YEAR(Year3Table[[#This Row],[Date]])&MONTH(Year3Table[[#This Row],[Date]]),PenaltyTable[Year]&PenaltyTable[Month],PenaltyTable[Daily])*$AQ$10,"") ->  | AV29: 7889.335557 | AY29: 1901-05-28 | AZ29: 0 | BA29: 2798.960108 | BB29: =IFERROR(_xlfn.XLOOKUP(YEAR(Year4Table[[#This Row],[Date]])&MONTH(Year4Table[[#This Row],[Date]]),PenaltyTable[Year]&PenaltyTable[Month],PenaltyTable[Daily])*$BA$10,"") ->  | BF29: 2817.619842 | BI29: 1901-05-28 | BJ29: 0 | BK29: 5597.920215 | BL29: =IFERROR(_xlfn.XLOOKUP(YEAR(Year5Table[[#This Row],[Date]])&MONTH(Year5Table[[#This Row],[Date]]),PenaltyTable[Year]&PenaltyTable[Month],PenaltyTable[Daily])*$BK$10,"") ->  | BP29: 5635.239684 | BS29: 1901-05-28 | BT29: 0 | BU29: 3358.752129 | BV29: =IFERROR(_xlfn.XLOOKUP(YEAR(Year6Table[[#This Row],[Date]])&MONTH(Year6Table[[#This Row],[Date]]),PenaltyTable[Year]&PenaltyTable[Month],PenaltyTable[Daily])*$BU$10,"") ->  | BZ29: 3381.14381 | CC29: 1901-05-28 | CD29: 0 | CE29: 10076.25639 | CF29: =IFERROR(_xlfn.XLOOKUP(YEAR(Year7Table[[#This Row],[Date]])&MONTH(Year7Table[[#This Row],[Date]]),PenaltyTable[Year]&PenaltyTable[Month],PenaltyTable[Daily])*CE$10,"") ->  | CJ29: 10143.43143 | CM29: 1901-05-28 | CN29: 0 | CO29: 13435.00852 | CP29: =IFERROR(_xlfn.XLOOKUP(YEAR(Year8Table[[#This Row],[Date]])&MONTH(Year8Table[[#This Row],[Date]]),PenaltyTable[Year]&PenaltyTable[Month],PenaltyTable[Daily])*$CO$10,"") ->  | CT29: 13524.57524 | CW29: 1901-05-28 | CX29: 0 | CY29: 951.6464366 | CZ29: =IFERROR(_xlfn.XLOOKUP(YEAR(Year9Table[[#This Row],[Date]])&MONTH(Year9Table[[#This Row],[Date]]),PenaltyTable[Year]&PenaltyTable[Month],PenaltyTable[Daily])*$CY$10,"") ->  | DD29: 957.9907462 | DG29: 1901-05-28 | DH29: 0 | DI29: 769.1542376 | DJ29: =IFERROR(_xlfn.XLOOKUP(YEAR(Year10Table[[#This Row],[Date]])&MONTH(Year10Table[[#This Row],[Date]]),PenaltyTable[Year]&PenaltyTable[Month],PenaltyTable[Daily])*$DI$10,"") ->  | DN29: 774.2819325
U30: =IFERROR(IF((ROW()-ROW(Year1Table[#Headers]))=1,IF(OR(Table1[[#This Row],[Tax Assessed]]="",Table1[[#This Row],[Tax Assessed]]=0),"",Table1[[#This Row],[Tax Due Dt]]),IF((ROW()-ROW(Year1Table[#Headers]))>1,IF(OFFSET(AB30,-1,)<1,"",EDATE(U29,1)))),"") -> 2018-10-15 | V30: 0 | W30: 10952.25118 | X30: =IFERROR(_xlfn.XLOOKUP(YEAR(Year1Table[[#This Row],[Date]])&MONTH(Year1Table[[#This Row],[Date]]),PenaltyTable[Year]&PenaltyTable[Month],PenaltyTable[Daily])*$W$10,"") -> 1.197589041 | AB30: 10953.44877 | AF30: =IF(ROW()-ROW(Year2Table[#Headers])=1,$AI$193,IF(AG28="","",IF(AND($B$7<>"",AE30>=$B$7),$C$7,IF(AND($B$6<>"",AE30>=$B$6),$C$6,IF(AE30>=$B$5,$C$5,IF(AE30<$B$5,0)))))) ->  | AH30: =IFERROR(_xlfn.XLOOKUP(YEAR(Year2Table[[#This Row],[Date]])&MONTH(Year2Table[[#This Row],[Date]]),PenaltyTable[Year]&PenaltyTable[Month],PenaltyTable[Daily])*$AG$10,"") ->  | AO30: 1901-06-28 | AP30: 0 | AQ30: 7889.335557 | AR30: =IFERROR(_xlfn.XLOOKUP(YEAR(Year3Table[[#This Row],[Date]])&MONTH(Year3Table[[#This Row],[Date]]),PenaltyTable[Year]&PenaltyTable[Month],PenaltyTable[Daily])*$AQ$10,"") ->  | AV30: 7941.931127 | AY30: 1901-06-28 | AZ30: 0 | BA30: 2817.619842 | BB30: =IFERROR(_xlfn.XLOOKUP(YEAR(Year4Table[[#This Row],[Date]])&MONTH(Year4Table[[#This Row],[Date]]),PenaltyTable[Year]&PenaltyTable[Month],PenaltyTable[Daily])*$BA$10,"") ->  | BF30: 2836.403974 | BI30: 1901-06-28 | BJ30: 0 | BK30: 5635.239684 | BL30: =IFERROR(_xlfn.XLOOKUP(YEAR(Year5Table[[#This Row],[Date]])&MONTH(Year5Table[[#This Row],[Date]]),PenaltyTable[Year]&PenaltyTable[Month],PenaltyTable[Daily])*$BK$10,"") ->  | BP30: 5672.807948 | BS30: 1901-06-28 | BT30: 0 | BU30: 3381.14381 | BV30: =IFERROR(_xlfn.XLOOKUP(YEAR(Year6Table[[#This Row],[Date]])&MONTH(Year6Table[[#This Row],[Date]]),PenaltyTable[Year]&PenaltyTable[Month],PenaltyTable[Daily])*$BU$10,"") ->  | BZ30: 3403.684769 | CC30: 1901-06-28 | CD30: 0 | CE30: 10143.43143 | CF30: =IFERROR(_xlfn.XLOOKUP(YEAR(Year7Table[[#This Row],[Date]])&MONTH(Year7Table[[#This Row],[Date]]),PenaltyTable[Year]&PenaltyTable[Month],PenaltyTable[Daily])*CE$10,"") ->  | CJ30: 10211.05431 | CM30: 1901-06-28 | CN30: 0 | CO30: 13524.57524 | CP30: =IFERROR(_xlfn.XLOOKUP(YEAR(Year8Table[[#This Row],[Date]])&MONTH(Year8Table[[#This Row],[Date]]),PenaltyTable[Year]&PenaltyTable[Month],PenaltyTable[Daily])*$CO$10,"") ->  | CT30: 13614.73908 | CW30: 1901-06-28 | CX30: 0 | CY30: 957.9907462 | CZ30: =IFERROR(_xlfn.XLOOKUP(YEAR(Year9Table[[#This Row],[Date]])&MONTH(Year9Table[[#This Row],[Date]]),PenaltyTable[Year]&PenaltyTable[Month],PenaltyTable[Daily])*$CY$10,"") ->  | DD30: 964.3773512 | DG30: 1901-06-28 | DH30: 0 | DI30: 774.2819325 | DJ30: =IFERROR(_xlfn.XLOOKUP(YEAR(Year10Table[[#This Row],[Date]])&MONTH(Year10Table[[#This Row],[Date]]),PenaltyTable[Year]&PenaltyTable[Month],PenaltyTable[Daily])*$DI$10,"") ->  | DN30: 779.4438121
U31: =IFERROR(IF((ROW()-ROW(Year1Table[#Headers]))=1,IF(OR(Table1[[#This Row],[Tax Assessed]]="",Table1[[#This Row],[Tax Assessed]]=0),"",Table1[[#This Row],[Tax Due Dt]]),IF((ROW()-ROW(Year1Table[#Headers]))>1,IF(OFFSET(AB31,-1,)<1,"",EDATE(U30,1)))),"") -> 2018-11-15 | V31: 0 | W31: 10953.44877 | X31: =IFERROR(_xlfn.XLOOKUP(YEAR(Year1Table[[#This Row],[Date]])&MONTH(Year1Table[[#This Row],[Date]]),PenaltyTable[Year]&PenaltyTable[Month],PenaltyTable[Daily])*$W$10,"") -> 1.197589041 | AB31: 10954.64636 | AF31: =IF(ROW()-ROW(Year2Table[#Headers])=1,$AI$193,IF(AG29="","",IF(AND($B$7<>"",AE31>=$B$7),$C$7,IF(AND($B$6<>"",AE31>=$B$6),$C$6,IF(AE31>=$B$5,$C$5,IF(AE31<$B$5,0)))))) ->  | AH31: =IFERROR(_xlfn.XLOOKUP(YEAR(Year2Table[[#This Row],[Date]])&MONTH(Year2Table[[#This Row],[Date]]),PenaltyTable[Year]&PenaltyTable[Month],PenaltyTable[Daily])*$AG$10,"") ->  | AO31: 1901-07-28 | AP31: 0 | AQ31: 7941.931127 | AR31: =IFERROR(_xlfn.XLOOKUP(YEAR(Year3Table[[#This Row],[Date]])&MONTH(Year3Table[[#This Row],[Date]]),PenaltyTable[Year]&PenaltyTable[Month],PenaltyTable[Daily])*$AQ$10,"") ->  | AV31: 7994.877335 | AY31: 1901-07-28 | AZ31: 0 | BA31: 2836.403974 | BB31: =IFERROR(_xlfn.XLOOKUP(YEAR(Year4Table[[#This Row],[Date]])&MONTH(Year4Table[[#This Row],[Date]]),PenaltyTable[Year]&PenaltyTable[Month],PenaltyTable[Daily])*$BA$10,"") ->  | BF31: 2855.313334 | BI31: 1901-07-28 | BJ31: 0 | BK31: 5672.807948 | BL31: =IFERROR(_xlfn.XLOOKUP(YEAR(Year5Table[[#This Row],[Date]])&MONTH(Year5Table[[#This Row],[Date]]),PenaltyTable[Year]&PenaltyTable[Month],PenaltyTable[Daily])*$BK$10,"") ->  | BP31: 5710.626668 | BS31: 1901-07-28 | BT31: 0 | BU31: 3403.684769 | BV31: =IFERROR(_xlfn.XLOOKUP(YEAR(Year6Table[[#This Row],[Date]])&MONTH(Year6Table[[#This Row],[Date]]),PenaltyTable[Year]&PenaltyTable[Month],PenaltyTable[Daily])*$BU$10,"") ->  | BZ31: 3426.376001 | CC31: 1901-07-28 | CD31: 0 | CE31: 10211.05431 | CF31: =IFERROR(_xlfn.XLOOKUP(YEAR(Year7Table[[#This Row],[Date]])&MONTH(Year7Table[[#This Row],[Date]]),PenaltyTable[Year]&PenaltyTable[Month],PenaltyTable[Daily])*CE$10,"") ->  | CJ31: 10279.128 | CM31: 1901-07-28 | CN31: 0 | CO31: 13614.73908 | CP31: =IFERROR(_xlfn.XLOOKUP(YEAR(Year8Table[[#This Row],[Date]])&MONTH(Year8Table[[#This Row],[Date]]),PenaltyTable[Year]&PenaltyTable[Month],PenaltyTable[Daily])*$CO$10,"") ->  | CT31: 13705.504 | CW31: 1901-07-28 | CX31: 0 | CY31: 964.3773512 | CZ31: =IFERROR(_xlfn.XLOOKUP(YEAR(Year9Table[[#This Row],[Date]])&MONTH(Year9Table[[#This Row],[Date]]),PenaltyTable[Year]&PenaltyTable[Month],PenaltyTable[Daily])*$CY$10,"") ->  | DD31: 970.8065335 | DG31: 1901-07-28 | DH31: 0 | DI31: 779.4438121 | DJ31: =IFERROR(_xlfn.XLOOKUP(YEAR(Year10Table[[#This Row],[Date]])&MONTH(Year10Table[[#This Row],[Date]]),PenaltyTable[Year]&PenaltyTable[Month],PenaltyTable[Daily])*$DI$10,"") ->  | DN31: 784.6401041
U32: =IFERROR(IF((ROW()-ROW(Year1Table[#Headers]))=1,IF(OR(Table1[[#This Row],[Tax Assessed]]="",Table1[[#This Row],[Tax Assessed]]=0),"",Table1[[#This Row],[Tax Due Dt]]),IF((ROW()-ROW(Year1Table[#Headers]))>1,IF(OFFSET(AB32,-1,)<1,"",EDATE(U31,1)))),"") -> 2018-12-15 | V32: 0 | W32: 10954.64636 | X32: =IFERROR(_xlfn.XLOOKUP(YEAR(Year1Table[[#This Row],[Date]])&MONTH(Year1Table[[#This Row],[Date]]),PenaltyTable[Year]&PenaltyTable[Month],PenaltyTable[Daily])*$W$10,"") -> 1.197589041 | AB32: 10955.84395 | AF32: =IF(ROW()-ROW(Year2Table[#Headers])=1,$AI$193,IF(AG30="","",IF(AND($B$7<>"",AE32>=$B$7),$C$7,IF(AND($B$6<>"",AE32>=$B$6),$C$6,IF(AE32>=$B$5,$C$5,IF(AE32<$B$5,0)))))) ->  | AH32: =IFERROR(_xlfn.XLOOKUP(YEAR(Year2Table[[#This Row],[Date]])&MONTH(Year2Table[[#This Row],[Date]]),PenaltyTable[Year]&PenaltyTable[Month],PenaltyTable[Daily])*$AG$10,"") ->  | AO32: 1901-08-28 | AP32: 0 | AQ32: 7994.877335 | AR32: =IFERROR(_xlfn.XLOOKUP(YEAR(Year3Table[[#This Row],[Date]])&MONTH(Year3Table[[#This Row],[Date]]),PenaltyTable[Year]&PenaltyTable[Month],PenaltyTable[Daily])*$AQ$10,"") ->  | AV32: 8048.176517 | AY32: 1901-08-28 | AZ32: 0 | BA32: 2855.313334 | BB32: =IFERROR(_xlfn.XLOOKUP(YEAR(Year4Table[[#This Row],[Date]])&MONTH(Year4Table[[#This Row],[Date]]),PenaltyTable[Year]&PenaltyTable[Month],PenaltyTable[Daily])*$BA$10,"") ->  | BF32: 2874.348756 | BI32: 1901-08-28 | BJ32: 0 | BK32: 5710.626668 | BL32: =IFERROR(_xlfn.XLOOKUP(YEAR(Year5Table[[#This Row],[Date]])&MONTH(Year5Table[[#This Row],[Date]]),PenaltyTable[Year]&PenaltyTable[Month],PenaltyTable[Daily])*$BK$10,"") ->  | BP32: 5748.697512 | BS32: 1901-08-28 | BT32: 0 | BU32: 3426.376001 | BV32: =IFERROR(_xlfn.XLOOKUP(YEAR(Year6Table[[#This Row],[Date]])&MONTH(Year6Table[[#This Row],[Date]]),PenaltyTable[Year]&PenaltyTable[Month],PenaltyTable[Daily])*$BU$10,"") ->  | BZ32: 3449.218507 | CC32: 1901-08-28 | CD32: 0 | CE32: 10279.128 | CF32: =IFERROR(_xlfn.XLOOKUP(YEAR(Year7Table[[#This Row],[Date]])&MONTH(Year7Table[[#This Row],[Date]]),PenaltyTable[Year]&PenaltyTable[Month],PenaltyTable[Daily])*CE$10,"") ->  | CJ32: 10347.65552 | CM32: 1901-08-28 | CN32: 0 | CO32: 13705.504 | CP32: =IFERROR(_xlfn.XLOOKUP(YEAR(Year8Table[[#This Row],[Date]])&MONTH(Year8Table[[#This Row],[Date]]),PenaltyTable[Year]&PenaltyTable[Month],PenaltyTable[Daily])*$CO$10,"") ->  | CT32: 13796.87403 | CW32: 1901-08-28 | CX32: 0 | CY32: 970.8065335 | CZ32: =IFERROR(_xlfn.XLOOKUP(YEAR(Year9Table[[#This Row],[Date]])&MONTH(Year9Table[[#This Row],[Date]]),PenaltyTable[Year]&PenaltyTable[Month],PenaltyTable[Daily])*$CY$10,"") ->  | DD32: 977.2785771 | DG32: 1901-08-28 | DH32: 0 | DI32: 784.6401041 | DJ32: =IFERROR(_xlfn.XLOOKUP(YEAR(Year10Table[[#This Row],[Date]])&MONTH(Year10Table[[#This Row],[Date]]),PenaltyTable[Year]&PenaltyTable[Month],PenaltyTable[Daily])*$DI$10,"") ->  | DN32: 789.8710382
U33: =IFERROR(IF((ROW()-ROW(Year1Table[#Headers]))=1,IF(OR(Table1[[#This Row],[Tax Assessed]]="",Table1[[#This Row],[Tax Assessed]]=0),"",Table1[[#This Row],[Tax Due Dt]]),IF((ROW()-ROW(Year1Table[#Headers]))>1,IF(OFFSET(AB33,-1,)<1,"",EDATE(U32,1)))),"") -> 2019-01-15 | V33: 0 | W33: 10955.84395 | X33: =IFERROR(_xlfn.XLOOKUP(YEAR(Year1Table[[#This Row],[Date]])&MONTH(Year1Table[[#This Row],[Date]]),PenaltyTable[Year]&PenaltyTable[Month],PenaltyTable[Daily])*$W$10,"") -> 1.496986301 | AB33: 10957.34093 | AF33: =IF(ROW()-ROW(Year2Table[#Headers])=1,$AI$193,IF(AG31="","",IF(AND($B$7<>"",AE33>=$B$7),$C$7,IF(AND($B$6<>"",AE33>=$B$6),$C$6,IF(AE33>=$B$5,$C$5,IF(AE33<$B$5,0)))))) ->  | AH33: =IFERROR(_xlfn.XLOOKUP(YEAR(Year2Table[[#This Row],[Date]])&MONTH(Year2Table[[#This Row],[Date]]),PenaltyTable[Year]&PenaltyTable[Month],PenaltyTable[Daily])*$AG$10,"") ->  | AO33: 1901-09-28 | AP33: 0 | AQ33: 8048.176517 | AR33: =IFERROR(_xlfn.XLOOKUP(YEAR(Year3Table[[#This Row],[Date]])&MONTH(Year3Table[[#This Row],[Date]]),PenaltyTable[Year]&PenaltyTable[Month],PenaltyTable[Daily])*$AQ$10,"") ->  | AV33: 8101.831027 | AY33: 1901-09-28 | AZ33: 0 | BA33: 2874.348756 | BB33: =IFERROR(_xlfn.XLOOKUP(YEAR(Year4Table[[#This Row],[Date]])&MONTH(Year4Table[[#This Row],[Date]]),PenaltyTable[Year]&PenaltyTable[Month],PenaltyTable[Daily])*$BA$10,"") ->  | BF33: 2893.511081 | BI33: 1901-09-28 | BJ33: 0 | BK33: 5748.697512 | BL33: =IFERROR(_xlfn.XLOOKUP(YEAR(Year5Table[[#This Row],[Date]])&MONTH(Year5Table[[#This Row],[Date]]),PenaltyTable[Year]&PenaltyTable[Month],PenaltyTable[Daily])*$BK$10,"") ->  | BP33: 5787.022162 | BS33: 1901-09-28 | BT33: 0 | BU33: 3449.218507 | BV33: =IFERROR(_xlfn.XLOOKUP(YEAR(Year6Table[[#This Row],[Date]])&MONTH(Year6Table[[#This Row],[Date]]),PenaltyTable[Year]&PenaltyTable[Month],PenaltyTable[Daily])*$BU$10,"") ->  | BZ33: 3472.213297 | CC33: 1901-09-28 | CD33: 0 | CE33: 10347.65552 | CF33: =IFERROR(_xlfn.XLOOKUP(YEAR(Year7Table[[#This Row],[Date]])&MONTH(Year7Table[[#This Row],[Date]]),PenaltyTable[Year]&PenaltyTable[Month],PenaltyTable[Daily])*CE$10,"") ->  | CJ33: 10416.63989 | CM33: 1901-09-28 | CN33: 0 | CO33: 13796.87403 | CP33: =IFERROR(_xlfn.XLOOKUP(YEAR(Year8Table[[#This Row],[Date]])&MONTH(Year8Table[[#This Row],[Date]]),PenaltyTable[Year]&PenaltyTable[Month],PenaltyTable[Daily])*$CO$10,"") ->  | CT33: 13888.85319 | CW33: 1901-09-28 | CX33: 0 | CY33: 977.2785771 | CZ33: =IFERROR(_xlfn.XLOOKUP(YEAR(Year9Table[[#This Row],[Date]])&MONTH(Year9Table[[#This Row],[Date]]),PenaltyTable[Year]&PenaltyTable[Month],PenaltyTable[Daily])*$CY$10,"") ->  | DD33: 983.7937676 | DG33: 1901-09-28 | DH33: 0 | DI33: 789.8710382 | DJ33: =IFERROR(_xlfn.XLOOKUP(YEAR(Year10Table[[#This Row],[Date]])&MONTH(Year10Table[[#This Row],[Date]]),PenaltyTable[Year]&PenaltyTable[Month],PenaltyTable[Daily])*$DI$10,"") ->  | DN33: 795.1368451
U34: =IFERROR(IF((ROW()-ROW(Year1Table[#Headers]))=1,IF(OR(Table1[[#This Row],[Tax Assessed]]="",Table1[[#This Row],[Tax Assessed]]=0),"",Table1[[#This Row],[Tax Due Dt]]),IF((ROW()-ROW(Year1Table[#Headers]))>1,IF(OFFSET(AB34,-1,)<1,"",EDATE(U33,1)))),"") -> 2019-02-15 | V34: 0 | W34: 10957.34093 | X34: =IFERROR(_xlfn.XLOOKUP(YEAR(Year1Table[[#This Row],[Date]])&MONTH(Year1Table[[#This Row],[Date]]),PenaltyTable[Year]&PenaltyTable[Month],PenaltyTable[Daily])*$W$10,"") -> 1.496986301 | AB34: 10958.83792 | AF34: =IF(ROW()-ROW(Year2Table[#Headers])=1,$AI$193,IF(AG32="","",IF(AND($B$7<>"",AE34>=$B$7),$C$7,IF(AND($B$6<>"",AE34>=$B$6),$C$6,IF(AE34>=$B$5,$C$5,IF(AE34<$B$5,0)))))) ->  | AH34: =IFERROR(_xlfn.XLOOKUP(YEAR(Year2Table[[#This Row],[Date]])&MONTH(Year2Table[[#This Row],[Date]]),PenaltyTable[Year]&PenaltyTable[Month],PenaltyTable[Daily])*$AG$10,"") ->  | AO34: 1901-10-28 | AP34: 0 | AQ34: 8101.831027 | AR34: =IFERROR(_xlfn.XLOOKUP(YEAR(Year3Table[[#This Row],[Date]])&MONTH(Year3Table[[#This Row],[Date]]),PenaltyTable[Year]&PenaltyTable[Month],PenaltyTable[Daily])*$AQ$10,"") ->  | AV34: 8155.843234 | AY34: 1901-10-28 | AZ34: 0 | BA34: 2893.511081 | BB34: =IFERROR(_xlfn.XLOOKUP(YEAR(Year4Table[[#This Row],[Date]])&MONTH(Year4Table[[#This Row],[Date]]),PenaltyTable[Year]&PenaltyTable[Month],PenaltyTable[Daily])*$BA$10,"") ->  | BF34: 2912.801155 | BI34: 1901-10-28 | BJ34: 0 | BK34: 5787.022162 | BL34: =IFERROR(_xlfn.XLOOKUP(YEAR(Year5Table[[#This Row],[Date]])&MONTH(Year5Table[[#This Row],[Date]]),PenaltyTable[Year]&PenaltyTable[Month],PenaltyTable[Daily])*$BK$10,"") ->  | BP34: 5825.60231 | BS34: 1901-10-28 | BT34: 0 | BU34: 3472.213297 | BV34: =IFERROR(_xlfn.XLOOKUP(YEAR(Year6Table[[#This Row],[Date]])&MONTH(Year6Table[[#This Row],[Date]]),PenaltyTable[Year]&PenaltyTable[Month],PenaltyTable[Daily])*$BU$10,"") ->  | BZ34: 3495.361386 | CC34: 1901-10-28 | CD34: 0 | CE34: 10416.63989 | CF34: =IFERROR(_xlfn.XLOOKUP(YEAR(Year7Table[[#This Row],[Date]])&MONTH(Year7Table[[#This Row],[Date]]),PenaltyTable[Year]&PenaltyTable[Month],PenaltyTable[Daily])*CE$10,"") ->  | CJ34: 10486.08416 | CM34: 1901-10-28 | CN34: 0 | CO34: 13888.85319 | CP34: =IFERROR(_xlfn.XLOOKUP(YEAR(Year8Table[[#This Row],[Date]])&MONTH(Year8Table[[#This Row],[Date]]),PenaltyTable[Year]&PenaltyTable[Month],PenaltyTable[Daily])*$CO$10,"") ->  | CT34: 13981.44554 | CW34: 1901-10-28 | CX34: 0 | CY34: 983.7937676 | CZ34: =IFERROR(_xlfn.XLOOKUP(YEAR(Year9Table[[#This Row],[Date]])&MONTH(Year9Table[[#This Row],[Date]]),PenaltyTable[Year]&PenaltyTable[Month],PenaltyTable[Daily])*$CY$10,"") ->  | DD34: 990.3523927 | DG34: 1901-10-28 | DH34: 0 | DI34: 795.1368451 | DJ34: =IFERROR(_xlfn.XLOOKUP(YEAR(Year10Table[[#This Row],[Date]])&MONTH(Year10Table[[#This Row],[Date]]),PenaltyTable[Year]&PenaltyTable[Month],PenaltyTable[Daily])*$DI$10,"") ->  | DN34: 800.4377574
U35: =IFERROR(IF((ROW()-ROW(Year1Table[#Headers]))=1,IF(OR(Table1[[#This Row],[Tax Assessed]]="",Table1[[#This Row],[Tax Assessed]]=0),"",Table1[[#This Row],[Tax Due Dt]]),IF((ROW()-ROW(Year1Table[#Headers]))>1,IF(OFFSET(AB35,-1,)<1,"",EDATE(U34,1)))),"") -> 2019-03-15 | V35: 0 | W35: 10958.83792 | X35: =IFERROR(_xlfn.XLOOKUP(YEAR(Year1Table[[#This Row],[Date]])&MONTH(Year1Table[[#This Row],[Date]]),PenaltyTable[Year]&PenaltyTable[Month],PenaltyTable[Daily])*$W$10,"") -> 1.496986301 | AB35: 10960.3349 | AF35: =IF(ROW()-ROW(Year2Table[#Headers])=1,$AI$193,IF(AG33="","",IF(AND($B$7<>"",AE35>=$B$7),$C$7,IF(AND($B$6<>"",AE35>=$B$6),$C$6,IF(AE35>=$B$5,$C$5,IF(AE35<$B$5,0)))))) ->  | AH35: =IFERROR(_xlfn.XLOOKUP(YEAR(Year2Table[[#This Row],[Date]])&MONTH(Year2Table[[#This Row],[Date]]),PenaltyTable[Year]&PenaltyTable[Month],PenaltyTable[Daily])*$AG$10,"") ->  | AO35: 1901-11-28 | AP35: 0 | AQ35: 8155.843234 | AR35: =IFERROR(_xlfn.XLOOKUP(YEAR(Year3Table[[#This Row],[Date]])&MONTH(Year3Table[[#This Row],[Date]]),PenaltyTable[Year]&PenaltyTable[Month],PenaltyTable[Daily])*$AQ$10,"") ->  | AV35: 8210.215522 | AY35: 1901-11-28 | AZ35: 0 | BA35: 2912.801155 | BB35: =IFERROR(_xlfn.XLOOKUP(YEAR(Year4Table[[#This Row],[Date]])&MONTH(Year4Table[[#This Row],[Date]]),PenaltyTable[Year]&PenaltyTable[Month],PenaltyTable[Daily])*$BA$10,"") ->  | BF35: 2932.219829 | BI35: 1901-11-28 | BJ35: 0 | BK35: 5825.60231 | BL35: =IFERROR(_xlfn.XLOOKUP(YEAR(Year5Table[[#This Row],[Date]])&MONTH(Year5Table[[#This Row],[Date]]),PenaltyTable[Year]&PenaltyTable[Month],PenaltyTable[Daily])*$BK$10,"") ->  | BP35: 5864.439659 | BS35: 1901-11-28 | BT35: 0 | BU35: 3495.361386 | BV35: =IFERROR(_xlfn.XLOOKUP(YEAR(Year6Table[[#This Row],[Date]])&MONTH(Year6Table[[#This Row],[Date]]),PenaltyTable[Year]&PenaltyTable[Month],PenaltyTable[Daily])*$BU$10,"") ->  | BZ35: 3518.663795 | CC35: 1901-11-28 | CD35: 0 | CE35: 10486.08416 | CF35: =IFERROR(_xlfn.XLOOKUP(YEAR(Year7Table[[#This Row],[Date]])&MONTH(Year7Table[[#This Row],[Date]]),PenaltyTable[Year]&PenaltyTable[Month],PenaltyTable[Daily])*CE$10,"") ->  | CJ35: 10555.99139 | CM35: 1901-11-28 | CN35: 0 | CO35: 13981.44554 | CP35: =IFERROR(_xlfn.XLOOKUP(YEAR(Year8Table[[#This Row],[Date]])&MONTH(Year8Table[[#This Row],[Date]]),PenaltyTable[Year]&PenaltyTable[Month],PenaltyTable[Daily])*$CO$10,"") ->  | CT35: 14074.65518 | CW35: 1901-11-28 | CX35: 0 | CY35: 990.3523927 | CZ35: =IFERROR(_xlfn.XLOOKUP(YEAR(Year9Table[[#This Row],[Date]])&MONTH(Year9Table[[#This Row],[Date]]),PenaltyTable[Year]&PenaltyTable[Month],PenaltyTable[Daily])*$CY$10,"") ->  | DD35: 996.954742 | DG35: 1901-11-28 | DH35: 0 | DI35: 800.4377574 | DJ35: =IFERROR(_xlfn.XLOOKUP(YEAR(Year10Table[[#This Row],[Date]])&MONTH(Year10Table[[#This Row],[Date]]),PenaltyTable[Year]&PenaltyTable[Month],PenaltyTable[Daily])*$DI$10,"") ->  | DN35: 805.7740091
U36: =IFERROR(IF((ROW()-ROW(Year1Table[#Headers]))=1,IF(OR(Table1[[#This Row],[Tax Assessed]]="",Table1[[#This Row],[Tax Assessed]]=0),"",Table1[[#This Row],[Tax Due Dt]]),IF((ROW()-ROW(Year1Table[#Headers]))>1,IF(OFFSET(AB36,-1,)<1,"",EDATE(U35,1)))),"") -> 2019-04-15 | V36: 0 | W36: 10960.3349 | X36: =IFERROR(_xlfn.XLOOKUP(YEAR(Year1Table[[#This Row],[Date]])&MONTH(Year1Table[[#This Row],[Date]]),PenaltyTable[Year]&PenaltyTable[Month],PenaltyTable[Daily])*$W$10,"") -> 1.496986301 | AB36: 10961.83189 | AF36: =IF(ROW()-ROW(Year2Table[#Headers])=1,$AI$193,IF(AG34="","",IF(AND($B$7<>"",AE36>=$B$7),$C$7,IF(AND($B$6<>"",AE36>=$B$6),$C$6,IF(AE36>=$B$5,$C$5,IF(AE36<$B$5,0)))))) ->  | AH36: =IFERROR(_xlfn.XLOOKUP(YEAR(Year2Table[[#This Row],[Date]])&MONTH(Year2Table[[#This Row],[Date]]),PenaltyTable[Year]&PenaltyTable[Month],PenaltyTable[Daily])*$AG$10,"") ->  | AO36: 1901-12-28 | AP36: 0 | AQ36: 8210.215522 | AR36: =IFERROR(_xlfn.XLOOKUP(YEAR(Year3Table[[#This Row],[Date]])&MONTH(Year3Table[[#This Row],[Date]]),PenaltyTable[Year]&PenaltyTable[Month],PenaltyTable[Daily])*$AQ$10,"") ->  | AV36: 8264.950292 | AY36: 1901-12-28 | AZ36: 0 | BA36: 2932.219829 | BB36: =IFERROR(_xlfn.XLOOKUP(YEAR(Year4Table[[#This Row],[Date]])&MONTH(Year4Table[[#This Row],[Date]]),PenaltyTable[Year]&PenaltyTable[Month],PenaltyTable[Daily])*$BA$10,"") ->  | BF36: 2951.767962 | BI36: 1901-12-28 | BJ36: 0 | BK36: 5864.439659 | BL36: =IFERROR(_xlfn.XLOOKUP(YEAR(Year5Table[[#This Row],[Date]])&MONTH(Year5Table[[#This Row],[Date]]),PenaltyTable[Year]&PenaltyTable[Month],PenaltyTable[Daily])*$BK$10,"") ->  | BP36: 5903.535923 | BS36: 1901-12-28 | BT36: 0 | BU36: 3518.663795 | BV36: =IFERROR(_xlfn.XLOOKUP(YEAR(Year6Table[[#This Row],[Date]])&MONTH(Year6Table[[#This Row],[Date]]),PenaltyTable[Year]&PenaltyTable[Month],PenaltyTable[Daily])*$BU$10,"") ->  | BZ36: 3542.121554 | CC36: 1901-12-28 | CD36: 0 | CE36: 10555.99139 | CF36: =IFERROR(_xlfn.XLOOKUP(YEAR(Year7Table[[#This Row],[Date]])&MONTH(Year7Table[[#This Row],[Date]]),PenaltyTable[Year]&PenaltyTable[Month],PenaltyTable[Daily])*CE$10,"") ->  | CJ36: 10626.36466 | CM36: 1901-12-28 | CN36: 0 | CO36: 14074.65518 | CP36: =IFERROR(_xlfn.XLOOKUP(YEAR(Year8Table[[#This Row],[Date]])&MONTH(Year8Table[[#This Row],[Date]]),PenaltyTable[Year]&PenaltyTable[Month],PenaltyTable[Daily])*$CO$10,"") ->  | CT36: 14168.48622 | CW36: 1901-12-28 | CX36: 0 | CY36: 996.954742 | CZ36: =IFERROR(_xlfn.XLOOKUP(YEAR(Year9Table[[#This Row],[Date]])&MONTH(Year9Table[[#This Row],[Date]]),PenaltyTable[Year]&PenaltyTable[Month],PenaltyTable[Daily])*$CY$10,"") ->  | DD36: 1003.601107 | DG36: 1901-12-28 | DH36: 0 | DI36: 805.7740091 | DJ36: =IFERROR(_xlfn.XLOOKUP(YEAR(Year10Table[[#This Row],[Date]])&MONTH(Year10Table[[#This Row],[Date]]),PenaltyTable[Year]&PenaltyTable[Month],PenaltyTable[Daily])*$DI$10,"") ->  | DN36: 811.1458358
U37: =IFERROR(IF((ROW()-ROW(Year1Table[#Headers]))=1,IF(OR(Table1[[#This Row],[Tax Assessed]]="",Table1[[#This Row],[Tax Assessed]]=0),"",Table1[[#This Row],[Tax Due Dt]]),IF((ROW()-ROW(Year1Table[#Headers]))>1,IF(OFFSET(AB37,-1,)<1,"",EDATE(U36,1)))),"") -> 2019-05-15 | V37: 0 | W37: 10961.83189 | X37: =IFERROR(_xlfn.XLOOKUP(YEAR(Year1Table[[#This Row],[Date]])&MONTH(Year1Table[[#This Row],[Date]]),PenaltyTable[Year]&PenaltyTable[Month],PenaltyTable[Daily])*$W$10,"") -> 1.496986301 | AB37: 10963.32888 | AF37: =IF(ROW()-ROW(Year2Table[#Headers])=1,$AI$193,IF(AG35="","",IF(AND($B$7<>"",AE37>=$B$7),$C$7,IF(AND($B$6<>"",AE37>=$B$6),$C$6,IF(AE37>=$B$5,$C$5,IF(AE37<$B$5,0)))))) ->  | AH37: =IFERROR(_xlfn.XLOOKUP(YEAR(Year2Table[[#This Row],[Date]])&MONTH(Year2Table[[#This Row],[Date]]),PenaltyTable[Year]&PenaltyTable[Month],PenaltyTable[Daily])*$AG$10,"") ->  | AO37: 1902-01-28 | AP37: 0 | AQ37: 8264.950292 | AR37: =IFERROR(_xlfn.XLOOKUP(YEAR(Year3Table[[#This Row],[Date]])&MONTH(Year3Table[[#This Row],[Date]]),PenaltyTable[Year]&PenaltyTable[Month],PenaltyTable[Daily])*$AQ$10,"") ->  | AV37: 8320.049961 | AY37: 1902-01-28 | AZ37: 0 | BA37: 2951.767962 | BB37: =IFERROR(_xlfn.XLOOKUP(YEAR(Year4Table[[#This Row],[Date]])&MONTH(Year4Table[[#This Row],[Date]]),PenaltyTable[Year]&PenaltyTable[Month],PenaltyTable[Daily])*$BA$10,"") ->  | BF37: 2971.446415 | BI37: 1902-01-28 | BJ37: 0 | BK37: 5903.535923 | BL37: =IFERROR(_xlfn.XLOOKUP(YEAR(Year5Table[[#This Row],[Date]])&MONTH(Year5Table[[#This Row],[Date]]),PenaltyTable[Year]&PenaltyTable[Month],PenaltyTable[Daily])*$BK$10,"") ->  | BP37: 5942.892829 | BS37: 1902-01-28 | BT37: 0 | BU37: 3542.121554 | BV37: =IFERROR(_xlfn.XLOOKUP(YEAR(Year6Table[[#This Row],[Date]])&MONTH(Year6Table[[#This Row],[Date]]),PenaltyTable[Year]&PenaltyTable[Month],PenaltyTable[Daily])*$BU$10,"") ->  | BZ37: 3565.735698 | CC37: 1902-01-28 | CD37: 0 | CE37: 10626.36466 | CF37: =IFERROR(_xlfn.XLOOKUP(YEAR(Year7Table[[#This Row],[Date]])&MONTH(Year7Table[[#This Row],[Date]]),PenaltyTable[Year]&PenaltyTable[Month],PenaltyTable[Daily])*CE$10,"") ->  | CJ37: 10697.20709 | CM37: 1902-01-28 | CN37: 0 | CO37: 14168.48622 | CP37: =IFERROR(_xlfn.XLOOKUP(YEAR(Year8Table[[#This Row],[Date]])&MONTH(Year8Table[[#This Row],[Date]]),PenaltyTable[Year]&PenaltyTable[Month],PenaltyTable[Daily])*$CO$10,"") ->  | CT37: 14262.94279 | CW37: 1902-01-28 | CX37: 0 | CY37: 1003.601107 | CZ37: =IFERROR(_xlfn.XLOOKUP(YEAR(Year9Table[[#This Row],[Date]])&MONTH(Year9Table[[#This Row],[Date]]),PenaltyTable[Year]&PenaltyTable[Month],PenaltyTable[Daily])*$CY$10,"") ->  | DD37: 1010.291781 | DG37: 1902-01-28 | DH37: 0 | DI37: 811.1458358 | DJ37: =IFERROR(_xlfn.XLOOKUP(YEAR(Year10Table[[#This Row],[Date]])&MONTH(Year10Table[[#This Row],[Date]]),PenaltyTable[Year]&PenaltyTable[Month],PenaltyTable[Daily])*$DI$10,"") ->  | DN37: 816.5534747
U38: =IFERROR(IF((ROW()-ROW(Year1Table[#Headers]))=1,IF(OR(Table1[[#This Row],[Tax Assessed]]="",Table1[[#This Row],[Tax Assessed]]=0),"",Table1[[#This Row],[Tax Due Dt]]),IF((ROW()-ROW(Year1Table[#Headers]))>1,IF(OFFSET(AB38,-1,)<1,"",EDATE(U37,1)))),"") -> 2019-06-15 | V38: 0 | W38: 10963.32888 | X38: =IFERROR(_xlfn.XLOOKUP(YEAR(Year1Table[[#This Row],[Date]])&MONTH(Year1Table[[#This Row],[Date]]),PenaltyTable[Year]&PenaltyTable[Month],PenaltyTable[Daily])*$W$10,"") -> 1.496986301 | AB38: 10964.82586 | AF38: =IF(ROW()-ROW(Year2Table[#Headers])=1,$AI$193,IF(AG36="","",IF(AND($B$7<>"",AE38>=$B$7),$C$7,IF(AND($B$6<>"",AE38>=$B$6),$C$6,IF(AE38>=$B$5,$C$5,IF(AE38<$B$5,0)))))) ->  | AH38: =IFERROR(_xlfn.XLOOKUP(YEAR(Year2Table[[#This Row],[Date]])&MONTH(Year2Table[[#This Row],[Date]]),PenaltyTable[Year]&PenaltyTable[Month],PenaltyTable[Daily])*$AG$10,"") ->  | AO38: 1902-02-28 | AP38: 0 | AQ38: 8320.049961 | AR38: =IFERROR(_xlfn.XLOOKUP(YEAR(Year3Table[[#This Row],[Date]])&MONTH(Year3Table[[#This Row],[Date]]),PenaltyTable[Year]&PenaltyTable[Month],PenaltyTable[Daily])*$AQ$10,"") ->  | AV38: 8375.516961 | AY38: 1902-02-28 | AZ38: 0 | BA38: 2971.446415 | BB38: =IFERROR(_xlfn.XLOOKUP(YEAR(Year4Table[[#This Row],[Date]])&MONTH(Year4Table[[#This Row],[Date]]),PenaltyTable[Year]&PenaltyTable[Month],PenaltyTable[Daily])*$BA$10,"") ->  | BF38: 2991.256057 | BI38: 1902-02-28 | BJ38: 0 | BK38: 5942.892829 | BL38: =IFERROR(_xlfn.XLOOKUP(YEAR(Year5Table[[#This Row],[Date]])&MONTH(Year5Table[[#This Row],[Date]]),PenaltyTable[Year]&PenaltyTable[Month],PenaltyTable[Daily])*$BK$10,"") ->  | BP38: 5982.512115 | BS38: 1902-02-28 | BT38: 0 | BU38: 3565.735698 | BV38: =IFERROR(_xlfn.XLOOKUP(YEAR(Year6Table[[#This Row],[Date]])&MONTH(Year6Table[[#This Row],[Date]]),PenaltyTable[Year]&PenaltyTable[Month],PenaltyTable[Daily])*$BU$10,"") ->  | BZ38: 3589.507269 | CC38: 1902-02-28 | CD38: 0 | CE38: 10697.20709 | CF38: =IFERROR(_xlfn.XLOOKUP(YEAR(Year7Table[[#This Row],[Date]])&MONTH(Year7Table[[#This Row],[Date]]),PenaltyTable[Year]&PenaltyTable[Month],PenaltyTable[Daily])*CE$10,"") ->  | CJ38: 10768.52181 | CM38: 1902-02-28 | CN38: 0 | CO38: 14262.94279 | CP38: =IFERROR(_xlfn.XLOOKUP(YEAR(Year8Table[[#This Row],[Date]])&MONTH(Year8Table[[#This Row],[Date]]),PenaltyTable[Year]&PenaltyTable[Month],PenaltyTable[Daily])*$CO$10,"") ->  | CT38: 14358.02908 | CW38: 1902-02-28 | CX38: 0 | CY38: 1010.291781 | CZ38: =IFERROR(_xlfn.XLOOKUP(YEAR(Year9Table[[#This Row],[Date]])&MONTH(Year9Table[[#This Row],[Date]]),PenaltyTable[Year]&PenaltyTable[Month],PenaltyTable[Daily])*$CY$10,"") ->  | DD38: 1017.02706 | DG38: 1902-02-28 | DH38: 0 | DI38: 816.5534747 | DJ38: =IFERROR(_xlfn.XLOOKUP(YEAR(Year10Table[[#This Row],[Date]])&MONTH(Year10Table[[#This Row],[Date]]),PenaltyTable[Year]&PenaltyTable[Month],PenaltyTable[Daily])*$DI$10,"") ->  | DN38: 821.9971646
U39: =IFERROR(IF((ROW()-ROW(Year1Table[#Headers]))=1,IF(OR(Table1[[#This Row],[Tax Assessed]]="",Table1[[#This Row],[Tax Assessed]]=0),"",Table1[[#This Row],[Tax Due Dt]]),IF((ROW()-ROW(Year1Table[#Headers]))>1,IF(OFFSET(AB39,-1,)<1,"",EDATE(U38,1)))),"") -> 2019-07-15 | V39: 0 | W39: 10964.82586 | X39: =IFERROR(_xlfn.XLOOKUP(YEAR(Year1Table[[#This Row],[Date]])&MONTH(Year1Table[[#This Row],[Date]]),PenaltyTable[Year]&PenaltyTable[Month],PenaltyTable[Daily])*$W$10,"") -> 1.796383562 | AB39: 10966.62225 | AF39: =IF(ROW()-ROW(Year2Table[#Headers])=1,$AI$193,IF(AG37="","",IF(AND($B$7<>"",AE39>=$B$7),$C$7,IF(AND($B$6<>"",AE39>=$B$6),$C$6,IF(AE39>=$B$5,$C$5,IF(AE39<$B$5,0)))))) ->  | AH39: =IFERROR(_xlfn.XLOOKUP(YEAR(Year2Table[[#This Row],[Date]])&MONTH(Year2Table[[#This Row],[Date]]),PenaltyTable[Year]&PenaltyTable[Month],PenaltyTable[Daily])*$AG$10,"") ->  | AO39: 1902-03-28 | AP39: 0 | AQ39: 8375.516961 | AR39: =IFERROR(_xlfn.XLOOKUP(YEAR(Year3Table[[#This Row],[Date]])&MONTH(Year3Table[[#This Row],[Date]]),PenaltyTable[Year]&PenaltyTable[Month],PenaltyTable[Daily])*$AQ$10,"") ->  | AV39: 8431.35374 | AY39: 1902-03-28 | AZ39: 0 | BA39: 2991.256057 | BB39: =IFERROR(_xlfn.XLOOKUP(YEAR(Year4Table[[#This Row],[Date]])&MONTH(Year4Table[[#This Row],[Date]]),PenaltyTable[Year]&PenaltyTable[Month],PenaltyTable[Daily])*$BA$10,"") ->  | BF39: 3011.197764 | BI39: 1902-03-28 | BJ39: 0 | BK39: 5982.512115 | BL39: =IFERROR(_xlfn.XLOOKUP(YEAR(Year5Table[[#This Row],[Date]])&MONTH(Year5Table[[#This Row],[Date]]),PenaltyTable[Year]&PenaltyTable[Month],PenaltyTable[Daily])*$BK$10,"") ->  | BP39: 6022.395529 | BS39: 1902-03-28 | BT39: 0 | BU39: 3589.507269 | BV39: =IFERROR(_xlfn.XLOOKUP(YEAR(Year6Table[[#This Row],[Date]])&MONTH(Year6Table[[#This Row],[Date]]),PenaltyTable[Year]&PenaltyTable[Month],PenaltyTable[Daily])*$BU$10,"") ->  | BZ39: 3613.437317 | CC39: 1902-03-28 | CD39: 0 | CE39: 10768.52181 | CF39: =IFERROR(_xlfn.XLOOKUP(YEAR(Year7Table[[#This Row],[Date]])&MONTH(Year7Table[[#This Row],[Date]]),PenaltyTable[Year]&PenaltyTable[Month],PenaltyTable[Daily])*CE$10,"") ->  | CJ39: 10840.31195 | CM39: 1902-03-28 | CN39: 0 | CO39: 14358.02908 | CP39: =IFERROR(_xlfn.XLOOKUP(YEAR(Year8Table[[#This Row],[Date]])&MONTH(Year8Table[[#This Row],[Date]]),PenaltyTable[Year]&PenaltyTable[Month],PenaltyTable[Daily])*$CO$10,"") ->  | CT39: 14453.74927 | CW39: 1902-03-28 | CX39: 0 | CY39: 1017.02706 | CZ39: =IFERROR(_xlfn.XLOOKUP(YEAR(Year9Table[[#This Row],[Date]])&MONTH(Year9Table[[#This Row],[Date]]),PenaltyTable[Year]&PenaltyTable[Month],PenaltyTable[Daily])*$CY$10,"") ->  | DD39: 1023.80724 | DG39: 1902-03-28 | DH39: 0 | DI39: 821.9971646 | DJ39: =IFERROR(_xlfn.XLOOKUP(YEAR(Year10Table[[#This Row],[Date]])&MONTH(Year10Table[[#This Row],[Date]]),PenaltyTable[Year]&PenaltyTable[Month],PenaltyTable[Daily])*$DI$10,"") ->  | DN39: 827.4771457
U40: =IFERROR(IF((ROW()-ROW(Year1Table[#Headers]))=1,IF(OR(Table1[[#This Row],[Tax Assessed]]="",Table1[[#This Row],[Tax Assessed]]=0),"",Table1[[#This Row],[Tax Due Dt]]),IF((ROW()-ROW(Year1Table[#Headers]))>1,IF(OFFSET(AB40,-1,)<1,"",EDATE(U39,1)))),"") -> 2019-08-15 | V40: 0 | W40: 10966.62225 | X40: =IFERROR(_xlfn.XLOOKUP(YEAR(Year1Table[[#This Row],[Date]])&MONTH(Year1Table[[#This Row],[Date]]),PenaltyTable[Year]&PenaltyTable[Month],PenaltyTable[Daily])*$W$10,"") -> 1.796383562 | AB40: 10968.41863 | AF40: =IF(ROW()-ROW(Year2Table[#Headers])=1,$AI$193,IF(AG38="","",IF(AND($B$7<>"",AE40>=$B$7),$C$7,IF(AND($B$6<>"",AE40>=$B$6),$C$6,IF(AE40>=$B$5,$C$5,IF(AE40<$B$5,0)))))) ->  | AH40: =IFERROR(_xlfn.XLOOKUP(YEAR(Year2Table[[#This Row],[Date]])&MONTH(Year2Table[[#This Row],[Date]]),PenaltyTable[Year]&PenaltyTable[Month],PenaltyTable[Daily])*$AG$10,"") ->  | AO40: 1902-04-28 | AP40: 0 | AQ40: 8431.35374 | AR40: =IFERROR(_xlfn.XLOOKUP(YEAR(Year3Table[[#This Row],[Date]])&MONTH(Year3Table[[#This Row],[Date]]),PenaltyTable[Year]&PenaltyTable[Month],PenaltyTable[Daily])*$AQ$10,"") ->  | AV40: 8487.562765 | AY40: 1902-04-28 | AZ40: 0 | BA40: 3011.197764 | BB40: =IFERROR(_xlfn.XLOOKUP(YEAR(Year4Table[[#This Row],[Date]])&MONTH(Year4Table[[#This Row],[Date]]),PenaltyTable[Year]&PenaltyTable[Month],PenaltyTable[Daily])*$BA$10,"") ->  | BF40: 3031.272416 | BI40: 1902-04-28 | BJ40: 0 | BK40: 6022.395529 | BL40: =IFERROR(_xlfn.XLOOKUP(YEAR(Year5Table[[#This Row],[Date]])&MONTH(Year5Table[[#This Row],[Date]]),PenaltyTable[Year]&PenaltyTable[Month],PenaltyTable[Daily])*$BK$10,"") ->  | BP40: 6062.544832 | BS40: 1902-04-28 | BT40: 0 | BU40: 3613.437317 | BV40: =IFERROR(_xlfn.XLOOKUP(YEAR(Year6Table[[#This Row],[Date]])&MONTH(Year6Table[[#This Row],[Date]]),PenaltyTable[Year]&PenaltyTable[Month],PenaltyTable[Daily])*$BU$10,"") ->  | BZ40: 3637.526899 | CC40: 1902-04-28 | CD40: 0 | CE40: 10840.31195 | CF40: =IFERROR(_xlfn.XLOOKUP(YEAR(Year7Table[[#This Row],[Date]])&MONTH(Year7Table[[#This Row],[Date]]),PenaltyTable[Year]&PenaltyTable[Month],PenaltyTable[Daily])*CE$10,"") ->  | CJ40: 10912.5807 | CM40: 1902-04-28 | CN40: 0 | CO40: 14453.74927 | CP40: =IFERROR(_xlfn.XLOOKUP(YEAR(Year8Table[[#This Row],[Date]])&MONTH(Year8Table[[#This Row],[Date]]),PenaltyTable[Year]&PenaltyTable[Month],PenaltyTable[Daily])*$CO$10,"") ->  | CT40: 14550.1076 | CW40: 1902-04-28 | CX40: 0 | CY40: 1023.80724 | CZ40: =IFERROR(_xlfn.XLOOKUP(YEAR(Year9Table[[#This Row],[Date]])&MONTH(Year9Table[[#This Row],[Date]]),PenaltyTable[Year]&PenaltyTable[Month],PenaltyTable[Daily])*$CY$10,"") ->  | DD40: 1030.632622 | DG40: 1902-04-28 | DH40: 0 | DI40: 827.4771457 | DJ40: =IFERROR(_xlfn.XLOOKUP(YEAR(Year10Table[[#This Row],[Date]])&MONTH(Year10Table[[#This Row],[Date]]),PenaltyTable[Year]&PenaltyTable[Month],PenaltyTable[Daily])*$DI$10,"") ->  | DN40: 832.99366
U41: =IFERROR(IF((ROW()-ROW(Year1Table[#Headers]))=1,IF(OR(Table1[[#This Row],[Tax Assessed]]="",Table1[[#This Row],[Tax Assessed]]=0),"",Table1[[#This Row],[Tax Due Dt]]),IF((ROW()-ROW(Year1Table[#Headers]))>1,IF(OFFSET(AB41,-1,)<1,"",EDATE(U40,1)))),"") -> 2019-09-15 | V41: 0 | W41: 10968.41863 | X41: =IFERROR(_xlfn.XLOOKUP(YEAR(Year1Table[[#This Row],[Date]])&MONTH(Year1Table[[#This Row],[Date]]),PenaltyTable[Year]&PenaltyTable[Month],PenaltyTable[Daily])*$W$10,"") -> 1.796383562 | AB41: 10970.21501 | AF41: =IF(ROW()-ROW(Year2Table[#Headers])=1,$AI$193,IF(AG39="","",IF(AND($B$7<>"",AE41>=$B$7),$C$7,IF(AND($B$6<>"",AE41>=$B$6),$C$6,IF(AE41>=$B$5,$C$5,IF(AE41<$B$5,0)))))) ->  | AH41: =IFERROR(_xlfn.XLOOKUP(YEAR(Year2Table[[#This Row],[Date]])&MONTH(Year2Table[[#This Row],[Date]]),PenaltyTable[Year]&PenaltyTable[Month],PenaltyTable[Daily])*$AG$10,"") ->  | AO41: 1902-05-28 | AP41: 0 | AQ41: 8487.562765 | AR41: =IFERROR(_xlfn.XLOOKUP(YEAR(Year3Table[[#This Row],[Date]])&MONTH(Year3Table[[#This Row],[Date]]),PenaltyTable[Year]&PenaltyTable[Month],PenaltyTable[Daily])*$AQ$10,"") ->  | AV41: 8544.146517 | AY41: 1902-05-28 | AZ41: 0 | BA41: 3031.272416 | BB41: =IFERROR(_xlfn.XLOOKUP(YEAR(Year4Table[[#This Row],[Date]])&MONTH(Year4Table[[#This Row],[Date]]),PenaltyTable[Year]&PenaltyTable[Month],PenaltyTable[Daily])*$BA$10,"") ->  | BF41: 3051.480899 | BI41: 1902-05-28 | BJ41: 0 | BK41: 6062.544832 | BL41: =IFERROR(_xlfn.XLOOKUP(YEAR(Year5Table[[#This Row],[Date]])&MONTH(Year5Table[[#This Row],[Date]]),PenaltyTable[Year]&PenaltyTable[Month],PenaltyTable[Daily])*$BK$10,"") ->  | BP41: 6102.961798 | BS41: 1902-05-28 | BT41: 0 | BU41: 3637.526899 | BV41: =IFERROR(_xlfn.XLOOKUP(YEAR(Year6Table[[#This Row],[Date]])&MONTH(Year6Table[[#This Row],[Date]]),PenaltyTable[Year]&PenaltyTable[Month],PenaltyTable[Daily])*$BU$10,"") ->  | BZ41: 3661.777079 | CC41: 1902-05-28 | CD41: 0 | CE41: 10912.5807 | CF41: =IFERROR(_xlfn.XLOOKUP(YEAR(Year7Table[[#This Row],[Date]])&MONTH(Year7Table[[#This Row],[Date]]),PenaltyTable[Year]&PenaltyTable[Month],PenaltyTable[Daily])*CE$10,"") ->  | CJ41: 10985.33124 | CM41: 1902-05-28 | CN41: 0 | CO41: 14550.1076 | CP41: =IFERROR(_xlfn.XLOOKUP(YEAR(Year8Table[[#This Row],[Date]])&MONTH(Year8Table[[#This Row],[Date]]),PenaltyTable[Year]&PenaltyTable[Month],PenaltyTable[Daily])*$CO$10,"") ->  | CT41: 14647.10832 | CW41: 1902-05-28 | CX41: 0 | CY41: 1030.632622 | CZ41: =IFERROR(_xlfn.XLOOKUP(YEAR(Year9Table[[#This Row],[Date]])&MONTH(Year9Table[[#This Row],[Date]]),PenaltyTable[Year]&PenaltyTable[Month],PenaltyTable[Daily])*$CY$10,"") ->  | DD41: 1037.503506 | DG41: 1902-05-28 | DH41: 0 | DI41: 832.99366 | DJ41: =IFERROR(_xlfn.XLOOKUP(YEAR(Year10Table[[#This Row],[Date]])&MONTH(Year10Table[[#This Row],[Date]]),PenaltyTable[Year]&PenaltyTable[Month],PenaltyTable[Daily])*$DI$10,"") ->  | DN41: 838.546951
U42: =IFERROR(IF((ROW()-ROW(Year1Table[#Headers]))=1,IF(OR(Table1[[#This Row],[Tax Assessed]]="",Table1[[#This Row],[Tax Assessed]]=0),"",Table1[[#This Row],[Tax Due Dt]]),IF((ROW()-ROW(Year1Table[#Headers]))>1,IF(OFFSET(AB42,-1,)<1,"",EDATE(U41,1)))),"") -> 2019-10-15 | V42: 0 | W42: 10970.21501 | X42: =IFERROR(_xlfn.XLOOKUP(YEAR(Year1Table[[#This Row],[Date]])&MONTH(Year1Table[[#This Row],[Date]]),PenaltyTable[Year]&PenaltyTable[Month],PenaltyTable[Daily])*$W$10,"") -> 1.796383562 | AB42: 10972.0114 | AF42: =IF(ROW()-ROW(Year2Table[#Headers])=1,$AI$193,IF(AG40="","",IF(AND($B$7<>"",AE42>=$B$7),$C$7,IF(AND($B$6<>"",AE42>=$B$6),$C$6,IF(AE42>=$B$5,$C$5,IF(AE42<$B$5,0)))))) ->  | AH42: =IFERROR(_xlfn.XLOOKUP(YEAR(Year2Table[[#This Row],[Date]])&MONTH(Year2Table[[#This Row],[Date]]),PenaltyTable[Year]&PenaltyTable[Month],PenaltyTable[Daily])*$AG$10,"") ->  | AO42: 1902-06-28 | AP42: 0 | AQ42: 8544.146517 | AR42: =IFERROR(_xlfn.XLOOKUP(YEAR(Year3Table[[#This Row],[Date]])&MONTH(Year3Table[[#This Row],[Date]]),PenaltyTable[Year]&PenaltyTable[Month],PenaltyTable[Daily])*$AQ$10,"") ->  | AV42: 8601.107494 | AY42: 1902-06-28 | AZ42: 0 | BA42: 3051.480899 | BB42: =IFERROR(_xlfn.XLOOKUP(YEAR(Year4Table[[#This Row],[Date]])&MONTH(Year4Table[[#This Row],[Date]]),PenaltyTable[Year]&PenaltyTable[Month],PenaltyTable[Daily])*$BA$10,"") ->  | BF42: 3071.824105 | BI42: 1902-06-28 | BJ42: 0 | BK42: 6102.961798 | BL42: =IFERROR(_xlfn.XLOOKUP(YEAR(Year5Table[[#This Row],[Date]])&MONTH(Year5Table[[#This Row],[Date]]),PenaltyTable[Year]&PenaltyTable[Month],PenaltyTable[Daily])*$BK$10,"") ->  | BP42: 6143.64821 | BS42: 1902-06-28 | BT42: 0 | BU42: 3661.777079 | BV42: =IFERROR(_xlfn.XLOOKUP(YEAR(Year6Table[[#This Row],[Date]])&MONTH(Year6Table[[#This Row],[Date]]),PenaltyTable[Year]&PenaltyTable[Month],PenaltyTable[Daily])*$BU$10,"") ->  | BZ42: 3686.188926 | CC42: 1902-06-28 | CD42: 0 | CE42: 10985.33124 | CF42: =IFERROR(_xlfn.XLOOKUP(YEAR(Year7Table[[#This Row],[Date]])&MONTH(Year7Table[[#This Row],[Date]]),PenaltyTable[Year]&PenaltyTable[Month],PenaltyTable[Daily])*CE$10,"") ->  | CJ42: 11058.56678 | CM42: 1902-06-28 | CN42: 0 | CO42: 14647.10832 | CP42: =IFERROR(_xlfn.XLOOKUP(YEAR(Year8Table[[#This Row],[Date]])&MONTH(Year8Table[[#This Row],[Date]]),PenaltyTable[Year]&PenaltyTable[Month],PenaltyTable[Daily])*$CO$10,"") ->  | CT42: 14744.7557 | CW42: 1902-06-28 | CX42: 0 | CY42: 1037.503506 | CZ42: =IFERROR(_xlfn.XLOOKUP(YEAR(Year9Table[[#This Row],[Date]])&MONTH(Year9Table[[#This Row],[Date]]),PenaltyTable[Year]&PenaltyTable[Month],PenaltyTable[Daily])*$CY$10,"") ->  | DD42: 1044.420196 | DG42: 1902-06-28 | DH42: 0 | DI42: 838.546951 | DJ42: =IFERROR(_xlfn.XLOOKUP(YEAR(Year10Table[[#This Row],[Date]])&MONTH(Year10Table[[#This Row],[Date]]),PenaltyTable[Year]&PenaltyTable[Month],PenaltyTable[Daily])*$DI$10,"") ->  | DN42: 844.137264
U43: =IFERROR(IF((ROW()-ROW(Year1Table[#Headers]))=1,IF(OR(Table1[[#This Row],[Tax Assessed]]="",Table1[[#This Row],[Tax Assessed]]=0),"",Table1[[#This Row],[Tax Due Dt]]),IF((ROW()-ROW(Year1Table[#Headers]))>1,IF(OFFSET(AB43,-1,)<1,"",EDATE(U42,1)))),"") -> 2019-11-15 | V43: 0 | W43: 10972.0114 | X43: =IFERROR(_xlfn.XLOOKUP(YEAR(Year1Table[[#This Row],[Date]])&MONTH(Year1Table[[#This Row],[Date]]),PenaltyTable[Year]&PenaltyTable[Month],PenaltyTable[Daily])*$W$10,"") -> 1.796383562 | AB43: 10973.80778 | AF43: =IF(ROW()-ROW(Year2Table[#Headers])=1,$AI$193,IF(AG41="","",IF(AND($B$7<>"",AE43>=$B$7),$C$7,IF(AND($B$6<>"",AE43>=$B$6),$C$6,IF(AE43>=$B$5,$C$5,IF(AE43<$B$5,0)))))) ->  | AH43: =IFERROR(_xlfn.XLOOKUP(YEAR(Year2Table[[#This Row],[Date]])&MONTH(Year2Table[[#This Row],[Date]]),PenaltyTable[Year]&PenaltyTable[Month],PenaltyTable[Daily])*$AG$10,"") ->  | AO43: 1902-07-28 | AP43: 0 | AQ43: 8601.107494 | AR43: =IFERROR(_xlfn.XLOOKUP(YEAR(Year3Table[[#This Row],[Date]])&MONTH(Year3Table[[#This Row],[Date]]),PenaltyTable[Year]&PenaltyTable[Month],PenaltyTable[Daily])*$AQ$10,"") ->  | AV43: 8658.448211 | AY43: 1902-07-28 | AZ43: 0 | BA43: 3071.824105 | BB43: =IFERROR(_xlfn.XLOOKUP(YEAR(Year4Table[[#This Row],[Date]])&MONTH(Year4Table[[#This Row],[Date]]),PenaltyTable[Year]&PenaltyTable[Month],PenaltyTable[Daily])*$BA$10,"") ->  | BF43: 3092.302932 | BI43: 1902-07-28 | BJ43: 0 | BK43: 6143.64821 | BL43: =IFERROR(_xlfn.XLOOKUP(YEAR(Year5Table[[#This Row],[Date]])&MONTH(Year5Table[[#This Row],[Date]]),PenaltyTable[Year]&PenaltyTable[Month],PenaltyTable[Daily])*$BK$10,"") ->  | BP43: 6184.605865 | BS43: 1902-07-28 | BT43: 0 | BU43: 3686.188926 | BV43: =IFERROR(_xlfn.XLOOKUP(YEAR(Year6Table[[#This Row],[Date]])&MONTH(Year6Table[[#This Row],[Date]]),PenaltyTable[Year]&PenaltyTable[Month],PenaltyTable[Daily])*$BU$10,"") ->  | BZ43: 3710.763519 | CC43: 1902-07-28 | CD43: 0 | CE43: 11058.56678 | CF43: =IFERROR(_xlfn.XLOOKUP(YEAR(Year7Table[[#This Row],[Date]])&MONTH(Year7Table[[#This Row],[Date]]),PenaltyTable[Year]&PenaltyTable[Month],PenaltyTable[Daily])*CE$10,"") ->  | CJ43: 11132.29056 | CM43: 1902-07-28 | CN43: 0 | CO43: 14744.7557 | CP43: =IFERROR(_xlfn.XLOOKUP(YEAR(Year8Table[[#This Row],[Date]])&MONTH(Year8Table[[#This Row],[Date]]),PenaltyTable[Year]&PenaltyTable[Month],PenaltyTable[Daily])*$CO$10,"") ->  | CT43: 14843.05408 | CW43: 1902-07-28 | CX43: 0 | CY43: 1044.420196 | CZ43: =IFERROR(_xlfn.XLOOKUP(YEAR(Year9Table[[#This Row],[Date]])&MONTH(Year9Table[[#This Row],[Date]]),PenaltyTable[Year]&PenaltyTable[Month],PenaltyTable[Daily])*$CY$10,"") ->  | DD43: 1051.382997 | DG43: 1902-07-28 | DH43: 0 | DI43: 844.137264 | DJ43: =IFERROR(_xlfn.XLOOKUP(YEAR(Year10Table[[#This Row],[Date]])&MONTH(Year10Table[[#This Row],[Date]]),PenaltyTable[Year]&PenaltyTable[Month],PenaltyTable[Daily])*$DI$10,"") ->  | DN43: 849.7648458
U44: =IFERROR(IF((ROW()-ROW(Year1Table[#Headers]))=1,IF(OR(Table1[[#This Row],[Tax Assessed]]="",Table1[[#This Row],[Tax Assessed]]=0),"",Table1[[#This Row],[Tax Due Dt]]),IF((ROW()-ROW(Year1Table[#Headers]))>1,IF(OFFSET(AB44,-1,)<1,"",EDATE(U43,1)))),"") -> 2019-12-15 | V44: =IF(OR(AB43<0,AB43=""),"",IF(AND($B$7<>"",U44>=$B$7),$C$7,IF(AND($B$6<>"",U44>=$B$6),$C$6,IF(U44>=$B$5,$C$5,IF(U44<$B$5,0))))) -> 0 | W44: 10973.80778 | X44: =IFERROR(_xlfn.XLOOKUP(YEAR(Year1Table[[#This Row],[Date]])&MONTH(Year1Table[[#This Row],[Date]]),PenaltyTable[Year]&PenaltyTable[Month],PenaltyTable[Daily])*$W$10,"") -> 1.796383562 | AB44: 10975.60416 | AF44: =IF(ROW()-ROW(Year2Table[#Headers])=1,$AI$193,IF(AG42="","",IF(AND($B$7<>"",AE44>=$B$7),$C$7,IF(AND($B$6<>"",AE44>=$B$6),$C$6,IF(AE44>=$B$5,$C$5,IF(AE44<$B$5,0)))))) ->  | AH44: =IFERROR(_xlfn.XLOOKUP(YEAR(Year2Table[[#This Row],[Date]])&MONTH(Year2Table[[#This Row],[Date]]),PenaltyTable[Year]&PenaltyTable[Month],PenaltyTable[Daily])*$AG$10,"") ->  | AM44: =IF(AL44>0,"",IF(VALUE(AE44)<=VALUE($W$8),"",AE44)) ->  | AO44: 1902-08-28 | AP44: 0 | AQ44: 8658.448211 | AR44: =IFERROR(_xlfn.XLOOKUP(YEAR(Year3Table[[#This Row],[Date]])&MONTH(Year3Table[[#This Row],[Date]]),PenaltyTable[Year]&PenaltyTable[Month],PenaltyTable[Daily])*$AQ$10,"") ->  | AV44: 8716.171199 | AY44: 1902-08-28 | AZ44: 0 | BA44: 3092.302932 | BB44: =IFERROR(_xlfn.XLOOKUP(YEAR(Year4Table[[#This Row],[Date]])&MONTH(Year4Table[[#This Row],[Date]]),PenaltyTable[Year]&PenaltyTable[Month],PenaltyTable[Daily])*$BA$10,"") ->  | BF44: 3112.918285 | BI44: 1902-08-28 | BJ44: 0 | BK44: 6184.605865 | BL44: =IFERROR(_xlfn.XLOOKUP(YEAR(Year5Table[[#This Row],[Date]])&MONTH(Year5Table[[#This Row],[Date]]),PenaltyTable[Year]&PenaltyTable[Month],PenaltyTable[Daily])*$BK$10,"") ->  | BP44: 6225.83657 | BS44: 1902-08-28 | BT44: 0 | BU44: 3710.763519 | BV44: =IFERROR(_xlfn.XLOOKUP(YEAR(Year6Table[[#This Row],[Date]])&MONTH(Year6Table[[#This Row],[Date]]),PenaltyTable[Year]&PenaltyTable[Month],PenaltyTable[Daily])*$BU$10,"") ->  | BZ44: 3735.501942 | CC44: 1902-08-28 | CD44: 0 | CE44: 11132.29056 | CF44: =IFERROR(_xlfn.XLOOKUP(YEAR(Year7Table[[#This Row],[Date]])&MONTH(Year7Table[[#This Row],[Date]]),PenaltyTable[Year]&PenaltyTable[Month],PenaltyTable[Daily])*CE$10,"") ->  | CJ44: 11206.50583 | CM44: 1902-08-28 | CN44: 0 | CO44: 14843.05408 | CP44: =IFERROR(_xlfn.XLOOKUP(YEAR(Year8Table[[#This Row],[Date]])&MONTH(Year8Table[[#This Row],[Date]]),PenaltyTable[Year]&PenaltyTable[Month],PenaltyTable[Daily])*$CO$10,"") ->  | CT44: 14942.00777 | CW44: 1902-08-28 | CX44: 0 | CY44: 1051.382997 | CZ44: =IFERROR(_xlfn.XLOOKUP(YEAR(Year9Table[[#This Row],[Date]])&MONTH(Year9Table[[#This Row],[Date]]),PenaltyTable[Year]&PenaltyTable[Month],PenaltyTable[Daily])*$CY$10,"") ->  | DD44: 1058.392217 | DG44: 1902-08-28 | DH44: 0 | DI44: 849.7648458 | DJ44: =IFERROR(_xlfn.XLOOKUP(YEAR(Year10Table[[#This Row],[Date]])&MONTH(Year10Table[[#This Row],[Date]]),PenaltyTable[Year]&PenaltyTable[Month],PenaltyTable[Daily])*$DI$10,"") ->  | DN44: 855.4299448
U45: =IFERROR(IF((ROW()-ROW(Year1Table[#Headers]))=1,IF(OR(Table1[[#This Row],[Tax Assessed]]="",Table1[[#This Row],[Tax Assessed]]=0),"",Table1[[#This Row],[Tax Due Dt]]),IF((ROW()-ROW(Year1Table[#Headers]))>1,IF(OFFSET(AB45,-1,)<1,"",EDATE(U44,1)))),"") -> 2020-01-15 | V45: 0 | W45: 10975.60416 | X45: =IFERROR(_xlfn.XLOOKUP(YEAR(Year1Table[[#This Row],[Date]])&MONTH(Year1Table[[#This Row],[Date]]),PenaltyTable[Year]&PenaltyTable[Month],PenaltyTable[Daily])*$W$10,"") -> 0.8981917808 | AB45: =IF(OR(AB44<0,AB44=""),"",(W45+X45)-V45) -> 10976.50236 | AF45: =IF(ROW()-ROW(Year2Table[#Headers])=1,$AI$193,IF(AG43="","",IF(AND($B$7<>"",AE45>=$B$7),$C$7,IF(AND($B$6<>"",AE45>=$B$6),$C$6,IF(AE45>=$B$5,$C$5,IF(AE45<$B$5,0)))))) ->  | AH45: =IFERROR(_xlfn.XLOOKUP(YEAR(Year2Table[[#This Row],[Date]])&MONTH(Year2Table[[#This Row],[Date]]),PenaltyTable[Year]&PenaltyTable[Month],PenaltyTable[Daily])*$AG$10,"") ->  | AO45: 1902-09-28 | AP45: 0 | AQ45: 8716.171199 | AR45: =IFERROR(_xlfn.XLOOKUP(YEAR(Year3Table[[#This Row],[Date]])&MONTH(Year3Table[[#This Row],[Date]]),PenaltyTable[Year]&PenaltyTable[Month],PenaltyTable[Daily])*$AQ$10,"") ->  | AV45: 8774.279007 | AY45: 1902-09-28 | AZ45: 0 | BA45: 3112.918285 | BB45: =IFERROR(_xlfn.XLOOKUP(YEAR(Year4Table[[#This Row],[Date]])&MONTH(Year4Table[[#This Row],[Date]]),PenaltyTable[Year]&PenaltyTable[Month],PenaltyTable[Daily])*$BA$10,"") ->  | BF45: 3133.671074 | BI45: 1902-09-28 | BJ45: 0 | BK45: 6225.83657 | BL45: =IFERROR(_xlfn.XLOOKUP(YEAR(Year5Table[[#This Row],[Date]])&MONTH(Year5Table[[#This Row],[Date]]),PenaltyTable[Year]&PenaltyTable[Month],PenaltyTable[Daily])*$BK$10,"") ->  | BP45: 6267.342148 | BS45: 1902-09-28 | BT45: 0 | BU45: 3735.501942 | BV45: =IFERROR(_xlfn.XLOOKUP(YEAR(Year6Table[[#This Row],[Date]])&MONTH(Year6Table[[#This Row],[Date]]),PenaltyTable[Year]&PenaltyTable[Month],PenaltyTable[Daily])*$BU$10,"") ->  | BZ45: 3760.405289 | CC45: 1902-09-28 | CD45: 0 | CE45: 11206.50583 | CF45: =IFERROR(_xlfn.XLOOKUP(YEAR(Year7Table[[#This Row],[Date]])&MONTH(Year7Table[[#This Row],[Date]]),PenaltyTable[Year]&PenaltyTable[Month],PenaltyTable[Daily])*CE$10,"") ->  | CJ45: 11281.21587 | CM45: 1902-09-28 | CN45: 0 | CO45: 14942.00777 | CP45: =IFERROR(_xlfn.XLOOKUP(YEAR(Year8Table[[#This Row],[Date]])&MONTH(Year8Table[[#This Row],[Date]]),PenaltyTable[Year]&PenaltyTable[Month],PenaltyTable[Daily])*$CO$10,"") ->  | CT45: 15041.62115 | CW45: 1902-09-28 | CX45: 0 | CY45: 1058.392217 | CZ45: =IFERROR(_xlfn.XLOOKUP(YEAR(Year9Table[[#This Row],[Date]])&MONTH(Year9Table[[#This Row],[Date]]),PenaltyTable[Year]&PenaltyTable[Month],PenaltyTable[Daily])*$CY$10,"") ->  | DD45: 1065.448165 | DG45: 1902-09-28 | DH45: 0 | DI45: 855.4299448 | DJ45: =IFERROR(_xlfn.XLOOKUP(YEAR(Year10Table[[#This Row],[Date]])&MONTH(Year10Table[[#This Row],[Date]]),PenaltyTable[Year]&PenaltyTable[Month],PenaltyTable[Daily])*$DI$10,"") ->  | DN45: 861.1328111
U46: =IFERROR(IF((ROW()-ROW(Year1Table[#Headers]))=1,IF(OR(Table1[[#This Row],[Tax Assessed]]="",Table1[[#This Row],[Tax Assessed]]=0),"",Table1[[#This Row],[Tax Due Dt]]),IF((ROW()-ROW(Year1Table[#Headers]))>1,IF(OFFSET(AB46,-1,)<1,"",EDATE(U45,1)))),"") -> 2020-02-15 | V46: 0 | W46: 10976.50236 | X46: =IFERROR(_xlfn.XLOOKUP(YEAR(Year1Table[[#This Row],[Date]])&MONTH(Year1Table[[#This Row],[Date]]),PenaltyTable[Year]&PenaltyTable[Month],PenaltyTable[Daily])*$W$10,"") -> 0.8981917808 | AB46: 10977.40055 | AF46: =IF(ROW()-ROW(Year2Table[#Headers])=1,$AI$193,IF(AG44="","",IF(AND($B$7<>"",AE46>=$B$7),$C$7,IF(AND($B$6<>"",AE46>=$B$6),$C$6,IF(AE46>=$B$5,$C$5,IF(AE46<$B$5,0)))))) ->  | AH46: =IFERROR(_xlfn.XLOOKUP(YEAR(Year2Table[[#This Row],[Date]])&MONTH(Year2Table[[#This Row],[Date]]),PenaltyTable[Year]&PenaltyTable[Month],PenaltyTable[Daily])*$AG$10,"") ->  | AO46: 1902-10-28 | AP46: 0 | AQ46: 8774.279007 | AR46: =IFERROR(_xlfn.XLOOKUP(YEAR(Year3Table[[#This Row],[Date]])&MONTH(Year3Table[[#This Row],[Date]]),PenaltyTable[Year]&PenaltyTable[Month],PenaltyTable[Daily])*$AQ$10,"") ->  | AV46: 8832.7742 | AY46: 1902-10-28 | AZ46: 0 | BA46: 3133.671074 | BB46: =IFERROR(_xlfn.XLOOKUP(YEAR(Year4Table[[#This Row],[Date]])&MONTH(Year4Table[[#This Row],[Date]]),PenaltyTable[Year]&PenaltyTable[Month],PenaltyTable[Daily])*$BA$10,"") ->  | BF46: 3154.562214 | BI46: 1902-10-28 | BJ46: 0 | BK46: 6267.342148 | BL46: =IFERROR(_xlfn.XLOOKUP(YEAR(Year5Table[[#This Row],[Date]])&MONTH(Year5Table[[#This Row],[Date]]),PenaltyTable[Year]&PenaltyTable[Month],PenaltyTable[Daily])*$BK$10,"") ->  | BP46: 6309.124429 | BS46: 1902-10-28 | BT46: 0 | BU46: 3760.405289 | BV46: =IFERROR(_xlfn.XLOOKUP(YEAR(Year6Table[[#This Row],[Date]])&MONTH(Year6Table[[#This Row],[Date]]),PenaltyTable[Year]&PenaltyTable[Month],PenaltyTable[Daily])*$BU$10,"") ->  | BZ46: 3785.474657 | CC46: 1902-10-28 | CD46: 0 | CE46: 11281.21587 | CF46: =IFERROR(_xlfn.XLOOKUP(YEAR(Year7Table[[#This Row],[Date]])&MONTH(Year7Table[[#This Row],[Date]]),PenaltyTable[Year]&PenaltyTable[Month],PenaltyTable[Daily])*CE$10,"") ->  | CJ46: 11356.42397 | CM46: 1902-10-28 | CN46: 0 | CO46: 15041.62115 | CP46: =IFERROR(_xlfn.XLOOKUP(YEAR(Year8Table[[#This Row],[Date]])&MONTH(Year8Table[[#This Row],[Date]]),PenaltyTable[Year]&PenaltyTable[Month],PenaltyTable[Daily])*$CO$10,"") ->  | CT46: 15141.89863 | CW46: 1902-10-28 | CX46: 0 | CY46: 1065.448165 | CZ46: =IFERROR(_xlfn.XLOOKUP(YEAR(Year9Table[[#This Row],[Date]])&MONTH(Year9Table[[#This Row],[Date]]),PenaltyTable[Year]&PenaltyTable[Month],PenaltyTable[Daily])*$CY$10,"") ->  | DD46: 1072.551153 | DG46: 1902-10-28 | DH46: 0 | DI46: 861.1328111 | DJ46: =IFERROR(_xlfn.XLOOKUP(YEAR(Year10Table[[#This Row],[Date]])&MONTH(Year10Table[[#This Row],[Date]]),PenaltyTable[Year]&PenaltyTable[Month],PenaltyTable[Daily])*$DI$10,"") ->  | DN46: 866.8736965
U47: =IFERROR(IF((ROW()-ROW(Year1Table[#Headers]))=1,IF(OR(Table1[[#This Row],[Tax Assessed]]="",Table1[[#This Row],[Tax Assessed]]=0),"",Table1[[#This Row],[Tax Due Dt]]),IF((ROW()-ROW(Year1Table[#Headers]))>1,IF(OFFSET(AB47,-1,)<1,"",EDATE(U46,1)))),"") -> 2020-03-15 | V47: 0 | W47: 10977.40055 | X47: =IFERROR(_xlfn.XLOOKUP(YEAR(Year1Table[[#This Row],[Date]])&MONTH(Year1Table[[#This Row],[Date]]),PenaltyTable[Year]&PenaltyTable[Month],PenaltyTable[Daily])*$W$10,"") -> 0.8981917808 | AB47: 10978.29874 | AF47: =IF(ROW()-ROW(Year2Table[#Headers])=1,$AI$193,IF(AG45="","",IF(AND($B$7<>"",AE47>=$B$7),$C$7,IF(AND($B$6<>"",AE47>=$B$6),$C$6,IF(AE47>=$B$5,$C$5,IF(AE47<$B$5,0)))))) ->  | AH47: =IFERROR(_xlfn.XLOOKUP(YEAR(Year2Table[[#This Row],[Date]])&MONTH(Year2Table[[#This Row],[Date]]),PenaltyTable[Year]&PenaltyTable[Month],PenaltyTable[Daily])*$AG$10,"") ->  | AO47: 1902-11-28 | AP47: 0 | AQ47: 8832.7742 | AR47: =IFERROR(_xlfn.XLOOKUP(YEAR(Year3Table[[#This Row],[Date]])&MONTH(Year3Table[[#This Row],[Date]]),PenaltyTable[Year]&PenaltyTable[Month],PenaltyTable[Daily])*$AQ$10,"") ->  | AV47: 8891.659361 | AY47: 1902-11-28 | AZ47: 0 | BA47: 3154.562214 | BB47: =IFERROR(_xlfn.XLOOKUP(YEAR(Year4Table[[#This Row],[Date]])&MONTH(Year4Table[[#This Row],[Date]]),PenaltyTable[Year]&PenaltyTable[Month],PenaltyTable[Daily])*$BA$10,"") ->  | BF47: 3175.592629 | BI47: 1902-11-28 | BJ47: 0 | BK47: 6309.124429 | BL47: =IFERROR(_xlfn.XLOOKUP(YEAR(Year5Table[[#This Row],[Date]])&MONTH(Year5Table[[#This Row],[Date]]),PenaltyTable[Year]&PenaltyTable[Month],PenaltyTable[Daily])*$BK$10,"") ->  | BP47: 6351.185258 | BS47: 1902-11-28 | BT47: 0 | BU47: 3785.474657 | BV47: =IFERROR(_xlfn.XLOOKUP(YEAR(Year6Table[[#This Row],[Date]])&MONTH(Year6Table[[#This Row],[Date]]),PenaltyTable[Year]&PenaltyTable[Month],PenaltyTable[Daily])*$BU$10,"") ->  | BZ47: 3810.711155 | CC47: 1902-11-28 | CD47: 0 | CE47: 11356.42397 | CF47: =IFERROR(_xlfn.XLOOKUP(YEAR(Year7Table[[#This Row],[Date]])&MONTH(Year7Table[[#This Row],[Date]]),PenaltyTable[Year]&PenaltyTable[Month],PenaltyTable[Daily])*CE$10,"") ->  | CJ47: 11432.13346 | CM47: 1902-11-28 | CN47: 0 | CO47: 15141.89863 | CP47: =IFERROR(_xlfn.XLOOKUP(YEAR(Year8Table[[#This Row],[Date]])&MONTH(Year8Table[[#This Row],[Date]]),PenaltyTable[Year]&PenaltyTable[Month],PenaltyTable[Daily])*$CO$10,"") ->  | CT47: 15242.84462 | CW47: 1902-11-28 | CX47: 0 | CY47: 1072.551153 | CZ47: =IFERROR(_xlfn.XLOOKUP(YEAR(Year9Table[[#This Row],[Date]])&MONTH(Year9Table[[#This Row],[Date]]),PenaltyTable[Year]&PenaltyTable[Month],PenaltyTable[Daily])*$CY$10,"") ->  | DD47: 1079.701494 | DG47: 1902-11-28 | DH47: 0 | DI47: 866.8736965 | DJ47: =IFERROR(_xlfn.XLOOKUP(YEAR(Year10Table[[#This Row],[Date]])&MONTH(Year10Table[[#This Row],[Date]]),PenaltyTable[Year]&PenaltyTable[Month],PenaltyTable[Daily])*$DI$10,"") ->  | DN47: 872.6528545
U48: =IFERROR(IF((ROW()-ROW(Year1Table[#Headers]))=1,IF(OR(Table1[[#This Row],[Tax Assessed]]="",Table1[[#This Row],[Tax Assessed]]=0),"",Table1[[#This Row],[Tax Due Dt]]),IF((ROW()-ROW(Year1Table[#Headers]))>1,IF(OFFSET(AB48,-1,)<1,"",EDATE(U47,1)))),"") -> 2020-04-15 | V48: 0 | W48: 10978.29874 | X48: =IFERROR(_xlfn.XLOOKUP(YEAR(Year1Table[[#This Row],[Date]])&MONTH(Year1Table[[#This Row],[Date]]),PenaltyTable[Year]&PenaltyTable[Month],PenaltyTable[Daily])*$W$10,"") -> 0.8981917808 | AB48: 10979.19693 | AF48: =IF(ROW()-ROW(Year2Table[#Headers])=1,$AI$193,IF(AG46="","",IF(AND($B$7<>"",AE48>=$B$7),$C$7,IF(AND($B$6<>"",AE48>=$B$6),$C$6,IF(AE48>=$B$5,$C$5,IF(AE48<$B$5,0)))))) ->  | AH48: =IFERROR(_xlfn.XLOOKUP(YEAR(Year2Table[[#This Row],[Date]])&MONTH(Year2Table[[#This Row],[Date]]),PenaltyTable[Year]&PenaltyTable[Month],PenaltyTable[Daily])*$AG$10,"") ->  | AO48: 1902-12-28 | AP48: 0 | AQ48: 8891.659361 | AR48: =IFERROR(_xlfn.XLOOKUP(YEAR(Year3Table[[#This Row],[Date]])&MONTH(Year3Table[[#This Row],[Date]]),PenaltyTable[Year]&PenaltyTable[Month],PenaltyTable[Daily])*$AQ$10,"") ->  | AV48: 8950.93709 | AY48: 1902-12-28 | AZ48: 0 | BA48: 3175.592629 | BB48: =IFERROR(_xlfn.XLOOKUP(YEAR(Year4Table[[#This Row],[Date]])&MONTH(Year4Table[[#This Row],[Date]]),PenaltyTable[Year]&PenaltyTable[Month],PenaltyTable[Daily])*$BA$10,"") ->  | BF48: 3196.763247 | BI48: 1902-12-28 | BJ48: 0 | BK48: 6351.185258 | BL48: =IFERROR(_xlfn.XLOOKUP(YEAR(Year5Table[[#This Row],[Date]])&MONTH(Year5Table[[#This Row],[Date]]),PenaltyTable[Year]&PenaltyTable[Month],PenaltyTable[Daily])*$BK$10,"") ->  | BP48: 6393.526493 | BS48: 1902-12-28 | BT48: 0 | BU48: 3810.711155 | BV48: =IFERROR(_xlfn.XLOOKUP(YEAR(Year6Table[[#This Row],[Date]])&MONTH(Year6Table[[#This Row],[Date]]),PenaltyTable[Year]&PenaltyTable[Month],PenaltyTable[Daily])*$BU$10,"") ->  | BZ48: 3836.115896 | CC48: 1902-12-28 | CD48: 0 | CE48: 11432.13346 | CF48: =IFERROR(_xlfn.XLOOKUP(YEAR(Year7Table[[#This Row],[Date]])&MONTH(Year7Table[[#This Row],[Date]]),PenaltyTable[Year]&PenaltyTable[Month],PenaltyTable[Daily])*CE$10,"") ->  | CJ48: 11508.34769 | CM48: 1902-12-28 | CN48: 0 | CO48: 15242.84462 | CP48: =IFERROR(_xlfn.XLOOKUP(YEAR(Year8Table[[#This Row],[Date]])&MONTH(Year8Table[[#This Row],[Date]]),PenaltyTable[Year]&PenaltyTable[Month],PenaltyTable[Daily])*$CO$10,"") ->  | CT48: 15344.46358 | CW48: 1902-12-28 | CX48: 0 | CY48: 1079.701494 | CZ48: =IFERROR(_xlfn.XLOOKUP(YEAR(Year9Table[[#This Row],[Date]])&MONTH(Year9Table[[#This Row],[Date]]),PenaltyTable[Year]&PenaltyTable[Month],PenaltyTable[Daily])*$CY$10,"") ->  | DD48: 1086.899504 | DG48: 1902-12-28 | DH48: 0 | DI48: 872.6528545 | DJ48: =IFERROR(_xlfn.XLOOKUP(YEAR(Year10Table[[#This Row],[Date]])&MONTH(Year10Table[[#This Row],[Date]]),PenaltyTable[Year]&PenaltyTable[Month],PenaltyTable[Daily])*$DI$10,"") ->  | DN48: 878.4705402
U49: =IFERROR(IF((ROW()-ROW(Year1Table[#Headers]))=1,IF(OR(Table1[[#This Row],[Tax Assessed]]="",Table1[[#This Row],[Tax Assessed]]=0),"",Table1[[#This Row],[Tax Due Dt]]),IF((ROW()-ROW(Year1Table[#Headers]))>1,IF(OFFSET(AB49,-1,)<1,"",EDATE(U48,1)))),"") -> 2020-05-15 | V49: 0 | W49: 10979.19693 | X49: =IFERROR(_xlfn.XLOOKUP(YEAR(Year1Table[[#This Row],[Date]])&MONTH(Year1Table[[#This Row],[Date]]),PenaltyTable[Year]&PenaltyTable[Month],PenaltyTable[Daily])*$W$10,"") -> 0.8981917808 | AB49: 10980.09512 | AF49: =IF(ROW()-ROW(Year2Table[#Headers])=1,$AI$193,IF(AG47="","",IF(AND($B$7<>"",AE49>=$B$7),$C$7,IF(AND($B$6<>"",AE49>=$B$6),$C$6,IF(AE49>=$B$5,$C$5,IF(AE49<$B$5,0)))))) ->  | AH49: =IFERROR(_xlfn.XLOOKUP(YEAR(Year2Table[[#This Row],[Date]])&MONTH(Year2Table[[#This Row],[Date]]),PenaltyTable[Year]&PenaltyTable[Month],PenaltyTable[Daily])*$AG$10,"") ->  | AO49: 1903-01-28 | AP49: 0 | AQ49: 8950.93709 | AR49: =IFERROR(_xlfn.XLOOKUP(YEAR(Year3Table[[#This Row],[Date]])&MONTH(Year3Table[[#This Row],[Date]]),PenaltyTable[Year]&PenaltyTable[Month],PenaltyTable[Daily])*$AQ$10,"") ->  | AV49: 9010.610004 | AY49: 1903-01-28 | AZ49: 0 | BA49: 3196.763247 | BB49: =IFERROR(_xlfn.XLOOKUP(YEAR(Year4Table[[#This Row],[Date]])&MONTH(Year4Table[[#This Row],[Date]]),PenaltyTable[Year]&PenaltyTable[Month],PenaltyTable[Daily])*$BA$10,"") ->  | BF49: 3218.075002 | BI49: 1903-01-28 | BJ49: 0 | BK49: 6393.526493 | BL49: =IFERROR(_xlfn.XLOOKUP(YEAR(Year5Table[[#This Row],[Date]])&MONTH(Year5Table[[#This Row],[Date]]),PenaltyTable[Year]&PenaltyTable[Month],PenaltyTable[Daily])*$BK$10,"") ->  | BP49: 6436.150003 | BS49: 1903-01-28 | BT49: 0 | BU49: 3836.115896 | BV49: =IFERROR(_xlfn.XLOOKUP(YEAR(Year6Table[[#This Row],[Date]])&MONTH(Year6Table[[#This Row],[Date]]),PenaltyTable[Year]&PenaltyTable[Month],PenaltyTable[Daily])*$BU$10,"") ->  | BZ49: 3861.690002 | CC49: 1903-01-28 | CD49: 0 | CE49: 11508.34769 | CF49: =IFERROR(_xlfn.XLOOKUP(YEAR(Year7Table[[#This Row],[Date]])&MONTH(Year7Table[[#This Row],[Date]]),PenaltyTable[Year]&PenaltyTable[Month],PenaltyTable[Daily])*CE$10,"") ->  | CJ49: 11585.07001 | CM49: 1903-01-28 | CN49: 0 | CO49: 15344.46358 | CP49: =IFERROR(_xlfn.XLOOKUP(YEAR(Year8Table[[#This Row],[Date]])&MONTH(Year8Table[[#This Row],[Date]]),PenaltyTable[Year]&PenaltyTable[Month],PenaltyTable[Daily])*$CO$10,"") ->  | CT49: 15446.76001 | CW49: 1903-01-28 | CX49: 0 | CY49: 1086.899504 | CZ49: =IFERROR(_xlfn.XLOOKUP(YEAR(Year9Table[[#This Row],[Date]])&MONTH(Year9Table[[#This Row],[Date]]),PenaltyTable[Year]&PenaltyTable[Month],PenaltyTable[Daily])*$CY$10,"") ->  | DD49: 1094.145501 | DG49: 1903-01-28 | DH49: 0 | DI49: 878.4705402 | DJ49: =IFERROR(_xlfn.XLOOKUP(YEAR(Year10Table[[#This Row],[Date]])&MONTH(Year10Table[[#This Row],[Date]]),PenaltyTable[Year]&PenaltyTable[Month],PenaltyTable[Daily])*$DI$10,"") ->  | DN49: 884.3270104
U50: =IFERROR(IF((ROW()-ROW(Year1Table[#Headers]))=1,IF(OR(Table1[[#This Row],[Tax Assessed]]="",Table1[[#This Row],[Tax Assessed]]=0),"",Table1[[#This Row],[Tax Due Dt]]),IF((ROW()-ROW(Year1Table[#Headers]))>1,IF(OFFSET(AB50,-1,)<1,"",EDATE(U49,1)))),"") -> 2020-06-15 | V50: 0 | W50: 10980.09512 | X50: =IFERROR(_xlfn.XLOOKUP(YEAR(Year1Table[[#This Row],[Date]])&MONTH(Year1Table[[#This Row],[Date]]),PenaltyTable[Year]&PenaltyTable[Month],PenaltyTable[Daily])*$W$10,"") -> 0.8981917808 | AB50: 10980.99332 | AF50: =IF(ROW()-ROW(Year2Table[#Headers])=1,$AI$193,IF(AG48="","",IF(AND($B$7<>"",AE50>=$B$7),$C$7,IF(AND($B$6<>"",AE50>=$B$6),$C$6,IF(AE50>=$B$5,$C$5,IF(AE50<$B$5,0)))))) ->  | AH50: =IFERROR(_xlfn.XLOOKUP(YEAR(Year2Table[[#This Row],[Date]])&MONTH(Year2Table[[#This Row],[Date]]),PenaltyTable[Year]&PenaltyTable[Month],PenaltyTable[Daily])*$AG$10,"") ->  | AO50: 1903-02-28 | AP50: 0 | AQ50: 9010.610004 | AR50: =IFERROR(_xlfn.XLOOKUP(YEAR(Year3Table[[#This Row],[Date]])&MONTH(Year3Table[[#This Row],[Date]]),PenaltyTable[Year]&PenaltyTable[Month],PenaltyTable[Daily])*$AQ$10,"") ->  | AV50: 9070.680738 | AY50: 1903-02-28 | AZ50: 0 | BA50: 3218.075002 | BB50: =IFERROR(_xlfn.XLOOKUP(YEAR(Year4Table[[#This Row],[Date]])&MONTH(Year4Table[[#This Row],[Date]]),PenaltyTable[Year]&PenaltyTable[Month],PenaltyTable[Daily])*$BA$10,"") ->  | BF50: 3239.528835 | BI50: 1903-02-28 | BJ50: 0 | BK50: 6436.150003 | BL50: =IFERROR(_xlfn.XLOOKUP(YEAR(Year5Table[[#This Row],[Date]])&MONTH(Year5Table[[#This Row],[Date]]),PenaltyTable[Year]&PenaltyTable[Month],PenaltyTable[Daily])*$BK$10,"") ->  | BP50: 6479.05767 | BS50: 1903-02-28 | BT50: 0 | BU50: 3861.690002 | BV50: =IFERROR(_xlfn.XLOOKUP(YEAR(Year6Table[[#This Row],[Date]])&MONTH(Year6Table[[#This Row],[Date]]),PenaltyTable[Year]&PenaltyTable[Month],PenaltyTable[Daily])*$BU$10,"") ->  | BZ50: 3887.434602 | CC50: 1903-02-28 | CD50: 0 | CE50: 11585.07001 | CF50: =IFERROR(_xlfn.XLOOKUP(YEAR(Year7Table[[#This Row],[Date]])&MONTH(Year7Table[[#This Row],[Date]]),PenaltyTable[Year]&PenaltyTable[Month],PenaltyTable[Daily])*CE$10,"") ->  | CJ50: 11662.30381 | CM50: 1903-02-28 | CN50: 0 | CO50: 15446.76001 | CP50: =IFERROR(_xlfn.XLOOKUP(YEAR(Year8Table[[#This Row],[Date]])&MONTH(Year8Table[[#This Row],[Date]]),PenaltyTable[Year]&PenaltyTable[Month],PenaltyTable[Daily])*$CO$10,"") ->  | CT50: 15549.73841 | CW50: 1903-02-28 | CX50: 0 | CY50: 1094.145501 | CZ50: =IFERROR(_xlfn.XLOOKUP(YEAR(Year9Table[[#This Row],[Date]])&MONTH(Year9Table[[#This Row],[Date]]),PenaltyTable[Year]&PenaltyTable[Month],PenaltyTable[Daily])*$CY$10,"") ->  | DD50: 1101.439804 | DG50: 1903-02-28 | DH50: 0 | DI50: 884.3270104 | DJ50: =IFERROR(_xlfn.XLOOKUP(YEAR(Year10Table[[#This Row],[Date]])&MONTH(Year10Table[[#This Row],[Date]]),PenaltyTable[Year]&PenaltyTable[Month],PenaltyTable[Daily])*$DI$10,"") ->  | DN50: 890.2225238
U51: =IFERROR(IF((ROW()-ROW(Year1Table[#Headers]))=1,IF(OR(Table1[[#This Row],[Tax Assessed]]="",Table1[[#This Row],[Tax Assessed]]=0),"",Table1[[#This Row],[Tax Due Dt]]),IF((ROW()-ROW(Year1Table[#Headers]))>1,IF(OFFSET(AB51,-1,)<1,"",EDATE(U50,1)))),"") -> 2020-07-15 | V51: 0 | W51: 10980.99332 | X51: =IFERROR(_xlfn.XLOOKUP(YEAR(Year1Table[[#This Row],[Date]])&MONTH(Year1Table[[#This Row],[Date]]),PenaltyTable[Year]&PenaltyTable[Month],PenaltyTable[Daily])*$W$10,"") -> 1.496986301 | AB51: 10982.4903 | AF51: =IF(ROW()-ROW(Year2Table[#Headers])=1,$AI$193,IF(AG49="","",IF(AND($B$7<>"",AE51>=$B$7),$C$7,IF(AND($B$6<>"",AE51>=$B$6),$C$6,IF(AE51>=$B$5,$C$5,IF(AE51<$B$5,0)))))) ->  | AH51: =IFERROR(_xlfn.XLOOKUP(YEAR(Year2Table[[#This Row],[Date]])&MONTH(Year2Table[[#This Row],[Date]]),PenaltyTable[Year]&PenaltyTable[Month],PenaltyTable[Daily])*$AG$10,"") ->  | AO51: 1903-03-28 | AP51: 0 | AQ51: 9070.680738 | AR51: =IFERROR(_xlfn.XLOOKUP(YEAR(Year3Table[[#This Row],[Date]])&MONTH(Year3Table[[#This Row],[Date]]),PenaltyTable[Year]&PenaltyTable[Month],PenaltyTable[Daily])*$AQ$10,"") ->  | AV51: 9131.151943 | AY51: 1903-03-28 | AZ51: 0 | BA51: 3239.528835 | BB51: =IFERROR(_xlfn.XLOOKUP(YEAR(Year4Table[[#This Row],[Date]])&MONTH(Year4Table[[#This Row],[Date]]),PenaltyTable[Year]&PenaltyTable[Month],PenaltyTable[Daily])*$BA$10,"") ->  | BF51: 3261.125694 | BI51: 1903-03-28 | BJ51: 0 | BK51: 6479.05767 | BL51: =IFERROR(_xlfn.XLOOKUP(YEAR(Year5Table[[#This Row],[Date]])&MONTH(Year5Table[[#This Row],[Date]]),PenaltyTable[Year]&PenaltyTable[Month],PenaltyTable[Daily])*$BK$10,"") ->  | BP51: 6522.251388 | BS51: 1903-03-28 | BT51: 0 | BU51: 3887.434602 | BV51: =IFERROR(_xlfn.XLOOKUP(YEAR(Year6Table[[#This Row],[Date]])&MONTH(Year6Table[[#This Row],[Date]]),PenaltyTable[Year]&PenaltyTable[Month],PenaltyTable[Daily])*$BU$10,"") ->  | BZ51: 3913.350833 | CC51: 1903-03-28 | CD51: 0 | CE51: 11662.30381 | CF51: =IFERROR(_xlfn.XLOOKUP(YEAR(Year7Table[[#This Row],[Date]])&MONTH(Year7Table[[#This Row],[Date]]),PenaltyTable[Year]&PenaltyTable[Month],PenaltyTable[Daily])*CE$10,"") ->  | CJ51: 11740.0525 | CM51: 1903-03-28 | CN51: 0 | CO51: 15549.73841 | CP51: =IFERROR(_xlfn.XLOOKUP(YEAR(Year8Table[[#This Row],[Date]])&MONTH(Year8Table[[#This Row],[Date]]),PenaltyTable[Year]&PenaltyTable[Month],PenaltyTable[Daily])*$CO$10,"") ->  | CT51: 15653.40333 | CW51: 1903-03-28 | CX51: 0 | CY51: 1101.439804 | CZ51: =IFERROR(_xlfn.XLOOKUP(YEAR(Year9Table[[#This Row],[Date]])&MONTH(Year9Table[[#This Row],[Date]]),PenaltyTable[Year]&PenaltyTable[Month],PenaltyTable[Daily])*$CY$10,"") ->  | DD51: 1108.782736 | DG51: 1903-03-28 | DH51: 0 | DI51: 890.2225238 | DJ51: =IFERROR(_xlfn.XLOOKUP(YEAR(Year10Table[[#This Row],[Date]])&MONTH(Year10Table[[#This Row],[Date]]),PenaltyTable[Year]&PenaltyTable[Month],PenaltyTable[Daily])*$DI$10,"") ->  | DN51: 896.1573407
U52: =IFERROR(IF((ROW()-ROW(Year1Table[#Headers]))=1,IF(OR(Table1[[#This Row],[Tax Assessed]]="",Table1[[#This Row],[Tax Assessed]]=0),"",Table1[[#This Row],[Tax Due Dt]]),IF((ROW()-ROW(Year1Table[#Headers]))>1,IF(OFFSET(AB52,-1,)<1,"",EDATE(U51,1)))),"") -> 2020-08-15 | V52: 0 | W52: 10982.4903 | X52: =IFERROR(_xlfn.XLOOKUP(YEAR(Year1Table[[#This Row],[Date]])&MONTH(Year1Table[[#This Row],[Date]]),PenaltyTable[Year]&PenaltyTable[Month],PenaltyTable[Daily])*$W$10,"") -> 1.496986301 | AB52: 10983.98729 | AF52: =IF(ROW()-ROW(Year2Table[#Headers])=1,$AI$193,IF(AG50="","",IF(AND($B$7<>"",AE52>=$B$7),$C$7,IF(AND($B$6<>"",AE52>=$B$6),$C$6,IF(AE52>=$B$5,$C$5,IF(AE52<$B$5,0)))))) ->  | AH52: =IFERROR(_xlfn.XLOOKUP(YEAR(Year2Table[[#This Row],[Date]])&MONTH(Year2Table[[#This Row],[Date]]),PenaltyTable[Year]&PenaltyTable[Month],PenaltyTable[Daily])*$AG$10,"") ->  | AO52: 1903-04-28 | AP52: 0 | AQ52: 9131.151943 | AR52: =IFERROR(_xlfn.XLOOKUP(YEAR(Year3Table[[#This Row],[Date]])&MONTH(Year3Table[[#This Row],[Date]]),PenaltyTable[Year]&PenaltyTable[Month],PenaltyTable[Daily])*$AQ$10,"") ->  | AV52: 9192.026289 | AY52: 1903-04-28 | AZ52: 0 | BA52: 3261.125694 | BB52: =IFERROR(_xlfn.XLOOKUP(YEAR(Year4Table[[#This Row],[Date]])&MONTH(Year4Table[[#This Row],[Date]]),PenaltyTable[Year]&PenaltyTable[Month],PenaltyTable[Daily])*$BA$10,"") ->  | BF52: 3282.866532 | BI52: 1903-04-28 | BJ52: 0 | BK52: 6522.251388 | BL52: =IFERROR(_xlfn.XLOOKUP(YEAR(Year5Table[[#This Row],[Date]])&MONTH(Year5Table[[#This Row],[Date]]),PenaltyTable[Year]&PenaltyTable[Month],PenaltyTable[Daily])*$BK$10,"") ->  | BP52: 6565.733064 | BS52: 1903-04-28 | BT52: 0 | BU52: 3913.350833 | BV52: =IFERROR(_xlfn.XLOOKUP(YEAR(Year6Table[[#This Row],[Date]])&MONTH(Year6Table[[#This Row],[Date]]),PenaltyTable[Year]&PenaltyTable[Month],PenaltyTable[Daily])*$BU$10,"") ->  | BZ52: 3939.439838 | CC52: 1903-04-28 | CD52: 0 | CE52: 11740.0525 | CF52: =IFERROR(_xlfn.XLOOKUP(YEAR(Year7Table[[#This Row],[Date]])&MONTH(Year7Table[[#This Row],[Date]]),PenaltyTable[Year]&PenaltyTable[Month],PenaltyTable[Daily])*CE$10,"") ->  | CJ52: 11818.31951 | CM52: 1903-04-28 | CN52: 0 | CO52: 15653.40333 | CP52: =IFERROR(_xlfn.XLOOKUP(YEAR(Year8Table[[#This Row],[Date]])&MONTH(Year8Table[[#This Row],[Date]]),PenaltyTable[Year]&PenaltyTable[Month],PenaltyTable[Daily])*$CO$10,"") ->  | CT52: 15757.75935 | CW52: 1903-04-28 | CX52: 0 | CY52: 1108.782736 | CZ52: =IFERROR(_xlfn.XLOOKUP(YEAR(Year9Table[[#This Row],[Date]])&MONTH(Year9Table[[#This Row],[Date]]),PenaltyTable[Year]&PenaltyTable[Month],PenaltyTable[Daily])*$CY$10,"") ->  | DD52: 1116.174621 | DG52: 1903-04-28 | DH52: 0 | DI52: 896.1573407 | DJ52: =IFERROR(_xlfn.XLOOKUP(YEAR(Year10Table[[#This Row],[Date]])&MONTH(Year10Table[[#This Row],[Date]]),PenaltyTable[Year]&PenaltyTable[Month],PenaltyTable[Daily])*$DI$10,"") ->  | DN52: 902.1317229
U53: =IFERROR(IF((ROW()-ROW(Year1Table[#Headers]))=1,IF(OR(Table1[[#This Row],[Tax Assessed]]="",Table1[[#This Row],[Tax Assessed]]=0),"",Table1[[#This Row],[Tax Due Dt]]),IF((ROW()-ROW(Year1Table[#Headers]))>1,IF(OFFSET(AB53,-1,)<1,"",EDATE(U52,1)))),"") -> 2020-09-15 | V53: 0 | W53: 10983.98729 | X53: =IFERROR(_xlfn.XLOOKUP(YEAR(Year1Table[[#This Row],[Date]])&MONTH(Year1Table[[#This Row],[Date]]),PenaltyTable[Year]&PenaltyTable[Month],PenaltyTable[Daily])*$W$10,"") -> 1.496986301 | AB53: 10985.48427 | AF53: =IF(ROW()-ROW(Year2Table[#Headers])=1,$AI$193,IF(AG51="","",IF(AND($B$7<>"",AE53>=$B$7),$C$7,IF(AND($B$6<>"",AE53>=$B$6),$C$6,IF(AE53>=$B$5,$C$5,IF(AE53<$B$5,0)))))) ->  | AH53: =IFERROR(_xlfn.XLOOKUP(YEAR(Year2Table[[#This Row],[Date]])&MONTH(Year2Table[[#This Row],[Date]]),PenaltyTable[Year]&PenaltyTable[Month],PenaltyTable[Daily])*$AG$10,"") ->  | AO53: 1903-05-28 | AP53: 0 | AQ53: 9192.026289 | AR53: =IFERROR(_xlfn.XLOOKUP(YEAR(Year3Table[[#This Row],[Date]])&MONTH(Year3Table[[#This Row],[Date]]),PenaltyTable[Year]&PenaltyTable[Month],PenaltyTable[Daily])*$AQ$10,"") ->  | AV53: 9253.306464 | AY53: 1903-05-28 | AZ53: 0 | BA53: 3282.866532 | BB53: =IFERROR(_xlfn.XLOOKUP(YEAR(Year4Table[[#This Row],[Date]])&MONTH(Year4Table[[#This Row],[Date]]),PenaltyTable[Year]&PenaltyTable[Month],PenaltyTable[Daily])*$BA$10,"") ->  | BF53: 3304.752309 | BI53: 1903-05-28 | BJ53: 0 | BK53: 6565.733064 | BL53: =IFERROR(_xlfn.XLOOKUP(YEAR(Year5Table[[#This Row],[Date]])&MONTH(Year5Table[[#This Row],[Date]]),PenaltyTable[Year]&PenaltyTable[Month],PenaltyTable[Daily])*$BK$10,"") ->  | BP53: 6609.504617 | BS53: 1903-05-28 | BT53: 0 | BU53: 3939.439838 | BV53: =IFERROR(_xlfn.XLOOKUP(YEAR(Year6Table[[#This Row],[Date]])&MONTH(Year6Table[[#This Row],[Date]]),PenaltyTable[Year]&PenaltyTable[Month],PenaltyTable[Daily])*$BU$10,"") ->  | BZ53: 3965.70277 | CC53: 1903-05-28 | CD53: 0 | CE53: 11818.31951 | CF53: =IFERROR(_xlfn.XLOOKUP(YEAR(Year7Table[[#This Row],[Date]])&MONTH(Year7Table[[#This Row],[Date]]),PenaltyTable[Year]&PenaltyTable[Month],PenaltyTable[Daily])*CE$10,"") ->  | CJ53: 11897.10831 | CM53: 1903-05-28 | CN53: 0 | CO53: 15757.75935 | CP53: =IFERROR(_xlfn.XLOOKUP(YEAR(Year8Table[[#This Row],[Date]])&MONTH(Year8Table[[#This Row],[Date]]),PenaltyTable[Year]&PenaltyTable[Month],PenaltyTable[Daily])*$CO$10,"") ->  | CT53: 15862.81108 | CW53: 1903-05-28 | CX53: 0 | CY53: 1116.174621 | CZ53: =IFERROR(_xlfn.XLOOKUP(YEAR(Year9Table[[#This Row],[Date]])&MONTH(Year9Table[[#This Row],[Date]]),PenaltyTable[Year]&PenaltyTable[Month],PenaltyTable[Daily])*$CY$10,"") ->  | DD53: 1123.615785 | DG53: 1903-05-28 | DH53: 0 | DI53: 902.1317229 | DJ53: =IFERROR(_xlfn.XLOOKUP(YEAR(Year10Table[[#This Row],[Date]])&MONTH(Year10Table[[#This Row],[Date]]),PenaltyTable[Year]&PenaltyTable[Month],PenaltyTable[Daily])*$DI$10,"") ->  | DN53: 908.1459344
U54: =IFERROR(IF((ROW()-ROW(Year1Table[#Headers]))=1,IF(OR(Table1[[#This Row],[Tax Assessed]]="",Table1[[#This Row],[Tax Assessed]]=0),"",Table1[[#This Row],[Tax Due Dt]]),IF((ROW()-ROW(Year1Table[#Headers]))>1,IF(OFFSET(AB54,-1,)<1,"",EDATE(U53,1)))),"") -> 2020-10-15 | V54: 0 | W54: 10985.48427 | X54: =IFERROR(_xlfn.XLOOKUP(YEAR(Year1Table[[#This Row],[Date]])&MONTH(Year1Table[[#This Row],[Date]]),PenaltyTable[Year]&PenaltyTable[Month],PenaltyTable[Daily])*$W$10,"") -> 1.496986301 | AB54: 10986.98126 | AF54: =IF(ROW()-ROW(Year2Table[#Headers])=1,$AI$193,IF(AG52="","",IF(AND($B$7<>"",AE54>=$B$7),$C$7,IF(AND($B$6<>"",AE54>=$B$6),$C$6,IF(AE54>=$B$5,$C$5,IF(AE54<$B$5,0)))))) ->  | AH54: =IFERROR(_xlfn.XLOOKUP(YEAR(Year2Table[[#This Row],[Date]])&MONTH(Year2Table[[#This Row],[Date]]),PenaltyTable[Year]&PenaltyTable[Month],PenaltyTable[Daily])*$AG$10,"") ->  | AO54: 1903-06-28 | AP54: 0 | AQ54: 9253.306464 | AR54: =IFERROR(_xlfn.XLOOKUP(YEAR(Year3Table[[#This Row],[Date]])&MONTH(Year3Table[[#This Row],[Date]]),PenaltyTable[Year]&PenaltyTable[Month],PenaltyTable[Daily])*$AQ$10,"") ->  | AV54: 9314.995174 | AY54: 1903-06-28 | AZ54: 0 | BA54: 3304.752309 | BB54: =IFERROR(_xlfn.XLOOKUP(YEAR(Year4Table[[#This Row],[Date]])&MONTH(Year4Table[[#This Row],[Date]]),PenaltyTable[Year]&PenaltyTable[Month],PenaltyTable[Daily])*$BA$10,"") ->  | BF54: 3326.783991 | BI54: 1903-06-28 | BJ54: 0 | BK54: 6609.504617 | BL54: =IFERROR(_xlfn.XLOOKUP(YEAR(Year5Table[[#This Row],[Date]])&MONTH(Year5Table[[#This Row],[Date]]),PenaltyTable[Year]&PenaltyTable[Month],PenaltyTable[Daily])*$BK$10,"") ->  | BP54: 6653.567981 | BS54: 1903-06-28 | BT54: 0 | BU54: 3965.70277 | BV54: =IFERROR(_xlfn.XLOOKUP(YEAR(Year6Table[[#This Row],[Date]])&MONTH(Year6Table[[#This Row],[Date]]),PenaltyTable[Year]&PenaltyTable[Month],PenaltyTable[Daily])*$BU$10,"") ->  | BZ54: 3992.140789 | CC54: 1903-06-28 | CD54: 0 | CE54: 11897.10831 | CF54: =IFERROR(_xlfn.XLOOKUP(YEAR(Year7Table[[#This Row],[Date]])&MONTH(Year7Table[[#This Row],[Date]]),PenaltyTable[Year]&PenaltyTable[Month],PenaltyTable[Daily])*CE$10,"") ->  | CJ54: 11976.42237 | CM54: 1903-06-28 | CN54: 0 | CO54: 15862.81108 | CP54: =IFERROR(_xlfn.XLOOKUP(YEAR(Year8Table[[#This Row],[Date]])&MONTH(Year8Table[[#This Row],[Date]]),PenaltyTable[Year]&PenaltyTable[Month],PenaltyTable[Daily])*$CO$10,"") ->  | CT54: 15968.56316 | CW54: 1903-06-28 | CX54: 0 | CY54: 1123.615785 | CZ54: =IFERROR(_xlfn.XLOOKUP(YEAR(Year9Table[[#This Row],[Date]])&MONTH(Year9Table[[#This Row],[Date]]),PenaltyTable[Year]&PenaltyTable[Month],PenaltyTable[Daily])*$CY$10,"") ->  | DD54: 1131.106557 | DG54: 1903-06-28 | DH54: 0 | DI54: 908.1459344 | DJ54: =IFERROR(_xlfn.XLOOKUP(YEAR(Year10Table[[#This Row],[Date]])&MONTH(Year10Table[[#This Row],[Date]]),PenaltyTable[Year]&PenaltyTable[Month],PenaltyTable[Daily])*$DI$10,"") ->  | DN54: 914.2002406
U55: =IFERROR(IF((ROW()-ROW(Year1Table[#Headers]))=1,IF(OR(Table1[[#This Row],[Tax Assessed]]="",Table1[[#This Row],[Tax Assessed]]=0),"",Table1[[#This Row],[Tax Due Dt]]),IF((ROW()-ROW(Year1Table[#Headers]))>1,IF(OFFSET(AB55,-1,)<1,"",EDATE(U54,1)))),"") -> 2020-11-15 | V55: 0 | W55: 10986.98126 | X55: =IFERROR(_xlfn.XLOOKUP(YEAR(Year1Table[[#This Row],[Date]])&MONTH(Year1Table[[#This Row],[Date]]),PenaltyTable[Year]&PenaltyTable[Month],PenaltyTable[Daily])*$W$10,"") -> 1.496986301 | AB55: 10988.47825 | AF55: =IF(ROW()-ROW(Year2Table[#Headers])=1,$AI$193,IF(AG53="","",IF(AND($B$7<>"",AE55>=$B$7),$C$7,IF(AND($B$6<>"",AE55>=$B$6),$C$6,IF(AE55>=$B$5,$C$5,IF(AE55<$B$5,0)))))) ->  | AH55: =IFERROR(_xlfn.XLOOKUP(YEAR(Year2Table[[#This Row],[Date]])&MONTH(Year2Table[[#This Row],[Date]]),PenaltyTable[Year]&PenaltyTable[Month],PenaltyTable[Daily])*$AG$10,"") ->  | AO55: 1903-07-28 | AP55: 0 | AQ55: 9314.995174 | AR55: =IFERROR(_xlfn.XLOOKUP(YEAR(Year3Table[[#This Row],[Date]])&MONTH(Year3Table[[#This Row],[Date]]),PenaltyTable[Year]&PenaltyTable[Month],PenaltyTable[Daily])*$AQ$10,"") ->  | AV55: 9377.095142 | AY55: 1903-07-28 | AZ55: 0 | BA55: 3326.783991 | BB55: =IFERROR(_xlfn.XLOOKUP(YEAR(Year4Table[[#This Row],[Date]])&MONTH(Year4Table[[#This Row],[Date]]),PenaltyTable[Year]&PenaltyTable[Month],PenaltyTable[Daily])*$BA$10,"") ->  | BF55: 3348.962551 | BI55: 1903-07-28 | BJ55: 0 | BK55: 6653.567981 | BL55: =IFERROR(_xlfn.XLOOKUP(YEAR(Year5Table[[#This Row],[Date]])&MONTH(Year5Table[[#This Row],[Date]]),PenaltyTable[Year]&PenaltyTable[Month],PenaltyTable[Daily])*$BK$10,"") ->  | BP55: 6697.925101 | BS55: 1903-07-28 | BT55: 0 | BU55: 3992.140789 | BV55: =IFERROR(_xlfn.XLOOKUP(YEAR(Year6Table[[#This Row],[Date]])&MONTH(Year6Table[[#This Row],[Date]]),PenaltyTable[Year]&PenaltyTable[Month],PenaltyTable[Daily])*$BU$10,"") ->  | BZ55: 4018.755061 | CC55: 1903-07-28 | CD55: 0 | CE55: 11976.42237 | CF55: =IFERROR(_xlfn.XLOOKUP(YEAR(Year7Table[[#This Row],[Date]])&MONTH(Year7Table[[#This Row],[Date]]),PenaltyTable[Year]&PenaltyTable[Month],PenaltyTable[Daily])*CE$10,"") ->  | CJ55: 12056.26518 | CM55: 1903-07-28 | CN55: 0 | CO55: 15968.56316 | CP55: =IFERROR(_xlfn.XLOOKUP(YEAR(Year8Table[[#This Row],[Date]])&MONTH(Year8Table[[#This Row],[Date]]),PenaltyTable[Year]&PenaltyTable[Month],PenaltyTable[Daily])*$CO$10,"") ->  | CT55: 16075.02024 | CW55: 1903-07-28 | CX55: 0 | CY55: 1131.106557 | CZ55: =IFERROR(_xlfn.XLOOKUP(YEAR(Year9Table[[#This Row],[Date]])&MONTH(Year9Table[[#This Row],[Date]]),PenaltyTable[Year]&PenaltyTable[Month],PenaltyTable[Daily])*$CY$10,"") ->  | DD55: 1138.647267 | DG55: 1903-07-28 | DH55: 0 | DI55: 914.2002406 | DJ55: =IFERROR(_xlfn.XLOOKUP(YEAR(Year10Table[[#This Row],[Date]])&MONTH(Year10Table[[#This Row],[Date]]),PenaltyTable[Year]&PenaltyTable[Month],PenaltyTable[Daily])*$DI$10,"") ->  | DN55: 920.2949089
U56: =IFERROR(IF((ROW()-ROW(Year1Table[#Headers]))=1,IF(OR(Table1[[#This Row],[Tax Assessed]]="",Table1[[#This Row],[Tax Assessed]]=0),"",Table1[[#This Row],[Tax Due Dt]]),IF((ROW()-ROW(Year1Table[#Headers]))>1,IF(OFFSET(AB56,-1,)<1,"",EDATE(U55,1)))),"") -> 2020-12-15 | V56: 0 | W56: 10988.47825 | X56: =IFERROR(_xlfn.XLOOKUP(YEAR(Year1Table[[#This Row],[Date]])&MONTH(Year1Table[[#This Row],[Date]]),PenaltyTable[Year]&PenaltyTable[Month],PenaltyTable[Daily])*$W$10,"") -> 1.496986301 | AB56: 10989.97523 | AF56: =IF(ROW()-ROW(Year2Table[#Headers])=1,$AI$193,IF(AG54="","",IF(AND($B$7<>"",AE56>=$B$7),$C$7,IF(AND($B$6<>"",AE56>=$B$6),$C$6,IF(AE56>=$B$5,$C$5,IF(AE56<$B$5,0)))))) ->  | AH56: =IFERROR(_xlfn.XLOOKUP(YEAR(Year2Table[[#This Row],[Date]])&MONTH(Year2Table[[#This Row],[Date]]),PenaltyTable[Year]&PenaltyTable[Month],PenaltyTable[Daily])*$AG$10,"") ->  | AO56: 1903-08-28 | AP56: 0 | AQ56: 9377.095142 | AR56: =IFERROR(_xlfn.XLOOKUP(YEAR(Year3Table[[#This Row],[Date]])&MONTH(Year3Table[[#This Row],[Date]]),PenaltyTable[Year]&PenaltyTable[Month],PenaltyTable[Daily])*$AQ$10,"") ->  | AV56: 9439.609109 | AY56: 1903-08-28 | AZ56: 0 | BA56: 3348.962551 | BB56: =IFERROR(_xlfn.XLOOKUP(YEAR(Year4Table[[#This Row],[Date]])&MONTH(Year4Table[[#This Row],[Date]]),PenaltyTable[Year]&PenaltyTable[Month],PenaltyTable[Daily])*$BA$10,"") ->  | BF56: 3371.288968 | BI56: 1903-08-28 | BJ56: 0 | BK56: 6697.925101 | BL56: =IFERROR(_xlfn.XLOOKUP(YEAR(Year5Table[[#This Row],[Date]])&MONTH(Year5Table[[#This Row],[Date]]),PenaltyTable[Year]&PenaltyTable[Month],PenaltyTable[Daily])*$BK$10,"") ->  | BP56: 6742.577935 | BS56: 1903-08-28 | BT56: 0 | BU56: 4018.755061 | BV56: =IFERROR(_xlfn.XLOOKUP(YEAR(Year6Table[[#This Row],[Date]])&MONTH(Year6Table[[#This Row],[Date]]),PenaltyTable[Year]&PenaltyTable[Month],PenaltyTable[Daily])*$BU$10,"") ->  | BZ56: 4045.546761 | CC56: 1903-08-28 | CD56: 0 | CE56: 12056.26518 | CF56: =IFERROR(_xlfn.XLOOKUP(YEAR(Year7Table[[#This Row],[Date]])&MONTH(Year7Table[[#This Row],[Date]]),PenaltyTable[Year]&PenaltyTable[Month],PenaltyTable[Daily])*CE$10,"") ->  | CJ56: 12136.64028 | CM56: 1903-08-28 | CN56: 0 | CO56: 16075.02024 | CP56: =IFERROR(_xlfn.XLOOKUP(YEAR(Year8Table[[#This Row],[Date]])&MONTH(Year8Table[[#This Row],[Date]]),PenaltyTable[Year]&PenaltyTable[Month],PenaltyTable[Daily])*$CO$10,"") ->  | CT56: 16182.18704 | CW56: 1903-08-28 | CX56: 0 | CY56: 1138.647267 | CZ56: =IFERROR(_xlfn.XLOOKUP(YEAR(Year9Table[[#This Row],[Date]])&MONTH(Year9Table[[#This Row],[Date]]),PenaltyTable[Year]&PenaltyTable[Month],PenaltyTable[Daily])*$CY$10,"") ->  | DD56: 1146.238249 | DG56: 1903-08-28 | DH56: 0 | DI56: 920.2949089 | DJ56: =IFERROR(_xlfn.XLOOKUP(YEAR(Year10Table[[#This Row],[Date]])&MONTH(Year10Table[[#This Row],[Date]]),PenaltyTable[Year]&PenaltyTable[Month],PenaltyTable[Daily])*$DI$10,"") ->  | DN56: 926.4302083
U57: =IFERROR(IF((ROW()-ROW(Year1Table[#Headers]))=1,IF(OR(Table1[[#This Row],[Tax Assessed]]="",Table1[[#This Row],[Tax Assessed]]=0),"",Table1[[#This Row],[Tax Due Dt]]),IF((ROW()-ROW(Year1Table[#Headers]))>1,IF(OFFSET(AB57,-1,)<1,"",EDATE(U56,1)))),"") -> 2021-01-15 | V57: 0 | W57: 10989.97523 | X57: =IFERROR(_xlfn.XLOOKUP(YEAR(Year1Table[[#This Row],[Date]])&MONTH(Year1Table[[#This Row],[Date]]),PenaltyTable[Year]&PenaltyTable[Month],PenaltyTable[Daily])*$W$10,"") -> 0.8981917808 | AB57: 10990.87342 | AF57: =IF(ROW()-ROW(Year2Table[#Headers])=1,$AI$193,IF(AG55="","",IF(AND($B$7<>"",AE57>=$B$7),$C$7,IF(AND($B$6<>"",AE57>=$B$6),$C$6,IF(AE57>=$B$5,$C$5,IF(AE57<$B$5,0)))))) ->  | AH57: =IFERROR(_xlfn.XLOOKUP(YEAR(Year2Table[[#This Row],[Date]])&MONTH(Year2Table[[#This Row],[Date]]),PenaltyTable[Year]&PenaltyTable[Month],PenaltyTable[Daily])*$AG$10,"") ->  | AO57: 1903-09-28 | AP57: 0 | AQ57: 9439.609109 | AR57: =IFERROR(_xlfn.XLOOKUP(YEAR(Year3Table[[#This Row],[Date]])&MONTH(Year3Table[[#This Row],[Date]]),PenaltyTable[Year]&PenaltyTable[Month],PenaltyTable[Daily])*$AQ$10,"") ->  | AV57: 9502.539837 | AY57: 1903-09-28 | AZ57: 0 | BA57: 3371.288968 | BB57: =IFERROR(_xlfn.XLOOKUP(YEAR(Year4Table[[#This Row],[Date]])&MONTH(Year4Table[[#This Row],[Date]]),PenaltyTable[Year]&PenaltyTable[Month],PenaltyTable[Daily])*$BA$10,"") ->  | BF57: 3393.764227 | BI57: 1903-09-28 | BJ57: 0 | BK57: 6742.577935 | BL57: =IFERROR(_xlfn.XLOOKUP(YEAR(Year5Table[[#This Row],[Date]])&MONTH(Year5Table[[#This Row],[Date]]),PenaltyTable[Year]&PenaltyTable[Month],PenaltyTable[Daily])*$BK$10,"") ->  | BP57: 6787.528455 | BS57: 1903-09-28 | BT57: 0 | BU57: 4045.546761 | BV57: =IFERROR(_xlfn.XLOOKUP(YEAR(Year6Table[[#This Row],[Date]])&MONTH(Year6Table[[#This Row],[Date]]),PenaltyTable[Year]&PenaltyTable[Month],PenaltyTable[Daily])*$BU$10,"") ->  | BZ57: 4072.517073 | CC57: 1903-09-28 | CD57: 0 | CE57: 12136.64028 | CF57: =IFERROR(_xlfn.XLOOKUP(YEAR(Year7Table[[#This Row],[Date]])&MONTH(Year7Table[[#This Row],[Date]]),PenaltyTable[Year]&PenaltyTable[Month],PenaltyTable[Daily])*CE$10,"") ->  | CJ57: 12217.55122 | CM57: 1903-09-28 | CN57: 0 | CO57: 16182.18704 | CP57: =IFERROR(_xlfn.XLOOKUP(YEAR(Year8Table[[#This Row],[Date]])&MONTH(Year8Table[[#This Row],[Date]]),PenaltyTable[Year]&PenaltyTable[Month],PenaltyTable[Daily])*$CO$10,"") ->  | CT57: 16290.06829 | CW57: 1903-09-28 | CX57: 0 | CY57: 1146.238249 | CZ57: =IFERROR(_xlfn.XLOOKUP(YEAR(Year9Table[[#This Row],[Date]])&MONTH(Year9Table[[#This Row],[Date]]),PenaltyTable[Year]&PenaltyTable[Month],PenaltyTable[Daily])*$CY$10,"") ->  | DD57: 1153.879837 | DG57: 1903-09-28 | DH57: 0 | DI57: 926.4302083 | DJ57: =IFERROR(_xlfn.XLOOKUP(YEAR(Year10Table[[#This Row],[Date]])&MONTH(Year10Table[[#This Row],[Date]]),PenaltyTable[Year]&PenaltyTable[Month],PenaltyTable[Daily])*$DI$10,"") ->  | DN57: 932.6064097
U58: =IFERROR(IF((ROW()-ROW(Year1Table[#Headers]))=1,IF(OR(Table1[[#This Row],[Tax Assessed]]="",Table1[[#This Row],[Tax Assessed]]=0),"",Table1[[#This Row],[Tax Due Dt]]),IF((ROW()-ROW(Year1Table[#Headers]))>1,IF(OFFSET(AB58,-1,)<1,"",EDATE(U57,1)))),"") -> 2021-02-15 | V58: 0 | W58: 10990.87342 | X58: =IFERROR(_xlfn.XLOOKUP(YEAR(Year1Table[[#This Row],[Date]])&MONTH(Year1Table[[#This Row],[Date]]),PenaltyTable[Year]&PenaltyTable[Month],PenaltyTable[Daily])*$W$10,"") -> 0.8981917808 | AB58: 10991.77162 | AF58: =IF(ROW()-ROW(Year2Table[#Headers])=1,$AI$193,IF(AG56="","",IF(AND($B$7<>"",AE58>=$B$7),$C$7,IF(AND($B$6<>"",AE58>=$B$6),$C$6,IF(AE58>=$B$5,$C$5,IF(AE58<$B$5,0)))))) ->  | AH58: =IFERROR(_xlfn.XLOOKUP(YEAR(Year2Table[[#This Row],[Date]])&MONTH(Year2Table[[#This Row],[Date]]),PenaltyTable[Year]&PenaltyTable[Month],PenaltyTable[Daily])*$AG$10,"") ->  | AO58: 1903-10-28 | AP58: 0 | AQ58: 9502.539837 | AR58: =IFERROR(_xlfn.XLOOKUP(YEAR(Year3Table[[#This Row],[Date]])&MONTH(Year3Table[[#This Row],[Date]]),PenaltyTable[Year]&PenaltyTable[Month],PenaltyTable[Daily])*$AQ$10,"") ->  | AV58: 9565.890102 | AY58: 1903-10-28 | AZ58: 0 | BA58: 3393.764227 | BB58: =IFERROR(_xlfn.XLOOKUP(YEAR(Year4Table[[#This Row],[Date]])&MONTH(Year4Table[[#This Row],[Date]]),PenaltyTable[Year]&PenaltyTable[Month],PenaltyTable[Daily])*$BA$10,"") ->  | BF58: 3416.389322 | BI58: 1903-10-28 | BJ58: 0 | BK58: 6787.528455 | BL58: =IFERROR(_xlfn.XLOOKUP(YEAR(Year5Table[[#This Row],[Date]])&MONTH(Year5Table[[#This Row],[Date]]),PenaltyTable[Year]&PenaltyTable[Month],PenaltyTable[Daily])*$BK$10,"") ->  | BP58: 6832.778645 | BS58: 1903-10-28 | BT58: 0 | BU58: 4072.517073 | BV58: =IFERROR(_xlfn.XLOOKUP(YEAR(Year6Table[[#This Row],[Date]])&MONTH(Year6Table[[#This Row],[Date]]),PenaltyTable[Year]&PenaltyTable[Month],PenaltyTable[Daily])*$BU$10,"") ->  | BZ58: 4099.667187 | CC58: 1903-10-28 | CD58: 0 | CE58: 12217.55122 | CF58: =IFERROR(_xlfn.XLOOKUP(YEAR(Year7Table[[#This Row],[Date]])&MONTH(Year7Table[[#This Row],[Date]]),PenaltyTable[Year]&PenaltyTable[Month],PenaltyTable[Daily])*CE$10,"") ->  | CJ58: 12299.00156 | CM58: 1903-10-28 | CN58: 0 | CO58: 16290.06829 | CP58: =IFERROR(_xlfn.XLOOKUP(YEAR(Year8Table[[#This Row],[Date]])&MONTH(Year8Table[[#This Row],[Date]]),PenaltyTable[Year]&PenaltyTable[Month],PenaltyTable[Daily])*$CO$10,"") ->  | CT58: 16398.66875 | CW58: 1903-10-28 | CX58: 0 | CY58: 1153.879837 | CZ58: =IFERROR(_xlfn.XLOOKUP(YEAR(Year9Table[[#This Row],[Date]])&MONTH(Year9Table[[#This Row],[Date]]),PenaltyTable[Year]&PenaltyTable[Month],PenaltyTable[Daily])*$CY$10,"") ->  | DD58: 1161.57237 | DG58: 1903-10-28 | DH58: 0 | DI58: 932.6064097 | DJ58: =IFERROR(_xlfn.XLOOKUP(YEAR(Year10Table[[#This Row],[Date]])&MONTH(Year10Table[[#This Row],[Date]]),PenaltyTable[Year]&PenaltyTable[Month],PenaltyTable[Daily])*$DI$10,"") ->  | DN58: 938.8237858
U59: =IFERROR(IF((ROW()-ROW(Year1Table[#Headers]))=1,IF(OR(Table1[[#This Row],[Tax Assessed]]="",Table1[[#This Row],[Tax Assessed]]=0),"",Table1[[#This Row],[Tax Due Dt]]),IF((ROW()-ROW(Year1Table[#Headers]))>1,IF(OFFSET(AB59,-1,)<1,"",EDATE(U58,1)))),"") -> 2021-03-15 | V59: 0 | W59: 10991.77162 | X59: =IFERROR(_xlfn.XLOOKUP(YEAR(Year1Table[[#This Row],[Date]])&MONTH(Year1Table[[#This Row],[Date]]),PenaltyTable[Year]&PenaltyTable[Month],PenaltyTable[Daily])*$W$10,"") -> 0.8981917808 | AB59: 10992.66981 | AF59: =IF(ROW()-ROW(Year2Table[#Headers])=1,$AI$193,IF(AG57="","",IF(AND($B$7<>"",AE59>=$B$7),$C$7,IF(AND($B$6<>"",AE59>=$B$6),$C$6,IF(AE59>=$B$5,$C$5,IF(AE59<$B$5,0)))))) ->  | AH59: =IFERROR(_xlfn.XLOOKUP(YEAR(Year2Table[[#This Row],[Date]])&MONTH(Year2Table[[#This Row],[Date]]),PenaltyTable[Year]&PenaltyTable[Month],PenaltyTable[Daily])*$AG$10,"") ->  | AO59: 1903-11-28 | AP59: 0 | AQ59: 9565.890102 | AR59: =IFERROR(_xlfn.XLOOKUP(YEAR(Year3Table[[#This Row],[Date]])&MONTH(Year3Table[[#This Row],[Date]]),PenaltyTable[Year]&PenaltyTable[Month],PenaltyTable[Daily])*$AQ$10,"") ->  | AV59: 9629.662703 | AY59: 1903-11-28 | AZ59: 0 | BA59: 3416.389322 | BB59: =IFERROR(_xlfn.XLOOKUP(YEAR(Year4Table[[#This Row],[Date]])&MONTH(Year4Table[[#This Row],[Date]]),PenaltyTable[Year]&PenaltyTable[Month],PenaltyTable[Daily])*$BA$10,"") ->  | BF59: 3439.165251 | BI59: 1903-11-28 | BJ59: 0 | BK59: 6832.778645 | BL59: =IFERROR(_xlfn.XLOOKUP(YEAR(Year5Table[[#This Row],[Date]])&MONTH(Year5Table[[#This Row],[Date]]),PenaltyTable[Year]&PenaltyTable[Month],PenaltyTable[Daily])*$BK$10,"") ->  | BP59: 6878.330502 | BS59: 1903-11-28 | BT59: 0 | BU59: 4099.667187 | BV59: =IFERROR(_xlfn.XLOOKUP(YEAR(Year6Table[[#This Row],[Date]])&MONTH(Year6Table[[#This Row],[Date]]),PenaltyTable[Year]&PenaltyTable[Month],PenaltyTable[Daily])*$BU$10,"") ->  | BZ59: 4126.998301 | CC59: 1903-11-28 | CD59: 0 | CE59: 12299.00156 | CF59: =IFERROR(_xlfn.XLOOKUP(YEAR(Year7Table[[#This Row],[Date]])&MONTH(Year7Table[[#This Row],[Date]]),PenaltyTable[Year]&PenaltyTable[Month],PenaltyTable[Daily])*CE$10,"") ->  | CJ59: 12380.9949 | CM59: 1903-11-28 | CN59: 0 | CO59: 16398.66875 | CP59: =IFERROR(_xlfn.XLOOKUP(YEAR(Year8Table[[#This Row],[Date]])&MONTH(Year8Table[[#This Row],[Date]]),PenaltyTable[Year]&PenaltyTable[Month],PenaltyTable[Daily])*$CO$10,"") ->  | CT59: 16507.99321 | CW59: 1903-11-28 | CX59: 0 | CY59: 1161.57237 | CZ59: =IFERROR(_xlfn.XLOOKUP(YEAR(Year9Table[[#This Row],[Date]])&MONTH(Year9Table[[#This Row],[Date]]),PenaltyTable[Year]&PenaltyTable[Month],PenaltyTable[Daily])*$CY$10,"") ->  | DD59: 1169.316185 | DG59: 1903-11-28 | DH59: 0 | DI59: 938.8237858 | DJ59: =IFERROR(_xlfn.XLOOKUP(YEAR(Year10Table[[#This Row],[Date]])&MONTH(Year10Table[[#This Row],[Date]]),PenaltyTable[Year]&PenaltyTable[Month],PenaltyTable[Daily])*$DI$10,"") ->  | DN59: 945.082611
U60: =IFERROR(IF((ROW()-ROW(Year1Table[#Headers]))=1,IF(OR(Table1[[#This Row],[Tax Assessed]]="",Table1[[#This Row],[Tax Assessed]]=0),"",Table1[[#This Row],[Tax Due Dt]]),IF((ROW()-ROW(Year1Table[#Headers]))>1,IF(OFFSET(AB60,-1,)<1,"",EDATE(U59,1)))),"") -> 2021-04-15 | V60: 0 | W60: 10992.66981 | X60: =IFERROR(_xlfn.XLOOKUP(YEAR(Year1Table[[#This Row],[Date]])&MONTH(Year1Table[[#This Row],[Date]]),PenaltyTable[Year]&PenaltyTable[Month],PenaltyTable[Daily])*$W$10,"") -> 0.8981917808 | AB60: 10993.568 | AF60: =IF(ROW()-ROW(Year2Table[#Headers])=1,$AI$193,IF(AG58="","",IF(AND($B$7<>"",AE60>=$B$7),$C$7,IF(AND($B$6<>"",AE60>=$B$6),$C$6,IF(AE60>=$B$5,$C$5,IF(AE60<$B$5,0)))))) ->  | AH60: =IFERROR(_xlfn.XLOOKUP(YEAR(Year2Table[[#This Row],[Date]])&MONTH(Year2Table[[#This Row],[Date]]),PenaltyTable[Year]&PenaltyTable[Month],PenaltyTable[Daily])*$AG$10,"") ->  | AO60: 1903-12-28 | AP60: 0 | AQ60: 9629.662703 | AR60: =IFERROR(_xlfn.XLOOKUP(YEAR(Year3Table[[#This Row],[Date]])&MONTH(Year3Table[[#This Row],[Date]]),PenaltyTable[Year]&PenaltyTable[Month],PenaltyTable[Daily])*$AQ$10,"") ->  | AV60: 9693.860454 | AY60: 1903-12-28 | AZ60: 0 | BA60: 3439.165251 | BB60: =IFERROR(_xlfn.XLOOKUP(YEAR(Year4Table[[#This Row],[Date]])&MONTH(Year4Table[[#This Row],[Date]]),PenaltyTable[Year]&PenaltyTable[Month],PenaltyTable[Daily])*$BA$10,"") ->  | BF60: 3462.093019 | BI60: 1903-12-28 | BJ60: 0 | BK60: 6878.330502 | BL60: =IFERROR(_xlfn.XLOOKUP(YEAR(Year5Table[[#This Row],[Date]])&MONTH(Year5Table[[#This Row],[Date]]),PenaltyTable[Year]&PenaltyTable[Month],PenaltyTable[Daily])*$BK$10,"") ->  | BP60: 6924.186039 | BS60: 1903-12-28 | BT60: 0 | BU60: 4126.998301 | BV60: =IFERROR(_xlfn.XLOOKUP(YEAR(Year6Table[[#This Row],[Date]])&MONTH(Year6Table[[#This Row],[Date]]),PenaltyTable[Year]&PenaltyTable[Month],PenaltyTable[Daily])*$BU$10,"") ->  | BZ60: 4154.511623 | CC60: 1903-12-28 | CD60: 0 | CE60: 12380.9949 | CF60: =IFERROR(_xlfn.XLOOKUP(YEAR(Year7Table[[#This Row],[Date]])&MONTH(Year7Table[[#This Row],[Date]]),PenaltyTable[Year]&PenaltyTable[Month],PenaltyTable[Daily])*CE$10,"") ->  | CJ60: 12463.53487 | CM60: 1903-12-28 | CN60: 0 | CO60: 16507.99321 | CP60: =IFERROR(_xlfn.XLOOKUP(YEAR(Year8Table[[#This Row],[Date]])&MONTH(Year8Table[[#This Row],[Date]]),PenaltyTable[Year]&PenaltyTable[Month],PenaltyTable[Daily])*$CO$10,"") ->  | CT60: 16618.04649 | CW60: 1903-12-28 | CX60: 0 | CY60: 1169.316185 | CZ60: =IFERROR(_xlfn.XLOOKUP(YEAR(Year9Table[[#This Row],[Date]])&MONTH(Year9Table[[#This Row],[Date]]),PenaltyTable[Year]&PenaltyTable[Month],PenaltyTable[Daily])*$CY$10,"") ->  | DD60: 1177.111627 | DG60: 1903-12-28 | DH60: 0 | DI60: 945.082611 | DJ60: =IFERROR(_xlfn.XLOOKUP(YEAR(Year10Table[[#This Row],[Date]])&MONTH(Year10Table[[#This Row],[Date]]),PenaltyTable[Year]&PenaltyTable[Month],PenaltyTable[Daily])*$DI$10,"") ->  | DN60: 951.3831617
U61: =IFERROR(IF((ROW()-ROW(Year1Table[#Headers]))=1,IF(OR(Table1[[#This Row],[Tax Assessed]]="",Table1[[#This Row],[Tax Assessed]]=0),"",Table1[[#This Row],[Tax Due Dt]]),IF((ROW()-ROW(Year1Table[#Headers]))>1,IF(OFFSET(AB61,-1,)<1,"",EDATE(U60,1)))),"") -> 2021-05-15 | V61: 0 | W61: 10993.568 | X61: =IFERROR(_xlfn.XLOOKUP(YEAR(Year1Table[[#This Row],[Date]])&MONTH(Year1Table[[#This Row],[Date]]),PenaltyTable[Year]&PenaltyTable[Month],PenaltyTable[Daily])*$W$10,"") -> 0.8981917808 | AB61: 10994.46619 | AF61: =IF(ROW()-ROW(Year2Table[#Headers])=1,$AI$193,IF(AG59="","",IF(AND($B$7<>"",AE61>=$B$7),$C$7,IF(AND($B$6<>"",AE61>=$B$6),$C$6,IF(AE61>=$B$5,$C$5,IF(AE61<$B$5,0)))))) ->  | AH61: =IFERROR(_xlfn.XLOOKUP(YEAR(Year2Table[[#This Row],[Date]])&MONTH(Year2Table[[#This Row],[Date]]),PenaltyTable[Year]&PenaltyTable[Month],PenaltyTable[Daily])*$AG$10,"") ->  | AO61: 1904-01-28 | AP61: 0 | AQ61: 9693.860454 | AR61: =IFERROR(_xlfn.XLOOKUP(YEAR(Year3Table[[#This Row],[Date]])&MONTH(Year3Table[[#This Row],[Date]]),PenaltyTable[Year]&PenaltyTable[Month],PenaltyTable[Daily])*$AQ$10,"") ->  | AV61: 9758.486191 | AY61: 1904-01-28 | AZ61: 0 | BA61: 3462.093019 | BB61: =IFERROR(_xlfn.XLOOKUP(YEAR(Year4Table[[#This Row],[Date]])&MONTH(Year4Table[[#This Row],[Date]]),PenaltyTable[Year]&PenaltyTable[Month],PenaltyTable[Daily])*$BA$10,"") ->  | BF61: 3485.17364 | BI61: 1904-01-28 | BJ61: 0 | BK61: 6924.186039 | BL61: =IFERROR(_xlfn.XLOOKUP(YEAR(Year5Table[[#This Row],[Date]])&MONTH(Year5Table[[#This Row],[Date]]),PenaltyTable[Year]&PenaltyTable[Month],PenaltyTable[Daily])*$BK$10,"") ->  | BP61: 6970.347279 | BS61: 1904-01-28 | BT61: 0 | BU61: 4154.511623 | BV61: =IFERROR(_xlfn.XLOOKUP(YEAR(Year6Table[[#This Row],[Date]])&MONTH(Year6Table[[#This Row],[Date]]),PenaltyTable[Year]&PenaltyTable[Month],PenaltyTable[Daily])*$BU$10,"") ->  | BZ61: 4182.208367 | CC61: 1904-01-28 | CD61: 0 | CE61: 12463.53487 | CF61: =IFERROR(_xlfn.XLOOKUP(YEAR(Year7Table[[#This Row],[Date]])&MONTH(Year7Table[[#This Row],[Date]]),PenaltyTable[Year]&PenaltyTable[Month],PenaltyTable[Daily])*CE$10,"") ->  | CJ61: 12546.6251 | CM61: 1904-01-28 | CN61: 0 | CO61: 16618.04649 | CP61: =IFERROR(_xlfn.XLOOKUP(YEAR(Year8Table[[#This Row],[Date]])&MONTH(Year8Table[[#This Row],[Date]]),PenaltyTable[Year]&PenaltyTable[Month],PenaltyTable[Daily])*$CO$10,"") ->  | CT61: 16728.83347 | CW61: 1904-01-28 | CX61: 0 | CY61: 1177.111627 | CZ61: =IFERROR(_xlfn.XLOOKUP(YEAR(Year9Table[[#This Row],[Date]])&MONTH(Year9Table[[#This Row],[Date]]),PenaltyTable[Year]&PenaltyTable[Month],PenaltyTable[Daily])*$CY$10,"") ->  | DD61: 1184.959037 | DG61: 1904-01-28 | DH61: 0 | DI61: 951.3831617 | DJ61: =IFERROR(_xlfn.XLOOKUP(YEAR(Year10Table[[#This Row],[Date]])&MONTH(Year10Table[[#This Row],[Date]]),PenaltyTable[Year]&PenaltyTable[Month],PenaltyTable[Daily])*$DI$10,"") ->  | DN61: 957.7257161
U62: =IFERROR(IF((ROW()-ROW(Year1Table[#Headers]))=1,IF(OR(Table1[[#This Row],[Tax Assessed]]="",Table1[[#This Row],[Tax Assessed]]=0),"",Table1[[#This Row],[Tax Due Dt]]),IF((ROW()-ROW(Year1Table[#Headers]))>1,IF(OFFSET(AB62,-1,)<1,"",EDATE(U61,1)))),"") -> 2021-06-15 | V62: 0 | W62: 10994.46619 | X62: =IFERROR(_xlfn.XLOOKUP(YEAR(Year1Table[[#This Row],[Date]])&MONTH(Year1Table[[#This Row],[Date]]),PenaltyTable[Year]&PenaltyTable[Month],PenaltyTable[Daily])*$W$10,"") -> 0.8981917808 | AB62: 10995.36438 | AF62: =IF(ROW()-ROW(Year2Table[#Headers])=1,$AI$193,IF(AG60="","",IF(AND($B$7<>"",AE62>=$B$7),$C$7,IF(AND($B$6<>"",AE62>=$B$6),$C$6,IF(AE62>=$B$5,$C$5,IF(AE62<$B$5,0)))))) ->  | AH62: =IFERROR(_xlfn.XLOOKUP(YEAR(Year2Table[[#This Row],[Date]])&MONTH(Year2Table[[#This Row],[Date]]),PenaltyTable[Year]&PenaltyTable[Month],PenaltyTable[Daily])*$AG$10,"") ->  | AO62: 1904-02-28 | AP62: 0 | AQ62: 9758.486191 | AR62: =IFERROR(_xlfn.XLOOKUP(YEAR(Year3Table[[#This Row],[Date]])&MONTH(Year3Table[[#This Row],[Date]]),PenaltyTable[Year]&PenaltyTable[Month],PenaltyTable[Daily])*$AQ$10,"") ->  | AV62: 9823.542765 | AY62: 1904-02-28 | AZ62: 0 | BA62: 3485.17364 | BB62: =IFERROR(_xlfn.XLOOKUP(YEAR(Year4Table[[#This Row],[Date]])&MONTH(Year4Table[[#This Row],[Date]]),PenaltyTable[Year]&PenaltyTable[Month],PenaltyTable[Daily])*$BA$10,"") ->  | BF62: 3508.40813 | BI62: 1904-02-28 | BJ62: 0 | BK62: 6970.347279 | BL62: =IFERROR(_xlfn.XLOOKUP(YEAR(Year5Table[[#This Row],[Date]])&MONTH(Year5Table[[#This Row],[Date]]),PenaltyTable[Year]&PenaltyTable[Month],PenaltyTable[Daily])*$BK$10,"") ->  | BP62: 7016.816261 | BS62: 1904-02-28 | BT62: 0 | BU62: 4182.208367 | BV62: =IFERROR(_xlfn.XLOOKUP(YEAR(Year6Table[[#This Row],[Date]])&MONTH(Year6Table[[#This Row],[Date]]),PenaltyTable[Year]&PenaltyTable[Month],PenaltyTable[Daily])*$BU$10,"") ->  | BZ62: 4210.089757 | CC62: 1904-02-28 | CD62: 0 | CE62: 12546.6251 | CF62: =IFERROR(_xlfn.XLOOKUP(YEAR(Year7Table[[#This Row],[Date]])&MONTH(Year7Table[[#This Row],[Date]]),PenaltyTable[Year]&PenaltyTable[Month],PenaltyTable[Daily])*CE$10,"") ->  | CJ62: 12630.26927 | CM62: 1904-02-28 | CN62: 0 | CO62: 16728.83347 | CP62: =IFERROR(_xlfn.XLOOKUP(YEAR(Year8Table[[#This Row],[Date]])&MONTH(Year8Table[[#This Row],[Date]]),PenaltyTable[Year]&PenaltyTable[Month],PenaltyTable[Daily])*$CO$10,"") ->  | CT62: 16840.35903 | CW62: 1904-02-28 | CX62: 0 | CY62: 1184.959037 | CZ62: =IFERROR(_xlfn.XLOOKUP(YEAR(Year9Table[[#This Row],[Date]])&MONTH(Year9Table[[#This Row],[Date]]),PenaltyTable[Year]&PenaltyTable[Month],PenaltyTable[Daily])*$CY$10,"") ->  | DD62: 1192.858764 | DG62: 1904-02-28 | DH62: 0 | DI62: 957.7257161 | DJ62: =IFERROR(_xlfn.XLOOKUP(YEAR(Year10Table[[#This Row],[Date]])&MONTH(Year10Table[[#This Row],[Date]]),PenaltyTable[Year]&PenaltyTable[Month],PenaltyTable[Daily])*$DI$10,"") ->  | DN62: 964.1105543
U63: =IFERROR(IF((ROW()-ROW(Year1Table[#Headers]))=1,IF(OR(Table1[[#This Row],[Tax Assessed]]="",Table1[[#This Row],[Tax Assessed]]=0),"",Table1[[#This Row],[Tax Due Dt]]),IF((ROW()-ROW(Year1Table[#Headers]))>1,IF(OFFSET(AB63,-1,)<1,"",EDATE(U62,1)))),"") -> 2021-07-15 | V63: 0 | W63: 10995.36438 | X63: =IFERROR(_xlfn.XLOOKUP(YEAR(Year1Table[[#This Row],[Date]])&MONTH(Year1Table[[#This Row],[Date]]),PenaltyTable[Year]&PenaltyTable[Month],PenaltyTable[Daily])*$W$10,"") -> 0.8981917808 | AB63: 10996.26258 | AF63: =IF(ROW()-ROW(Year2Table[#Headers])=1,$AI$193,IF(AG61="","",IF(AND($B$7<>"",AE63>=$B$7),$C$7,IF(AND($B$6<>"",AE63>=$B$6),$C$6,IF(AE63>=$B$5,$C$5,IF(AE63<$B$5,0)))))) ->  | AH63: =IFERROR(_xlfn.XLOOKUP(YEAR(Year2Table[[#This Row],[Date]])&MONTH(Year2Table[[#This Row],[Date]]),PenaltyTable[Year]&PenaltyTable[Month],PenaltyTable[Daily])*$AG$10,"") ->  | AO63: 1904-03-28 | AP63: 0 | AQ63: 9823.542765 | AR63: =IFERROR(_xlfn.XLOOKUP(YEAR(Year3Table[[#This Row],[Date]])&MONTH(Year3Table[[#This Row],[Date]]),PenaltyTable[Year]&PenaltyTable[Month],PenaltyTable[Daily])*$AQ$10,"") ->  | AV63: 9889.03305 | AY63: 1904-03-28 | AZ63: 0 | BA63: 3508.40813 | BB63: =IFERROR(_xlfn.XLOOKUP(YEAR(Year4Table[[#This Row],[Date]])&MONTH(Year4Table[[#This Row],[Date]]),PenaltyTable[Year]&PenaltyTable[Month],PenaltyTable[Daily])*$BA$10,"") ->  | BF63: 3531.797518 | BI63: 1904-03-28 | BJ63: 0 | BK63: 7016.816261 | BL63: =IFERROR(_xlfn.XLOOKUP(YEAR(Year5Table[[#This Row],[Date]])&MONTH(Year5Table[[#This Row],[Date]]),PenaltyTable[Year]&PenaltyTable[Month],PenaltyTable[Daily])*$BK$10,"") ->  | BP63: 7063.595036 | BS63: 1904-03-28 | BT63: 0 | BU63: 4210.089757 | BV63: =IFERROR(_xlfn.XLOOKUP(YEAR(Year6Table[[#This Row],[Date]])&MONTH(Year6Table[[#This Row],[Date]]),PenaltyTable[Year]&PenaltyTable[Month],PenaltyTable[Daily])*$BU$10,"") ->  | BZ63: 4238.157022 | CC63: 1904-03-28 | CD63: 0 | CE63: 12630.26927 | CF63: =IFERROR(_xlfn.XLOOKUP(YEAR(Year7Table[[#This Row],[Date]])&MONTH(Year7Table[[#This Row],[Date]]),PenaltyTable[Year]&PenaltyTable[Month],PenaltyTable[Daily])*CE$10,"") ->  | CJ63: 12714.47106 | CM63: 1904-03-28 | CN63: 0 | CO63: 16840.35903 | CP63: =IFERROR(_xlfn.XLOOKUP(YEAR(Year8Table[[#This Row],[Date]])&MONTH(Year8Table[[#This Row],[Date]]),PenaltyTable[Year]&PenaltyTable[Month],PenaltyTable[Daily])*$CO$10,"") ->  | CT63: 16952.62809 | CW63: 1904-03-28 | CX63: 0 | CY63: 1192.858764 | CZ63: =IFERROR(_xlfn.XLOOKUP(YEAR(Year9Table[[#This Row],[Date]])&MONTH(Year9Table[[#This Row],[Date]]),PenaltyTable[Year]&PenaltyTable[Month],PenaltyTable[Daily])*$CY$10,"") ->  | DD63: 1200.811156 | DG63: 1904-03-28 | DH63: 0 | DI63: 964.1105543 | DJ63: =IFERROR(_xlfn.XLOOKUP(YEAR(Year10Table[[#This Row],[Date]])&MONTH(Year10Table[[#This Row],[Date]]),PenaltyTable[Year]&PenaltyTable[Month],PenaltyTable[Daily])*$DI$10,"") ->  | DN63: 970.537958
U64: =IFERROR(IF((ROW()-ROW(Year1Table[#Headers]))=1,IF(OR(Table1[[#This Row],[Tax Assessed]]="",Table1[[#This Row],[Tax Assessed]]=0),"",Table1[[#This Row],[Tax Due Dt]]),IF((ROW()-ROW(Year1Table[#Headers]))>1,IF(OFFSET(AB64,-1,)<1,"",EDATE(U63,1)))),"") -> 2021-08-15 | V64: 0 | W64: 10996.26258 | X64: =IFERROR(_xlfn.XLOOKUP(YEAR(Year1Table[[#This Row],[Date]])&MONTH(Year1Table[[#This Row],[Date]]),PenaltyTable[Year]&PenaltyTable[Month],PenaltyTable[Daily])*$W$10,"") -> 0.8981917808 | AB64: 10997.16077 | AF64: =IF(ROW()-ROW(Year2Table[#Headers])=1,$AI$193,IF(AG62="","",IF(AND($B$7<>"",AE64>=$B$7),$C$7,IF(AND($B$6<>"",AE64>=$B$6),$C$6,IF(AE64>=$B$5,$C$5,IF(AE64<$B$5,0)))))) ->  | AH64: =IFERROR(_xlfn.XLOOKUP(YEAR(Year2Table[[#This Row],[Date]])&MONTH(Year2Table[[#This Row],[Date]]),PenaltyTable[Year]&PenaltyTable[Month],PenaltyTable[Daily])*$AG$10,"") ->  | AO64: 1904-04-28 | AP64: 0 | AQ64: 9889.03305 | AR64: =IFERROR(_xlfn.XLOOKUP(YEAR(Year3Table[[#This Row],[Date]])&MONTH(Year3Table[[#This Row],[Date]]),PenaltyTable[Year]&PenaltyTable[Month],PenaltyTable[Daily])*$AQ$10,"") ->  | AV64: 9954.959937 | AY64: 1904-04-28 | AZ64: 0 | BA64: 3531.797518 | BB64: =IFERROR(_xlfn.XLOOKUP(YEAR(Year4Table[[#This Row],[Date]])&MONTH(Year4Table[[#This Row],[Date]]),PenaltyTable[Year]&PenaltyTable[Month],PenaltyTable[Daily])*$BA$10,"") ->  | BF64: 3555.342835 | BI64: 1904-04-28 | BJ64: 0 | BK64: 7063.595036 | BL64: =IFERROR(_xlfn.XLOOKUP(YEAR(Year5Table[[#This Row],[Date]])&MONTH(Year5Table[[#This Row],[Date]]),PenaltyTable[Year]&PenaltyTable[Month],PenaltyTable[Daily])*$BK$10,"") ->  | BP64: 7110.68567 | BS64: 1904-04-28 | BT64: 0 | BU64: 4238.157022 | BV64: =IFERROR(_xlfn.XLOOKUP(YEAR(Year6Table[[#This Row],[Date]])&MONTH(Year6Table[[#This Row],[Date]]),PenaltyTable[Year]&PenaltyTable[Month],PenaltyTable[Daily])*$BU$10,"") ->  | BZ64: 4266.411402 | CC64: 1904-04-28 | CD64: 0 | CE64: 12714.47106 | CF64: =IFERROR(_xlfn.XLOOKUP(YEAR(Year7Table[[#This Row],[Date]])&MONTH(Year7Table[[#This Row],[Date]]),PenaltyTable[Year]&PenaltyTable[Month],PenaltyTable[Daily])*CE$10,"") ->  | CJ64: 12799.23421 | CM64: 1904-04-28 | CN64: 0 | CO64: 16952.62809 | CP64: =IFERROR(_xlfn.XLOOKUP(YEAR(Year8Table[[#This Row],[Date]])&MONTH(Year8Table[[#This Row],[Date]]),PenaltyTable[Year]&PenaltyTable[Month],PenaltyTable[Daily])*$CO$10,"") ->  | CT64: 17065.64561 | CW64: 1904-04-28 | CX64: 0 | CY64: 1200.811156 | CZ64: =IFERROR(_xlfn.XLOOKUP(YEAR(Year9Table[[#This Row],[Date]])&MONTH(Year9Table[[#This Row],[Date]]),PenaltyTable[Year]&PenaltyTable[Month],PenaltyTable[Daily])*$CY$10,"") ->  | DD64: 1208.816564 | DG64: 1904-04-28 | DH64: 0 | DI64: 970.537958 | DJ64: =IFERROR(_xlfn.XLOOKUP(YEAR(Year10Table[[#This Row],[Date]])&MONTH(Year10Table[[#This Row],[Date]]),PenaltyTable[Year]&PenaltyTable[Month],PenaltyTable[Daily])*$DI$10,"") ->  | DN64: 977.008211
U65: =IFERROR(IF((ROW()-ROW(Year1Table[#Headers]))=1,IF(OR(Table1[[#This Row],[Tax Assessed]]="",Table1[[#This Row],[Tax Assessed]]=0),"",Table1[[#This Row],[Tax Due Dt]]),IF((ROW()-ROW(Year1Table[#Headers]))>1,IF(OFFSET(AB65,-1,)<1,"",EDATE(U64,1)))),"") -> 2021-09-15 | V65: 0 | W65: 10997.16077 | X65: =IFERROR(_xlfn.XLOOKUP(YEAR(Year1Table[[#This Row],[Date]])&MONTH(Year1Table[[#This Row],[Date]]),PenaltyTable[Year]&PenaltyTable[Month],PenaltyTable[Daily])*$W$10,"") -> 0.8981917808 | AB65: 10998.05896 | AF65: =IF(ROW()-ROW(Year2Table[#Headers])=1,$AI$193,IF(AG63="","",IF(AND($B$7<>"",AE65>=$B$7),$C$7,IF(AND($B$6<>"",AE65>=$B$6),$C$6,IF(AE65>=$B$5,$C$5,IF(AE65<$B$5,0)))))) ->  | AH65: =IFERROR(_xlfn.XLOOKUP(YEAR(Year2Table[[#This Row],[Date]])&MONTH(Year2Table[[#This Row],[Date]]),PenaltyTable[Year]&PenaltyTable[Month],PenaltyTable[Daily])*$AG$10,"") ->  | AO65: 1904-05-28 | AP65: 0 | AQ65: 9954.959937 | AR65: =IFERROR(_xlfn.XLOOKUP(YEAR(Year3Table[[#This Row],[Date]])&MONTH(Year3Table[[#This Row],[Date]]),PenaltyTable[Year]&PenaltyTable[Month],PenaltyTable[Daily])*$AQ$10,"") ->  | AV65: 10021.32634 | AY65: 1904-05-28 | AZ65: 0 | BA65: 3555.342835 | BB65: =IFERROR(_xlfn.XLOOKUP(YEAR(Year4Table[[#This Row],[Date]])&MONTH(Year4Table[[#This Row],[Date]]),PenaltyTable[Year]&PenaltyTable[Month],PenaltyTable[Daily])*$BA$10,"") ->  | BF65: 3579.04512 | BI65: 1904-05-28 | BJ65: 0 | BK65: 7110.68567 | BL65: =IFERROR(_xlfn.XLOOKUP(YEAR(Year5Table[[#This Row],[Date]])&MONTH(Year5Table[[#This Row],[Date]]),PenaltyTable[Year]&PenaltyTable[Month],PenaltyTable[Daily])*$BK$10,"") ->  | BP65: 7158.090241 | BS65: 1904-05-28 | BT65: 0 | BU65: 4266.411402 | BV65: =IFERROR(_xlfn.XLOOKUP(YEAR(Year6Table[[#This Row],[Date]])&MONTH(Year6Table[[#This Row],[Date]]),PenaltyTable[Year]&PenaltyTable[Month],PenaltyTable[Daily])*$BU$10,"") ->  | BZ65: 4294.854144 | CC65: 1904-05-28 | CD65: 0 | CE65: 12799.23421 | CF65: =IFERROR(_xlfn.XLOOKUP(YEAR(Year7Table[[#This Row],[Date]])&MONTH(Year7Table[[#This Row],[Date]]),PenaltyTable[Year]&PenaltyTable[Month],PenaltyTable[Daily])*CE$10,"") ->  | CJ65: 12884.56243 | CM65: 1904-05-28 | CN65: 0 | CO65: 17065.64561 | CP65: =IFERROR(_xlfn.XLOOKUP(YEAR(Year8Table[[#This Row],[Date]])&MONTH(Year8Table[[#This Row],[Date]]),PenaltyTable[Year]&PenaltyTable[Month],PenaltyTable[Daily])*$CO$10,"") ->  | CT65: 17179.41658 | CW65: 1904-05-28 | CX65: 0 | CY65: 1208.816564 | CZ65: =IFERROR(_xlfn.XLOOKUP(YEAR(Year9Table[[#This Row],[Date]])&MONTH(Year9Table[[#This Row],[Date]]),PenaltyTable[Year]&PenaltyTable[Month],PenaltyTable[Daily])*$CY$10,"") ->  | DD65: 1216.875341 | DG65: 1904-05-28 | DH65: 0 | DI65: 977.008211 | DJ65: =IFERROR(_xlfn.XLOOKUP(YEAR(Year10Table[[#This Row],[Date]])&MONTH(Year10Table[[#This Row],[Date]]),PenaltyTable[Year]&PenaltyTable[Month],PenaltyTable[Daily])*$DI$10,"") ->  | DN65: 983.5215991
U66: =IFERROR(IF((ROW()-ROW(Year1Table[#Headers]))=1,IF(OR(Table1[[#This Row],[Tax Assessed]]="",Table1[[#This Row],[Tax Assessed]]=0),"",Table1[[#This Row],[Tax Due Dt]]),IF((ROW()-ROW(Year1Table[#Headers]))>1,IF(OFFSET(AB66,-1,)<1,"",EDATE(U65,1)))),"") -> 2021-10-15 | V66: 0 | W66: 10998.05896 | X66: =IFERROR(_xlfn.XLOOKUP(YEAR(Year1Table[[#This Row],[Date]])&MONTH(Year1Table[[#This Row],[Date]]),PenaltyTable[Year]&PenaltyTable[Month],PenaltyTable[Daily])*$W$10,"") -> 0.8981917808 | AB66: 10998.95715 | AF66: =IF(ROW()-ROW(Year2Table[#Headers])=1,$AI$193,IF(AG64="","",IF(AND($B$7<>"",AE66>=$B$7),$C$7,IF(AND($B$6<>"",AE66>=$B$6),$C$6,IF(AE66>=$B$5,$C$5,IF(AE66<$B$5,0)))))) ->  | AH66: =IFERROR(_xlfn.XLOOKUP(YEAR(Year2Table[[#This Row],[Date]])&MONTH(Year2Table[[#This Row],[Date]]),PenaltyTable[Year]&PenaltyTable[Month],PenaltyTable[Daily])*$AG$10,"") ->  | AO66: 1904-06-28 | AP66: 0 | AQ66: 10021.32634 | AR66: =IFERROR(_xlfn.XLOOKUP(YEAR(Year3Table[[#This Row],[Date]])&MONTH(Year3Table[[#This Row],[Date]]),PenaltyTable[Year]&PenaltyTable[Month],PenaltyTable[Daily])*$AQ$10,"") ->  | AV66: 10088.13518 | AY66: 1904-06-28 | AZ66: 0 | BA66: 3579.04512 | BB66: =IFERROR(_xlfn.XLOOKUP(YEAR(Year4Table[[#This Row],[Date]])&MONTH(Year4Table[[#This Row],[Date]]),PenaltyTable[Year]&PenaltyTable[Month],PenaltyTable[Daily])*$BA$10,"") ->  | BF66: 3602.905421 | BI66: 1904-06-28 | BJ66: 0 | BK66: 7158.090241 | BL66: =IFERROR(_xlfn.XLOOKUP(YEAR(Year5Table[[#This Row],[Date]])&MONTH(Year5Table[[#This Row],[Date]]),PenaltyTable[Year]&PenaltyTable[Month],PenaltyTable[Daily])*$BK$10,"") ->  | BP66: 7205.810842 | BS66: 1904-06-28 | BT66: 0 | BU66: 4294.854144 | BV66: =IFERROR(_xlfn.XLOOKUP(YEAR(Year6Table[[#This Row],[Date]])&MONTH(Year6Table[[#This Row],[Date]]),PenaltyTable[Year]&PenaltyTable[Month],PenaltyTable[Daily])*$BU$10,"") ->  | BZ66: 4323.486505 | CC66: 1904-06-28 | CD66: 0 | CE66: 12884.56243 | CF66: =IFERROR(_xlfn.XLOOKUP(YEAR(Year7Table[[#This Row],[Date]])&MONTH(Year7Table[[#This Row],[Date]]),PenaltyTable[Year]&PenaltyTable[Month],PenaltyTable[Daily])*CE$10,"") ->  | CJ66: 12970.45952 | CM66: 1904-06-28 | CN66: 0 | CO66: 17179.41658 | CP66: =IFERROR(_xlfn.XLOOKUP(YEAR(Year8Table[[#This Row],[Date]])&MONTH(Year8Table[[#This Row],[Date]]),PenaltyTable[Year]&PenaltyTable[Month],PenaltyTable[Daily])*$CO$10,"") ->  | CT66: 17293.94602 | CW66: 1904-06-28 | CX66: 0 | CY66: 1216.875341 | CZ66: =IFERROR(_xlfn.XLOOKUP(YEAR(Year9Table[[#This Row],[Date]])&MONTH(Year9Table[[#This Row],[Date]]),PenaltyTable[Year]&PenaltyTable[Month],PenaltyTable[Daily])*$CY$10,"") ->  | DD66: 1224.987843 | DG66: 1904-06-28 | DH66: 0 | DI66: 983.5215991 | DJ66: =IFERROR(_xlfn.XLOOKUP(YEAR(Year10Table[[#This Row],[Date]])&MONTH(Year10Table[[#This Row],[Date]]),PenaltyTable[Year]&PenaltyTable[Month],PenaltyTable[Daily])*$DI$10,"") ->  | DN66: 990.0784097
U67: =IFERROR(IF((ROW()-ROW(Year1Table[#Headers]))=1,IF(OR(Table1[[#This Row],[Tax Assessed]]="",Table1[[#This Row],[Tax Assessed]]=0),"",Table1[[#This Row],[Tax Due Dt]]),IF((ROW()-ROW(Year1Table[#Headers]))>1,IF(OFFSET(AB67,-1,)<1,"",EDATE(U66,1)))),"") -> 2021-11-15 | V67: 0 | W67: 10998.95715 | X67: =IFERROR(_xlfn.XLOOKUP(YEAR(Year1Table[[#This Row],[Date]])&MONTH(Year1Table[[#This Row],[Date]]),PenaltyTable[Year]&PenaltyTable[Month],PenaltyTable[Daily])*$W$10,"") -> 0.8981917808 | AB67: 10999.85534 | AF67: =IF(ROW()-ROW(Year2Table[#Headers])=1,$AI$193,IF(AG65="","",IF(AND($B$7<>"",AE67>=$B$7),$C$7,IF(AND($B$6<>"",AE67>=$B$6),$C$6,IF(AE67>=$B$5,$C$5,IF(AE67<$B$5,0)))))) ->  | AH67: =IFERROR(_xlfn.XLOOKUP(YEAR(Year2Table[[#This Row],[Date]])&MONTH(Year2Table[[#This Row],[Date]]),PenaltyTable[Year]&PenaltyTable[Month],PenaltyTable[Daily])*$AG$10,"") ->  | AO67: 1904-07-28 | AP67: 0 | AQ67: 10088.13518 | AR67: =IFERROR(_xlfn.XLOOKUP(YEAR(Year3Table[[#This Row],[Date]])&MONTH(Year3Table[[#This Row],[Date]]),PenaltyTable[Year]&PenaltyTable[Month],PenaltyTable[Daily])*$AQ$10,"") ->  | AV67: 10155.38941 | AY67: 1904-07-28 | AZ67: 0 | BA67: 3602.905421 | BB67: =IFERROR(_xlfn.XLOOKUP(YEAR(Year4Table[[#This Row],[Date]])&MONTH(Year4Table[[#This Row],[Date]]),PenaltyTable[Year]&PenaltyTable[Month],PenaltyTable[Daily])*$BA$10,"") ->  | BF67: 3626.924791 | BI67: 1904-07-28 | BJ67: 0 | BK67: 7205.810842 | BL67: =IFERROR(_xlfn.XLOOKUP(YEAR(Year5Table[[#This Row],[Date]])&MONTH(Year5Table[[#This Row],[Date]]),PenaltyTable[Year]&PenaltyTable[Month],PenaltyTable[Daily])*$BK$10,"") ->  | BP67: 7253.849581 | BS67: 1904-07-28 | BT67: 0 | BU67: 4323.486505 | BV67: =IFERROR(_xlfn.XLOOKUP(YEAR(Year6Table[[#This Row],[Date]])&MONTH(Year6Table[[#This Row],[Date]]),PenaltyTable[Year]&PenaltyTable[Month],PenaltyTable[Daily])*$BU$10,"") ->  | BZ67: 4352.309749 | CC67: 1904-07-28 | CD67: 0 | CE67: 12970.45952 | CF67: =IFERROR(_xlfn.XLOOKUP(YEAR(Year7Table[[#This Row],[Date]])&MONTH(Year7Table[[#This Row],[Date]]),PenaltyTable[Year]&PenaltyTable[Month],PenaltyTable[Daily])*CE$10,"") ->  | CJ67: 13056.92925 | CM67: 1904-07-28 | CN67: 0 | CO67: 17293.94602 | CP67: =IFERROR(_xlfn.XLOOKUP(YEAR(Year8Table[[#This Row],[Date]])&MONTH(Year8Table[[#This Row],[Date]]),PenaltyTable[Year]&PenaltyTable[Month],PenaltyTable[Daily])*$CO$10,"") ->  | CT67: 17409.239 | CW67: 1904-07-28 | CX67: 0 | CY67: 1224.987843 | CZ67: =IFERROR(_xlfn.XLOOKUP(YEAR(Year9Table[[#This Row],[Date]])&MONTH(Year9Table[[#This Row],[Date]]),PenaltyTable[Year]&PenaltyTable[Month],PenaltyTable[Daily])*$CY$10,"") ->  | DD67: 1233.154429 | DG67: 1904-07-28 | DH67: 0 | DI67: 990.0784097 | DJ67: =IFERROR(_xlfn.XLOOKUP(YEAR(Year10Table[[#This Row],[Date]])&MONTH(Year10Table[[#This Row],[Date]]),PenaltyTable[Year]&PenaltyTable[Month],PenaltyTable[Daily])*$DI$10,"") ->  | DN67: 996.6789325
U68: =IFERROR(IF((ROW()-ROW(Year1Table[#Headers]))=1,IF(OR(Table1[[#This Row],[Tax Assessed]]="",Table1[[#This Row],[Tax Assessed]]=0),"",Table1[[#This Row],[Tax Due Dt]]),IF((ROW()-ROW(Year1Table[#Headers]))>1,IF(OFFSET(AB68,-1,)<1,"",EDATE(U67,1)))),"") -> 2021-12-15 | V68: 0 | W68: 10999.85534 | X68: =IFERROR(_xlfn.XLOOKUP(YEAR(Year1Table[[#This Row],[Date]])&MONTH(Year1Table[[#This Row],[Date]]),PenaltyTable[Year]&PenaltyTable[Month],PenaltyTable[Daily])*$W$10,"") -> 0.8981917808 | AB68: 11000.75353 | AF68: =IF(ROW()-ROW(Year2Table[#Headers])=1,$AI$193,IF(AG66="","",IF(AND($B$7<>"",AE68>=$B$7),$C$7,IF(AND($B$6<>"",AE68>=$B$6),$C$6,IF(AE68>=$B$5,$C$5,IF(AE68<$B$5,0)))))) ->  | AH68: =IFERROR(_xlfn.XLOOKUP(YEAR(Year2Table[[#This Row],[Date]])&MONTH(Year2Table[[#This Row],[Date]]),PenaltyTable[Year]&PenaltyTable[Month],PenaltyTable[Daily])*$AG$10,"") ->  | AO68: 1904-08-28 | AP68: 0 | AQ68: 10155.38941 | AR68: =IFERROR(_xlfn.XLOOKUP(YEAR(Year3Table[[#This Row],[Date]])&MONTH(Year3Table[[#This Row],[Date]]),PenaltyTable[Year]&PenaltyTable[Month],PenaltyTable[Daily])*$AQ$10,"") ->  | AV68: 10223.09201 | AY68: 1904-08-28 | AZ68: 0 | BA68: 3626.924791 | BB68: =IFERROR(_xlfn.XLOOKUP(YEAR(Year4Table[[#This Row],[Date]])&MONTH(Year4Table[[#This Row],[Date]]),PenaltyTable[Year]&PenaltyTable[Month],PenaltyTable[Daily])*$BA$10,"") ->  | BF68: 3651.104289 | BI68: 1904-08-28 | BJ68: 0 | BK68: 7253.849581 | BL68: =IFERROR(_xlfn.XLOOKUP(YEAR(Year5Table[[#This Row],[Date]])&MONTH(Year5Table[[#This Row],[Date]]),PenaltyTable[Year]&PenaltyTable[Month],PenaltyTable[Daily])*$BK$10,"") ->  | BP68: 7302.208579 | BS68: 1904-08-28 | BT68: 0 | BU68: 4352.309749 | BV68: =IFERROR(_xlfn.XLOOKUP(YEAR(Year6Table[[#This Row],[Date]])&MONTH(Year6Table[[#This Row],[Date]]),PenaltyTable[Year]&PenaltyTable[Month],PenaltyTable[Daily])*$BU$10,"") ->  | BZ68: 4381.325147 | CC68: 1904-08-28 | CD68: 0 | CE68: 13056.92925 | CF68: =IFERROR(_xlfn.XLOOKUP(YEAR(Year7Table[[#This Row],[Date]])&MONTH(Year7Table[[#This Row],[Date]]),PenaltyTable[Year]&PenaltyTable[Month],PenaltyTable[Daily])*CE$10,"") ->  | CJ68: 13143.97544 | CM68: 1904-08-28 | CN68: 0 | CO68: 17409.239 | CP68: =IFERROR(_xlfn.XLOOKUP(YEAR(Year8Table[[#This Row],[Date]])&MONTH(Year8Table[[#This Row],[Date]]),PenaltyTable[Year]&PenaltyTable[Month],PenaltyTable[Daily])*$CO$10,"") ->  | CT68: 17525.30059 | CW68: 1904-08-28 | CX68: 0 | CY68: 1233.154429 | CZ68: =IFERROR(_xlfn.XLOOKUP(YEAR(Year9Table[[#This Row],[Date]])&MONTH(Year9Table[[#This Row],[Date]]),PenaltyTable[Year]&PenaltyTable[Month],PenaltyTable[Daily])*$CY$10,"") ->  | DD68: 1241.375458 | DG68: 1904-08-28 | DH68: 0 | DI68: 996.6789325 | DJ68: =IFERROR(_xlfn.XLOOKUP(YEAR(Year10Table[[#This Row],[Date]])&MONTH(Year10Table[[#This Row],[Date]]),PenaltyTable[Year]&PenaltyTable[Month],PenaltyTable[Daily])*$DI$10,"") ->  | DN68: 1003.323459
U69: =IFERROR(IF((ROW()-ROW(Year1Table[#Headers]))=1,IF(OR(Table1[[#This Row],[Tax Assessed]]="",Table1[[#This Row],[Tax Assessed]]=0),"",Table1[[#This Row],[Tax Due Dt]]),IF((ROW()-ROW(Year1Table[#Headers]))>1,IF(OFFSET(AB69,-1,)<1,"",EDATE(U68,1)))),"") -> 2022-01-15 | V69: 0 | W69: 11000.75353 | X69: =IFERROR(_xlfn.XLOOKUP(YEAR(Year1Table[[#This Row],[Date]])&MONTH(Year1Table[[#This Row],[Date]]),PenaltyTable[Year]&PenaltyTable[Month],PenaltyTable[Daily])*$W$10,"") -> 1.796383562 | AB69: 11002.54992 | AF69: =IF(ROW()-ROW(Year2Table[#Headers])=1,$AI$193,IF(AG67="","",IF(AND($B$7<>"",AE69>=$B$7),$C$7,IF(AND($B$6<>"",AE69>=$B$6),$C$6,IF(AE69>=$B$5,$C$5,IF(AE69<$B$5,0)))))) ->  | AH69: =IFERROR(_xlfn.XLOOKUP(YEAR(Year2Table[[#This Row],[Date]])&MONTH(Year2Table[[#This Row],[Date]]),PenaltyTable[Year]&PenaltyTable[Month],PenaltyTable[Daily])*$AG$10,"") ->  | AO69: 1904-09-28 | AP69: 0 | AQ69: 10223.09201 | AR69: =IFERROR(_xlfn.XLOOKUP(YEAR(Year3Table[[#This Row],[Date]])&MONTH(Year3Table[[#This Row],[Date]]),PenaltyTable[Year]&PenaltyTable[Month],PenaltyTable[Daily])*$AQ$10,"") ->  | AV69: 10291.24596 | AY69: 1904-09-28 | AZ69: 0 | BA69: 3651.104289 | BB69: =IFERROR(_xlfn.XLOOKUP(YEAR(Year4Table[[#This Row],[Date]])&MONTH(Year4Table[[#This Row],[Date]]),PenaltyTable[Year]&PenaltyTable[Month],PenaltyTable[Daily])*$BA$10,"") ->  | BF69: 3675.444985 | BI69: 1904-09-28 | BJ69: 0 | BK69: 7302.208579 | BL69: =IFERROR(_xlfn.XLOOKUP(YEAR(Year5Table[[#This Row],[Date]])&MONTH(Year5Table[[#This Row],[Date]]),PenaltyTable[Year]&PenaltyTable[Month],PenaltyTable[Daily])*$BK$10,"") ->  | BP69: 7350.889969 | BS69: 1904-09-28 | BT69: 0 | BU69: 4381.325147 | BV69: =IFERROR(_xlfn.XLOOKUP(YEAR(Year6Table[[#This Row],[Date]])&MONTH(Year6Table[[#This Row],[Date]]),PenaltyTable[Year]&PenaltyTable[Month],PenaltyTable[Daily])*$BU$10,"") ->  | BZ69: 4410.533981 | CC69: 1904-09-28 | CD69: 0 | CE69: 13143.97544 | CF69: =IFERROR(_xlfn.XLOOKUP(YEAR(Year7Table[[#This Row],[Date]])&MONTH(Year7Table[[#This Row],[Date]]),PenaltyTable[Year]&PenaltyTable[Month],PenaltyTable[Daily])*CE$10,"") ->  | CJ69: 13231.60194 | CM69: 1904-09-28 | CN69: 0 | CO69: 17525.30059 | CP69: =IFERROR(_xlfn.XLOOKUP(YEAR(Year8Table[[#This Row],[Date]])&MONTH(Year8Table[[#This Row],[Date]]),PenaltyTable[Year]&PenaltyTable[Month],PenaltyTable[Daily])*$CO$10,"") ->  | CT69: 17642.13593 | CW69: 1904-09-28 | CX69: 0 | CY69: 1241.375458 | CZ69: =IFERROR(_xlfn.XLOOKUP(YEAR(Year9Table[[#This Row],[Date]])&MONTH(Year9Table[[#This Row],[Date]]),PenaltyTable[Year]&PenaltyTable[Month],PenaltyTable[Daily])*$CY$10,"") ->  | DD69: 1249.651295 | DG69: 1904-09-28 | DH69: 0 | DI69: 1003.323459 | DJ69: =IFERROR(_xlfn.XLOOKUP(YEAR(Year10Table[[#This Row],[Date]])&MONTH(Year10Table[[#This Row],[Date]]),PenaltyTable[Year]&PenaltyTable[Month],PenaltyTable[Daily])*$DI$10,"") ->  | DN69: 1010.012282
U70: =IFERROR(IF((ROW()-ROW(Year1Table[#Headers]))=1,IF(OR(Table1[[#This Row],[Tax Assessed]]="",Table1[[#This Row],[Tax Assessed]]=0),"",Table1[[#This Row],[Tax Due Dt]]),IF((ROW()-ROW(Year1Table[#Headers]))>1,IF(OFFSET(AB70,-1,)<1,"",EDATE(U69,1)))),"") -> 2022-02-15 | V70: 0 | W70: 11002.54992 | X70: =IFERROR(_xlfn.XLOOKUP(YEAR(Year1Table[[#This Row],[Date]])&MONTH(Year1Table[[#This Row],[Date]]),PenaltyTable[Year]&PenaltyTable[Month],PenaltyTable[Daily])*$W$10,"") -> 1.796383562 | AB70: 11004.3463 | AF70: =IF(ROW()-ROW(Year2Table[#Headers])=1,$AI$193,IF(AG68="","",IF(AND($B$7<>"",AE70>=$B$7),$C$7,IF(AND($B$6<>"",AE70>=$B$6),$C$6,IF(AE70>=$B$5,$C$5,IF(AE70<$B$5,0)))))) ->  | AH70: =IFERROR(_xlfn.XLOOKUP(YEAR(Year2Table[[#This Row],[Date]])&MONTH(Year2Table[[#This Row],[Date]]),PenaltyTable[Year]&PenaltyTable[Month],PenaltyTable[Daily])*$AG$10,"") ->  | AO70: 1904-10-28 | AP70: 0 | AQ70: 10291.24596 | AR70: =IFERROR(_xlfn.XLOOKUP(YEAR(Year3Table[[#This Row],[Date]])&MONTH(Year3Table[[#This Row],[Date]]),PenaltyTable[Year]&PenaltyTable[Month],PenaltyTable[Daily])*$AQ$10,"") ->  | AV70: 10359.85426 | AY70: 1904-10-28 | AZ70: 0 | BA70: 3675.444985 | BB70: =IFERROR(_xlfn.XLOOKUP(YEAR(Year4Table[[#This Row],[Date]])&MONTH(Year4Table[[#This Row],[Date]]),PenaltyTable[Year]&PenaltyTable[Month],PenaltyTable[Daily])*$BA$10,"") ->  | BF70: 3699.947951 | BI70: 1904-10-28 | BJ70: 0 | BK70: 7350.889969 | BL70: =IFERROR(_xlfn.XLOOKUP(YEAR(Year5Table[[#This Row],[Date]])&MONTH(Year5Table[[#This Row],[Date]]),PenaltyTable[Year]&PenaltyTable[Month],PenaltyTable[Daily])*$BK$10,"") ->  | BP70: 7399.895902 | BS70: 1904-10-28 | BT70: 0 | BU70: 4410.533981 | BV70: =IFERROR(_xlfn.XLOOKUP(YEAR(Year6Table[[#This Row],[Date]])&MONTH(Year6Table[[#This Row],[Date]]),PenaltyTable[Year]&PenaltyTable[Month],PenaltyTable[Daily])*$BU$10,"") ->  | BZ70: 4439.937541 | CC70: 1904-10-28 | CD70: 0 | CE70: 13231.60194 | CF70: =IFERROR(_xlfn.XLOOKUP(YEAR(Year7Table[[#This Row],[Date]])&MONTH(Year7Table[[#This Row],[Date]]),PenaltyTable[Year]&PenaltyTable[Month],PenaltyTable[Daily])*CE$10,"") ->  | CJ70: 13319.81262 | CM70: 1904-10-28 | CN70: 0 | CO70: 17642.13593 | CP70: =IFERROR(_xlfn.XLOOKUP(YEAR(Year8Table[[#This Row],[Date]])&MONTH(Year8Table[[#This Row],[Date]]),PenaltyTable[Year]&PenaltyTable[Month],PenaltyTable[Daily])*$CO$10,"") ->  | CT70: 17759.75017 | CW70: 1904-10-28 | CX70: 0 | CY70: 1249.651295 | CZ70: =IFERROR(_xlfn.XLOOKUP(YEAR(Year9Table[[#This Row],[Date]])&MONTH(Year9Table[[#This Row],[Date]]),PenaltyTable[Year]&PenaltyTable[Month],PenaltyTable[Daily])*$CY$10,"") ->  | DD70: 1257.982303 | DG70: 1904-10-28 | DH70: 0 | DI70: 1010.012282 | DJ70: =IFERROR(_xlfn.XLOOKUP(YEAR(Year10Table[[#This Row],[Date]])&MONTH(Year10Table[[#This Row],[Date]]),PenaltyTable[Year]&PenaltyTable[Month],PenaltyTable[Daily])*$DI$10,"") ->  | DN70: 1016.745697
U71: =IFERROR(IF((ROW()-ROW(Year1Table[#Headers]))=1,IF(OR(Table1[[#This Row],[Tax Assessed]]="",Table1[[#This Row],[Tax Assessed]]=0),"",Table1[[#This Row],[Tax Due Dt]]),IF((ROW()-ROW(Year1Table[#Headers]))>1,IF(OFFSET(AB71,-1,)<1,"",EDATE(U70,1)))),"") -> 2022-03-15 | V71: 0 | W71: 11004.3463 | X71: =IFERROR(_xlfn.XLOOKUP(YEAR(Year1Table[[#This Row],[Date]])&MONTH(Year1Table[[#This Row],[Date]]),PenaltyTable[Year]&PenaltyTable[Month],PenaltyTable[Daily])*$W$10,"") -> 1.796383562 | AB71: 11006.14268 | AF71: =IF(ROW()-ROW(Year2Table[#Headers])=1,$AI$193,IF(AG69="","",IF(AND($B$7<>"",AE71>=$B$7),$C$7,IF(AND($B$6<>"",AE71>=$B$6),$C$6,IF(AE71>=$B$5,$C$5,IF(AE71<$B$5,0)))))) ->  | AH71: =IFERROR(_xlfn.XLOOKUP(YEAR(Year2Table[[#This Row],[Date]])&MONTH(Year2Table[[#This Row],[Date]]),PenaltyTable[Year]&PenaltyTable[Month],PenaltyTable[Daily])*$AG$10,"") ->  | AO71: 1904-11-28 | AP71: 0 | AQ71: 10359.85426 | AR71: =IFERROR(_xlfn.XLOOKUP(YEAR(Year3Table[[#This Row],[Date]])&MONTH(Year3Table[[#This Row],[Date]]),PenaltyTable[Year]&PenaltyTable[Month],PenaltyTable[Daily])*$AQ$10,"") ->  | AV71: 10428.91996 | AY71: 1904-11-28 | AZ71: 0 | BA71: 3699.947951 | BB71: =IFERROR(_xlfn.XLOOKUP(YEAR(Year4Table[[#This Row],[Date]])&MONTH(Year4Table[[#This Row],[Date]]),PenaltyTable[Year]&PenaltyTable[Month],PenaltyTable[Daily])*$BA$10,"") ->  | BF71: 3724.614271 | BI71: 1904-11-28 | BJ71: 0 | BK71: 7399.895902 | BL71: =IFERROR(_xlfn.XLOOKUP(YEAR(Year5Table[[#This Row],[Date]])&MONTH(Year5Table[[#This Row],[Date]]),PenaltyTable[Year]&PenaltyTable[Month],PenaltyTable[Daily])*$BK$10,"") ->  | BP71: 7449.228542 | BS71: 1904-11-28 | BT71: 0 | BU71: 4439.937541 | BV71: =IFERROR(_xlfn.XLOOKUP(YEAR(Year6Table[[#This Row],[Date]])&MONTH(Year6Table[[#This Row],[Date]]),PenaltyTable[Year]&PenaltyTable[Month],PenaltyTable[Daily])*$BU$10,"") ->  | BZ71: 4469.537125 | CC71: 1904-11-28 | CD71: 0 | CE71: 13319.81262 | CF71: =IFERROR(_xlfn.XLOOKUP(YEAR(Year7Table[[#This Row],[Date]])&MONTH(Year7Table[[#This Row],[Date]]),PenaltyTable[Year]&PenaltyTable[Month],PenaltyTable[Daily])*CE$10,"") ->  | CJ71: 13408.61137 | CM71: 1904-11-28 | CN71: 0 | CO71: 17759.75017 | CP71: =IFERROR(_xlfn.XLOOKUP(YEAR(Year8Table[[#This Row],[Date]])&MONTH(Year8Table[[#This Row],[Date]]),PenaltyTable[Year]&PenaltyTable[Month],PenaltyTable[Daily])*$CO$10,"") ->  | CT71: 17878.1485 | CW71: 1904-11-28 | CX71: 0 | CY71: 1257.982303 | CZ71: =IFERROR(_xlfn.XLOOKUP(YEAR(Year9Table[[#This Row],[Date]])&MONTH(Year9Table[[#This Row],[Date]]),PenaltyTable[Year]&PenaltyTable[Month],PenaltyTable[Daily])*$CY$10,"") ->  | DD71: 1266.368852 | DG71: 1904-11-28 | DH71: 0 | DI71: 1016.745697 | DJ71: =IFERROR(_xlfn.XLOOKUP(YEAR(Year10Table[[#This Row],[Date]])&MONTH(Year10Table[[#This Row],[Date]]),PenaltyTable[Year]&PenaltyTable[Month],PenaltyTable[Daily])*$DI$10,"") ->  | DN71: 1023.524002
U72: =IFERROR(IF((ROW()-ROW(Year1Table[#Headers]))=1,IF(OR(Table1[[#This Row],[Tax Assessed]]="",Table1[[#This Row],[Tax Assessed]]=0),"",Table1[[#This Row],[Tax Due Dt]]),IF((ROW()-ROW(Year1Table[#Headers]))>1,IF(OFFSET(AB72,-1,)<1,"",EDATE(U71,1)))),"") -> 2022-04-15 | V72: 0 | W72: 11006.14268 | X72: =IFERROR(_xlfn.XLOOKUP(YEAR(Year1Table[[#This Row],[Date]])&MONTH(Year1Table[[#This Row],[Date]]),PenaltyTable[Year]&PenaltyTable[Month],PenaltyTable[Daily])*$W$10,"") -> 1.496986301 | AB72: 11007.63967 | AF72: =IF(ROW()-ROW(Year2Table[#Headers])=1,$AI$193,IF(AG70="","",IF(AND($B$7<>"",AE72>=$B$7),$C$7,IF(AND($B$6<>"",AE72>=$B$6),$C$6,IF(AE72>=$B$5,$C$5,IF(AE72<$B$5,0)))))) ->  | AH72: =IFERROR(_xlfn.XLOOKUP(YEAR(Year2Table[[#This Row],[Date]])&MONTH(Year2Table[[#This Row],[Date]]),PenaltyTable[Year]&PenaltyTable[Month],PenaltyTable[Daily])*$AG$10,"") ->  | AO72: 1904-12-28 | AP72: 0 | AQ72: 10428.91996 | AR72: =IFERROR(_xlfn.XLOOKUP(YEAR(Year3Table[[#This Row],[Date]])&MONTH(Year3Table[[#This Row],[Date]]),PenaltyTable[Year]&PenaltyTable[Month],PenaltyTable[Daily])*$AQ$10,"") ->  | AV72: 10498.44609 | AY72: 1904-12-28 | AZ72: 0 | BA72: 3724.614271 | BB72: =IFERROR(_xlfn.XLOOKUP(YEAR(Year4Table[[#This Row],[Date]])&MONTH(Year4Table[[#This Row],[Date]]),PenaltyTable[Year]&PenaltyTable[Month],PenaltyTable[Daily])*$BA$10,"") ->  | BF72: 3749.445033 | BI72: 1904-12-28 | BJ72: 0 | BK72: 7449.228542 | BL72: =IFERROR(_xlfn.XLOOKUP(YEAR(Year5Table[[#This Row],[Date]])&MONTH(Year5Table[[#This Row],[Date]]),PenaltyTable[Year]&PenaltyTable[Month],PenaltyTable[Daily])*$BK$10,"") ->  | BP72: 7498.890065 | BS72: 1904-12-28 | BT72: 0 | BU72: 4469.537125 | BV72: =IFERROR(_xlfn.XLOOKUP(YEAR(Year6Table[[#This Row],[Date]])&MONTH(Year6Table[[#This Row],[Date]]),PenaltyTable[Year]&PenaltyTable[Month],PenaltyTable[Daily])*$BU$10,"") ->  | BZ72: 4499.334039 | CC72: 1904-12-28 | CD72: 0 | CE72: 13408.61137 | CF72: =IFERROR(_xlfn.XLOOKUP(YEAR(Year7Table[[#This Row],[Date]])&MONTH(Year7Table[[#This Row],[Date]]),PenaltyTable[Year]&PenaltyTable[Month],PenaltyTable[Daily])*CE$10,"") ->  | CJ72: 13498.00212 | CM72: 1904-12-28 | CN72: 0 | CO72: 17878.1485 | CP72: =IFERROR(_xlfn.XLOOKUP(YEAR(Year8Table[[#This Row],[Date]])&MONTH(Year8Table[[#This Row],[Date]]),PenaltyTable[Year]&PenaltyTable[Month],PenaltyTable[Daily])*$CO$10,"") ->  | CT72: 17997.33616 | CW72: 1904-12-28 | CX72: 0 | CY72: 1266.368852 | CZ72: =IFERROR(_xlfn.XLOOKUP(YEAR(Year9Table[[#This Row],[Date]])&MONTH(Year9Table[[#This Row],[Date]]),PenaltyTable[Year]&PenaltyTable[Month],PenaltyTable[Daily])*$CY$10,"") ->  | DD72: 1274.811311 | DG72: 1904-12-28 | DH72: 0 | DI72: 1023.524002 | DJ72: =IFERROR(_xlfn.XLOOKUP(YEAR(Year10Table[[#This Row],[Date]])&MONTH(Year10Table[[#This Row],[Date]]),PenaltyTable[Year]&PenaltyTable[Month],PenaltyTable[Daily])*$DI$10,"") ->  | DN72: 1030.347495
U73: =IFERROR(IF((ROW()-ROW(Year1Table[#Headers]))=1,IF(OR(Table1[[#This Row],[Tax Assessed]]="",Table1[[#This Row],[Tax Assessed]]=0),"",Table1[[#This Row],[Tax Due Dt]]),IF((ROW()-ROW(Year1Table[#Headers]))>1,IF(OFFSET(AB73,-1,)<1,"",EDATE(U72,1)))),"") -> 2022-05-15 | V73: 0 | W73: 11007.63967 | X73: =IFERROR(_xlfn.XLOOKUP(YEAR(Year1Table[[#This Row],[Date]])&MONTH(Year1Table[[#This Row],[Date]]),PenaltyTable[Year]&PenaltyTable[Month],PenaltyTable[Daily])*$W$10,"") -> 1.496986301 | AB73: 11009.13666 | AF73: =IF(ROW()-ROW(Year2Table[#Headers])=1,$AI$193,IF(AG71="","",IF(AND($B$7<>"",AE73>=$B$7),$C$7,IF(AND($B$6<>"",AE73>=$B$6),$C$6,IF(AE73>=$B$5,$C$5,IF(AE73<$B$5,0)))))) ->  | AH73: =IFERROR(_xlfn.XLOOKUP(YEAR(Year2Table[[#This Row],[Date]])&MONTH(Year2Table[[#This Row],[Date]]),PenaltyTable[Year]&PenaltyTable[Month],PenaltyTable[Daily])*$AG$10,"") ->  | AO73: 1905-01-28 | AP73: 0 | AQ73: 10498.44609 | AR73: =IFERROR(_xlfn.XLOOKUP(YEAR(Year3Table[[#This Row],[Date]])&MONTH(Year3Table[[#This Row],[Date]]),PenaltyTable[Year]&PenaltyTable[Month],PenaltyTable[Daily])*$AQ$10,"") ->  | AV73: 10568.43573 | AY73: 1905-01-28 | AZ73: 0 | BA73: 3749.445033 | BB73: =IFERROR(_xlfn.XLOOKUP(YEAR(Year4Table[[#This Row],[Date]])&MONTH(Year4Table[[#This Row],[Date]]),PenaltyTable[Year]&PenaltyTable[Month],PenaltyTable[Daily])*$BA$10,"") ->  | BF73: 3774.441333 | BI73: 1905-01-28 | BJ73: 0 | BK73: 7498.890065 | BL73: =IFERROR(_xlfn.XLOOKUP(YEAR(Year5Table[[#This Row],[Date]])&MONTH(Year5Table[[#This Row],[Date]]),PenaltyTable[Year]&PenaltyTable[Month],PenaltyTable[Daily])*$BK$10,"") ->  | BP73: 7548.882666 | BS73: 1905-01-28 | BT73: 0 | BU73: 4499.334039 | BV73: =IFERROR(_xlfn.XLOOKUP(YEAR(Year6Table[[#This Row],[Date]])&MONTH(Year6Table[[#This Row],[Date]]),PenaltyTable[Year]&PenaltyTable[Month],PenaltyTable[Daily])*$BU$10,"") ->  | BZ73: 4529.329599 | CC73: 1905-01-28 | CD73: 0 | CE73: 13498.00212 | CF73: =IFERROR(_xlfn.XLOOKUP(YEAR(Year7Table[[#This Row],[Date]])&MONTH(Year7Table[[#This Row],[Date]]),PenaltyTable[Year]&PenaltyTable[Month],PenaltyTable[Daily])*CE$10,"") ->  | CJ73: 13587.9888 | CM73: 1905-01-28 | CN73: 0 | CO73: 17997.33616 | CP73: =IFERROR(_xlfn.XLOOKUP(YEAR(Year8Table[[#This Row],[Date]])&MONTH(Year8Table[[#This Row],[Date]]),PenaltyTable[Year]&PenaltyTable[Month],PenaltyTable[Daily])*$CO$10,"") ->  | CT73: 18117.3184 | CW73: 1905-01-28 | CX73: 0 | CY73: 1274.811311 | CZ73: =IFERROR(_xlfn.XLOOKUP(YEAR(Year9Table[[#This Row],[Date]])&MONTH(Year9Table[[#This Row],[Date]]),PenaltyTable[Year]&PenaltyTable[Month],PenaltyTable[Daily])*$CY$10,"") ->  | DD73: 1283.310053 | DG73: 1905-01-28 | DH73: 0 | DI73: 1030.347495 | DJ73: =IFERROR(_xlfn.XLOOKUP(YEAR(Year10Table[[#This Row],[Date]])&MONTH(Year10Table[[#This Row],[Date]]),PenaltyTable[Year]&PenaltyTable[Month],PenaltyTable[Daily])*$DI$10,"") ->  | DN73: 1037.216478
U74: =IFERROR(IF((ROW()-ROW(Year1Table[#Headers]))=1,IF(OR(Table1[[#This Row],[Tax Assessed]]="",Table1[[#This Row],[Tax Assessed]]=0),"",Table1[[#This Row],[Tax Due Dt]]),IF((ROW()-ROW(Year1Table[#Headers]))>1,IF(OFFSET(AB74,-1,)<1,"",EDATE(U73,1)))),"") -> 2022-06-15 | V74: 0 | W74: 11009.13666 | X74: =IFERROR(_xlfn.XLOOKUP(YEAR(Year1Table[[#This Row],[Date]])&MONTH(Year1Table[[#This Row],[Date]]),PenaltyTable[Year]&PenaltyTable[Month],PenaltyTable[Daily])*$W$10,"") -> 1.496986301 | AB74: 11010.63364 | AF74: =IF(ROW()-ROW(Year2Table[#Headers])=1,$AI$193,IF(AG72="","",IF(AND($B$7<>"",AE74>=$B$7),$C$7,IF(AND($B$6<>"",AE74>=$B$6),$C$6,IF(AE74>=$B$5,$C$5,IF(AE74<$B$5,0)))))) ->  | AH74: =IFERROR(_xlfn.XLOOKUP(YEAR(Year2Table[[#This Row],[Date]])&MONTH(Year2Table[[#This Row],[Date]]),PenaltyTable[Year]&PenaltyTable[Month],PenaltyTable[Daily])*$AG$10,"") ->  | AO74: 1905-02-28 | AP74: 0 | AQ74: 10568.43573 | AR74: =IFERROR(_xlfn.XLOOKUP(YEAR(Year3Table[[#This Row],[Date]])&MONTH(Year3Table[[#This Row],[Date]]),PenaltyTable[Year]&PenaltyTable[Month],PenaltyTable[Daily])*$AQ$10,"") ->  | AV74: 10638.89197 | AY74: 1905-02-28 | AZ74: 0 | BA74: 3774.441333 | BB74: =IFERROR(_xlfn.XLOOKUP(YEAR(Year4Table[[#This Row],[Date]])&MONTH(Year4Table[[#This Row],[Date]]),PenaltyTable[Year]&PenaltyTable[Month],PenaltyTable[Daily])*$BA$10,"") ->  | BF74: 3799.604275 | BI74: 1905-02-28 | BJ74: 0 | BK74: 7548.882666 | BL74: =IFERROR(_xlfn.XLOOKUP(YEAR(Year5Table[[#This Row],[Date]])&MONTH(Year5Table[[#This Row],[Date]]),PenaltyTable[Year]&PenaltyTable[Month],PenaltyTable[Daily])*$BK$10,"") ->  | BP74: 7599.20855 | BS74: 1905-02-28 | BT74: 0 | BU74: 4529.329599 | BV74: =IFERROR(_xlfn.XLOOKUP(YEAR(Year6Table[[#This Row],[Date]])&MONTH(Year6Table[[#This Row],[Date]]),PenaltyTable[Year]&PenaltyTable[Month],PenaltyTable[Daily])*$BU$10,"") ->  | BZ74: 4559.52513 | CC74: 1905-02-28 | CD74: 0 | CE74: 13587.9888 | CF74: =IFERROR(_xlfn.XLOOKUP(YEAR(Year7Table[[#This Row],[Date]])&MONTH(Year7Table[[#This Row],[Date]]),PenaltyTable[Year]&PenaltyTable[Month],PenaltyTable[Daily])*CE$10,"") ->  | CJ74: 13678.57539 | CM74: 1905-02-28 | CN74: 0 | CO74: 18117.3184 | CP74: =IFERROR(_xlfn.XLOOKUP(YEAR(Year8Table[[#This Row],[Date]])&MONTH(Year8Table[[#This Row],[Date]]),PenaltyTable[Year]&PenaltyTable[Month],PenaltyTable[Daily])*$CO$10,"") ->  | CT74: 18238.10052 | CW74: 1905-02-28 | CX74: 0 | CY74: 1283.310053 | CZ74: =IFERROR(_xlfn.XLOOKUP(YEAR(Year9Table[[#This Row],[Date]])&MONTH(Year9Table[[#This Row],[Date]]),PenaltyTable[Year]&PenaltyTable[Month],PenaltyTable[Daily])*$CY$10,"") ->  | DD74: 1291.865453 | DG74: 1905-02-28 | DH74: 0 | DI74: 1037.216478 | DJ74: =IFERROR(_xlfn.XLOOKUP(YEAR(Year10Table[[#This Row],[Date]])&MONTH(Year10Table[[#This Row],[Date]]),PenaltyTable[Year]&PenaltyTable[Month],PenaltyTable[Daily])*$DI$10,"") ->  | DN74: 1044.131255
U75: =IFERROR(IF((ROW()-ROW(Year1Table[#Headers]))=1,IF(OR(Table1[[#This Row],[Tax Assessed]]="",Table1[[#This Row],[Tax Assessed]]=0),"",Table1[[#This Row],[Tax Due Dt]]),IF((ROW()-ROW(Year1Table[#Headers]))>1,IF(OFFSET(AB75,-1,)<1,"",EDATE(U74,1)))),"") -> 2022-07-15 | V75: 0 | W75: 11010.63364 | X75: =IFERROR(_xlfn.XLOOKUP(YEAR(Year1Table[[#This Row],[Date]])&MONTH(Year1Table[[#This Row],[Date]]),PenaltyTable[Year]&PenaltyTable[Month],PenaltyTable[Daily])*$W$10,"") -> 1.197589041 | AB75: 11011.83123 | AF75: =IF(ROW()-ROW(Year2Table[#Headers])=1,$AI$193,IF(AG73="","",IF(AND($B$7<>"",AE75>=$B$7),$C$7,IF(AND($B$6<>"",AE75>=$B$6),$C$6,IF(AE75>=$B$5,$C$5,IF(AE75<$B$5,0)))))) ->  | AH75: =IFERROR(_xlfn.XLOOKUP(YEAR(Year2Table[[#This Row],[Date]])&MONTH(Year2Table[[#This Row],[Date]]),PenaltyTable[Year]&PenaltyTable[Month],PenaltyTable[Daily])*$AG$10,"") ->  | AO75: 1905-03-28 | AP75: 0 | AQ75: 10638.89197 | AR75: =IFERROR(_xlfn.XLOOKUP(YEAR(Year3Table[[#This Row],[Date]])&MONTH(Year3Table[[#This Row],[Date]]),PenaltyTable[Year]&PenaltyTable[Month],PenaltyTable[Daily])*$AQ$10,"") ->  | AV75: 10709.81792 | AY75: 1905-03-28 | AZ75: 0 | BA75: 3799.604275 | BB75: =IFERROR(_xlfn.XLOOKUP(YEAR(Year4Table[[#This Row],[Date]])&MONTH(Year4Table[[#This Row],[Date]]),PenaltyTable[Year]&PenaltyTable[Month],PenaltyTable[Daily])*$BA$10,"") ->  | BF75: 3824.93497 | BI75: 1905-03-28 | BJ75: 0 | BK75: 7599.20855 | BL75: =IFERROR(_xlfn.XLOOKUP(YEAR(Year5Table[[#This Row],[Date]])&MONTH(Year5Table[[#This Row],[Date]]),PenaltyTable[Year]&PenaltyTable[Month],PenaltyTable[Daily])*$BK$10,"") ->  | BP75: 7649.86994 | BS75: 1905-03-28 | BT75: 0 | BU75: 4559.52513 | BV75: =IFERROR(_xlfn.XLOOKUP(YEAR(Year6Table[[#This Row],[Date]])&MONTH(Year6Table[[#This Row],[Date]]),PenaltyTable[Year]&PenaltyTable[Month],PenaltyTable[Daily])*$BU$10,"") ->  | BZ75: 4589.921964 | CC75: 1905-03-28 | CD75: 0 | CE75: 13678.57539 | CF75: =IFERROR(_xlfn.XLOOKUP(YEAR(Year7Table[[#This Row],[Date]])&MONTH(Year7Table[[#This Row],[Date]]),PenaltyTable[Year]&PenaltyTable[Month],PenaltyTable[Daily])*CE$10,"") ->  | CJ75: 13769.76589 | CM75: 1905-03-28 | CN75: 0 | CO75: 18238.10052 | CP75: =IFERROR(_xlfn.XLOOKUP(YEAR(Year8Table[[#This Row],[Date]])&MONTH(Year8Table[[#This Row],[Date]]),PenaltyTable[Year]&PenaltyTable[Month],PenaltyTable[Daily])*$CO$10,"") ->  | CT75: 18359.68786 | CW75: 1905-03-28 | CX75: 0 | CY75: 1291.865453 | CZ75: =IFERROR(_xlfn.XLOOKUP(YEAR(Year9Table[[#This Row],[Date]])&MONTH(Year9Table[[#This Row],[Date]]),PenaltyTable[Year]&PenaltyTable[Month],PenaltyTable[Daily])*$CY$10,"") ->  | DD75: 1300.47789 | DG75: 1905-03-28 | DH75: 0 | DI75: 1044.131255 | DJ75: =IFERROR(_xlfn.XLOOKUP(YEAR(Year10Table[[#This Row],[Date]])&MONTH(Year10Table[[#This Row],[Date]]),PenaltyTable[Year]&PenaltyTable[Month],PenaltyTable[Daily])*$DI$10,"") ->  | DN75: 1051.09213
U76: =IFERROR(IF((ROW()-ROW(Year1Table[#Headers]))=1,IF(OR(Table1[[#This Row],[Tax Assessed]]="",Table1[[#This Row],[Tax Assessed]]=0),"",Table1[[#This Row],[Tax Due Dt]]),IF((ROW()-ROW(Year1Table[#Headers]))>1,IF(OFFSET(AB76,-1,)<1,"",EDATE(U75,1)))),"") -> 2022-08-15 | V76: =IF(OR(AB75<0,AB75=""),"",IF(AND($B$7<>"",U76>=$B$7),$C$7,IF(AND($B$6<>"",U76>=$B$6),$C$6,IF(U76>=$B$5,$C$5,IF(U76<$B$5,0))))) -> 0 | W76: 11011.83123 | X76: =IFERROR(_xlfn.XLOOKUP(YEAR(Year1Table[[#This Row],[Date]])&MONTH(Year1Table[[#This Row],[Date]]),PenaltyTable[Year]&PenaltyTable[Month],PenaltyTable[Daily])*$W$10,"") -> 1.197589041 | AB76: 11013.02882 | AF76: =IF(ROW()-ROW(Year2Table[#Headers])=1,$AI$193,IF(AG74="","",IF(AND($B$7<>"",AE76>=$B$7),$C$7,IF(AND($B$6<>"",AE76>=$B$6),$C$6,IF(AE76>=$B$5,$C$5,IF(AE76<$B$5,0)))))) ->  | AH76: =IFERROR(_xlfn.XLOOKUP(YEAR(Year2Table[[#This Row],[Date]])&MONTH(Year2Table[[#This Row],[Date]]),PenaltyTable[Year]&PenaltyTable[Month],PenaltyTable[Daily])*$AG$10,"") ->  | AM76: =IF(AL76>0,"",IF(VALUE(AE76)<=VALUE($W$8),"",AE76)) ->  | AO76: 1905-04-28 | AP76: 0 | AQ76: 10709.81792 | AR76: =IFERROR(_xlfn.XLOOKUP(YEAR(Year3Table[[#This Row],[Date]])&MONTH(Year3Table[[#This Row],[Date]]),PenaltyTable[Year]&PenaltyTable[Month],PenaltyTable[Daily])*$AQ$10,"") ->  | AV76: 10781.2167 | AY76: 1905-04-28 | AZ76: 0 | BA76: 3824.93497 | BB76: =IFERROR(_xlfn.XLOOKUP(YEAR(Year4Table[[#This Row],[Date]])&MONTH(Year4Table[[#This Row],[Date]]),PenaltyTable[Year]&PenaltyTable[Month],PenaltyTable[Daily])*$BA$10,"") ->  | BF76: 3850.434537 | BI76: 1905-04-28 | BJ76: 0 | BK76: 7649.86994 | BL76: =IFERROR(_xlfn.XLOOKUP(YEAR(Year5Table[[#This Row],[Date]])&MONTH(Year5Table[[#This Row],[Date]]),PenaltyTable[Year]&PenaltyTable[Month],PenaltyTable[Daily])*$BK$10,"") ->  | BP76: 7700.869073 | BS76: 1905-04-28 | BT76: 0 | BU76: 4589.921964 | BV76: =IFERROR(_xlfn.XLOOKUP(YEAR(Year6Table[[#This Row],[Date]])&MONTH(Year6Table[[#This Row],[Date]]),PenaltyTable[Year]&PenaltyTable[Month],PenaltyTable[Daily])*$BU$10,"") ->  | BZ76: 4620.521444 | CC76: 1905-04-28 | CD76: 0 | CE76: 13769.76589 | CF76: =IFERROR(_xlfn.XLOOKUP(YEAR(Year7Table[[#This Row],[Date]])&MONTH(Year7Table[[#This Row],[Date]]),PenaltyTable[Year]&PenaltyTable[Month],PenaltyTable[Daily])*CE$10,"") ->  | CJ76: 13861.56433 | CM76: 1905-04-28 | CN76: 0 | CO76: 18359.68786 | CP76: =IFERROR(_xlfn.XLOOKUP(YEAR(Year8Table[[#This Row],[Date]])&MONTH(Year8Table[[#This Row],[Date]]),PenaltyTable[Year]&PenaltyTable[Month],PenaltyTable[Daily])*$CO$10,"") ->  | CT76: 18482.08578 | CW76: 1905-04-28 | CX76: 0 | CY76: 1300.47789 | CZ76: =IFERROR(_xlfn.XLOOKUP(YEAR(Year9Table[[#This Row],[Date]])&MONTH(Year9Table[[#This Row],[Date]]),PenaltyTable[Year]&PenaltyTable[Month],PenaltyTable[Daily])*$CY$10,"") ->  | DD76: 1309.147742 | DG76: 1905-04-28 | DH76: 0 | DI76: 1051.09213 | DJ76: =IFERROR(_xlfn.XLOOKUP(YEAR(Year10Table[[#This Row],[Date]])&MONTH(Year10Table[[#This Row],[Date]]),PenaltyTable[Year]&PenaltyTable[Month],PenaltyTable[Daily])*$DI$10,"") ->  | DN76: 1058.099411
U77: =IFERROR(IF((ROW()-ROW(Year1Table[#Headers]))=1,IF(OR(Table1[[#This Row],[Tax Assessed]]="",Table1[[#This Row],[Tax Assessed]]=0),"",Table1[[#This Row],[Tax Due Dt]]),IF((ROW()-ROW(Year1Table[#Headers]))>1,IF(OFFSET(AB77,-1,)<1,"",EDATE(U76,1)))),"") -> 2022-09-15 | V77: 0 | W77: 11013.02882 | X77: =IFERROR(_xlfn.XLOOKUP(YEAR(Year1Table[[#This Row],[Date]])&MONTH(Year1Table[[#This Row],[Date]]),PenaltyTable[Year]&PenaltyTable[Month],PenaltyTable[Daily])*$W$10,"") -> 1.197589041 | AB77: =IF(OR(AB76<0,AB76=""),"",(W77+X77)-V77) -> 11014.22641 | AC77: =IF(AB77>0,"",IF(VALUE(U77)>=VALUE($W$8),"",U77)) ->  | AF77: =IF(ROW()-ROW(Year2Table[#Headers])=1,$AI$193,IF(AG75="","",IF(AND($B$7<>"",AE77>=$B$7),$C$7,IF(AND($B$6<>"",AE77>=$B$6),$C$6,IF(AE77>=$B$5,$C$5,IF(AE77<$B$5,0)))))) ->  | AH77: =IFERROR(_xlfn.XLOOKUP(YEAR(Year2Table[[#This Row],[Date]])&MONTH(Year2Table[[#This Row],[Date]]),PenaltyTable[Year]&PenaltyTable[Month],PenaltyTable[Daily])*$AG$10,"") ->  | AO77: 1905-05-28 | AP77: 0 | AQ77: 10781.2167 | AR77: =IFERROR(_xlfn.XLOOKUP(YEAR(Year3Table[[#This Row],[Date]])&MONTH(Year3Table[[#This Row],[Date]]),PenaltyTable[Year]&PenaltyTable[Month],PenaltyTable[Daily])*$AQ$10,"") ->  | AV77: 10853.09148 | AY77: 1905-05-28 | AZ77: 0 | BA77: 3850.434537 | BB77: =IFERROR(_xlfn.XLOOKUP(YEAR(Year4Table[[#This Row],[Date]])&MONTH(Year4Table[[#This Row],[Date]]),PenaltyTable[Year]&PenaltyTable[Month],PenaltyTable[Daily])*$BA$10,"") ->  | BF77: 3876.1041 | BI77: 1905-05-28 | BJ77: 0 | BK77: 7700.869073 | BL77: =IFERROR(_xlfn.XLOOKUP(YEAR(Year5Table[[#This Row],[Date]])&MONTH(Year5Table[[#This Row],[Date]]),PenaltyTable[Year]&PenaltyTable[Month],PenaltyTable[Daily])*$BK$10,"") ->  | BP77: 7752.2082 | BS77: 1905-05-28 | BT77: 0 | BU77: 4620.521444 | BV77: =IFERROR(_xlfn.XLOOKUP(YEAR(Year6Table[[#This Row],[Date]])&MONTH(Year6Table[[#This Row],[Date]]),PenaltyTable[Year]&PenaltyTable[Month],PenaltyTable[Daily])*$BU$10,"") ->  | BZ77: 4651.32492 | CC77: 1905-05-28 | CD77: 0 | CE77: 13861.56433 | CF77: =IFERROR(_xlfn.XLOOKUP(YEAR(Year7Table[[#This Row],[Date]])&MONTH(Year7Table[[#This Row],[Date]]),PenaltyTable[Year]&PenaltyTable[Month],PenaltyTable[Daily])*CE$10,"") ->  | CJ77: 13953.97476 | CM77: 1905-05-28 | CN77: 0 | CO77: 18482.08578 | CP77: =IFERROR(_xlfn.XLOOKUP(YEAR(Year8Table[[#This Row],[Date]])&MONTH(Year8Table[[#This Row],[Date]]),PenaltyTable[Year]&PenaltyTable[Month],PenaltyTable[Daily])*$CO$10,"") ->  | CT77: 18605.29968 | CW77: 1905-05-28 | CX77: 0 | CY77: 1309.147742 | CZ77: =IFERROR(_xlfn.XLOOKUP(YEAR(Year9Table[[#This Row],[Date]])&MONTH(Year9Table[[#This Row],[Date]]),PenaltyTable[Year]&PenaltyTable[Month],PenaltyTable[Daily])*$CY$10,"") ->  | DD77: 1317.875394 | DG77: 1905-05-28 | DH77: 0 | DI77: 1058.099411 | DJ77: =IFERROR(_xlfn.XLOOKUP(YEAR(Year10Table[[#This Row],[Date]])&MONTH(Year10Table[[#This Row],[Date]]),PenaltyTable[Year]&PenaltyTable[Month],PenaltyTable[Daily])*$DI$10,"") ->  | DN77: 1065.153407
U78: =IFERROR(IF((ROW()-ROW(Year1Table[#Headers]))=1,IF(OR(Table1[[#This Row],[Tax Assessed]]="",Table1[[#This Row],[Tax Assessed]]=0),"",Table1[[#This Row],[Tax Due Dt]]),IF((ROW()-ROW(Year1Table[#Headers]))>1,IF(OFFSET(AB78,-1,)<1,"",EDATE(U77,1)))),"") -> 2022-10-15 | V78: 0 | W78: =IF(OR(AB77<0,AB77=""),"",AB77) -> 11014.22641 | X78: =IFERROR(_xlfn.XLOOKUP(YEAR(Year1Table[[#This Row],[Date]])&MONTH(Year1Table[[#This Row],[Date]]),PenaltyTable[Year]&PenaltyTable[Month],PenaltyTable[Daily])*$W$10,"") -> 0.8981917808 | AB78: 11015.1246 | AE78: =IF(OR(AL77="",AL77<0),"",EDATE(AE77,1)) ->  | AF78: =IF(ROW()-ROW(Year2Table[#Headers])=1,$AI$193,IF(AG76="","",IF(AND($B$7<>"",AE78>=$B$7),$C$7,IF(AND($B$6<>"",AE78>=$B$6),$C$6,IF(AE78>=$B$5,$C$5,IF(AE78<$B$5,0)))))) ->  | AG78: =IF(OR(AL77<0,AL77=""),"",AL77) ->  | AH78: =IFERROR(_xlfn.XLOOKUP(YEAR(Year2Table[[#This Row],[Date]])&MONTH(Year2Table[[#This Row],[Date]]),PenaltyTable[Year]&PenaltyTable[Month],PenaltyTable[Daily])*$AG$10,"") ->  | AL78: =IF(OR(AL77<0,AL77=""),"",AG78-AF78+(AG78*$B$2)) ->  | AO78: =IF(OR(AV77="",AV77<0),"",EDATE(AO77,1)) -> 1905-06-28 | AP78: =IF(OR(AV77="",AV77<0),"",IF(AND($B$7<>"",AO78>=$B$7),$C$7,IF(AND($B$6<>"",AO78>=$B$6),$C$6,IF(AO78>=$B$5,$C$5,IF(AO78<$B$5,0))))) -> 0 | AQ78: =IF(OR(AV77<0,AV77=""),"",AV77) -> 10853.09148 | AR78: =IFERROR(_xlfn.XLOOKUP(YEAR(Year3Table[[#This Row],[Date]])&MONTH(Year3Table[[#This Row],[Date]]),PenaltyTable[Year]&PenaltyTable[Month],PenaltyTable[Daily])*$AQ$10,"") ->  | AV78: =IF(OR(AV77<0,AV77=""),"",AQ78-AP78+(AQ78*$B$2)) -> 10925.44542 | AW78: =IF(AV78>0,"",AO78) ->  | AY78: =IF(OR(BF77="",BF77<0),"",EDATE(AY77,1)) -> 1905-06-28 | AZ78: =IF(OR(BF77="",BF77<0),"",IF(AND($B$7<>"",AY78>=$B$7),$C$7,IF(AND($B$6<>"",AY78>=$B$6),$C$6,IF(AY78>=$B$5,$C$5,IF(AY78<$B$5,0))))) -> 0 | BA78: =IF(OR(BF77<0,BF77=""),"",BF77) -> 3876.1041 | BB78: =IFERROR(_xlfn.XLOOKUP(YEAR(Year4Table[[#This Row],[Date]])&MONTH(Year4Table[[#This Row],[Date]]),PenaltyTable[Year]&PenaltyTable[Month],PenaltyTable[Daily])*$BA$10,"") ->  | BF78: =IF(OR(BF77<0,BF77=""),"",BA78-AZ78+(BA78*$B$2)) -> 3901.944794 | BG78: =IF(BF78>0,"",AY78) ->  | BI78: =IF(OR(BP77="",BP77<0),"",EDATE(BI77,1)) -> 1905-06-28 | BJ78: =IF(OR(BP77="",BP77<0),"",IF(AND($B$7<>"",BI78>=$B$7),$C$7,IF(AND($B$6<>"",BI78>=$B$6),$C$6,IF(BI78>=$B$5,$C$5,IF(BI78<$B$5,0))))) -> 0 | BK78: =IF(OR(BP77<0,BP77=""),"",BP77) -> 7752.2082 | BL78: =IFERROR(_xlfn.XLOOKUP(YEAR(Year5Table[[#This Row],[Date]])&MONTH(Year5Table[[#This Row],[Date]]),PenaltyTable[Year]&PenaltyTable[Month],PenaltyTable[Daily])*$BK$10,"") ->  | BP78: =IF(OR(BP77<0,BP77=""),"",BK78-BJ78+(BK78*$B$2)) -> 7803.889588 | BQ78: =IF(BP78>0,"",BI78) ->  | BS78: =IF(OR(BZ77="",BZ77<0),"",EDATE(BS77,1)) -> 1905-06-28 | BT78: =IF(OR(BZ77="",BZ77<0),"",IF(AND($B$7<>"",BS78>=$B$7),$C$7,IF(AND($B$6<>"",BS78>=$B$6),$C$6,IF(BS78>=$B$5,$C$5,IF(BS78<$B$5,0))))) -> 0 | BU78: =IF(OR(BZ77<0,BZ77=""),"",BZ77) -> 4651.32492 | BV78: =IFERROR(_xlfn.XLOOKUP(YEAR(Year6Table[[#This Row],[Date]])&MONTH(Year6Table[[#This Row],[Date]]),PenaltyTable[Year]&PenaltyTable[Month],PenaltyTable[Daily])*$BU$10,"") ->  | BZ78: =IF(OR(BZ77<0,BZ77=""),"",BU78-BT78+(BU78*$B$2)) -> 4682.333753 | CA78: =IF(BZ78>0,"",BS78) ->  | CC78: =IF(OR(CJ77="",CJ77<0),"",EDATE(CC77,1)) -> 1905-06-28 | CD78: =IF(OR(CJ77="",CJ77<0),"",IF(AND($B$7<>"",CC78>=$B$7),$C$7,IF(AND($B$6<>"",CC78>=$B$6),$C$6,IF(CC78>=$B$5,$C$5,IF(CC78<$B$5,0))))) -> 0 | CE78: =IF(OR(CJ77<0,CJ77=""),"",CJ77) -> 13953.97476 | CF78: =IFERROR(_xlfn.XLOOKUP(YEAR(Year7Table[[#This Row],[Date]])&MONTH(Year7Table[[#This Row],[Date]]),PenaltyTable[Year]&PenaltyTable[Month],PenaltyTable[Daily])*CE$10,"") ->  | CJ78: =IF(OR(CJ77<0,CJ77=""),"",CE78-CD78+(CE78*$B$2)) -> 14047.00126 | CK78: =IF(CJ78>0,"",CC78) ->  | CM78: =IF(OR(CT77="",CT77<0),"",EDATE(CM77,1)) -> 1905-06-28 | CN78: =IF(OR(CT77="",CT77<0),"",IF(AND($B$7<>"",CM78>=$B$7),$C$7,IF(AND($B$6<>"",CM78>=$B$6),$C$6,IF(CM78>=$B$5,$C$5,IF(CM78<$B$5,0))))) -> 0 | CO78: =IF(OR(CT77<0,CT77=""),"",CT77) -> 18605.29968 | CP78: =IFERROR(_xlfn.XLOOKUP(YEAR(Year8Table[[#This Row],[Date]])&MONTH(Year8Table[[#This Row],[Date]]),PenaltyTable[Year]&PenaltyTable[Month],PenaltyTable[Daily])*$CO$10,"") ->  | CT78: =IF(OR(CT77<0,CT77=""),"",CO78-CN78+(CO78*$B$2)) -> 18729.33501 | CU78: =IF(CT78>0,"",CM78) ->  | CW78: =IF(OR(DD77="",DD77<0),"",EDATE(CW77,1)) -> 1905-06-28 | CX78: =IF(OR(DD77="",DD77<0),"",IF(AND($B$7<>"",CW78>=$B$7),$C$7,IF(AND($B$6<>"",CW78>=$B$6),$C$6,IF(CW78>=$B$5,$C$5,IF(CW78<$B$5,0))))) -> 0 | CY78: =IF(OR(DD77<0,DD77=""),"",DD77) -> 1317.875394 | CZ78: =IFERROR(_xlfn.XLOOKUP(YEAR(Year9Table[[#This Row],[Date]])&MONTH(Year9Table[[#This Row],[Date]]),PenaltyTable[Year]&PenaltyTable[Month],PenaltyTable[Daily])*$CY$10,"") ->  | DD78: =IF(OR(DD77<0,DD77=""),"",CY78-CX78+(CY78*$B$2)) -> 1326.66123 | DE78: =IF(DD78>0,"",CW78) ->  | DG78: =IF(OR(DN77="",DN77<0),"",EDATE(DG77,1)) -> 1905-06-28 | DH78: =IF(OR(DN77="",DN77<0),"",IF(AND($B$7<>"",DG78>=$B$7),$C$7,IF(AND($B$6<>"",DG78>=$B$6),$C$6,IF(DG78>=$B$5,$C$5,IF(DG78<$B$5,0))))) -> 0 | DI78: =IF(OR(DN77<0,DN77=""),"",DN77) -> 1065.153407 | DJ78: =IFERROR(_xlfn.XLOOKUP(YEAR(Year10Table[[#This Row],[Date]])&MONTH(Year10Table[[#This Row],[Date]]),PenaltyTable[Year]&PenaltyTable[Month],PenaltyTable[Daily])*$DI$10,"") ->  | DN78: =IF(OR(DN77<0,DN77=""),"",DI78-DH78+(DI78*$B$2)) -> 1072.254429 | DO78: =IF(DN78>0,"",DG78) -> 
U79: =IFERROR(IF((ROW()-ROW(Year1Table[#Headers]))=1,IF(OR(Table1[[#This Row],[Tax Assessed]]="",Table1[[#This Row],[Tax Assessed]]=0),"",Table1[[#This Row],[Tax Due Dt]]),IF((ROW()-ROW(Year1Table[#Headers]))>1,IF(OFFSET(AB79,-1,)<1,"",EDATE(U78,1)))),"") -> 2022-11-15 | V79: 0 | W79: 11015.1246 | X79: =IFERROR(_xlfn.XLOOKUP(YEAR(Year1Table[[#This Row],[Date]])&MONTH(Year1Table[[#This Row],[Date]]),PenaltyTable[Year]&PenaltyTable[Month],PenaltyTable[Daily])*$W$10,"") -> 0.8981917808 | AB79: 11016.02279 | AF79: =IF(ROW()-ROW(Year2Table[#Headers])=1,$AI$193,IF(AG77="","",IF(AND($B$7<>"",AE79>=$B$7),$C$7,IF(AND($B$6<>"",AE79>=$B$6),$C$6,IF(AE79>=$B$5,$C$5,IF(AE79<$B$5,0)))))) ->  | AH79: =IFERROR(_xlfn.XLOOKUP(YEAR(Year2Table[[#This Row],[Date]])&MONTH(Year2Table[[#This Row],[Date]]),PenaltyTable[Year]&PenaltyTable[Month],PenaltyTable[Daily])*$AG$10,"") ->  | AO79: 1905-07-28 | AP79: 0 | AQ79: 10925.44542 | AR79: =IFERROR(_xlfn.XLOOKUP(YEAR(Year3Table[[#This Row],[Date]])&MONTH(Year3Table[[#This Row],[Date]]),PenaltyTable[Year]&PenaltyTable[Month],PenaltyTable[Daily])*$AQ$10,"") ->  | AV79: 10998.28173 | AY79: 1905-07-28 | AZ79: 0 | BA79: 3901.944794 | BB79: =IFERROR(_xlfn.XLOOKUP(YEAR(Year4Table[[#This Row],[Date]])&MONTH(Year4Table[[#This Row],[Date]]),PenaltyTable[Year]&PenaltyTable[Month],PenaltyTable[Daily])*$BA$10,"") ->  | BF79: 3927.95776 | BI79: 1905-07-28 | BJ79: 0 | BK79: 7803.889588 | BL79: =IFERROR(_xlfn.XLOOKUP(YEAR(Year5Table[[#This Row],[Date]])&MONTH(Year5Table[[#This Row],[Date]]),PenaltyTable[Year]&PenaltyTable[Month],PenaltyTable[Daily])*$BK$10,"") ->  | BP79: 7855.915519 | BS79: 1905-07-28 | BT79: 0 | BU79: 4682.333753 | BV79: =IFERROR(_xlfn.XLOOKUP(YEAR(Year6Table[[#This Row],[Date]])&MONTH(Year6Table[[#This Row],[Date]]),PenaltyTable[Year]&PenaltyTable[Month],PenaltyTable[Daily])*$BU$10,"") ->  | BZ79: 4713.549311 | CC79: 1905-07-28 | CD79: 0 | CE79: 14047.00126 | CF79: =IFERROR(_xlfn.XLOOKUP(YEAR(Year7Table[[#This Row],[Date]])&MONTH(Year7Table[[#This Row],[Date]]),PenaltyTable[Year]&PenaltyTable[Month],PenaltyTable[Daily])*CE$10,"") ->  | CJ79: 14140.64793 | CM79: 1905-07-28 | CN79: 0 | CO79: 18729.33501 | CP79: =IFERROR(_xlfn.XLOOKUP(YEAR(Year8Table[[#This Row],[Date]])&MONTH(Year8Table[[#This Row],[Date]]),PenaltyTable[Year]&PenaltyTable[Month],PenaltyTable[Daily])*$CO$10,"") ->  | CT79: 18854.19725 | CW79: 1905-07-28 | CX79: 0 | CY79: 1326.66123 | CZ79: =IFERROR(_xlfn.XLOOKUP(YEAR(Year9Table[[#This Row],[Date]])&MONTH(Year9Table[[#This Row],[Date]]),PenaltyTable[Year]&PenaltyTable[Month],PenaltyTable[Daily])*$CY$10,"") ->  | DD79: 1335.505638 | DG79: 1905-07-28 | DH79: 0 | DI79: 1072.254429 | DJ79: =IFERROR(_xlfn.XLOOKUP(YEAR(Year10Table[[#This Row],[Date]])&MONTH(Year10Table[[#This Row],[Date]]),PenaltyTable[Year]&PenaltyTable[Month],PenaltyTable[Daily])*$DI$10,"") ->  | DN79: 1079.402792
U80: =IFERROR(IF((ROW()-ROW(Year1Table[#Headers]))=1,IF(OR(Table1[[#This Row],[Tax Assessed]]="",Table1[[#This Row],[Tax Assessed]]=0),"",Table1[[#This Row],[Tax Due Dt]]),IF((ROW()-ROW(Year1Table[#Headers]))>1,IF(OFFSET(AB80,-1,)<1,"",EDATE(U79,1)))),"") -> 2022-12-15 | V80: 0 | W80: 11016.02279 | X80: =IFERROR(_xlfn.XLOOKUP(YEAR(Year1Table[[#This Row],[Date]])&MONTH(Year1Table[[#This Row],[Date]]),PenaltyTable[Year]&PenaltyTable[Month],PenaltyTable[Daily])*$W$10,"") -> 0.8981917808 | AB80: 11016.92099 | AF80: =IF(ROW()-ROW(Year2Table[#Headers])=1,$AI$193,IF(AG78="","",IF(AND($B$7<>"",AE80>=$B$7),$C$7,IF(AND($B$6<>"",AE80>=$B$6),$C$6,IF(AE80>=$B$5,$C$5,IF(AE80<$B$5,0)))))) ->  | AH80: =IFERROR(_xlfn.XLOOKUP(YEAR(Year2Table[[#This Row],[Date]])&MONTH(Year2Table[[#This Row],[Date]]),PenaltyTable[Year]&PenaltyTable[Month],PenaltyTable[Daily])*$AG$10,"") ->  | AO80: 1905-08-28 | AP80: 0 | AQ80: 10998.28173 | AR80: =IFERROR(_xlfn.XLOOKUP(YEAR(Year3Table[[#This Row],[Date]])&MONTH(Year3Table[[#This Row],[Date]]),PenaltyTable[Year]&PenaltyTable[Month],PenaltyTable[Daily])*$AQ$10,"") ->  | AV80: 11071.6036 | AY80: 1905-08-28 | AZ80: 0 | BA80: 3927.95776 | BB80: =IFERROR(_xlfn.XLOOKUP(YEAR(Year4Table[[#This Row],[Date]])&MONTH(Year4Table[[#This Row],[Date]]),PenaltyTable[Year]&PenaltyTable[Month],PenaltyTable[Daily])*$BA$10,"") ->  | BF80: 3954.144145 | BI80: 1905-08-28 | BJ80: 0 | BK80: 7855.915519 | BL80: =IFERROR(_xlfn.XLOOKUP(YEAR(Year5Table[[#This Row],[Date]])&MONTH(Year5Table[[#This Row],[Date]]),PenaltyTable[Year]&PenaltyTable[Month],PenaltyTable[Daily])*$BK$10,"") ->  | BP80: 7908.288289 | BS80: 1905-08-28 | BT80: 0 | BU80: 4713.549311 | BV80: =IFERROR(_xlfn.XLOOKUP(YEAR(Year6Table[[#This Row],[Date]])&MONTH(Year6Table[[#This Row],[Date]]),PenaltyTable[Year]&PenaltyTable[Month],PenaltyTable[Daily])*$BU$10,"") ->  | BZ80: 4744.972973 | CC80: 1905-08-28 | CD80: 0 | CE80: 14140.64793 | CF80: =IFERROR(_xlfn.XLOOKUP(YEAR(Year7Table[[#This Row],[Date]])&MONTH(Year7Table[[#This Row],[Date]]),PenaltyTable[Year]&PenaltyTable[Month],PenaltyTable[Daily])*CE$10,"") ->  | CJ80: 14234.91892 | CM80: 1905-08-28 | CN80: 0 | CO80: 18854.19725 | CP80: =IFERROR(_xlfn.XLOOKUP(YEAR(Year8Table[[#This Row],[Date]])&MONTH(Year8Table[[#This Row],[Date]]),PenaltyTable[Year]&PenaltyTable[Month],PenaltyTable[Daily])*$CO$10,"") ->  | CT80: 18979.89189 | CW80: 1905-08-28 | CX80: 0 | CY80: 1335.505638 | CZ80: =IFERROR(_xlfn.XLOOKUP(YEAR(Year9Table[[#This Row],[Date]])&MONTH(Year9Table[[#This Row],[Date]]),PenaltyTable[Year]&PenaltyTable[Month],PenaltyTable[Daily])*$CY$10,"") ->  | DD80: 1344.409009 | DG80: 1905-08-28 | DH80: 0 | DI80: 1079.402792 | DJ80: =IFERROR(_xlfn.XLOOKUP(YEAR(Year10Table[[#This Row],[Date]])&MONTH(Year10Table[[#This Row],[Date]]),PenaltyTable[Year]&PenaltyTable[Month],PenaltyTable[Daily])*$DI$10,"") ->  | DN80: 1086.598811
U81: =IFERROR(IF((ROW()-ROW(Year1Table[#Headers]))=1,IF(OR(Table1[[#This Row],[Tax Assessed]]="",Table1[[#This Row],[Tax Assessed]]=0),"",Table1[[#This Row],[Tax Due Dt]]),IF((ROW()-ROW(Year1Table[#Headers]))>1,IF(OFFSET(AB81,-1,)<1,"",EDATE(U80,1)))),"") -> 2023-01-15 | V81: 0 | W81: 11016.92099 | X81: =IFERROR(_xlfn.XLOOKUP(YEAR(Year1Table[[#This Row],[Date]])&MONTH(Year1Table[[#This Row],[Date]]),PenaltyTable[Year]&PenaltyTable[Month],PenaltyTable[Daily])*$W$10,"") -> 2.395178082 | AB81: 11019.31616 | AF81: =IF(ROW()-ROW(Year2Table[#Headers])=1,$AI$193,IF(AG79="","",IF(AND($B$7<>"",AE81>=$B$7),$C$7,IF(AND($B$6<>"",AE81>=$B$6),$C$6,IF(AE81>=$B$5,$C$5,IF(AE81<$B$5,0)))))) ->  | AH81: =IFERROR(_xlfn.XLOOKUP(YEAR(Year2Table[[#This Row],[Date]])&MONTH(Year2Table[[#This Row],[Date]]),PenaltyTable[Year]&PenaltyTable[Month],PenaltyTable[Daily])*$AG$10,"") ->  | AO81: 1905-09-28 | AP81: 0 | AQ81: 11071.6036 | AR81: =IFERROR(_xlfn.XLOOKUP(YEAR(Year3Table[[#This Row],[Date]])&MONTH(Year3Table[[#This Row],[Date]]),PenaltyTable[Year]&PenaltyTable[Month],PenaltyTable[Daily])*$AQ$10,"") ->  | AV81: 11145.4143 | AY81: 1905-09-28 | AZ81: 0 | BA81: 3954.144145 | BB81: =IFERROR(_xlfn.XLOOKUP(YEAR(Year4Table[[#This Row],[Date]])&MONTH(Year4Table[[#This Row],[Date]]),PenaltyTable[Year]&PenaltyTable[Month],PenaltyTable[Daily])*$BA$10,"") ->  | BF81: 3980.505106 | BI81: 1905-09-28 | BJ81: 0 | BK81: 7908.288289 | BL81: =IFERROR(_xlfn.XLOOKUP(YEAR(Year5Table[[#This Row],[Date]])&MONTH(Year5Table[[#This Row],[Date]]),PenaltyTable[Year]&PenaltyTable[Month],PenaltyTable[Daily])*$BK$10,"") ->  | BP81: 7961.010211 | BS81: 1905-09-28 | BT81: 0 | BU81: 4744.972973 | BV81: =IFERROR(_xlfn.XLOOKUP(YEAR(Year6Table[[#This Row],[Date]])&MONTH(Year6Table[[#This Row],[Date]]),PenaltyTable[Year]&PenaltyTable[Month],PenaltyTable[Daily])*$BU$10,"") ->  | BZ81: 4776.606127 | CC81: 1905-09-28 | CD81: 0 | CE81: 14234.91892 | CF81: =IFERROR(_xlfn.XLOOKUP(YEAR(Year7Table[[#This Row],[Date]])&MONTH(Year7Table[[#This Row],[Date]]),PenaltyTable[Year]&PenaltyTable[Month],PenaltyTable[Daily])*CE$10,"") ->  | CJ81: 14329.81838 | CM81: 1905-09-28 | CN81: 0 | CO81: 18979.89189 | CP81: =IFERROR(_xlfn.XLOOKUP(YEAR(Year8Table[[#This Row],[Date]])&MONTH(Year8Table[[#This Row],[Date]]),PenaltyTable[Year]&PenaltyTable[Month],PenaltyTable[Daily])*$CO$10,"") ->  | CT81: 19106.42451 | CW81: 1905-09-28 | CX81: 0 | CY81: 1344.409009 | CZ81: =IFERROR(_xlfn.XLOOKUP(YEAR(Year9Table[[#This Row],[Date]])&MONTH(Year9Table[[#This Row],[Date]]),PenaltyTable[Year]&PenaltyTable[Month],PenaltyTable[Daily])*$CY$10,"") ->  | DD81: 1353.371736 | DG81: 1905-09-28 | DH81: 0 | DI81: 1086.598811 | DJ81: =IFERROR(_xlfn.XLOOKUP(YEAR(Year10Table[[#This Row],[Date]])&MONTH(Year10Table[[#This Row],[Date]]),PenaltyTable[Year]&PenaltyTable[Month],PenaltyTable[Daily])*$DI$10,"") ->  | DN81: 1093.842803
U82: =IFERROR(IF((ROW()-ROW(Year1Table[#Headers]))=1,IF(OR(Table1[[#This Row],[Tax Assessed]]="",Table1[[#This Row],[Tax Assessed]]=0),"",Table1[[#This Row],[Tax Due Dt]]),IF((ROW()-ROW(Year1Table[#Headers]))>1,IF(OFFSET(AB82,-1,)<1,"",EDATE(U81,1)))),"") -> 2023-02-15 | V82: 0 | W82: 11019.31616 | X82: =IFERROR(_xlfn.XLOOKUP(YEAR(Year1Table[[#This Row],[Date]])&MONTH(Year1Table[[#This Row],[Date]]),PenaltyTable[Year]&PenaltyTable[Month],PenaltyTable[Daily])*$W$10,"") -> 2.395178082 | AB82: 11021.71134 | AF82: =IF(ROW()-ROW(Year2Table[#Headers])=1,$AI$193,IF(AG80="","",IF(AND($B$7<>"",AE82>=$B$7),$C$7,IF(AND($B$6<>"",AE82>=$B$6),$C$6,IF(AE82>=$B$5,$C$5,IF(AE82<$B$5,0)))))) ->  | AH82: =IFERROR(_xlfn.XLOOKUP(YEAR(Year2Table[[#This Row],[Date]])&MONTH(Year2Table[[#This Row],[Date]]),PenaltyTable[Year]&PenaltyTable[Month],PenaltyTable[Daily])*$AG$10,"") ->  | AO82: 1905-10-28 | AP82: 0 | AQ82: 11145.4143 | AR82: =IFERROR(_xlfn.XLOOKUP(YEAR(Year3Table[[#This Row],[Date]])&MONTH(Year3Table[[#This Row],[Date]]),PenaltyTable[Year]&PenaltyTable[Month],PenaltyTable[Daily])*$AQ$10,"") ->  | AV82: 11219.71706 | AY82: 1905-10-28 | AZ82: 0 | BA82: 3980.505106 | BB82: =IFERROR(_xlfn.XLOOKUP(YEAR(Year4Table[[#This Row],[Date]])&MONTH(Year4Table[[#This Row],[Date]]),PenaltyTable[Year]&PenaltyTable[Month],PenaltyTable[Daily])*$BA$10,"") ->  | BF82: 4007.041806 | BI82: 1905-10-28 | BJ82: 0 | BK82: 7961.010211 | BL82: =IFERROR(_xlfn.XLOOKUP(YEAR(Year5Table[[#This Row],[Date]])&MONTH(Year5Table[[#This Row],[Date]]),PenaltyTable[Year]&PenaltyTable[Month],PenaltyTable[Daily])*$BK$10,"") ->  | BP82: 8014.083612 | BS82: 1905-10-28 | BT82: 0 | BU82: 4776.606127 | BV82: =IFERROR(_xlfn.XLOOKUP(YEAR(Year6Table[[#This Row],[Date]])&MONTH(Year6Table[[#This Row],[Date]]),PenaltyTable[Year]&PenaltyTable[Month],PenaltyTable[Daily])*$BU$10,"") ->  | BZ82: 4808.450167 | CC82: 1905-10-28 | CD82: 0 | CE82: 14329.81838 | CF82: =IFERROR(_xlfn.XLOOKUP(YEAR(Year7Table[[#This Row],[Date]])&MONTH(Year7Table[[#This Row],[Date]]),PenaltyTable[Year]&PenaltyTable[Month],PenaltyTable[Daily])*CE$10,"") ->  | CJ82: 14425.3505 | CM82: 1905-10-28 | CN82: 0 | CO82: 19106.42451 | CP82: =IFERROR(_xlfn.XLOOKUP(YEAR(Year8Table[[#This Row],[Date]])&MONTH(Year8Table[[#This Row],[Date]]),PenaltyTable[Year]&PenaltyTable[Month],PenaltyTable[Daily])*$CO$10,"") ->  | CT82: 19233.80067 | CW82: 1905-10-28 | CX82: 0 | CY82: 1353.371736 | CZ82: =IFERROR(_xlfn.XLOOKUP(YEAR(Year9Table[[#This Row],[Date]])&MONTH(Year9Table[[#This Row],[Date]]),PenaltyTable[Year]&PenaltyTable[Month],PenaltyTable[Daily])*$CY$10,"") ->  | DD82: 1362.394214 | DG82: 1905-10-28 | DH82: 0 | DI82: 1093.842803 | DJ82: =IFERROR(_xlfn.XLOOKUP(YEAR(Year10Table[[#This Row],[Date]])&MONTH(Year10Table[[#This Row],[Date]]),PenaltyTable[Year]&PenaltyTable[Month],PenaltyTable[Daily])*$DI$10,"") ->  | DN82: 1101.135088
U83: =IFERROR(IF((ROW()-ROW(Year1Table[#Headers]))=1,IF(OR(Table1[[#This Row],[Tax Assessed]]="",Table1[[#This Row],[Tax Assessed]]=0),"",Table1[[#This Row],[Tax Due Dt]]),IF((ROW()-ROW(Year1Table[#Headers]))>1,IF(OFFSET(AB83,-1,)<1,"",EDATE(U82,1)))),"") -> 2023-03-15 | V83: 0 | W83: 11021.71134 | X83: =IFERROR(_xlfn.XLOOKUP(YEAR(Year1Table[[#This Row],[Date]])&MONTH(Year1Table[[#This Row],[Date]]),PenaltyTable[Year]&PenaltyTable[Month],PenaltyTable[Daily])*$W$10,"") -> 2.395178082 | AB83: 11024.10652 | AF83: =IF(ROW()-ROW(Year2Table[#Headers])=1,$AI$193,IF(AG81="","",IF(AND($B$7<>"",AE83>=$B$7),$C$7,IF(AND($B$6<>"",AE83>=$B$6),$C$6,IF(AE83>=$B$5,$C$5,IF(AE83<$B$5,0)))))) ->  | AH83: =IFERROR(_xlfn.XLOOKUP(YEAR(Year2Table[[#This Row],[Date]])&MONTH(Year2Table[[#This Row],[Date]]),PenaltyTable[Year]&PenaltyTable[Month],PenaltyTable[Daily])*$AG$10,"") ->  | AO83: 1905-11-28 | AP83: 0 | AQ83: 11219.71706 | AR83: =IFERROR(_xlfn.XLOOKUP(YEAR(Year3Table[[#This Row],[Date]])&MONTH(Year3Table[[#This Row],[Date]]),PenaltyTable[Year]&PenaltyTable[Month],PenaltyTable[Daily])*$AQ$10,"") ->  | AV83: 11294.51517 | AY83: 1905-11-28 | AZ83: 0 | BA83: 4007.041806 | BB83: =IFERROR(_xlfn.XLOOKUP(YEAR(Year4Table[[#This Row],[Date]])&MONTH(Year4Table[[#This Row],[Date]]),PenaltyTable[Year]&PenaltyTable[Month],PenaltyTable[Daily])*$BA$10,"") ->  | BF83: 4033.755418 | BI83: 1905-11-28 | BJ83: 0 | BK83: 8014.083612 | BL83: =IFERROR(_xlfn.XLOOKUP(YEAR(Year5Table[[#This Row],[Date]])&MONTH(Year5Table[[#This Row],[Date]]),PenaltyTable[Year]&PenaltyTable[Month],PenaltyTable[Daily])*$BK$10,"") ->  | BP83: 8067.510837 | BS83: 1905-11-28 | BT83: 0 | BU83: 4808.450167 | BV83: =IFERROR(_xlfn.XLOOKUP(YEAR(Year6Table[[#This Row],[Date]])&MONTH(Year6Table[[#This Row],[Date]]),PenaltyTable[Year]&PenaltyTable[Month],PenaltyTable[Daily])*$BU$10,"") ->  | BZ83: 4840.506502 | CC83: 1905-11-28 | CD83: 0 | CE83: 14425.3505 | CF83: =IFERROR(_xlfn.XLOOKUP(YEAR(Year7Table[[#This Row],[Date]])&MONTH(Year7Table[[#This Row],[Date]]),PenaltyTable[Year]&PenaltyTable[Month],PenaltyTable[Daily])*CE$10,"") ->  | CJ83: 14521.51951 | CM83: 1905-11-28 | CN83: 0 | CO83: 19233.80067 | CP83: =IFERROR(_xlfn.XLOOKUP(YEAR(Year8Table[[#This Row],[Date]])&MONTH(Year8Table[[#This Row],[Date]]),PenaltyTable[Year]&PenaltyTable[Month],PenaltyTable[Daily])*$CO$10,"") ->  | CT83: 19362.02601 | CW83: 1905-11-28 | CX83: 0 | CY83: 1362.394214 | CZ83: =IFERROR(_xlfn.XLOOKUP(YEAR(Year9Table[[#This Row],[Date]])&MONTH(Year9Table[[#This Row],[Date]]),PenaltyTable[Year]&PenaltyTable[Month],PenaltyTable[Daily])*$CY$10,"") ->  | DD83: 1371.476842 | DG83: 1905-11-28 | DH83: 0 | DI83: 1101.135088 | DJ83: =IFERROR(_xlfn.XLOOKUP(YEAR(Year10Table[[#This Row],[Date]])&MONTH(Year10Table[[#This Row],[Date]]),PenaltyTable[Year]&PenaltyTable[Month],PenaltyTable[Daily])*$DI$10,"") ->  | DN83: 1108.475989
U84: =IFERROR(IF((ROW()-ROW(Year1Table[#Headers]))=1,IF(OR(Table1[[#This Row],[Tax Assessed]]="",Table1[[#This Row],[Tax Assessed]]=0),"",Table1[[#This Row],[Tax Due Dt]]),IF((ROW()-ROW(Year1Table[#Headers]))>1,IF(OFFSET(AB84,-1,)<1,"",EDATE(U83,1)))),"") -> 2023-04-15 | V84: 0 | W84: 11024.10652 | X84: =IFERROR(_xlfn.XLOOKUP(YEAR(Year1Table[[#This Row],[Date]])&MONTH(Year1Table[[#This Row],[Date]]),PenaltyTable[Year]&PenaltyTable[Month],PenaltyTable[Daily])*$W$10,"") -> 2.095780822 | AB84: 11026.2023 | AF84: =IF(ROW()-ROW(Year2Table[#Headers])=1,$AI$193,IF(AG82="","",IF(AND($B$7<>"",AE84>=$B$7),$C$7,IF(AND($B$6<>"",AE84>=$B$6),$C$6,IF(AE84>=$B$5,$C$5,IF(AE84<$B$5,0)))))) ->  | AH84: =IFERROR(_xlfn.XLOOKUP(YEAR(Year2Table[[#This Row],[Date]])&MONTH(Year2Table[[#This Row],[Date]]),PenaltyTable[Year]&PenaltyTable[Month],PenaltyTable[Daily])*$AG$10,"") ->  | AO84: 1905-12-28 | AP84: 0 | AQ84: 11294.51517 | AR84: =IFERROR(_xlfn.XLOOKUP(YEAR(Year3Table[[#This Row],[Date]])&MONTH(Year3Table[[#This Row],[Date]]),PenaltyTable[Year]&PenaltyTable[Month],PenaltyTable[Daily])*$AQ$10,"") ->  | AV84: 11369.81194 | AY84: 1905-12-28 | AZ84: 0 | BA84: 4033.755418 | BB84: =IFERROR(_xlfn.XLOOKUP(YEAR(Year4Table[[#This Row],[Date]])&MONTH(Year4Table[[#This Row],[Date]]),PenaltyTable[Year]&PenaltyTable[Month],PenaltyTable[Daily])*$BA$10,"") ->  | BF84: 4060.647121 | BI84: 1905-12-28 | BJ84: 0 | BK84: 8067.510837 | BL84: =IFERROR(_xlfn.XLOOKUP(YEAR(Year5Table[[#This Row],[Date]])&MONTH(Year5Table[[#This Row],[Date]]),PenaltyTable[Year]&PenaltyTable[Month],PenaltyTable[Daily])*$BK$10,"") ->  | BP84: 8121.294242 | BS84: 1905-12-28 | BT84: 0 | BU84: 4840.506502 | BV84: =IFERROR(_xlfn.XLOOKUP(YEAR(Year6Table[[#This Row],[Date]])&MONTH(Year6Table[[#This Row],[Date]]),PenaltyTable[Year]&PenaltyTable[Month],PenaltyTable[Daily])*$BU$10,"") ->  | BZ84: 4872.776545 | CC84: 1905-12-28 | CD84: 0 | CE84: 14521.51951 | CF84: =IFERROR(_xlfn.XLOOKUP(YEAR(Year7Table[[#This Row],[Date]])&MONTH(Year7Table[[#This Row],[Date]]),PenaltyTable[Year]&PenaltyTable[Month],PenaltyTable[Daily])*CE$10,"") ->  | CJ84: 14618.32964 | CM84: 1905-12-28 | CN84: 0 | CO84: 19362.02601 | CP84: =IFERROR(_xlfn.XLOOKUP(YEAR(Year8Table[[#This Row],[Date]])&MONTH(Year8Table[[#This Row],[Date]]),PenaltyTable[Year]&PenaltyTable[Month],PenaltyTable[Daily])*$CO$10,"") ->  | CT84: 19491.10618 | CW84: 1905-12-28 | CX84: 0 | CY84: 1371.476842 | CZ84: =IFERROR(_xlfn.XLOOKUP(YEAR(Year9Table[[#This Row],[Date]])&MONTH(Year9Table[[#This Row],[Date]]),PenaltyTable[Year]&PenaltyTable[Month],PenaltyTable[Daily])*$CY$10,"") ->  | DD84: 1380.620021 | DG84: 1905-12-28 | DH84: 0 | DI84: 1108.475989 | DJ84: =IFERROR(_xlfn.XLOOKUP(YEAR(Year10Table[[#This Row],[Date]])&MONTH(Year10Table[[#This Row],[Date]]),PenaltyTable[Year]&PenaltyTable[Month],PenaltyTable[Daily])*$DI$10,"") ->  | DN84: 1115.865829
U85: =IFERROR(IF((ROW()-ROW(Year1Table[#Headers]))=1,IF(OR(Table1[[#This Row],[Tax Assessed]]="",Table1[[#This Row],[Tax Assessed]]=0),"",Table1[[#This Row],[Tax Due Dt]]),IF((ROW()-ROW(Year1Table[#Headers]))>1,IF(OFFSET(AB85,-1,)<1,"",EDATE(U84,1)))),"") -> 2023-05-15 | V85: 0 | W85: 11026.2023 | X85: =IFERROR(_xlfn.XLOOKUP(YEAR(Year1Table[[#This Row],[Date]])&MONTH(Year1Table[[#This Row],[Date]]),PenaltyTable[Year]&PenaltyTable[Month],PenaltyTable[Daily])*$W$10,"") -> 2.095780822 | AB85: 11028.29808 | AF85: =IF(ROW()-ROW(Year2Table[#Headers])=1,$AI$193,IF(AG83="","",IF(AND($B$7<>"",AE85>=$B$7),$C$7,IF(AND($B$6<>"",AE85>=$B$6),$C$6,IF(AE85>=$B$5,$C$5,IF(AE85<$B$5,0)))))) ->  | AH85: =IFERROR(_xlfn.XLOOKUP(YEAR(Year2Table[[#This Row],[Date]])&MONTH(Year2Table[[#This Row],[Date]]),PenaltyTable[Year]&PenaltyTable[Month],PenaltyTable[Daily])*$AG$10,"") ->  | AO85: 1906-01-28 | AP85: 0 | AQ85: 11369.81194 | AR85: =IFERROR(_xlfn.XLOOKUP(YEAR(Year3Table[[#This Row],[Date]])&MONTH(Year3Table[[#This Row],[Date]]),PenaltyTable[Year]&PenaltyTable[Month],PenaltyTable[Daily])*$AQ$10,"") ->  | AV85: 11445.61069 | AY85: 1906-01-28 | AZ85: 0 | BA85: 4060.647121 | BB85: =IFERROR(_xlfn.XLOOKUP(YEAR(Year4Table[[#This Row],[Date]])&MONTH(Year4Table[[#This Row],[Date]]),PenaltyTable[Year]&PenaltyTable[Month],PenaltyTable[Daily])*$BA$10,"") ->  | BF85: 4087.718102 | BI85: 1906-01-28 | BJ85: 0 | BK85: 8121.294242 | BL85: =IFERROR(_xlfn.XLOOKUP(YEAR(Year5Table[[#This Row],[Date]])&MONTH(Year5Table[[#This Row],[Date]]),PenaltyTable[Year]&PenaltyTable[Month],PenaltyTable[Daily])*$BK$10,"") ->  | BP85: 8175.436204 | BS85: 1906-01-28 | BT85: 0 | BU85: 4872.776545 | BV85: =IFERROR(_xlfn.XLOOKUP(YEAR(Year6Table[[#This Row],[Date]])&MONTH(Year6Table[[#This Row],[Date]]),PenaltyTable[Year]&PenaltyTable[Month],PenaltyTable[Daily])*$BU$10,"") ->  | BZ85: 4905.261722 | CC85: 1906-01-28 | CD85: 0 | CE85: 14618.32964 | CF85: =IFERROR(_xlfn.XLOOKUP(YEAR(Year7Table[[#This Row],[Date]])&MONTH(Year7Table[[#This Row],[Date]]),PenaltyTable[Year]&PenaltyTable[Month],PenaltyTable[Daily])*CE$10,"") ->  | CJ85: 14715.78517 | CM85: 1906-01-28 | CN85: 0 | CO85: 19491.10618 | CP85: =IFERROR(_xlfn.XLOOKUP(YEAR(Year8Table[[#This Row],[Date]])&MONTH(Year8Table[[#This Row],[Date]]),PenaltyTable[Year]&PenaltyTable[Month],PenaltyTable[Daily])*$CO$10,"") ->  | CT85: 19621.04689 | CW85: 1906-01-28 | CX85: 0 | CY85: 1380.620021 | CZ85: =IFERROR(_xlfn.XLOOKUP(YEAR(Year9Table[[#This Row],[Date]])&MONTH(Year9Table[[#This Row],[Date]]),PenaltyTable[Year]&PenaltyTable[Month],PenaltyTable[Daily])*$CY$10,"") ->  | DD85: 1389.824155 | DG85: 1906-01-28 | DH85: 0 | DI85: 1115.865829 | DJ85: =IFERROR(_xlfn.XLOOKUP(YEAR(Year10Table[[#This Row],[Date]])&MONTH(Year10Table[[#This Row],[Date]]),PenaltyTable[Year]&PenaltyTable[Month],PenaltyTable[Daily])*$DI$10,"") ->  | DN85: 1123.304934
U86: =IFERROR(IF((ROW()-ROW(Year1Table[#Headers]))=1,IF(OR(Table1[[#This Row],[Tax Assessed]]="",Table1[[#This Row],[Tax Assessed]]=0),"",Table1[[#This Row],[Tax Due Dt]]),IF((ROW()-ROW(Year1Table[#Headers]))>1,IF(OFFSET(AB86,-1,)<1,"",EDATE(U85,1)))),"") -> 2023-06-15 | V86: 0 | W86: 11028.29808 | X86: =IFERROR(_xlfn.XLOOKUP(YEAR(Year1Table[[#This Row],[Date]])&MONTH(Year1Table[[#This Row],[Date]]),PenaltyTable[Year]&PenaltyTable[Month],PenaltyTable[Daily])*$W$10,"") -> 2.095780822 | AB86: 11030.39386 | AF86: =IF(ROW()-ROW(Year2Table[#Headers])=1,$AI$193,IF(AG84="","",IF(AND($B$7<>"",AE86>=$B$7),$C$7,IF(AND($B$6<>"",AE86>=$B$6),$C$6,IF(AE86>=$B$5,$C$5,IF(AE86<$B$5,0)))))) ->  | AH86: =IFERROR(_xlfn.XLOOKUP(YEAR(Year2Table[[#This Row],[Date]])&MONTH(Year2Table[[#This Row],[Date]]),PenaltyTable[Year]&PenaltyTable[Month],PenaltyTable[Daily])*$AG$10,"") ->  | AO86: 1906-02-28 | AP86: 0 | AQ86: 11445.61069 | AR86: =IFERROR(_xlfn.XLOOKUP(YEAR(Year3Table[[#This Row],[Date]])&MONTH(Year3Table[[#This Row],[Date]]),PenaltyTable[Year]&PenaltyTable[Month],PenaltyTable[Daily])*$AQ$10,"") ->  | AV86: 11521.91476 | AY86: 1906-02-28 | AZ86: 0 | BA86: 4087.718102 | BB86: =IFERROR(_xlfn.XLOOKUP(YEAR(Year4Table[[#This Row],[Date]])&MONTH(Year4Table[[#This Row],[Date]]),PenaltyTable[Year]&PenaltyTable[Month],PenaltyTable[Daily])*$BA$10,"") ->  | BF86: 4114.969556 | BI86: 1906-02-28 | BJ86: 0 | BK86: 8175.436204 | BL86: =IFERROR(_xlfn.XLOOKUP(YEAR(Year5Table[[#This Row],[Date]])&MONTH(Year5Table[[#This Row],[Date]]),PenaltyTable[Year]&PenaltyTable[Month],PenaltyTable[Daily])*$BK$10,"") ->  | BP86: 8229.939112 | BS86: 1906-02-28 | BT86: 0 | BU86: 4905.261722 | BV86: =IFERROR(_xlfn.XLOOKUP(YEAR(Year6Table[[#This Row],[Date]])&MONTH(Year6Table[[#This Row],[Date]]),PenaltyTable[Year]&PenaltyTable[Month],PenaltyTable[Daily])*$BU$10,"") ->  | BZ86: 4937.963467 | CC86: 1906-02-28 | CD86: 0 | CE86: 14715.78517 | CF86: =IFERROR(_xlfn.XLOOKUP(YEAR(Year7Table[[#This Row],[Date]])&MONTH(Year7Table[[#This Row],[Date]]),PenaltyTable[Year]&PenaltyTable[Month],PenaltyTable[Daily])*CE$10,"") ->  | CJ86: 14813.8904 | CM86: 1906-02-28 | CN86: 0 | CO86: 19621.04689 | CP86: =IFERROR(_xlfn.XLOOKUP(YEAR(Year8Table[[#This Row],[Date]])&MONTH(Year8Table[[#This Row],[Date]]),PenaltyTable[Year]&PenaltyTable[Month],PenaltyTable[Daily])*$CO$10,"") ->  | CT86: 19751.85387 | CW86: 1906-02-28 | CX86: 0 | CY86: 1389.824155 | CZ86: =IFERROR(_xlfn.XLOOKUP(YEAR(Year9Table[[#This Row],[Date]])&MONTH(Year9Table[[#This Row],[Date]]),PenaltyTable[Year]&PenaltyTable[Month],PenaltyTable[Daily])*$CY$10,"") ->  | DD86: 1399.089649 | DG86: 1906-02-28 | DH86: 0 | DI86: 1123.304934 | DJ86: =IFERROR(_xlfn.XLOOKUP(YEAR(Year10Table[[#This Row],[Date]])&MONTH(Year10Table[[#This Row],[Date]]),PenaltyTable[Year]&PenaltyTable[Month],PenaltyTable[Daily])*$DI$10,"") ->  | DN86: 1130.793634
U87: =IFERROR(IF((ROW()-ROW(Year1Table[#Headers]))=1,IF(OR(Table1[[#This Row],[Tax Assessed]]="",Table1[[#This Row],[Tax Assessed]]=0),"",Table1[[#This Row],[Tax Due Dt]]),IF((ROW()-ROW(Year1Table[#Headers]))>1,IF(OFFSET(AB87,-1,)<1,"",EDATE(U86,1)))),"") -> 2023-07-15 | V87: 0 | W87: 11030.39386 | X87: =IFERROR(_xlfn.XLOOKUP(YEAR(Year1Table[[#This Row],[Date]])&MONTH(Year1Table[[#This Row],[Date]]),PenaltyTable[Year]&PenaltyTable[Month],PenaltyTable[Daily])*$W$10,"") -> 2.095780822 | AB87: 11032.48964 | AF87: =IF(ROW()-ROW(Year2Table[#Headers])=1,$AI$193,IF(AG85="","",IF(AND($B$7<>"",AE87>=$B$7),$C$7,IF(AND($B$6<>"",AE87>=$B$6),$C$6,IF(AE87>=$B$5,$C$5,IF(AE87<$B$5,0)))))) ->  | AH87: =IFERROR(_xlfn.XLOOKUP(YEAR(Year2Table[[#This Row],[Date]])&MONTH(Year2Table[[#This Row],[Date]]),PenaltyTable[Year]&PenaltyTable[Month],PenaltyTable[Daily])*$AG$10,"") ->  | AO87: 1906-03-28 | AP87: 0 | AQ87: 11521.91476 | AR87: =IFERROR(_xlfn.XLOOKUP(YEAR(Year3Table[[#This Row],[Date]])&MONTH(Year3Table[[#This Row],[Date]]),PenaltyTable[Year]&PenaltyTable[Month],PenaltyTable[Daily])*$AQ$10,"") ->  | AV87: 11598.72752 | AY87: 1906-03-28 | AZ87: 0 | BA87: 4114.969556 | BB87: =IFERROR(_xlfn.XLOOKUP(YEAR(Year4Table[[#This Row],[Date]])&MONTH(Year4Table[[#This Row],[Date]]),PenaltyTable[Year]&PenaltyTable[Month],PenaltyTable[Daily])*$BA$10,"") ->  | BF87: 4142.402686 | BI87: 1906-03-28 | BJ87: 0 | BK87: 8229.939112 | BL87: =IFERROR(_xlfn.XLOOKUP(YEAR(Year5Table[[#This Row],[Date]])&MONTH(Year5Table[[#This Row],[Date]]),PenaltyTable[Year]&PenaltyTable[Month],PenaltyTable[Daily])*$BK$10,"") ->  | BP87: 8284.805373 | BS87: 1906-03-28 | BT87: 0 | BU87: 4937.963467 | BV87: =IFERROR(_xlfn.XLOOKUP(YEAR(Year6Table[[#This Row],[Date]])&MONTH(Year6Table[[#This Row],[Date]]),PenaltyTable[Year]&PenaltyTable[Month],PenaltyTable[Daily])*$BU$10,"") ->  | BZ87: 4970.883224 | CC87: 1906-03-28 | CD87: 0 | CE87: 14813.8904 | CF87: =IFERROR(_xlfn.XLOOKUP(YEAR(Year7Table[[#This Row],[Date]])&MONTH(Year7Table[[#This Row],[Date]]),PenaltyTable[Year]&PenaltyTable[Month],PenaltyTable[Daily])*CE$10,"") ->  | CJ87: 14912.64967 | CM87: 1906-03-28 | CN87: 0 | CO87: 19751.85387 | CP87: =IFERROR(_xlfn.XLOOKUP(YEAR(Year8Table[[#This Row],[Date]])&MONTH(Year8Table[[#This Row],[Date]]),PenaltyTable[Year]&PenaltyTable[Month],PenaltyTable[Daily])*$CO$10,"") ->  | CT87: 19883.53289 | CW87: 1906-03-28 | CX87: 0 | CY87: 1399.089649 | CZ87: =IFERROR(_xlfn.XLOOKUP(YEAR(Year9Table[[#This Row],[Date]])&MONTH(Year9Table[[#This Row],[Date]]),PenaltyTable[Year]&PenaltyTable[Month],PenaltyTable[Daily])*$CY$10,"") ->  | DD87: 1408.416913 | DG87: 1906-03-28 | DH87: 0 | DI87: 1130.793634 | DJ87: =IFERROR(_xlfn.XLOOKUP(YEAR(Year10Table[[#This Row],[Date]])&MONTH(Year10Table[[#This Row],[Date]]),PenaltyTable[Year]&PenaltyTable[Month],PenaltyTable[Daily])*$DI$10,"") ->  | DN87: 1138.332258
U88: =IFERROR(IF((ROW()-ROW(Year1Table[#Headers]))=1,IF(OR(Table1[[#This Row],[Tax Assessed]]="",Table1[[#This Row],[Tax Assessed]]=0),"",Table1[[#This Row],[Tax Due Dt]]),IF((ROW()-ROW(Year1Table[#Headers]))>1,IF(OFFSET(AB88,-1,)<1,"",EDATE(U87,1)))),"") -> 2023-08-15 | V88: 0 | W88: 11032.48964 | X88: =IFERROR(_xlfn.XLOOKUP(YEAR(Year1Table[[#This Row],[Date]])&MONTH(Year1Table[[#This Row],[Date]]),PenaltyTable[Year]&PenaltyTable[Month],PenaltyTable[Daily])*$W$10,"") -> 2.095780822 | AB88: 11034.58542 | AF88: =IF(ROW()-ROW(Year2Table[#Headers])=1,$AI$193,IF(AG86="","",IF(AND($B$7<>"",AE88>=$B$7),$C$7,IF(AND($B$6<>"",AE88>=$B$6),$C$6,IF(AE88>=$B$5,$C$5,IF(AE88<$B$5,0)))))) ->  | AH88: =IFERROR(_xlfn.XLOOKUP(YEAR(Year2Table[[#This Row],[Date]])&MONTH(Year2Table[[#This Row],[Date]]),PenaltyTable[Year]&PenaltyTable[Month],PenaltyTable[Daily])*$AG$10,"") ->  | AO88: 1906-04-28 | AP88: 0 | AQ88: 11598.72752 | AR88: =IFERROR(_xlfn.XLOOKUP(YEAR(Year3Table[[#This Row],[Date]])&MONTH(Year3Table[[#This Row],[Date]]),PenaltyTable[Year]&PenaltyTable[Month],PenaltyTable[Daily])*$AQ$10,"") ->  | AV88: 11676.05237 | AY88: 1906-04-28 | AZ88: 0 | BA88: 4142.402686 | BB88: =IFERROR(_xlfn.XLOOKUP(YEAR(Year4Table[[#This Row],[Date]])&MONTH(Year4Table[[#This Row],[Date]]),PenaltyTable[Year]&PenaltyTable[Month],PenaltyTable[Daily])*$BA$10,"") ->  | BF88: 4170.018704 | BI88: 1906-04-28 | BJ88: 0 | BK88: 8284.805373 | BL88: =IFERROR(_xlfn.XLOOKUP(YEAR(Year5Table[[#This Row],[Date]])&MONTH(Year5Table[[#This Row],[Date]]),PenaltyTable[Year]&PenaltyTable[Month],PenaltyTable[Daily])*$BK$10,"") ->  | BP88: 8340.037408 | BS88: 1906-04-28 | BT88: 0 | BU88: 4970.883224 | BV88: =IFERROR(_xlfn.XLOOKUP(YEAR(Year6Table[[#This Row],[Date]])&MONTH(Year6Table[[#This Row],[Date]]),PenaltyTable[Year]&PenaltyTable[Month],PenaltyTable[Daily])*$BU$10,"") ->  | BZ88: 5004.022445 | CC88: 1906-04-28 | CD88: 0 | CE88: 14912.64967 | CF88: =IFERROR(_xlfn.XLOOKUP(YEAR(Year7Table[[#This Row],[Date]])&MONTH(Year7Table[[#This Row],[Date]]),PenaltyTable[Year]&PenaltyTable[Month],PenaltyTable[Daily])*CE$10,"") ->  | CJ88: 15012.06733 | CM88: 1906-04-28 | CN88: 0 | CO88: 19883.53289 | CP88: =IFERROR(_xlfn.XLOOKUP(YEAR(Year8Table[[#This Row],[Date]])&MONTH(Year8Table[[#This Row],[Date]]),PenaltyTable[Year]&PenaltyTable[Month],PenaltyTable[Daily])*$CO$10,"") ->  | CT88: 20016.08978 | CW88: 1906-04-28 | CX88: 0 | CY88: 1408.416913 | CZ88: =IFERROR(_xlfn.XLOOKUP(YEAR(Year9Table[[#This Row],[Date]])&MONTH(Year9Table[[#This Row],[Date]]),PenaltyTable[Year]&PenaltyTable[Month],PenaltyTable[Daily])*$CY$10,"") ->  | DD88: 1417.806359 | DG88: 1906-04-28 | DH88: 0 | DI88: 1138.332258 | DJ88: =IFERROR(_xlfn.XLOOKUP(YEAR(Year10Table[[#This Row],[Date]])&MONTH(Year10Table[[#This Row],[Date]]),PenaltyTable[Year]&PenaltyTable[Month],PenaltyTable[Daily])*$DI$10,"") ->  | DN88: 1145.92114
U89: =IFERROR(IF((ROW()-ROW(Year1Table[#Headers]))=1,IF(OR(Table1[[#This Row],[Tax Assessed]]="",Table1[[#This Row],[Tax Assessed]]=0),"",Table1[[#This Row],[Tax Due Dt]]),IF((ROW()-ROW(Year1Table[#Headers]))>1,IF(OFFSET(AB89,-1,)<1,"",EDATE(U88,1)))),"") -> 2023-09-15 | V89: 0 | W89: 11034.58542 | X89: =IFERROR(_xlfn.XLOOKUP(YEAR(Year1Table[[#This Row],[Date]])&MONTH(Year1Table[[#This Row],[Date]]),PenaltyTable[Year]&PenaltyTable[Month],PenaltyTable[Daily])*$W$10,"") -> 2.095780822 | AB89: 11036.68121 | AF89: =IF(ROW()-ROW(Year2Table[#Headers])=1,$AI$193,IF(AG87="","",IF(AND($B$7<>"",AE89>=$B$7),$C$7,IF(AND($B$6<>"",AE89>=$B$6),$C$6,IF(AE89>=$B$5,$C$5,IF(AE89<$B$5,0)))))) ->  | AH89: =IFERROR(_xlfn.XLOOKUP(YEAR(Year2Table[[#This Row],[Date]])&MONTH(Year2Table[[#This Row],[Date]]),PenaltyTable[Year]&PenaltyTable[Month],PenaltyTable[Daily])*$AG$10,"") ->  | AO89: 1906-05-28 | AP89: 0 | AQ89: 11676.05237 | AR89: =IFERROR(_xlfn.XLOOKUP(YEAR(Year3Table[[#This Row],[Date]])&MONTH(Year3Table[[#This Row],[Date]]),PenaltyTable[Year]&PenaltyTable[Month],PenaltyTable[Daily])*$AQ$10,"") ->  | AV89: 11753.89272 | AY89: 1906-05-28 | AZ89: 0 | BA89: 4170.018704 | BB89: =IFERROR(_xlfn.XLOOKUP(YEAR(Year4Table[[#This Row],[Date]])&MONTH(Year4Table[[#This Row],[Date]]),PenaltyTable[Year]&PenaltyTable[Month],PenaltyTable[Daily])*$BA$10,"") ->  | BF89: 4197.818829 | BI89: 1906-05-28 | BJ89: 0 | BK89: 8340.037408 | BL89: =IFERROR(_xlfn.XLOOKUP(YEAR(Year5Table[[#This Row],[Date]])&MONTH(Year5Table[[#This Row],[Date]]),PenaltyTable[Year]&PenaltyTable[Month],PenaltyTable[Daily])*$BK$10,"") ->  | BP89: 8395.637658 | BS89: 1906-05-28 | BT89: 0 | BU89: 5004.022445 | BV89: =IFERROR(_xlfn.XLOOKUP(YEAR(Year6Table[[#This Row],[Date]])&MONTH(Year6Table[[#This Row],[Date]]),PenaltyTable[Year]&PenaltyTable[Month],PenaltyTable[Daily])*$BU$10,"") ->  | BZ89: 5037.382595 | CC89: 1906-05-28 | CD89: 0 | CE89: 15012.06733 | CF89: =IFERROR(_xlfn.XLOOKUP(YEAR(Year7Table[[#This Row],[Date]])&MONTH(Year7Table[[#This Row],[Date]]),PenaltyTable[Year]&PenaltyTable[Month],PenaltyTable[Daily])*CE$10,"") ->  | CJ89: 15112.14778 | CM89: 1906-05-28 | CN89: 0 | CO89: 20016.08978 | CP89: =IFERROR(_xlfn.XLOOKUP(YEAR(Year8Table[[#This Row],[Date]])&MONTH(Year8Table[[#This Row],[Date]]),PenaltyTable[Year]&PenaltyTable[Month],PenaltyTable[Daily])*$CO$10,"") ->  | CT89: 20149.53038 | CW89: 1906-05-28 | CX89: 0 | CY89: 1417.806359 | CZ89: =IFERROR(_xlfn.XLOOKUP(YEAR(Year9Table[[#This Row],[Date]])&MONTH(Year9Table[[#This Row],[Date]]),PenaltyTable[Year]&PenaltyTable[Month],PenaltyTable[Daily])*$CY$10,"") ->  | DD89: 1427.258402 | DG89: 1906-05-28 | DH89: 0 | DI89: 1145.92114 | DJ89: =IFERROR(_xlfn.XLOOKUP(YEAR(Year10Table[[#This Row],[Date]])&MONTH(Year10Table[[#This Row],[Date]]),PenaltyTable[Year]&PenaltyTable[Month],PenaltyTable[Daily])*$DI$10,"") ->  | DN89: 1153.560614
U90: =IFERROR(IF((ROW()-ROW(Year1Table[#Headers]))=1,IF(OR(Table1[[#This Row],[Tax Assessed]]="",Table1[[#This Row],[Tax Assessed]]=0),"",Table1[[#This Row],[Tax Due Dt]]),IF((ROW()-ROW(Year1Table[#Headers]))>1,IF(OFFSET(AB90,-1,)<1,"",EDATE(U89,1)))),"") -> 2023-10-15 | V90: 0 | W90: 11036.68121 | X90: =IFERROR(_xlfn.XLOOKUP(YEAR(Year1Table[[#This Row],[Date]])&MONTH(Year1Table[[#This Row],[Date]]),PenaltyTable[Year]&PenaltyTable[Month],PenaltyTable[Daily])*$W$10,"") -> 2.095780822 | AB90: 11038.77699 | AF90: =IF(ROW()-ROW(Year2Table[#Headers])=1,$AI$193,IF(AG88="","",IF(AND($B$7<>"",AE90>=$B$7),$C$7,IF(AND($B$6<>"",AE90>=$B$6),$C$6,IF(AE90>=$B$5,$C$5,IF(AE90<$B$5,0)))))) ->  | AH90: =IFERROR(_xlfn.XLOOKUP(YEAR(Year2Table[[#This Row],[Date]])&MONTH(Year2Table[[#This Row],[Date]]),PenaltyTable[Year]&PenaltyTable[Month],PenaltyTable[Daily])*$AG$10,"") ->  | AO90: 1906-06-28 | AP90: 0 | AQ90: 11753.89272 | AR90: =IFERROR(_xlfn.XLOOKUP(YEAR(Year3Table[[#This Row],[Date]])&MONTH(Year3Table[[#This Row],[Date]]),PenaltyTable[Year]&PenaltyTable[Month],PenaltyTable[Daily])*$AQ$10,"") ->  | AV90: 11832.25201 | AY90: 1906-06-28 | AZ90: 0 | BA90: 4197.818829 | BB90: =IFERROR(_xlfn.XLOOKUP(YEAR(Year4Table[[#This Row],[Date]])&MONTH(Year4Table[[#This Row],[Date]]),PenaltyTable[Year]&PenaltyTable[Month],PenaltyTable[Daily])*$BA$10,"") ->  | BF90: 4225.804288 | BI90: 1906-06-28 | BJ90: 0 | BK90: 8395.637658 | BL90: =IFERROR(_xlfn.XLOOKUP(YEAR(Year5Table[[#This Row],[Date]])&MONTH(Year5Table[[#This Row],[Date]]),PenaltyTable[Year]&PenaltyTable[Month],PenaltyTable[Daily])*$BK$10,"") ->  | BP90: 8451.608575 | BS90: 1906-06-28 | BT90: 0 | BU90: 5037.382595 | BV90: =IFERROR(_xlfn.XLOOKUP(YEAR(Year6Table[[#This Row],[Date]])&MONTH(Year6Table[[#This Row],[Date]]),PenaltyTable[Year]&PenaltyTable[Month],PenaltyTable[Daily])*$BU$10,"") ->  | BZ90: 5070.965145 | CC90: 1906-06-28 | CD90: 0 | CE90: 15112.14778 | CF90: =IFERROR(_xlfn.XLOOKUP(YEAR(Year7Table[[#This Row],[Date]])&MONTH(Year7Table[[#This Row],[Date]]),PenaltyTable[Year]&PenaltyTable[Month],PenaltyTable[Daily])*CE$10,"") ->  | CJ90: 15212.89544 | CM90: 1906-06-28 | CN90: 0 | CO90: 20149.53038 | CP90: =IFERROR(_xlfn.XLOOKUP(YEAR(Year8Table[[#This Row],[Date]])&MONTH(Year8Table[[#This Row],[Date]]),PenaltyTable[Year]&PenaltyTable[Month],PenaltyTable[Daily])*$CO$10,"") ->  | CT90: 20283.86058 | CW90: 1906-06-28 | CX90: 0 | CY90: 1427.258402 | CZ90: =IFERROR(_xlfn.XLOOKUP(YEAR(Year9Table[[#This Row],[Date]])&MONTH(Year9Table[[#This Row],[Date]]),PenaltyTable[Year]&PenaltyTable[Month],PenaltyTable[Daily])*$CY$10,"") ->  | DD90: 1436.773458 | DG90: 1906-06-28 | DH90: 0 | DI90: 1153.560614 | DJ90: =IFERROR(_xlfn.XLOOKUP(YEAR(Year10Table[[#This Row],[Date]])&MONTH(Year10Table[[#This Row],[Date]]),PenaltyTable[Year]&PenaltyTable[Month],PenaltyTable[Daily])*$DI$10,"") ->  | DN90: 1161.251018
U91: =IFERROR(IF((ROW()-ROW(Year1Table[#Headers]))=1,IF(OR(Table1[[#This Row],[Tax Assessed]]="",Table1[[#This Row],[Tax Assessed]]=0),"",Table1[[#This Row],[Tax Due Dt]]),IF((ROW()-ROW(Year1Table[#Headers]))>1,IF(OFFSET(AB91,-1,)<1,"",EDATE(U90,1)))),"") -> 2023-11-15 | V91: 0 | W91: 11038.77699 | X91: =IFERROR(_xlfn.XLOOKUP(YEAR(Year1Table[[#This Row],[Date]])&MONTH(Year1Table[[#This Row],[Date]]),PenaltyTable[Year]&PenaltyTable[Month],PenaltyTable[Daily])*$W$10,"") -> 2.095780822 | AB91: 11040.87277 | AF91: =IF(ROW()-ROW(Year2Table[#Headers])=1,$AI$193,IF(AG89="","",IF(AND($B$7<>"",AE91>=$B$7),$C$7,IF(AND($B$6<>"",AE91>=$B$6),$C$6,IF(AE91>=$B$5,$C$5,IF(AE91<$B$5,0)))))) ->  | AH91: =IFERROR(_xlfn.XLOOKUP(YEAR(Year2Table[[#This Row],[Date]])&MONTH(Year2Table[[#This Row],[Date]]),PenaltyTable[Year]&PenaltyTable[Month],PenaltyTable[Daily])*$AG$10,"") ->  | AO91: 1906-07-28 | AP91: 0 | AQ91: 11832.25201 | AR91: =IFERROR(_xlfn.XLOOKUP(YEAR(Year3Table[[#This Row],[Date]])&MONTH(Year3Table[[#This Row],[Date]]),PenaltyTable[Year]&PenaltyTable[Month],PenaltyTable[Daily])*$AQ$10,"") ->  | AV91: 11911.13369 | AY91: 1906-07-28 | AZ91: 0 | BA91: 4225.804288 | BB91: =IFERROR(_xlfn.XLOOKUP(YEAR(Year4Table[[#This Row],[Date]])&MONTH(Year4Table[[#This Row],[Date]]),PenaltyTable[Year]&PenaltyTable[Month],PenaltyTable[Daily])*$BA$10,"") ->  | BF91: 4253.976316 | BI91: 1906-07-28 | BJ91: 0 | BK91: 8451.608575 | BL91: =IFERROR(_xlfn.XLOOKUP(YEAR(Year5Table[[#This Row],[Date]])&MONTH(Year5Table[[#This Row],[Date]]),PenaltyTable[Year]&PenaltyTable[Month],PenaltyTable[Daily])*$BK$10,"") ->  | BP91: 8507.952633 | BS91: 1906-07-28 | BT91: 0 | BU91: 5070.965145 | BV91: =IFERROR(_xlfn.XLOOKUP(YEAR(Year6Table[[#This Row],[Date]])&MONTH(Year6Table[[#This Row],[Date]]),PenaltyTable[Year]&PenaltyTable[Month],PenaltyTable[Daily])*$BU$10,"") ->  | BZ91: 5104.77158 | CC91: 1906-07-28 | CD91: 0 | CE91: 15212.89544 | CF91: =IFERROR(_xlfn.XLOOKUP(YEAR(Year7Table[[#This Row],[Date]])&MONTH(Year7Table[[#This Row],[Date]]),PenaltyTable[Year]&PenaltyTable[Month],PenaltyTable[Daily])*CE$10,"") ->  | CJ91: 15314.31474 | CM91: 1906-07-28 | CN91: 0 | CO91: 20283.86058 | CP91: =IFERROR(_xlfn.XLOOKUP(YEAR(Year8Table[[#This Row],[Date]])&MONTH(Year8Table[[#This Row],[Date]]),PenaltyTable[Year]&PenaltyTable[Month],PenaltyTable[Daily])*$CO$10,"") ->  | CT91: 20419.08632 | CW91: 1906-07-28 | CX91: 0 | CY91: 1436.773458 | CZ91: =IFERROR(_xlfn.XLOOKUP(YEAR(Year9Table[[#This Row],[Date]])&MONTH(Year9Table[[#This Row],[Date]]),PenaltyTable[Year]&PenaltyTable[Month],PenaltyTable[Daily])*$CY$10,"") ->  | DD91: 1446.351948 | DG91: 1906-07-28 | DH91: 0 | DI91: 1161.251018 | DJ91: =IFERROR(_xlfn.XLOOKUP(YEAR(Year10Table[[#This Row],[Date]])&MONTH(Year10Table[[#This Row],[Date]]),PenaltyTable[Year]&PenaltyTable[Month],PenaltyTable[Daily])*$DI$10,"") ->  | DN91: 1168.992692
U92: =IFERROR(IF((ROW()-ROW(Year1Table[#Headers]))=1,IF(OR(Table1[[#This Row],[Tax Assessed]]="",Table1[[#This Row],[Tax Assessed]]=0),"",Table1[[#This Row],[Tax Due Dt]]),IF((ROW()-ROW(Year1Table[#Headers]))>1,IF(OFFSET(AB92,-1,)<1,"",EDATE(U91,1)))),"") -> 2023-12-15 | V92: 0 | W92: 11040.87277 | X92: =IFERROR(_xlfn.XLOOKUP(YEAR(Year1Table[[#This Row],[Date]])&MONTH(Year1Table[[#This Row],[Date]]),PenaltyTable[Year]&PenaltyTable[Month],PenaltyTable[Daily])*$W$10,"") -> 2.095780822 | AB92: 11042.96855 | AF92: =IF(ROW()-ROW(Year2Table[#Headers])=1,$AI$193,IF(AG90="","",IF(AND($B$7<>"",AE92>=$B$7),$C$7,IF(AND($B$6<>"",AE92>=$B$6),$C$6,IF(AE92>=$B$5,$C$5,IF(AE92<$B$5,0)))))) ->  | AH92: =IFERROR(_xlfn.XLOOKUP(YEAR(Year2Table[[#This Row],[Date]])&MONTH(Year2Table[[#This Row],[Date]]),PenaltyTable[Year]&PenaltyTable[Month],PenaltyTable[Daily])*$AG$10,"") ->  | AO92: 1906-08-28 | AP92: 0 | AQ92: 11911.13369 | AR92: =IFERROR(_xlfn.XLOOKUP(YEAR(Year3Table[[#This Row],[Date]])&MONTH(Year3Table[[#This Row],[Date]]),PenaltyTable[Year]&PenaltyTable[Month],PenaltyTable[Daily])*$AQ$10,"") ->  | AV92: 11990.54124 | AY92: 1906-08-28 | AZ92: 0 | BA92: 4253.976316 | BB92: =IFERROR(_xlfn.XLOOKUP(YEAR(Year4Table[[#This Row],[Date]])&MONTH(Year4Table[[#This Row],[Date]]),PenaltyTable[Year]&PenaltyTable[Month],PenaltyTable[Daily])*$BA$10,"") ->  | BF92: 4282.336158 | BI92: 1906-08-28 | BJ92: 0 | BK92: 8507.952633 | BL92: =IFERROR(_xlfn.XLOOKUP(YEAR(Year5Table[[#This Row],[Date]])&MONTH(Year5Table[[#This Row],[Date]]),PenaltyTable[Year]&PenaltyTable[Month],PenaltyTable[Daily])*$BK$10,"") ->  | BP92: 8564.672317 | BS92: 1906-08-28 | BT92: 0 | BU92: 5104.77158 | BV92: =IFERROR(_xlfn.XLOOKUP(YEAR(Year6Table[[#This Row],[Date]])&MONTH(Year6Table[[#This Row],[Date]]),PenaltyTable[Year]&PenaltyTable[Month],PenaltyTable[Daily])*$BU$10,"") ->  | BZ92: 5138.80339 | CC92: 1906-08-28 | CD92: 0 | CE92: 15314.31474 | CF92: =IFERROR(_xlfn.XLOOKUP(YEAR(Year7Table[[#This Row],[Date]])&MONTH(Year7Table[[#This Row],[Date]]),PenaltyTable[Year]&PenaltyTable[Month],PenaltyTable[Daily])*CE$10,"") ->  | CJ92: 15416.41017 | CM92: 1906-08-28 | CN92: 0 | CO92: 20419.08632 | CP92: =IFERROR(_xlfn.XLOOKUP(YEAR(Year8Table[[#This Row],[Date]])&MONTH(Year8Table[[#This Row],[Date]]),PenaltyTable[Year]&PenaltyTable[Month],PenaltyTable[Daily])*$CO$10,"") ->  | CT92: 20555.21356 | CW92: 1906-08-28 | CX92: 0 | CY92: 1446.351948 | CZ92: =IFERROR(_xlfn.XLOOKUP(YEAR(Year9Table[[#This Row],[Date]])&MONTH(Year9Table[[#This Row],[Date]]),PenaltyTable[Year]&PenaltyTable[Month],PenaltyTable[Daily])*$CY$10,"") ->  | DD92: 1455.994294 | DG92: 1906-08-28 | DH92: 0 | DI92: 1168.992692 | DJ92: =IFERROR(_xlfn.XLOOKUP(YEAR(Year10Table[[#This Row],[Date]])&MONTH(Year10Table[[#This Row],[Date]]),PenaltyTable[Year]&PenaltyTable[Month],PenaltyTable[Daily])*$DI$10,"") ->  | DN92: 1176.785976
U93: =IFERROR(IF((ROW()-ROW(Year1Table[#Headers]))=1,IF(OR(Table1[[#This Row],[Tax Assessed]]="",Table1[[#This Row],[Tax Assessed]]=0),"",Table1[[#This Row],[Tax Due Dt]]),IF((ROW()-ROW(Year1Table[#Headers]))>1,IF(OFFSET(AB93,-1,)<1,"",EDATE(U92,1)))),"") -> 2024-01-15 | V93: 0 | W93: 11042.96855 | X93: =IFERROR(_xlfn.XLOOKUP(YEAR(Year1Table[[#This Row],[Date]])&MONTH(Year1Table[[#This Row],[Date]]),PenaltyTable[Year]&PenaltyTable[Month],PenaltyTable[Daily])*$W$10,"") -> 2.395178082 | AB93: 11045.36373 | AF93: =IF(ROW()-ROW(Year2Table[#Headers])=1,$AI$193,IF(AG91="","",IF(AND($B$7<>"",AE93>=$B$7),$C$7,IF(AND($B$6<>"",AE93>=$B$6),$C$6,IF(AE93>=$B$5,$C$5,IF(AE93<$B$5,0)))))) ->  | AH93: =IFERROR(_xlfn.XLOOKUP(YEAR(Year2Table[[#This Row],[Date]])&MONTH(Year2Table[[#This Row],[Date]]),PenaltyTable[Year]&PenaltyTable[Month],PenaltyTable[Daily])*$AG$10,"") ->  | AO93: 1906-09-28 | AP93: 0 | AQ93: 11990.54124 | AR93: =IFERROR(_xlfn.XLOOKUP(YEAR(Year3Table[[#This Row],[Date]])&MONTH(Year3Table[[#This Row],[Date]]),PenaltyTable[Year]&PenaltyTable[Month],PenaltyTable[Daily])*$AQ$10,"") ->  | AV93: 12070.47819 | AY93: 1906-09-28 | AZ93: 0 | BA93: 4282.336158 | BB93: =IFERROR(_xlfn.XLOOKUP(YEAR(Year4Table[[#This Row],[Date]])&MONTH(Year4Table[[#This Row],[Date]]),PenaltyTable[Year]&PenaltyTable[Month],PenaltyTable[Daily])*$BA$10,"") ->  | BF93: 4310.885066 | BI93: 1906-09-28 | BJ93: 0 | BK93: 8564.672317 | BL93: =IFERROR(_xlfn.XLOOKUP(YEAR(Year5Table[[#This Row],[Date]])&MONTH(Year5Table[[#This Row],[Date]]),PenaltyTable[Year]&PenaltyTable[Month],PenaltyTable[Daily])*$BK$10,"") ->  | BP93: 8621.770132 | BS93: 1906-09-28 | BT93: 0 | BU93: 5138.80339 | BV93: =IFERROR(_xlfn.XLOOKUP(YEAR(Year6Table[[#This Row],[Date]])&MONTH(Year6Table[[#This Row],[Date]]),PenaltyTable[Year]&PenaltyTable[Month],PenaltyTable[Daily])*$BU$10,"") ->  | BZ93: 5173.062079 | CC93: 1906-09-28 | CD93: 0 | CE93: 15416.41017 | CF93: =IFERROR(_xlfn.XLOOKUP(YEAR(Year7Table[[#This Row],[Date]])&MONTH(Year7Table[[#This Row],[Date]]),PenaltyTable[Year]&PenaltyTable[Month],PenaltyTable[Daily])*CE$10,"") ->  | CJ93: 15519.18624 | CM93: 1906-09-28 | CN93: 0 | CO93: 20555.21356 | CP93: =IFERROR(_xlfn.XLOOKUP(YEAR(Year8Table[[#This Row],[Date]])&MONTH(Year8Table[[#This Row],[Date]]),PenaltyTable[Year]&PenaltyTable[Month],PenaltyTable[Daily])*$CO$10,"") ->  | CT93: 20692.24832 | CW93: 1906-09-28 | CX93: 0 | CY93: 1455.994294 | CZ93: =IFERROR(_xlfn.XLOOKUP(YEAR(Year9Table[[#This Row],[Date]])&MONTH(Year9Table[[#This Row],[Date]]),PenaltyTable[Year]&PenaltyTable[Month],PenaltyTable[Daily])*$CY$10,"") ->  | DD93: 1465.700922 | DG93: 1906-09-28 | DH93: 0 | DI93: 1176.785976 | DJ93: =IFERROR(_xlfn.XLOOKUP(YEAR(Year10Table[[#This Row],[Date]])&MONTH(Year10Table[[#This Row],[Date]]),PenaltyTable[Year]&PenaltyTable[Month],PenaltyTable[Daily])*$DI$10,"") ->  | DN93: 1184.631216
U94: =IFERROR(IF((ROW()-ROW(Year1Table[#Headers]))=1,IF(OR(Table1[[#This Row],[Tax Assessed]]="",Table1[[#This Row],[Tax Assessed]]=0),"",Table1[[#This Row],[Tax Due Dt]]),IF((ROW()-ROW(Year1Table[#Headers]))>1,IF(OFFSET(AB94,-1,)<1,"",EDATE(U93,1)))),"") -> 2024-02-15 | V94: 0 | W94: 11045.36373 | X94: =IFERROR(_xlfn.XLOOKUP(YEAR(Year1Table[[#This Row],[Date]])&MONTH(Year1Table[[#This Row],[Date]]),PenaltyTable[Year]&PenaltyTable[Month],PenaltyTable[Daily])*$W$10,"") -> 2.395178082 | AB94: 11047.7589 | AF94: =IF(ROW()-ROW(Year2Table[#Headers])=1,$AI$193,IF(AG92="","",IF(AND($B$7<>"",AE94>=$B$7),$C$7,IF(AND($B$6<>"",AE94>=$B$6),$C$6,IF(AE94>=$B$5,$C$5,IF(AE94<$B$5,0)))))) ->  | AH94: =IFERROR(_xlfn.XLOOKUP(YEAR(Year2Table[[#This Row],[Date]])&MONTH(Year2Table[[#This Row],[Date]]),PenaltyTable[Year]&PenaltyTable[Month],PenaltyTable[Daily])*$AG$10,"") ->  | AO94: 1906-10-28 | AP94: 0 | AQ94: 12070.47819 | AR94: =IFERROR(_xlfn.XLOOKUP(YEAR(Year3Table[[#This Row],[Date]])&MONTH(Year3Table[[#This Row],[Date]]),PenaltyTable[Year]&PenaltyTable[Month],PenaltyTable[Daily])*$AQ$10,"") ->  | AV94: 12150.94804 | AY94: 1906-10-28 | AZ94: 0 | BA94: 4310.885066 | BB94: =IFERROR(_xlfn.XLOOKUP(YEAR(Year4Table[[#This Row],[Date]])&MONTH(Year4Table[[#This Row],[Date]]),PenaltyTable[Year]&PenaltyTable[Month],PenaltyTable[Daily])*$BA$10,"") ->  | BF94: 4339.6243 | BI94: 1906-10-28 | BJ94: 0 | BK94: 8621.770132 | BL94: =IFERROR(_xlfn.XLOOKUP(YEAR(Year5Table[[#This Row],[Date]])&MONTH(Year5Table[[#This Row],[Date]]),PenaltyTable[Year]&PenaltyTable[Month],PenaltyTable[Daily])*$BK$10,"") ->  | BP94: 8679.2486 | BS94: 1906-10-28 | BT94: 0 | BU94: 5173.062079 | BV94: =IFERROR(_xlfn.XLOOKUP(YEAR(Year6Table[[#This Row],[Date]])&MONTH(Year6Table[[#This Row],[Date]]),PenaltyTable[Year]&PenaltyTable[Month],PenaltyTable[Daily])*$BU$10,"") ->  | BZ94: 5207.54916 | CC94: 1906-10-28 | CD94: 0 | CE94: 15519.18624 | CF94: =IFERROR(_xlfn.XLOOKUP(YEAR(Year7Table[[#This Row],[Date]])&MONTH(Year7Table[[#This Row],[Date]]),PenaltyTable[Year]&PenaltyTable[Month],PenaltyTable[Daily])*CE$10,"") ->  | CJ94: 15622.64748 | CM94: 1906-10-28 | CN94: 0 | CO94: 20692.24832 | CP94: =IFERROR(_xlfn.XLOOKUP(YEAR(Year8Table[[#This Row],[Date]])&MONTH(Year8Table[[#This Row],[Date]]),PenaltyTable[Year]&PenaltyTable[Month],PenaltyTable[Daily])*$CO$10,"") ->  | CT94: 20830.19664 | CW94: 1906-10-28 | CX94: 0 | CY94: 1465.700922 | CZ94: =IFERROR(_xlfn.XLOOKUP(YEAR(Year9Table[[#This Row],[Date]])&MONTH(Year9Table[[#This Row],[Date]]),PenaltyTable[Year]&PenaltyTable[Month],PenaltyTable[Daily])*$CY$10,"") ->  | DD94: 1475.472262 | DG94: 1906-10-28 | DH94: 0 | DI94: 1184.631216 | DJ94: =IFERROR(_xlfn.XLOOKUP(YEAR(Year10Table[[#This Row],[Date]])&MONTH(Year10Table[[#This Row],[Date]]),PenaltyTable[Year]&PenaltyTable[Month],PenaltyTable[Daily])*$DI$10,"") ->  | DN94: 1192.528758
U95: =IFERROR(IF((ROW()-ROW(Year1Table[#Headers]))=1,IF(OR(Table1[[#This Row],[Tax Assessed]]="",Table1[[#This Row],[Tax Assessed]]=0),"",Table1[[#This Row],[Tax Due Dt]]),IF((ROW()-ROW(Year1Table[#Headers]))>1,IF(OFFSET(AB95,-1,)<1,"",EDATE(U94,1)))),"") -> 2024-03-15 | V95: 1250 | W95: 11047.7589 | X95: =IFERROR(_xlfn.XLOOKUP(YEAR(Year1Table[[#This Row],[Date]])&MONTH(Year1Table[[#This Row],[Date]]),PenaltyTable[Year]&PenaltyTable[Month],PenaltyTable[Daily])*$W$10,"") -> 2.395178082 | AB95: 9800.154082 | AF95: =IF(ROW()-ROW(Year2Table[#Headers])=1,$AI$193,IF(AG93="","",IF(AND($B$7<>"",AE95>=$B$7),$C$7,IF(AND($B$6<>"",AE95>=$B$6),$C$6,IF(AE95>=$B$5,$C$5,IF(AE95<$B$5,0)))))) ->  | AH95: =IFERROR(_xlfn.XLOOKUP(YEAR(Year2Table[[#This Row],[Date]])&MONTH(Year2Table[[#This Row],[Date]]),PenaltyTable[Year]&PenaltyTable[Month],PenaltyTable[Daily])*$AG$10,"") ->  | AO95: 1906-11-28 | AP95: 0 | AQ95: 12150.94804 | AR95: =IFERROR(_xlfn.XLOOKUP(YEAR(Year3Table[[#This Row],[Date]])&MONTH(Year3Table[[#This Row],[Date]]),PenaltyTable[Year]&PenaltyTable[Month],PenaltyTable[Daily])*$AQ$10,"") ->  | AV95: 12231.95436 | AY95: 1906-11-28 | AZ95: 0 | BA95: 4339.6243 | BB95: =IFERROR(_xlfn.XLOOKUP(YEAR(Year4Table[[#This Row],[Date]])&MONTH(Year4Table[[#This Row],[Date]]),PenaltyTable[Year]&PenaltyTable[Month],PenaltyTable[Daily])*$BA$10,"") ->  | BF95: 4368.555129 | BI95: 1906-11-28 | BJ95: 0 | BK95: 8679.2486 | BL95: =IFERROR(_xlfn.XLOOKUP(YEAR(Year5Table[[#This Row],[Date]])&MONTH(Year5Table[[#This Row],[Date]]),PenaltyTable[Year]&PenaltyTable[Month],PenaltyTable[Daily])*$BK$10,"") ->  | BP95: 8737.110257 | BS95: 1906-11-28 | BT95: 0 | BU95: 5207.54916 | BV95: =IFERROR(_xlfn.XLOOKUP(YEAR(Year6Table[[#This Row],[Date]])&MONTH(Year6Table[[#This Row],[Date]]),PenaltyTable[Year]&PenaltyTable[Month],PenaltyTable[Daily])*$BU$10,"") ->  | BZ95: 5242.266154 | CC95: 1906-11-28 | CD95: 0 | CE95: 15622.64748 | CF95: =IFERROR(_xlfn.XLOOKUP(YEAR(Year7Table[[#This Row],[Date]])&MONTH(Year7Table[[#This Row],[Date]]),PenaltyTable[Year]&PenaltyTable[Month],PenaltyTable[Daily])*CE$10,"") ->  | CJ95: 15726.79846 | CM95: 1906-11-28 | CN95: 0 | CO95: 20830.19664 | CP95: =IFERROR(_xlfn.XLOOKUP(YEAR(Year8Table[[#This Row],[Date]])&MONTH(Year8Table[[#This Row],[Date]]),PenaltyTable[Year]&PenaltyTable[Month],PenaltyTable[Daily])*$CO$10,"") ->  | CT95: 20969.06462 | CW95: 1906-11-28 | CX95: 0 | CY95: 1475.472262 | CZ95: =IFERROR(_xlfn.XLOOKUP(YEAR(Year9Table[[#This Row],[Date]])&MONTH(Year9Table[[#This Row],[Date]]),PenaltyTable[Year]&PenaltyTable[Month],PenaltyTable[Daily])*$CY$10,"") ->  | DD95: 1485.308744 | DG95: 1906-11-28 | DH95: 0 | DI95: 1192.528758 | DJ95: =IFERROR(_xlfn.XLOOKUP(YEAR(Year10Table[[#This Row],[Date]])&MONTH(Year10Table[[#This Row],[Date]]),PenaltyTable[Year]&PenaltyTable[Month],PenaltyTable[Daily])*$DI$10,"") ->  | DN95: 1200.478949
U96: =IFERROR(IF((ROW()-ROW(Year1Table[#Headers]))=1,IF(OR(Table1[[#This Row],[Tax Assessed]]="",Table1[[#This Row],[Tax Assessed]]=0),"",Table1[[#This Row],[Tax Due Dt]]),IF((ROW()-ROW(Year1Table[#Headers]))>1,IF(OFFSET(AB96,-1,)<1,"",EDATE(U95,1)))),"") -> 2024-04-15 | V96: 1250 | W96: 9800.154082 | X96: =IFERROR(_xlfn.XLOOKUP(YEAR(Year1Table[[#This Row],[Date]])&MONTH(Year1Table[[#This Row],[Date]]),PenaltyTable[Year]&PenaltyTable[Month],PenaltyTable[Daily])*$W$10,"") -> 2.395178082 | AB96: 8552.54926 | AF96: =IF(ROW()-ROW(Year2Table[#Headers])=1,$AI$193,IF(AG94="","",IF(AND($B$7<>"",AE96>=$B$7),$C$7,IF(AND($B$6<>"",AE96>=$B$6),$C$6,IF(AE96>=$B$5,$C$5,IF(AE96<$B$5,0)))))) ->  | AH96: =IFERROR(_xlfn.XLOOKUP(YEAR(Year2Table[[#This Row],[Date]])&MONTH(Year2Table[[#This Row],[Date]]),PenaltyTable[Year]&PenaltyTable[Month],PenaltyTable[Daily])*$AG$10,"") ->  | AO96: 1906-12-28 | AP96: 0 | AQ96: 12231.95436 | AR96: =IFERROR(_xlfn.XLOOKUP(YEAR(Year3Table[[#This Row],[Date]])&MONTH(Year3Table[[#This Row],[Date]]),PenaltyTable[Year]&PenaltyTable[Month],PenaltyTable[Daily])*$AQ$10,"") ->  | AV96: 12313.50072 | AY96: 1906-12-28 | AZ96: 0 | BA96: 4368.555129 | BB96: =IFERROR(_xlfn.XLOOKUP(YEAR(Year4Table[[#This Row],[Date]])&MONTH(Year4Table[[#This Row],[Date]]),PenaltyTable[Year]&PenaltyTable[Month],PenaltyTable[Daily])*$BA$10,"") ->  | BF96: 4397.678829 | BI96: 1906-12-28 | BJ96: 0 | BK96: 8737.110257 | BL96: =IFERROR(_xlfn.XLOOKUP(YEAR(Year5Table[[#This Row],[Date]])&MONTH(Year5Table[[#This Row],[Date]]),PenaltyTable[Year]&PenaltyTable[Month],PenaltyTable[Daily])*$BK$10,"") ->  | BP96: 8795.357659 | BS96: 1906-12-28 | BT96: 0 | BU96: 5242.266154 | BV96: =IFERROR(_xlfn.XLOOKUP(YEAR(Year6Table[[#This Row],[Date]])&MONTH(Year6Table[[#This Row],[Date]]),PenaltyTable[Year]&PenaltyTable[Month],PenaltyTable[Daily])*$BU$10,"") ->  | BZ96: 5277.214595 | CC96: 1906-12-28 | CD96: 0 | CE96: 15726.79846 | CF96: =IFERROR(_xlfn.XLOOKUP(YEAR(Year7Table[[#This Row],[Date]])&MONTH(Year7Table[[#This Row],[Date]]),PenaltyTable[Year]&PenaltyTable[Month],PenaltyTable[Daily])*CE$10,"") ->  | CJ96: 15831.64379 | CM96: 1906-12-28 | CN96: 0 | CO96: 20969.06462 | CP96: =IFERROR(_xlfn.XLOOKUP(YEAR(Year8Table[[#This Row],[Date]])&MONTH(Year8Table[[#This Row],[Date]]),PenaltyTable[Year]&PenaltyTable[Month],PenaltyTable[Daily])*$CO$10,"") ->  | CT96: 21108.85838 | CW96: 1906-12-28 | CX96: 0 | CY96: 1485.308744 | CZ96: =IFERROR(_xlfn.XLOOKUP(YEAR(Year9Table[[#This Row],[Date]])&MONTH(Year9Table[[#This Row],[Date]]),PenaltyTable[Year]&PenaltyTable[Month],PenaltyTable[Daily])*$CY$10,"") ->  | DD96: 1495.210802 | DG96: 1906-12-28 | DH96: 0 | DI96: 1200.478949 | DJ96: =IFERROR(_xlfn.XLOOKUP(YEAR(Year10Table[[#This Row],[Date]])&MONTH(Year10Table[[#This Row],[Date]]),PenaltyTable[Year]&PenaltyTable[Month],PenaltyTable[Daily])*$DI$10,"") ->  | DN96: 1208.482142
U97: =IFERROR(IF((ROW()-ROW(Year1Table[#Headers]))=1,IF(OR(Table1[[#This Row],[Tax Assessed]]="",Table1[[#This Row],[Tax Assessed]]=0),"",Table1[[#This Row],[Tax Due Dt]]),IF((ROW()-ROW(Year1Table[#Headers]))>1,IF(OFFSET(AB97,-1,)<1,"",EDATE(U96,1)))),"") -> 2024-05-15 | V97: 1250 | W97: 8552.54926 | X97: =IFERROR(_xlfn.XLOOKUP(YEAR(Year1Table[[#This Row],[Date]])&MONTH(Year1Table[[#This Row],[Date]]),PenaltyTable[Year]&PenaltyTable[Month],PenaltyTable[Daily])*$W$10,"") -> 2.395178082 | AB97: 7304.944438 | AF97: =IF(ROW()-ROW(Year2Table[#Headers])=1,$AI$193,IF(AG95="","",IF(AND($B$7<>"",AE97>=$B$7),$C$7,IF(AND($B$6<>"",AE97>=$B$6),$C$6,IF(AE97>=$B$5,$C$5,IF(AE97<$B$5,0)))))) ->  | AH97: =IFERROR(_xlfn.XLOOKUP(YEAR(Year2Table[[#This Row],[Date]])&MONTH(Year2Table[[#This Row],[Date]]),PenaltyTable[Year]&PenaltyTable[Month],PenaltyTable[Daily])*$AG$10,"") ->  | AO97: 1907-01-28 | AP97: 0 | AQ97: 12313.50072 | AR97: =IFERROR(_xlfn.XLOOKUP(YEAR(Year3Table[[#This Row],[Date]])&MONTH(Year3Table[[#This Row],[Date]]),PenaltyTable[Year]&PenaltyTable[Month],PenaltyTable[Daily])*$AQ$10,"") ->  | AV97: 12395.59073 | AY97: 1907-01-28 | AZ97: 0 | BA97: 4397.678829 | BB97: =IFERROR(_xlfn.XLOOKUP(YEAR(Year4Table[[#This Row],[Date]])&MONTH(Year4Table[[#This Row],[Date]]),PenaltyTable[Year]&PenaltyTable[Month],PenaltyTable[Daily])*$BA$10,"") ->  | BF97: 4426.996688 | BI97: 1907-01-28 | BJ97: 0 | BK97: 8795.357659 | BL97: =IFERROR(_xlfn.XLOOKUP(YEAR(Year5Table[[#This Row],[Date]])&MONTH(Year5Table[[#This Row],[Date]]),PenaltyTable[Year]&PenaltyTable[Month],PenaltyTable[Daily])*$BK$10,"") ->  | BP97: 8853.993377 | BS97: 1907-01-28 | BT97: 0 | BU97: 5277.214595 | BV97: =IFERROR(_xlfn.XLOOKUP(YEAR(Year6Table[[#This Row],[Date]])&MONTH(Year6Table[[#This Row],[Date]]),PenaltyTable[Year]&PenaltyTable[Month],PenaltyTable[Daily])*$BU$10,"") ->  | BZ97: 5312.396026 | CC97: 1907-01-28 | CD97: 0 | CE97: 15831.64379 | CF97: =IFERROR(_xlfn.XLOOKUP(YEAR(Year7Table[[#This Row],[Date]])&MONTH(Year7Table[[#This Row],[Date]]),PenaltyTable[Year]&PenaltyTable[Month],PenaltyTable[Daily])*CE$10,"") ->  | CJ97: 15937.18808 | CM97: 1907-01-28 | CN97: 0 | CO97: 21108.85838 | CP97: =IFERROR(_xlfn.XLOOKUP(YEAR(Year8Table[[#This Row],[Date]])&MONTH(Year8Table[[#This Row],[Date]]),PenaltyTable[Year]&PenaltyTable[Month],PenaltyTable[Daily])*$CO$10,"") ->  | CT97: 21249.5841 | CW97: 1907-01-28 | CX97: 0 | CY97: 1495.210802 | CZ97: =IFERROR(_xlfn.XLOOKUP(YEAR(Year9Table[[#This Row],[Date]])&MONTH(Year9Table[[#This Row],[Date]]),PenaltyTable[Year]&PenaltyTable[Month],PenaltyTable[Daily])*$CY$10,"") ->  | DD97: 1505.178874 | DG97: 1907-01-28 | DH97: 0 | DI97: 1208.482142 | DJ97: =IFERROR(_xlfn.XLOOKUP(YEAR(Year10Table[[#This Row],[Date]])&MONTH(Year10Table[[#This Row],[Date]]),PenaltyTable[Year]&PenaltyTable[Month],PenaltyTable[Daily])*$DI$10,"") ->  | DN97: 1216.53869
U98: =IFERROR(IF((ROW()-ROW(Year1Table[#Headers]))=1,IF(OR(Table1[[#This Row],[Tax Assessed]]="",Table1[[#This Row],[Tax Assessed]]=0),"",Table1[[#This Row],[Tax Due Dt]]),IF((ROW()-ROW(Year1Table[#Headers]))>1,IF(OFFSET(AB98,-1,)<1,"",EDATE(U97,1)))),"") -> 2024-06-15 | V98: 1250 | W98: 7304.944438 | X98: =IFERROR(_xlfn.XLOOKUP(YEAR(Year1Table[[#This Row],[Date]])&MONTH(Year1Table[[#This Row],[Date]]),PenaltyTable[Year]&PenaltyTable[Month],PenaltyTable[Daily])*$W$10,"") -> 2.395178082 | AB98: 6057.339616 | AF98: =IF(ROW()-ROW(Year2Table[#Headers])=1,$AI$193,IF(AG96="","",IF(AND($B$7<>"",AE98>=$B$7),$C$7,IF(AND($B$6<>"",AE98>=$B$6),$C$6,IF(AE98>=$B$5,$C$5,IF(AE98<$B$5,0)))))) ->  | AH98: =IFERROR(_xlfn.XLOOKUP(YEAR(Year2Table[[#This Row],[Date]])&MONTH(Year2Table[[#This Row],[Date]]),PenaltyTable[Year]&PenaltyTable[Month],PenaltyTable[Daily])*$AG$10,"") ->  | AO98: 1907-02-28 | AP98: 0 | AQ98: 12395.59073 | AR98: =IFERROR(_xlfn.XLOOKUP(YEAR(Year3Table[[#This Row],[Date]])&MONTH(Year3Table[[#This Row],[Date]]),PenaltyTable[Year]&PenaltyTable[Month],PenaltyTable[Daily])*$AQ$10,"") ->  | AV98: 12478.228 | AY98: 1907-02-28 | AZ98: 0 | BA98: 4426.996688 | BB98: =IFERROR(_xlfn.XLOOKUP(YEAR(Year4Table[[#This Row],[Date]])&MONTH(Year4Table[[#This Row],[Date]]),PenaltyTable[Year]&PenaltyTable[Month],PenaltyTable[Daily])*$BA$10,"") ->  | BF98: 4456.51 | BI98: 1907-02-28 | BJ98: 0 | BK98: 8853.993377 | BL98: =IFERROR(_xlfn.XLOOKUP(YEAR(Year5Table[[#This Row],[Date]])&MONTH(Year5Table[[#This Row],[Date]]),PenaltyTable[Year]&PenaltyTable[Month],PenaltyTable[Daily])*$BK$10,"") ->  | BP98: 8913.019999 | BS98: 1907-02-28 | BT98: 0 | BU98: 5312.396026 | BV98: =IFERROR(_xlfn.XLOOKUP(YEAR(Year6Table[[#This Row],[Date]])&MONTH(Year6Table[[#This Row],[Date]]),PenaltyTable[Year]&PenaltyTable[Month],PenaltyTable[Daily])*$BU$10,"") ->  | BZ98: 5347.811999 | CC98: 1907-02-28 | CD98: 0 | CE98: 15937.18808 | CF98: =IFERROR(_xlfn.XLOOKUP(YEAR(Year7Table[[#This Row],[Date]])&MONTH(Year7Table[[#This Row],[Date]]),PenaltyTable[Year]&PenaltyTable[Month],PenaltyTable[Daily])*CE$10,"") ->  | CJ98: 16043.436 | CM98: 1907-02-28 | CN98: 0 | CO98: 21249.5841 | CP98: =IFERROR(_xlfn.XLOOKUP(YEAR(Year8Table[[#This Row],[Date]])&MONTH(Year8Table[[#This Row],[Date]]),PenaltyTable[Year]&PenaltyTable[Month],PenaltyTable[Daily])*$CO$10,"") ->  | CT98: 21391.248 | CW98: 1907-02-28 | CX98: 0 | CY98: 1505.178874 | CZ98: =IFERROR(_xlfn.XLOOKUP(YEAR(Year9Table[[#This Row],[Date]])&MONTH(Year9Table[[#This Row],[Date]]),PenaltyTable[Year]&PenaltyTable[Month],PenaltyTable[Daily])*$CY$10,"") ->  | DD98: 1515.2134 | DG98: 1907-02-28 | DH98: 0 | DI98: 1216.53869 | DJ98: =IFERROR(_xlfn.XLOOKUP(YEAR(Year10Table[[#This Row],[Date]])&MONTH(Year10Table[[#This Row],[Date]]),PenaltyTable[Year]&PenaltyTable[Month],PenaltyTable[Daily])*$DI$10,"") ->  | DN98: 1224.648948
U99: =IFERROR(IF((ROW()-ROW(Year1Table[#Headers]))=1,IF(OR(Table1[[#This Row],[Tax Assessed]]="",Table1[[#This Row],[Tax Assessed]]=0),"",Table1[[#This Row],[Tax Due Dt]]),IF((ROW()-ROW(Year1Table[#Headers]))>1,IF(OFFSET(AB99,-1,)<1,"",EDATE(U98,1)))),"") -> 2024-07-15 | V99: 1250 | W99: 6057.339616 | X99: =IFERROR(_xlfn.XLOOKUP(YEAR(Year1Table[[#This Row],[Date]])&MONTH(Year1Table[[#This Row],[Date]]),PenaltyTable[Year]&PenaltyTable[Month],PenaltyTable[Daily])*$W$10,"") -> 2.395178082 | AB99: 4809.734795 | AF99: =IF(ROW()-ROW(Year2Table[#Headers])=1,$AI$193,IF(AG97="","",IF(AND($B$7<>"",AE99>=$B$7),$C$7,IF(AND($B$6<>"",AE99>=$B$6),$C$6,IF(AE99>=$B$5,$C$5,IF(AE99<$B$5,0)))))) ->  | AH99: =IFERROR(_xlfn.XLOOKUP(YEAR(Year2Table[[#This Row],[Date]])&MONTH(Year2Table[[#This Row],[Date]]),PenaltyTable[Year]&PenaltyTable[Month],PenaltyTable[Daily])*$AG$10,"") ->  | AO99: 1907-03-28 | AP99: 0 | AQ99: 12478.228 | AR99: =IFERROR(_xlfn.XLOOKUP(YEAR(Year3Table[[#This Row],[Date]])&MONTH(Year3Table[[#This Row],[Date]]),PenaltyTable[Year]&PenaltyTable[Month],PenaltyTable[Daily])*$AQ$10,"") ->  | AV99: 12561.41619 | AY99: 1907-03-28 | AZ99: 0 | BA99: 4456.51 | BB99: =IFERROR(_xlfn.XLOOKUP(YEAR(Year4Table[[#This Row],[Date]])&MONTH(Year4Table[[#This Row],[Date]]),PenaltyTable[Year]&PenaltyTable[Month],PenaltyTable[Daily])*$BA$10,"") ->  | BF99: 4486.220066 | BI99: 1907-03-28 | BJ99: 0 | BK99: 8913.019999 | BL99: =IFERROR(_xlfn.XLOOKUP(YEAR(Year5Table[[#This Row],[Date]])&MONTH(Year5Table[[#This Row],[Date]]),PenaltyTable[Year]&PenaltyTable[Month],PenaltyTable[Daily])*$BK$10,"") ->  | BP99: 8972.440132 | BS99: 1907-03-28 | BT99: 0 | BU99: 5347.811999 | BV99: =IFERROR(_xlfn.XLOOKUP(YEAR(Year6Table[[#This Row],[Date]])&MONTH(Year6Table[[#This Row],[Date]]),PenaltyTable[Year]&PenaltyTable[Month],PenaltyTable[Daily])*$BU$10,"") ->  | BZ99: 5383.464079 | CC99: 1907-03-28 | CD99: 0 | CE99: 16043.436 | CF99: =IFERROR(_xlfn.XLOOKUP(YEAR(Year7Table[[#This Row],[Date]])&MONTH(Year7Table[[#This Row],[Date]]),PenaltyTable[Year]&PenaltyTable[Month],PenaltyTable[Daily])*CE$10,"") ->  | CJ99: 16150.39224 | CM99: 1907-03-28 | CN99: 0 | CO99: 21391.248 | CP99: =IFERROR(_xlfn.XLOOKUP(YEAR(Year8Table[[#This Row],[Date]])&MONTH(Year8Table[[#This Row],[Date]]),PenaltyTable[Year]&PenaltyTable[Month],PenaltyTable[Daily])*$CO$10,"") ->  | CT99: 21533.85632 | CW99: 1907-03-28 | CX99: 0 | CY99: 1515.2134 | CZ99: =IFERROR(_xlfn.XLOOKUP(YEAR(Year9Table[[#This Row],[Date]])&MONTH(Year9Table[[#This Row],[Date]]),PenaltyTable[Year]&PenaltyTable[Month],PenaltyTable[Daily])*$CY$10,"") ->  | DD99: 1525.314823 | DG99: 1907-03-28 | DH99: 0 | DI99: 1224.648948 | DJ99: =IFERROR(_xlfn.XLOOKUP(YEAR(Year10Table[[#This Row],[Date]])&MONTH(Year10Table[[#This Row],[Date]]),PenaltyTable[Year]&PenaltyTable[Month],PenaltyTable[Daily])*$DI$10,"") ->  | DN99: 1232.813274
U100: =IFERROR(IF((ROW()-ROW(Year1Table[#Headers]))=1,IF(OR(Table1[[#This Row],[Tax Assessed]]="",Table1[[#This Row],[Tax Assessed]]=0),"",Table1[[#This Row],[Tax Due Dt]]),IF((ROW()-ROW(Year1Table[#Headers]))>1,IF(OFFSET(AB100,-1,)<1,"",EDATE(U99,1)))),"") -> 2024-08-15 | V100: 1250 | W100: 4809.734795 | X100: =IFERROR(_xlfn.XLOOKUP(YEAR(Year1Table[[#This Row],[Date]])&MONTH(Year1Table[[#This Row],[Date]]),PenaltyTable[Year]&PenaltyTable[Month],PenaltyTable[Daily])*$W$10,"") -> 2.395178082 | AB100: 3562.129973 | AF100: =IF(ROW()-ROW(Year2Table[#Headers])=1,$AI$193,IF(AG98="","",IF(AND($B$7<>"",AE100>=$B$7),$C$7,IF(AND($B$6<>"",AE100>=$B$6),$C$6,IF(AE100>=$B$5,$C$5,IF(AE100<$B$5,0)))))) ->  | AH100: =IFERROR(_xlfn.XLOOKUP(YEAR(Year2Table[[#This Row],[Date]])&MONTH(Year2Table[[#This Row],[Date]]),PenaltyTable[Year]&PenaltyTable[Month],PenaltyTable[Daily])*$AG$10,"") ->  | AO100: 1907-04-28 | AP100: 0 | AQ100: 12561.41619 | AR100: =IFERROR(_xlfn.XLOOKUP(YEAR(Year3Table[[#This Row],[Date]])&MONTH(Year3Table[[#This Row],[Date]]),PenaltyTable[Year]&PenaltyTable[Month],PenaltyTable[Daily])*$AQ$10,"") ->  | AV100: 12645.15896 | AY100: 1907-04-28 | AZ100: 0 | BA100: 4486.220066 | BB100: =IFERROR(_xlfn.XLOOKUP(YEAR(Year4Table[[#This Row],[Date]])&MONTH(Year4Table[[#This Row],[Date]]),PenaltyTable[Year]&PenaltyTable[Month],PenaltyTable[Daily])*$BA$10,"") ->  | BF100: 4516.1282 | BI100: 1907-04-28 | BJ100: 0 | BK100: 8972.440132 | BL100: =IFERROR(_xlfn.XLOOKUP(YEAR(Year5Table[[#This Row],[Date]])&MONTH(Year5Table[[#This Row],[Date]]),PenaltyTable[Year]&PenaltyTable[Month],PenaltyTable[Daily])*$BK$10,"") ->  | BP100: 9032.2564 | BS100: 1907-04-28 | BT100: 0 | BU100: 5383.464079 | BV100: =IFERROR(_xlfn.XLOOKUP(YEAR(Year6Table[[#This Row],[Date]])&MONTH(Year6Table[[#This Row],[Date]]),PenaltyTable[Year]&PenaltyTable[Month],PenaltyTable[Daily])*$BU$10,"") ->  | BZ100: 5419.35384 | CC100: 1907-04-28 | CD100: 0 | CE100: 16150.39224 | CF100: =IFERROR(_xlfn.XLOOKUP(YEAR(Year7Table[[#This Row],[Date]])&MONTH(Year7Table[[#This Row],[Date]]),PenaltyTable[Year]&PenaltyTable[Month],PenaltyTable[Daily])*CE$10,"") ->  | CJ100: 16258.06152 | CM100: 1907-04-28 | CN100: 0 | CO100: 21533.85632 | CP100: =IFERROR(_xlfn.XLOOKUP(YEAR(Year8Table[[#This Row],[Date]])&MONTH(Year8Table[[#This Row],[Date]]),PenaltyTable[Year]&PenaltyTable[Month],PenaltyTable[Daily])*$CO$10,"") ->  | CT100: 21677.41536 | CW100: 1907-04-28 | CX100: 0 | CY100: 1525.314823 | CZ100: =IFERROR(_xlfn.XLOOKUP(YEAR(Year9Table[[#This Row],[Date]])&MONTH(Year9Table[[#This Row],[Date]]),PenaltyTable[Year]&PenaltyTable[Month],PenaltyTable[Daily])*$CY$10,"") ->  | DD100: 1535.483588 | DG100: 1907-04-28 | DH100: 0 | DI100: 1232.813274 | DJ100: =IFERROR(_xlfn.XLOOKUP(YEAR(Year10Table[[#This Row],[Date]])&MONTH(Year10Table[[#This Row],[Date]]),PenaltyTable[Year]&PenaltyTable[Month],PenaltyTable[Daily])*$DI$10,"") ->  | DN100: 1241.032029
U101: =IFERROR(IF((ROW()-ROW(Year1Table[#Headers]))=1,IF(OR(Table1[[#This Row],[Tax Assessed]]="",Table1[[#This Row],[Tax Assessed]]=0),"",Table1[[#This Row],[Tax Due Dt]]),IF((ROW()-ROW(Year1Table[#Headers]))>1,IF(OFFSET(AB101,-1,)<1,"",EDATE(U100,1)))),"") -> 2024-09-15 | V101: 1250 | W101: 3562.129973 | X101: =IFERROR(_xlfn.XLOOKUP(YEAR(Year1Table[[#This Row],[Date]])&MONTH(Year1Table[[#This Row],[Date]]),PenaltyTable[Year]&PenaltyTable[Month],PenaltyTable[Daily])*$W$10,"") -> 2.395178082 | AB101: 2314.525151 | AF101: =IF(ROW()-ROW(Year2Table[#Headers])=1,$AI$193,IF(AG99="","",IF(AND($B$7<>"",AE101>=$B$7),$C$7,IF(AND($B$6<>"",AE101>=$B$6),$C$6,IF(AE101>=$B$5,$C$5,IF(AE101<$B$5,0)))))) ->  | AH101: =IFERROR(_xlfn.XLOOKUP(YEAR(Year2Table[[#This Row],[Date]])&MONTH(Year2Table[[#This Row],[Date]]),PenaltyTable[Year]&PenaltyTable[Month],PenaltyTable[Daily])*$AG$10,"") ->  | AO101: 1907-05-28 | AP101: 0 | AQ101: 12645.15896 | AR101: =IFERROR(_xlfn.XLOOKUP(YEAR(Year3Table[[#This Row],[Date]])&MONTH(Year3Table[[#This Row],[Date]]),PenaltyTable[Year]&PenaltyTable[Month],PenaltyTable[Daily])*$AQ$10,"") ->  | AV101: 12729.46002 | AY101: 1907-05-28 | AZ101: 0 | BA101: 4516.1282 | BB101: =IFERROR(_xlfn.XLOOKUP(YEAR(Year4Table[[#This Row],[Date]])&MONTH(Year4Table[[#This Row],[Date]]),PenaltyTable[Year]&PenaltyTable[Month],PenaltyTable[Daily])*$BA$10,"") ->  | BF101: 4546.235721 | BI101: 1907-05-28 | BJ101: 0 | BK101: 9032.2564 | BL101: =IFERROR(_xlfn.XLOOKUP(YEAR(Year5Table[[#This Row],[Date]])&MONTH(Year5Table[[#This Row],[Date]]),PenaltyTable[Year]&PenaltyTable[Month],PenaltyTable[Daily])*$BK$10,"") ->  | BP101: 9092.471443 | BS101: 1907-05-28 | BT101: 0 | BU101: 5419.35384 | BV101: =IFERROR(_xlfn.XLOOKUP(YEAR(Year6Table[[#This Row],[Date]])&MONTH(Year6Table[[#This Row],[Date]]),PenaltyTable[Year]&PenaltyTable[Month],PenaltyTable[Daily])*$BU$10,"") ->  | BZ101: 5455.482866 | CC101: 1907-05-28 | CD101: 0 | CE101: 16258.06152 | CF101: =IFERROR(_xlfn.XLOOKUP(YEAR(Year7Table[[#This Row],[Date]])&MONTH(Year7Table[[#This Row],[Date]]),PenaltyTable[Year]&PenaltyTable[Month],PenaltyTable[Daily])*CE$10,"") ->  | CJ101: 16366.4486 | CM101: 1907-05-28 | CN101: 0 | CO101: 21677.41536 | CP101: =IFERROR(_xlfn.XLOOKUP(YEAR(Year8Table[[#This Row],[Date]])&MONTH(Year8Table[[#This Row],[Date]]),PenaltyTable[Year]&PenaltyTable[Month],PenaltyTable[Daily])*$CO$10,"") ->  | CT101: 21821.93146 | CW101: 1907-05-28 | CX101: 0 | CY101: 1535.483588 | CZ101: =IFERROR(_xlfn.XLOOKUP(YEAR(Year9Table[[#This Row],[Date]])&MONTH(Year9Table[[#This Row],[Date]]),PenaltyTable[Year]&PenaltyTable[Month],PenaltyTable[Daily])*$CY$10,"") ->  | DD101: 1545.720145 | DG101: 1907-05-28 | DH101: 0 | DI101: 1241.032029 | DJ101: =IFERROR(_xlfn.XLOOKUP(YEAR(Year10Table[[#This Row],[Date]])&MONTH(Year10Table[[#This Row],[Date]]),PenaltyTable[Year]&PenaltyTable[Month],PenaltyTable[Daily])*$DI$10,"") ->  | DN101: 1249.305576
U102: =IFERROR(IF((ROW()-ROW(Year1Table[#Headers]))=1,IF(OR(Table1[[#This Row],[Tax Assessed]]="",Table1[[#This Row],[Tax Assessed]]=0),"",Table1[[#This Row],[Tax Due Dt]]),IF((ROW()-ROW(Year1Table[#Headers]))>1,IF(OFFSET(AB102,-1,)<1,"",EDATE(U101,1)))),"") -> 2024-10-15 | V102: 1250 | W102: 2314.525151 | X102: =IFERROR(_xlfn.XLOOKUP(YEAR(Year1Table[[#This Row],[Date]])&MONTH(Year1Table[[#This Row],[Date]]),PenaltyTable[Year]&PenaltyTable[Month],PenaltyTable[Daily])*$W$10,"") -> 2.395178082 | AB102: 1066.920329 | AF102: =IF(ROW()-ROW(Year2Table[#Headers])=1,$AI$193,IF(AG100="","",IF(AND($B$7<>"",AE102>=$B$7),$C$7,IF(AND($B$6<>"",AE102>=$B$6),$C$6,IF(AE102>=$B$5,$C$5,IF(AE102<$B$5,0)))))) ->  | AH102: =IFERROR(_xlfn.XLOOKUP(YEAR(Year2Table[[#This Row],[Date]])&MONTH(Year2Table[[#This Row],[Date]]),PenaltyTable[Year]&PenaltyTable[Month],PenaltyTable[Daily])*$AG$10,"") ->  | AO102: 1907-06-28 | AP102: 0 | AQ102: 12729.46002 | AR102: =IFERROR(_xlfn.XLOOKUP(YEAR(Year3Table[[#This Row],[Date]])&MONTH(Year3Table[[#This Row],[Date]]),PenaltyTable[Year]&PenaltyTable[Month],PenaltyTable[Daily])*$AQ$10,"") ->  | AV102: 12814.32309 | AY102: 1907-06-28 | AZ102: 0 | BA102: 4546.235721 | BB102: =IFERROR(_xlfn.XLOOKUP(YEAR(Year4Table[[#This Row],[Date]])&MONTH(Year4Table[[#This Row],[Date]]),PenaltyTable[Year]&PenaltyTable[Month],PenaltyTable[Daily])*$BA$10,"") ->  | BF102: 4576.543959 | BI102: 1907-06-28 | BJ102: 0 | BK102: 9092.471443 | BL102: =IFERROR(_xlfn.XLOOKUP(YEAR(Year5Table[[#This Row],[Date]])&MONTH(Year5Table[[#This Row],[Date]]),PenaltyTable[Year]&PenaltyTable[Month],PenaltyTable[Daily])*$BK$10,"") ->  | BP102: 9153.087919 | BS102: 1907-06-28 | BT102: 0 | BU102: 5455.482866 | BV102: =IFERROR(_xlfn.XLOOKUP(YEAR(Year6Table[[#This Row],[Date]])&MONTH(Year6Table[[#This Row],[Date]]),PenaltyTable[Year]&PenaltyTable[Month],PenaltyTable[Daily])*$BU$10,"") ->  | BZ102: 5491.852751 | CC102: 1907-06-28 | CD102: 0 | CE102: 16366.4486 | CF102: =IFERROR(_xlfn.XLOOKUP(YEAR(Year7Table[[#This Row],[Date]])&MONTH(Year7Table[[#This Row],[Date]]),PenaltyTable[Year]&PenaltyTable[Month],PenaltyTable[Daily])*CE$10,"") ->  | CJ102: 16475.55825 | CM102: 1907-06-28 | CN102: 0 | CO102: 21821.93146 | CP102: =IFERROR(_xlfn.XLOOKUP(YEAR(Year8Table[[#This Row],[Date]])&MONTH(Year8Table[[#This Row],[Date]]),PenaltyTable[Year]&PenaltyTable[Month],PenaltyTable[Daily])*$CO$10,"") ->  | CT102: 21967.41101 | CW102: 1907-06-28 | CX102: 0 | CY102: 1545.720145 | CZ102: =IFERROR(_xlfn.XLOOKUP(YEAR(Year9Table[[#This Row],[Date]])&MONTH(Year9Table[[#This Row],[Date]]),PenaltyTable[Year]&PenaltyTable[Month],PenaltyTable[Daily])*$CY$10,"") ->  | DD102: 1556.024946 | DG102: 1907-06-28 | DH102: 0 | DI102: 1249.305576 | DJ102: =IFERROR(_xlfn.XLOOKUP(YEAR(Year10Table[[#This Row],[Date]])&MONTH(Year10Table[[#This Row],[Date]]),PenaltyTable[Year]&PenaltyTable[Month],PenaltyTable[Daily])*$DI$10,"") ->  | DN102: 1257.63428
U103: =IFERROR(IF((ROW()-ROW(Year1Table[#Headers]))=1,IF(OR(Table1[[#This Row],[Tax Assessed]]="",Table1[[#This Row],[Tax Assessed]]=0),"",Table1[[#This Row],[Tax Due Dt]]),IF((ROW()-ROW(Year1Table[#Headers]))>1,IF(OFFSET(AB103,-1,)<1,"",EDATE(U102,1)))),"") -> 2024-11-15 | V103: 1250 | W103: 1066.920329 | X103: =IFERROR(_xlfn.XLOOKUP(YEAR(Year1Table[[#This Row],[Date]])&MONTH(Year1Table[[#This Row],[Date]]),PenaltyTable[Year]&PenaltyTable[Month],PenaltyTable[Daily])*$W$10,"") -> 2.395178082 | AB103: -180.6844932 | AC103: 2024-11-15 | AF103: =IF(ROW()-ROW(Year2Table[#Headers])=1,$AI$193,IF(AG101="","",IF(AND($B$7<>"",AE103>=$B$7),$C$7,IF(AND($B$6<>"",AE103>=$B$6),$C$6,IF(AE103>=$B$5,$C$5,IF(AE103<$B$5,0)))))) ->  | AH103: =IFERROR(_xlfn.XLOOKUP(YEAR(Year2Table[[#This Row],[Date]])&MONTH(Year2Table[[#This Row],[Date]]),PenaltyTable[Year]&PenaltyTable[Month],PenaltyTable[Daily])*$AG$10,"") ->  | AO103: 1907-07-28 | AP103: 0 | AQ103: 12814.32309 | AR103: =IFERROR(_xlfn.XLOOKUP(YEAR(Year3Table[[#This Row],[Date]])&MONTH(Year3Table[[#This Row],[Date]]),PenaltyTable[Year]&PenaltyTable[Month],PenaltyTable[Daily])*$AQ$10,"") ->  | AV103: 12899.75191 | AY103: 1907-07-28 | AZ103: 0 | BA103: 4576.543959 | BB103: =IFERROR(_xlfn.XLOOKUP(YEAR(Year4Table[[#This Row],[Date]])&MONTH(Year4Table[[#This Row],[Date]]),PenaltyTable[Year]&PenaltyTable[Month],PenaltyTable[Daily])*$BA$10,"") ->  | BF103: 4607.054253 | BI103: 1907-07-28 | BJ103: 0 | BK103: 9153.087919 | BL103: =IFERROR(_xlfn.XLOOKUP(YEAR(Year5Table[[#This Row],[Date]])&MONTH(Year5Table[[#This Row],[Date]]),PenaltyTable[Year]&PenaltyTable[Month],PenaltyTable[Daily])*$BK$10,"") ->  | BP103: 9214.108505 | BS103: 1907-07-28 | BT103: 0 | BU103: 5491.852751 | BV103: =IFERROR(_xlfn.XLOOKUP(YEAR(Year6Table[[#This Row],[Date]])&MONTH(Year6Table[[#This Row],[Date]]),PenaltyTable[Year]&PenaltyTable[Month],PenaltyTable[Daily])*$BU$10,"") ->  | BZ103: 5528.465103 | CC103: 1907-07-28 | CD103: 0 | CE103: 16475.55825 | CF103: =IFERROR(_xlfn.XLOOKUP(YEAR(Year7Table[[#This Row],[Date]])&MONTH(Year7Table[[#This Row],[Date]]),PenaltyTable[Year]&PenaltyTable[Month],PenaltyTable[Daily])*CE$10,"") ->  | CJ103: 16585.39531 | CM103: 1907-07-28 | CN103: 0 | CO103: 21967.41101 | CP103: =IFERROR(_xlfn.XLOOKUP(YEAR(Year8Table[[#This Row],[Date]])&MONTH(Year8Table[[#This Row],[Date]]),PenaltyTable[Year]&PenaltyTable[Month],PenaltyTable[Daily])*$CO$10,"") ->  | CT103: 22113.86041 | CW103: 1907-07-28 | CX103: 0 | CY103: 1556.024946 | CZ103: =IFERROR(_xlfn.XLOOKUP(YEAR(Year9Table[[#This Row],[Date]])&MONTH(Year9Table[[#This Row],[Date]]),PenaltyTable[Year]&PenaltyTable[Month],PenaltyTable[Daily])*$CY$10,"") ->  | DD103: 1566.398446 | DG103: 1907-07-28 | DH103: 0 | DI103: 1257.63428 | DJ103: =IFERROR(_xlfn.XLOOKUP(YEAR(Year10Table[[#This Row],[Date]])&MONTH(Year10Table[[#This Row],[Date]]),PenaltyTable[Year]&PenaltyTable[Month],PenaltyTable[Daily])*$DI$10,"") ->  | DN103: 1266.018509
U104: =IFERROR(IF((ROW()-ROW(Year1Table[#Headers]))=1,IF(OR(Table1[[#This Row],[Tax Assessed]]="",Table1[[#This Row],[Tax Assessed]]=0),"",Table1[[#This Row],[Tax Due Dt]]),IF((ROW()-ROW(Year1Table[#Headers]))>1,IF(OFFSET(AB104,-1,)<1,"",EDATE(U103,1)))),"") ->  | X104: =IFERROR(_xlfn.XLOOKUP(YEAR(Year1Table[[#This Row],[Date]])&MONTH(Year1Table[[#This Row],[Date]]),PenaltyTable[Year]&PenaltyTable[Month],PenaltyTable[Daily])*$W$10,"") ->  | AF104: =IF(ROW()-ROW(Year2Table[#Headers])=1,$AI$193,IF(AG102="","",IF(AND($B$7<>"",AE104>=$B$7),$C$7,IF(AND($B$6<>"",AE104>=$B$6),$C$6,IF(AE104>=$B$5,$C$5,IF(AE104<$B$5,0)))))) ->  | AH104: =IFERROR(_xlfn.XLOOKUP(YEAR(Year2Table[[#This Row],[Date]])&MONTH(Year2Table[[#This Row],[Date]]),PenaltyTable[Year]&PenaltyTable[Month],PenaltyTable[Daily])*$AG$10,"") ->  | AO104: 1907-08-28 | AP104: 0 | AQ104: 12899.75191 | AR104: =IFERROR(_xlfn.XLOOKUP(YEAR(Year3Table[[#This Row],[Date]])&MONTH(Year3Table[[#This Row],[Date]]),PenaltyTable[Year]&PenaltyTable[Month],PenaltyTable[Daily])*$AQ$10,"") ->  | AV104: 12985.75025 | AY104: 1907-08-28 | AZ104: 0 | BA104: 4607.054253 | BB104: =IFERROR(_xlfn.XLOOKUP(YEAR(Year4Table[[#This Row],[Date]])&MONTH(Year4Table[[#This Row],[Date]]),PenaltyTable[Year]&PenaltyTable[Month],PenaltyTable[Daily])*$BA$10,"") ->  | BF104: 4637.767948 | BI104: 1907-08-28 | BJ104: 0 | BK104: 9214.108505 | BL104: =IFERROR(_xlfn.XLOOKUP(YEAR(Year5Table[[#This Row],[Date]])&MONTH(Year5Table[[#This Row],[Date]]),PenaltyTable[Year]&PenaltyTable[Month],PenaltyTable[Daily])*$BK$10,"") ->  | BP104: 9275.535895 | BS104: 1907-08-28 | BT104: 0 | BU104: 5528.465103 | BV104: =IFERROR(_xlfn.XLOOKUP(YEAR(Year6Table[[#This Row],[Date]])&MONTH(Year6Table[[#This Row],[Date]]),PenaltyTable[Year]&PenaltyTable[Month],PenaltyTable[Daily])*$BU$10,"") ->  | BZ104: 5565.321537 | CC104: 1907-08-28 | CD104: 0 | CE104: 16585.39531 | CF104: =IFERROR(_xlfn.XLOOKUP(YEAR(Year7Table[[#This Row],[Date]])&MONTH(Year7Table[[#This Row],[Date]]),PenaltyTable[Year]&PenaltyTable[Month],PenaltyTable[Daily])*CE$10,"") ->  | CJ104: 16695.96461 | CM104: 1907-08-28 | CN104: 0 | CO104: 22113.86041 | CP104: =IFERROR(_xlfn.XLOOKUP(YEAR(Year8Table[[#This Row],[Date]])&MONTH(Year8Table[[#This Row],[Date]]),PenaltyTable[Year]&PenaltyTable[Month],PenaltyTable[Daily])*$CO$10,"") ->  | CT104: 22261.28615 | CW104: 1907-08-28 | CX104: 0 | CY104: 1566.398446 | CZ104: =IFERROR(_xlfn.XLOOKUP(YEAR(Year9Table[[#This Row],[Date]])&MONTH(Year9Table[[#This Row],[Date]]),PenaltyTable[Year]&PenaltyTable[Month],PenaltyTable[Daily])*$CY$10,"") ->  | DD104: 1576.841102 | DG104: 1907-08-28 | DH104: 0 | DI104: 1266.018509 | DJ104: =IFERROR(_xlfn.XLOOKUP(YEAR(Year10Table[[#This Row],[Date]])&MONTH(Year10Table[[#This Row],[Date]]),PenaltyTable[Year]&PenaltyTable[Month],PenaltyTable[Daily])*$DI$10,"") ->  | DN104: 1274.458632
U105: =IFERROR(IF((ROW()-ROW(Year1Table[#Headers]))=1,IF(OR(Table1[[#This Row],[Tax Assessed]]="",Table1[[#This Row],[Tax Assessed]]=0),"",Table1[[#This Row],[Tax Due Dt]]),IF((ROW()-ROW(Year1Table[#Headers]))>1,IF(OFFSET(AB105,-1,)<1,"",EDATE(U104,1)))),"") ->  | X105: =IFERROR(_xlfn.XLOOKUP(YEAR(Year1Table[[#This Row],[Date]])&MONTH(Year1Table[[#This Row],[Date]]),PenaltyTable[Year]&PenaltyTable[Month],PenaltyTable[Daily])*$W$10,"") ->  | AF105: =IF(ROW()-ROW(Year2Table[#Headers])=1,$AI$193,IF(AG103="","",IF(AND($B$7<>"",AE105>=$B$7),$C$7,IF(AND($B$6<>"",AE105>=$B$6),$C$6,IF(AE105>=$B$5,$C$5,IF(AE105<$B$5,0)))))) ->  | AH105: =IFERROR(_xlfn.XLOOKUP(YEAR(Year2Table[[#This Row],[Date]])&MONTH(Year2Table[[#This Row],[Date]]),PenaltyTable[Year]&PenaltyTable[Month],PenaltyTable[Daily])*$AG$10,"") ->  | AO105: 1907-09-28 | AP105: 0 | AQ105: 12985.75025 | AR105: =IFERROR(_xlfn.XLOOKUP(YEAR(Year3Table[[#This Row],[Date]])&MONTH(Year3Table[[#This Row],[Date]]),PenaltyTable[Year]&PenaltyTable[Month],PenaltyTable[Daily])*$AQ$10,"") ->  | AV105: 13072.32192 | AY105: 1907-09-28 | AZ105: 0 | BA105: 4637.767948 | BB105: =IFERROR(_xlfn.XLOOKUP(YEAR(Year4Table[[#This Row],[Date]])&MONTH(Year4Table[[#This Row],[Date]]),PenaltyTable[Year]&PenaltyTable[Month],PenaltyTable[Daily])*$BA$10,"") ->  | BF105: 4668.686401 | BI105: 1907-09-28 | BJ105: 0 | BK105: 9275.535895 | BL105: =IFERROR(_xlfn.XLOOKUP(YEAR(Year5Table[[#This Row],[Date]])&MONTH(Year5Table[[#This Row],[Date]]),PenaltyTable[Year]&PenaltyTable[Month],PenaltyTable[Daily])*$BK$10,"") ->  | BP105: 9337.372801 | BS105: 1907-09-28 | BT105: 0 | BU105: 5565.321537 | BV105: =IFERROR(_xlfn.XLOOKUP(YEAR(Year6Table[[#This Row],[Date]])&MONTH(Year6Table[[#This Row],[Date]]),PenaltyTable[Year]&PenaltyTable[Month],PenaltyTable[Daily])*$BU$10,"") ->  | BZ105: 5602.423681 | CC105: 1907-09-28 | CD105: 0 | CE105: 16695.96461 | CF105: =IFERROR(_xlfn.XLOOKUP(YEAR(Year7Table[[#This Row],[Date]])&MONTH(Year7Table[[#This Row],[Date]]),PenaltyTable[Year]&PenaltyTable[Month],PenaltyTable[Daily])*CE$10,"") ->  | CJ105: 16807.27104 | CM105: 1907-09-28 | CN105: 0 | CO105: 22261.28615 | CP105: =IFERROR(_xlfn.XLOOKUP(YEAR(Year8Table[[#This Row],[Date]])&MONTH(Year8Table[[#This Row],[Date]]),PenaltyTable[Year]&PenaltyTable[Month],PenaltyTable[Daily])*$CO$10,"") ->  | CT105: 22409.69472 | CW105: 1907-09-28 | CX105: 0 | CY105: 1576.841102 | CZ105: =IFERROR(_xlfn.XLOOKUP(YEAR(Year9Table[[#This Row],[Date]])&MONTH(Year9Table[[#This Row],[Date]]),PenaltyTable[Year]&PenaltyTable[Month],PenaltyTable[Daily])*$CY$10,"") ->  | DD105: 1587.353376 | DG105: 1907-09-28 | DH105: 0 | DI105: 1274.458632 | DJ105: =IFERROR(_xlfn.XLOOKUP(YEAR(Year10Table[[#This Row],[Date]])&MONTH(Year10Table[[#This Row],[Date]]),PenaltyTable[Year]&PenaltyTable[Month],PenaltyTable[Daily])*$DI$10,"") ->  | DN105: 1282.955023
U106: =IFERROR(IF((ROW()-ROW(Year1Table[#Headers]))=1,IF(OR(Table1[[#This Row],[Tax Assessed]]="",Table1[[#This Row],[Tax Assessed]]=0),"",Table1[[#This Row],[Tax Due Dt]]),IF((ROW()-ROW(Year1Table[#Headers]))>1,IF(OFFSET(AB106,-1,)<1,"",EDATE(U105,1)))),"") ->  | X106: =IFERROR(_xlfn.XLOOKUP(YEAR(Year1Table[[#This Row],[Date]])&MONTH(Year1Table[[#This Row],[Date]]),PenaltyTable[Year]&PenaltyTable[Month],PenaltyTable[Daily])*$W$10,"") ->  | AF106: =IF(ROW()-ROW(Year2Table[#Headers])=1,$AI$193,IF(AG104="","",IF(AND($B$7<>"",AE106>=$B$7),$C$7,IF(AND($B$6<>"",AE106>=$B$6),$C$6,IF(AE106>=$B$5,$C$5,IF(AE106<$B$5,0)))))) ->  | AH106: =IFERROR(_xlfn.XLOOKUP(YEAR(Year2Table[[#This Row],[Date]])&MONTH(Year2Table[[#This Row],[Date]]),PenaltyTable[Year]&PenaltyTable[Month],PenaltyTable[Daily])*$AG$10,"") ->  | AO106: 1907-10-28 | AP106: 0 | AQ106: 13072.32192 | AR106: =IFERROR(_xlfn.XLOOKUP(YEAR(Year3Table[[#This Row],[Date]])&MONTH(Year3Table[[#This Row],[Date]]),PenaltyTable[Year]&PenaltyTable[Month],PenaltyTable[Daily])*$AQ$10,"") ->  | AV106: 13159.47073 | AY106: 1907-10-28 | AZ106: 0 | BA106: 4668.686401 | BB106: =IFERROR(_xlfn.XLOOKUP(YEAR(Year4Table[[#This Row],[Date]])&MONTH(Year4Table[[#This Row],[Date]]),PenaltyTable[Year]&PenaltyTable[Month],PenaltyTable[Daily])*$BA$10,"") ->  | BF106: 4699.810977 | BI106: 1907-10-28 | BJ106: 0 | BK106: 9337.372801 | BL106: =IFERROR(_xlfn.XLOOKUP(YEAR(Year5Table[[#This Row],[Date]])&MONTH(Year5Table[[#This Row],[Date]]),PenaltyTable[Year]&PenaltyTable[Month],PenaltyTable[Daily])*$BK$10,"") ->  | BP106: 9399.621953 | BS106: 1907-10-28 | BT106: 0 | BU106: 5602.423681 | BV106: =IFERROR(_xlfn.XLOOKUP(YEAR(Year6Table[[#This Row],[Date]])&MONTH(Year6Table[[#This Row],[Date]]),PenaltyTable[Year]&PenaltyTable[Month],PenaltyTable[Daily])*$BU$10,"") ->  | BZ106: 5639.773172 | CC106: 1907-10-28 | CD106: 0 | CE106: 16807.27104 | CF106: =IFERROR(_xlfn.XLOOKUP(YEAR(Year7Table[[#This Row],[Date]])&MONTH(Year7Table[[#This Row],[Date]]),PenaltyTable[Year]&PenaltyTable[Month],PenaltyTable[Daily])*CE$10,"") ->  | CJ106: 16919.31952 | CM106: 1907-10-28 | CN106: 0 | CO106: 22409.69472 | CP106: =IFERROR(_xlfn.XLOOKUP(YEAR(Year8Table[[#This Row],[Date]])&MONTH(Year8Table[[#This Row],[Date]]),PenaltyTable[Year]&PenaltyTable[Month],PenaltyTable[Daily])*$CO$10,"") ->  | CT106: 22559.09269 | CW106: 1907-10-28 | CX106: 0 | CY106: 1587.353376 | CZ106: =IFERROR(_xlfn.XLOOKUP(YEAR(Year9Table[[#This Row],[Date]])&MONTH(Year9Table[[#This Row],[Date]]),PenaltyTable[Year]&PenaltyTable[Month],PenaltyTable[Daily])*$CY$10,"") ->  | DD106: 1597.935732 | DG106: 1907-10-28 | DH106: 0 | DI106: 1282.955023 | DJ106: =IFERROR(_xlfn.XLOOKUP(YEAR(Year10Table[[#This Row],[Date]])&MONTH(Year10Table[[#This Row],[Date]]),PenaltyTable[Year]&PenaltyTable[Month],PenaltyTable[Daily])*$DI$10,"") ->  | DN106: 1291.508056
U107: =IFERROR(IF((ROW()-ROW(Year1Table[#Headers]))=1,IF(OR(Table1[[#This Row],[Tax Assessed]]="",Table1[[#This Row],[Tax Assessed]]=0),"",Table1[[#This Row],[Tax Due Dt]]),IF((ROW()-ROW(Year1Table[#Headers]))>1,IF(OFFSET(AB107,-1,)<1,"",EDATE(U106,1)))),"") ->  | X107: =IFERROR(_xlfn.XLOOKUP(YEAR(Year1Table[[#This Row],[Date]])&MONTH(Year1Table[[#This Row],[Date]]),PenaltyTable[Year]&PenaltyTable[Month],PenaltyTable[Daily])*$W$10,"") ->  | AF107: =IF(ROW()-ROW(Year2Table[#Headers])=1,$AI$193,IF(AG105="","",IF(AND($B$7<>"",AE107>=$B$7),$C$7,IF(AND($B$6<>"",AE107>=$B$6),$C$6,IF(AE107>=$B$5,$C$5,IF(AE107<$B$5,0)))))) ->  | AH107: =IFERROR(_xlfn.XLOOKUP(YEAR(Year2Table[[#This Row],[Date]])&MONTH(Year2Table[[#This Row],[Date]]),PenaltyTable[Year]&PenaltyTable[Month],PenaltyTable[Daily])*$AG$10,"") ->  | AO107: 1907-11-28 | AP107: 0 | AQ107: 13159.47073 | AR107: =IFERROR(_xlfn.XLOOKUP(YEAR(Year3Table[[#This Row],[Date]])&MONTH(Year3Table[[#This Row],[Date]]),PenaltyTable[Year]&PenaltyTable[Month],PenaltyTable[Daily])*$AQ$10,"") ->  | AV107: 13247.20054 | AY107: 1907-11-28 | AZ107: 0 | BA107: 4699.810977 | BB107: =IFERROR(_xlfn.XLOOKUP(YEAR(Year4Table[[#This Row],[Date]])&MONTH(Year4Table[[#This Row],[Date]]),PenaltyTable[Year]&PenaltyTable[Month],PenaltyTable[Daily])*$BA$10,"") ->  | BF107: 4731.14305 | BI107: 1907-11-28 | BJ107: 0 | BK107: 9399.621953 | BL107: =IFERROR(_xlfn.XLOOKUP(YEAR(Year5Table[[#This Row],[Date]])&MONTH(Year5Table[[#This Row],[Date]]),PenaltyTable[Year]&PenaltyTable[Month],PenaltyTable[Daily])*$BK$10,"") ->  | BP107: 9462.286099 | BS107: 1907-11-28 | BT107: 0 | BU107: 5639.773172 | BV107: =IFERROR(_xlfn.XLOOKUP(YEAR(Year6Table[[#This Row],[Date]])&MONTH(Year6Table[[#This Row],[Date]]),PenaltyTable[Year]&PenaltyTable[Month],PenaltyTable[Daily])*$BU$10,"") ->  | BZ107: 5677.37166 | CC107: 1907-11-28 | CD107: 0 | CE107: 16919.31952 | CF107: =IFERROR(_xlfn.XLOOKUP(YEAR(Year7Table[[#This Row],[Date]])&MONTH(Year7Table[[#This Row],[Date]]),PenaltyTable[Year]&PenaltyTable[Month],PenaltyTable[Daily])*CE$10,"") ->  | CJ107: 17032.11498 | CM107: 1907-11-28 | CN107: 0 | CO107: 22559.09269 | CP107: =IFERROR(_xlfn.XLOOKUP(YEAR(Year8Table[[#This Row],[Date]])&MONTH(Year8Table[[#This Row],[Date]]),PenaltyTable[Year]&PenaltyTable[Month],PenaltyTable[Daily])*$CO$10,"") ->  | CT107: 22709.48664 | CW107: 1907-11-28 | CX107: 0 | CY107: 1597.935732 | CZ107: =IFERROR(_xlfn.XLOOKUP(YEAR(Year9Table[[#This Row],[Date]])&MONTH(Year9Table[[#This Row],[Date]]),PenaltyTable[Year]&PenaltyTable[Month],PenaltyTable[Daily])*$CY$10,"") ->  | DD107: 1608.588637 | DG107: 1907-11-28 | DH107: 0 | DI107: 1291.508056 | DJ107: =IFERROR(_xlfn.XLOOKUP(YEAR(Year10Table[[#This Row],[Date]])&MONTH(Year10Table[[#This Row],[Date]]),PenaltyTable[Year]&PenaltyTable[Month],PenaltyTable[Daily])*$DI$10,"") ->  | DN107: 1300.11811
U108: =IFERROR(IF((ROW()-ROW(Year1Table[#Headers]))=1,IF(OR(Table1[[#This Row],[Tax Assessed]]="",Table1[[#This Row],[Tax Assessed]]=0),"",Table1[[#This Row],[Tax Due Dt]]),IF((ROW()-ROW(Year1Table[#Headers]))>1,IF(OFFSET(AB108,-1,)<1,"",EDATE(U107,1)))),"") ->  | V108: =IF(OR(AB107<0,AB107=""),"",IF(AND($B$7<>"",U108>=$B$7),$C$7,IF(AND($B$6<>"",U108>=$B$6),$C$6,IF(U108>=$B$5,$C$5,IF(U108<$B$5,0))))) ->  | X108: =IFERROR(_xlfn.XLOOKUP(YEAR(Year1Table[[#This Row],[Date]])&MONTH(Year1Table[[#This Row],[Date]]),PenaltyTable[Year]&PenaltyTable[Month],PenaltyTable[Daily])*$W$10,"") ->  | AF108: =IF(ROW()-ROW(Year2Table[#Headers])=1,$AI$193,IF(AG106="","",IF(AND($B$7<>"",AE108>=$B$7),$C$7,IF(AND($B$6<>"",AE108>=$B$6),$C$6,IF(AE108>=$B$5,$C$5,IF(AE108<$B$5,0)))))) ->  | AH108: =IFERROR(_xlfn.XLOOKUP(YEAR(Year2Table[[#This Row],[Date]])&MONTH(Year2Table[[#This Row],[Date]]),PenaltyTable[Year]&PenaltyTable[Month],PenaltyTable[Daily])*$AG$10,"") ->  | AM108: =IF(AL108>0,"",IF(VALUE(AE108)<=VALUE($W$8),"",AE108)) ->  | AO108: 1907-12-28 | AP108: 0 | AQ108: 13247.20054 | AR108: =IFERROR(_xlfn.XLOOKUP(YEAR(Year3Table[[#This Row],[Date]])&MONTH(Year3Table[[#This Row],[Date]]),PenaltyTable[Year]&PenaltyTable[Month],PenaltyTable[Daily])*$AQ$10,"") ->  | AV108: 13335.51521 | AY108: 1907-12-28 | AZ108: 0 | BA108: 4731.14305 | BB108: =IFERROR(_xlfn.XLOOKUP(YEAR(Year4Table[[#This Row],[Date]])&MONTH(Year4Table[[#This Row],[Date]]),PenaltyTable[Year]&PenaltyTable[Month],PenaltyTable[Daily])*$BA$10,"") ->  | BF108: 4762.684003 | BI108: 1907-12-28 | BJ108: 0 | BK108: 9462.286099 | BL108: =IFERROR(_xlfn.XLOOKUP(YEAR(Year5Table[[#This Row],[Date]])&MONTH(Year5Table[[#This Row],[Date]]),PenaltyTable[Year]&PenaltyTable[Month],PenaltyTable[Daily])*$BK$10,"") ->  | BP108: 9525.368007 | BS108: 1907-12-28 | BT108: 0 | BU108: 5677.37166 | BV108: =IFERROR(_xlfn.XLOOKUP(YEAR(Year6Table[[#This Row],[Date]])&MONTH(Year6Table[[#This Row],[Date]]),PenaltyTable[Year]&PenaltyTable[Month],PenaltyTable[Daily])*$BU$10,"") ->  | BZ108: 5715.220804 | CC108: 1907-12-28 | CD108: 0 | CE108: 17032.11498 | CF108: =IFERROR(_xlfn.XLOOKUP(YEAR(Year7Table[[#This Row],[Date]])&MONTH(Year7Table[[#This Row],[Date]]),PenaltyTable[Year]&PenaltyTable[Month],PenaltyTable[Daily])*CE$10,"") ->  | CJ108: 17145.66241 | CM108: 1907-12-28 | CN108: 0 | CO108: 22709.48664 | CP108: =IFERROR(_xlfn.XLOOKUP(YEAR(Year8Table[[#This Row],[Date]])&MONTH(Year8Table[[#This Row],[Date]]),PenaltyTable[Year]&PenaltyTable[Month],PenaltyTable[Daily])*$CO$10,"") ->  | CT108: 22860.88322 | CW108: 1907-12-28 | CX108: 0 | CY108: 1608.588637 | CZ108: =IFERROR(_xlfn.XLOOKUP(YEAR(Year9Table[[#This Row],[Date]])&MONTH(Year9Table[[#This Row],[Date]]),PenaltyTable[Year]&PenaltyTable[Month],PenaltyTable[Daily])*$CY$10,"") ->  | DD108: 1619.312561 | DG108: 1907-12-28 | DH108: 0 | DI108: 1300.11811 | DJ108: =IFERROR(_xlfn.XLOOKUP(YEAR(Year10Table[[#This Row],[Date]])&MONTH(Year10Table[[#This Row],[Date]]),PenaltyTable[Year]&PenaltyTable[Month],PenaltyTable[Daily])*$DI$10,"") ->  | DN108: 1308.785564
